{"text_format":"1","workbook":"xlsx","n_sheets":5,"sheets":["SpecialED","Coop_Split","Payment Received","SpecEd_Data","Org_County"],"not_rendered":{"charts":0,"images":0,"macros":1,"external_links":0,"defined_names":12,"comments":0,"pivot_tables":0},"unopened":[],"bounds":{"document_bytes":16777216,"sheet_cells":100000,"rows_first":2000,"rows_last":500,"rows_between":2000,"halvings":0,"cell_chars":16384,"cell_head_chars":4096},"cells_cut":0,"cells_raw":0,"read":"whole","date_system":"1900"}

{"sheet":"SpecialED","index":0,"n_rows":41,"n_cols":7,"rows_kept":41,"cut":false,"hidden":false,"merged":[[0,0,0,6]]}
["SPECIAL EDUCATION AID"]
[null,null,null,null,null,null,{"$f":"TODAY()","v":"2025-04-08"}]
["SchoolYear:",2025,null,null,"Org_no:","D0999"]
["County_Name",{"$f":"Org_County!$D$2","v":"All Counties"},null,null,"Org_name",{"$f":"Org_County!$E$2","v":"All Districts"}]
[]
[]
["Teachers","Current_Yr","Previous_Yr",null,"Transportation","Current_Yr","Previous_Yr"]
["Regular_teachers",8946.659999999998,8870.27,null,"Salaries",0,24448829]
["Non_public_equiv",0,9.1,null,"Contracted_services",0,62019495]
["Regular_aides",12450.759999999998,11979.779999999997,null,"Insurance",0,1370110]
["Regular_fte",13926.979999999996,13671.3,null,"Expend_inLieuOfTrans",0,128856]
["Summer_teachers",210.93,189.29000000000002,null,"Other_expenses",0,11746073]
["Summer_aides",138.79999999999998,132.64999999999998,null,"Capital_outlay_fund_equip",0,184903]
["Summer_fte",266.4500000000001,242.33,null,"Depreciation",0,3036800]
["Entitlement_perfte",30800,31670,null,"Teacher_transportation",0,5225610]
["Regular_entitlement",428950984,432970075,null,"Tran_total",0,108160676]
["Summer_entitlement",8206660,7674598,null,"Reimbursements",0,204302]
["Tch_total",437157644,440644673,null,"Net_transportation_costs",0,107956374]
["Current Entitlement",368525491,440644673,null,"Trans_entitlement_80pcnt",0,86365093]
["Current Payment",74963315,72867329,null,"CarryOver Adjustment",-686491,-1400458]
["Supplemental",0,137101,null,"Transportation Payment",0,85247156]
[null,null,null,null,"Supplemental",0,0]
[]
["Adjustments","Current_Yr","Previous_Yr",null,"Catastrophic","Current_Yr","Previous_Yr"]
["CarryOver",-195080,-84143,null,"Cat_total",0,4651261]
["Refund",0,0,null,"Cat_Total_students",0,45]
["Teacher_Adj",-6627265,-6306723,null,"Cat_Netcost",0,1778911]
["Transportation_Adj",-3112992,-3010709,null,"Cat_Stateaid",0,1334185]
["Catastrophic_Adj",-24173,12616,null,"Per Student",0,63830]
["Total_Adj",-9959510,-9388959,null,"Supplemental",0,0]
[]
["Payments","Current_Yr","Previous_Yr",null,"Medicaid Replacement","Current_Yr","Previous_Yr"]
["October",114572499,111644944,null,"Medicaid_Students",0,15232]
["December",103550807,103603376,null," Payment",0,8986880]
["March",66165852,64042383,null,"Per  Student",0,590]
["April",74963315,72867329,null,"Supplemental",0,0]
["June",0,80273600]
["June Total",0,175841821,null,"Summary","Current_Yr","Previous_Yr"]
["Supplemental",0,137101,null,"Total Entitlements",368525492,537330834]
[null,null,null,null,"Total Payments",359252473,528136955]
[null,null,null,null,"Overpayment",-686491,-195080]

{"sheet":"Coop_Split","index":1,"n_rows":552,"n_cols":11,"rows_kept":552,"cut":false,"hidden":false,"merged":[[2,0,2,10]]}
[]
[]
["Special Education Coop Split"]
[null,null,"SchoolYear:",{"$f":"SchoolYear","v":2025},null,null,null,null,"Org_no:",{"$f":"Org_no","v":"D0999"}]
[null,null,"County Name:",{"$f":"Org_County!$D$2","v":"All Counties"},null,null,null,null,"USD Name:",{"$f":"Org_County!$E$2","v":"All Districts"}]
[]
["schoolyear","Paid_For","Paid_To","Pct","October","December","March","April","June","Supplemental","Total"]
["2025","D0101","D0101",1,0,0,0,0,0,0,0]
["2025","D0102","D0102",1,0,0,0,0,0,0,0]
["2025","D0103","D0103",1,10780,26180,0,9298,0,0,46258]
["2025","D0105","D0105",1,45892,45892,31207,31206,0,0,154197]
["2025","D0106","D0106",1,0,0,0,0,0,0,0]
["2025","D0107","D0107",1,0,0,0,0,0,0,0]
["2025","D0108","D0108",1,0,0,0,0,0,0,0]
["2025","D0109","D0109",1,0,0,0,0,0,0,0]
["2025","D0110","D0110",1,0,0,0,0,0,0,0]
["2025","D0111","D0111",1,0,0,0,0,0,0,0]
["2025","D0112","D0112",1,0,0,0,0,0,0,0]
["2025","D0113","D0113",1,0,0,0,0,0,0,0]
["2025","D0114","D0114",1,0,0,0,0,0,0,0]
["2025","D0115","D0115",0.60419999999999996,155202,147270,94270,100474,0,0,497216]
["2025","D0115","D0380",0.39579999999999999,101670,96474,61754,65818,0,0,325716]
["2025","D0200","D0200",1,0,0,0,0,0,0,0]
["2025","D0202","D0202",1,661815,673037,457309,445511,0,0,2237672]
["2025","D0203","D0203",1,476168,455532,294697,308268,0,0,1534665]
["2025","D0204","D0204",1,406560,406560,270334,275940,0,0,1359394]
["2025","D0205","D0205",1,3080,3080,2094,0,0,0,8254]
["2025","D0206","D0206",1,0,0,0,0,0,0,0]
["2025","D0207","D0207",1,305690,341511,176518,240403,0,0,1064122]
["2025","D0208","D0208",1,30800,73920,33919,35605,0,0,174244]
["2025","D0209","D0209",1,0,0,0,0,0,0,0]
["2025","D0210","D0210",1,0,0,0,0,0,0,0]
["2025","D0211","D0211",1,0,0,0,0,0,0,0]
["2025","D0212","D0212",1,0,0,0,0,0,0,0]
["2025","D0214","D0214",1,0,0,0,0,0,0,0]
["2025","D0215","D0215",1,0,0,0,0,0,0,0]
["2025","D0216","D0216",1,0,0,0,0,0,0,0]
["2025","D0217","D0217",1,0,0,0,0,0,0,0]
["2025","D0218","D0218",1,0,0,0,0,0,0,0]
["2025","D0219","D0219",1,0,0,0,0,0,0,0]
["2025","D0220","D0220",1,0,0,0,0,0,0,0]
["2025","D0223","D0223",1,0,0,0,0,0,0,0]
["2025","D0224","D0224",1,0,0,0,0,0,0,0]
["2025","D0225","D0225",1,0,0,0,0,0,0,0]
["2025","D0226","D0226",1,0,0,0,0,0,0,0]
["2025","D0227","D0227",1,0,0,0,0,0,0,0]
["2025","D0229","D0229",1,5652724,5380968,3525414,3794890,0,0,18353996]
["2025","D0230","D0230",1,957418,925676,596682,659761,0,0,3139537]
["2025","D0231","D0231",1,1572571,1528881,915820,1025615,0,0,5042887]
["2025","D0232","D0232",1,1603217,1401445,987935,1006217,0,0,4998814]
["2025","D0233","D0233",1,6604367,6559964,4307442,4472234,0,0,21944007]
["2025","D0234","D0234",1,607684,489083,353513,401081,0,0,1851361]
["2025","D0235","D0235",1,0,0,0,0,0,0,0]
["2025","D0237","D0237",1,0,0,0,0,0,0,0]
["2025","D0239","D0239",1,6930,6930,4712,4713,0,0,23285]
["2025","D0240","D0240",1,0,0,0,0,0,0,0]
["2025","D0241","D0241",1,0,0,0,0,0,0,0]
["2025","D0242","D0242",1,0,0,0,0,0,0,0]
["2025","D0243","D0243",1,0,0,0,0,0,0,0]
["2025","D0244","D0243",0.35199999999999998,171053,151653,115291,140294,0,0,578291]
["2025","D0244","D0244",0.5474,266007,235837,179291,218173,0,0,899308]
["2025","D0244","D0245",0.10059999999999999,48886,43342,32950,40095,0,0,165273]
["2025","D0245","D0245",1,0,0,0,0,0,0,0]
["2025","D0246","D0246",1,0,0,0,0,0,0,0]
["2025","D0247","D0247",1,0,0,0,0,0,0,0]
["2025","D0248","D0248",1,0,0,0,0,0,0,0]
["2025","D0249","D0249",1,0,0,0,0,0,0,0]
["2025","D0250","D0250",1,0,0,0,0,0,0,0]
["2025","D0251","D0251",1,0,0,0,0,0,0,0]
["2025","D0252","D0252",1,0,0,0,0,0,0,0]
["2025","D0253","D0251",5.3699999999999998E-2,88214,82983,37117,55213,0,0,263527]
["2025","D0253","D0252",6.4000000000000001E-2,105134,98900,44236,65803,0,0,314073]
["2025","D0253","D0253",0.65880000000000005,1082223,1018052,455357,677358,0,0,3232990]
["2025","D0253","D0284",4.8500000000000001E-2,79672,74948,33523,49866,0,0,238009]
["2025","D0253","D0386",4.1200000000000001E-2,67680,63667,28477,42361,0,0,202185]
["2025","D0253","D0390",1.7000000000000001E-2,27926,26270,11750,17479,0,0,83425]
["2025","D0253","D0417",0.1168,191869,180493,80731,120090,0,0,573183]
["2025","D0254","D0254",1,0,0,0,0,0,0,0]
["2025","D0255","D0255",1,0,0,0,0,0,0,0]
["2025","D0256","D0256",1,0,0,0,0,0,0,0]
["2025","D0257","D0257",1,0,0,0,0,0,0,0]
["2025","D0258","D0258",1,0,0,0,0,0,0,0]
["2025","D0259","D0259",1,10826277,9296755,6348142,5394879,0,0,31866053]
["2025","D0260","D0260",1,1576036,1347689,891411,972340,0,0,4787476]
["2025","D0261","D0261",1,1314390,1327231,962676,719832,0,0,4324129]
["2025","D0262","D0262",0.82569999999999999,854945,805250,555913,542063,0,0,2758171]
["2025","D0262","D0369",4.1799999999999997E-2,43281,40765,28142,27441,0,0,139629]
["2025","D0262","D0439",0.13250000000000001,137193,129218,89207,86985,0,0,442603]
["2025","D0263","D0263",1,462693,421550,285875,286132,0,0,1456250]
["2025","D0264","D0264",1,0,0,0,0,0,0,0]
["2025","D0265","D0264",0.1091,248358,233586,149794,151258,0,0,782996]
["2025","D0265","D0265",0.77439999999999998,1762866,1658009,1063250,1073638,0,0,5557763]
["2025","D0265","D0268",7.7399999999999997E-2,176196,165715,106270,107308,0,0,555489]
["2025","D0265","D0356",3.9100000000000003E-2,89008,83714,53684,54209,0,0,280615]
["2025","D0266","D0266",0.8357,2289534,2177787,1558623,1557393,0,0,7583337]
["2025","D0266","D0267",0.1643,450126,428157,306428,306186,0,0,1490897]
["2025","D0267","D0267",1,0,0,0,0,0,0,0]
["2025","D0268","D0268",1,0,0,0,0,0,0,0]
["2025","D0269","D0269",1,0,0,0,0,0,0,0]
["2025","D0270","D0270",1,0,0,0,0,0,0,0]
["2025","D0271","D0271",1,0,0,0,0,0,0,0]
["2025","D0272","D0272",1,0,0,0,0,0,0,0]
["2025","D0273","D0107",0.1799,92533,74186,56534,58897,0,0,282150]
["2025","D0273","D0272",0.14990000000000001,77103,61815,47107,49075,0,0,235100]
["2025","D0273","D0273",0.39029999999999998,200755,160950,122654,127779,0,0,612138]
["2025","D0273","D0298",0.15989999999999999,82246,65939,50249,52349,0,0,250783]
["2025","D0273","D0299",0.12,61723,49485,37711,39286,0,0,188205]
["2025","D0274","D0274",1,0,0,6773,5236,0,0,12009]
["2025","D0275","D0275",1,4735,11088,0,8879,0,0,24702]
["2025","D0281","D0281",1,0,0,0,0,0,0,0]
["2025","D0282","D0282",0.4239,187910,147465,94816,164544,0,0,594735]
["2025","D0282","D0283",0.21629999999999999,95883,75246,48381,83960,0,0,303470]
["2025","D0282","D0286",0.35980000000000001,159495,125167,80479,139662,0,0,504803]
["2025","D0283","D0283",1,0,0,0,0,0,0,0]
["2025","D0284","D0284",1,0,0,0,0,0,0,0]
["2025","D0285","D0285",1,0,0,0,0,0,0,0]
["2025","D0286","D0286",1,0,0,0,0,0,0,0]
["2025","D0287","D0287",1,0,0,0,0,0,0,0]
["2025","D0288","D0288",1,0,0,0,0,0,0,0]
["2025","D0289","D0289",1,0,0,0,0,0,0,0]
["2025","D0290","D0290",1,606914,373361,320415,437317,0,0,1738007]
["2025","D0291","D0291",1,0,0,0,0,0,0,0]
["2025","D0292","D0292",1,0,11088,3770,3770,0,0,18628]
["2025","D0293","D0293",1,0,10010,6705,0,0,0,16715]
["2025","D0294","D0294",1,0,0,0,0,0,0,0]
["2025","D0297","D0297",1,30800,32340,0,0,0,0,63140]
["2025","D0298","D0298",1,0,0,0,0,0,0,0]
["2025","D0299","D0299",1,0,0,0,0,0,0,0]
["2025","D0300","D0300",1,0,0,0,0,0,0,0]
["2025","D0303","D0303",1,0,0,0,0,0,0,0]
["2025","D0305","D0112",2.7900000000000001E-2,92837,85563,58279,59310,0,0,295989]
["2025","D0305","D0239",4.0500000000000001E-2,134763,124204,84599,86095,0,0,429661]
["2025","D0305","D0240",3.8600000000000002E-2,128441,118378,80630,82056,0,0,409505]
["2025","D0305","D0305",0.55110000000000003,1833773,1690100,1151169,1171525,0,0,5846567]
["2025","D0305","D0306",4.3799999999999999E-2,145744,134325,91492,93110,0,0,464671]
["2025","D0305","D0307",2.69E-2,89509,82496,56190,57184,0,0,285379]
["2025","D0305","D0327",4.2099999999999999E-2,140087,129111,87941,89496,0,0,446635]
["2025","D0305","D0393",2.3599999999999999E-2,78528,72376,49297,50169,0,0,250370]
["2025","D0305","D0435",8.9499999999999996E-2,297809,274476,186953,190259,0,0,949497]
["2025","D0305","D0473",7.2099999999999997E-2,239911,221114,150607,153270,0,0,764902]
["2025","D0305","D0481",1.7899999999999999E-2,59562,54895,37391,38052,0,0,189900]
["2025","D0305","D0487",2.5999999999999999E-2,86514,79736,54310,55271,0,0,275831]
["2025","D0306","D0306",1,0,0,0,0,0,0,0]
["2025","D0307","D0307",1,0,0,0,0,0,0,0]
["2025","D0308","D0308",1,1125740,1181387,777608,805266,0,0,3890001]
["2025","D0309","D0309",1,0,0,0,0,0,0,0]
["2025","D0310","D0310",1,0,0,0,0,0,0,0]
["2025","D0311","D0311",1,0,0,0,0,0,0,0]
["2025","D0312","D0312",1,0,0,0,0,0,0,0]
["2025","D0313","D0313",1,0,0,0,0,0,0,0]
["2025","D0314","D0314",1,20020,41580,13515,16339,0,0,91454]
["2025","D0315","D0315",1,77924,77924,42258,3822,0,0,201928]
["2025","D0316","D0316",1,18711,18711,8184,14158,0,0,59764]
["2025","D0320","D0320",0.51549999999999996,386932,347156,219977,255036,0,0,1209101]
["2025","D0320","D0323",0.36099999999999999,270965,243110,154048,178600,0,0,846723]
["2025","D0320","D0329",0.1235,92699,83169,52701,61100,0,0,289669]
["2025","D0321","D0321",1,401863,371679,254904,261594,0,0,1290040]
["2025","D0322","D0322",1,0,0,0,0,0,0,0]
["2025","D0323","D0323",1,0,0,0,0,0,0,0]
["2025","D0325","D0325",1,0,0,0,0,0,0,0]
["2025","D0326","D0326",1,0,0,0,0,0,0,0]
["2025","D0327","D0327",1,0,0,0,0,0,0,0]
["2025","D0329","D0329",1,0,0,0,0,0,0,0]
["2025","D0330","D0330",1,0,227920,125368,127931,0,0,481219]
["2025","D0331","D0331",1,0,0,0,0,0,0,0]
["2025","D0332","D0332",1,0,0,0,0,0,0,0]
["2025","D0333","D0108",0.1449,86067,83311,36778,52416,0,0,258572]
["2025","D0333","D0109",0.2082,123666,119706,52845,75314,0,0,371531]
["2025","D0333","D0224",0.12089999999999999,71812,69512,30687,43734,0,0,215745]
["2025","D0333","D0333",0.44209999999999999,262598,254188,112213,159924,0,0,788923]
["2025","D0333","D0426",8.3900000000000002E-2,49835,48239,21295,30350,0,0,149719]
["2025","D0334","D0334",1,0,0,0,0,0,0,0]
["2025","D0335","D0335",1,0,0,0,0,0,0,0]
["2025","D0336","D0113",0.24929999999999999,128863,128441,84704,87152,0,0,429160]
["2025","D0336","D0322",8.6900000000000005E-2,44919,44771,29526,30379,0,0,149595]
["2025","D0336","D0335",0.12759999999999999,65957,65740,43354,44607,0,0,219658]
["2025","D0336","D0336",0.309,159722,159199,104988,108022,0,0,531931]
["2025","D0336","D0337",0.22720000000000001,117440,117055,77195,79426,0,0,391116]
["2025","D0337","D0337",1,25718,25718,17488,17488,0,0,86412]
["2025","D0338","D0338",1,0,0,0,0,0,0,0]
["2025","D0339","D0339",1,0,0,0,0,0,0,0]
["2025","D0340","D0340",1,0,0,0,0,0,0,0]
["2025","D0341","D0341",1,0,0,0,0,0,0,0]
["2025","D0342","D0342",1,0,0,0,0,0,0,0]
["2025","D0343","D0343",1,0,0,0,0,0,0,0]
["2025","D0344","D0344",1,0,0,0,0,0,0,0]
["2025","D0345","D0345",1,1155462,896402,519765,634954,0,0,3206583]
["2025","D0346","D0346",1,0,0,0,0,0,0,0]
["2025","D0347","D0347",1,0,0,0,0,0,0,0]
["2025","D0348","D0348",1,0,0,0,0,0,0,0]
["2025","D0349","D0349",1,0,0,0,0,0,0,0]
["2025","D0350","D0350",1,0,0,0,0,0,0,0]
["2025","D0351","D0351",1,0,0,0,0,0,0,0]
["2025","D0352","D0352",1,30800,102872,121595,74530,0,0,329797]
["2025","D0353","D0353",1,523908,513638,275565,377574,0,0,1690685]
["2025","D0355","D0355",1,0,0,0,0,0,0,0]
["2025","D0356","D0356",1,0,0,0,0,0,0,0]
["2025","D0357","D0357",1,0,0,0,0,0,0,0]
["2025","D0358","D0358",1,0,0,0,0,0,0,0]
["2025","D0359","D0359",1,0,0,0,0,0,0,0]
["2025","D0360","D0360",1,0,0,0,0,0,0,0]
["2025","D0361","D0361",1,0,0,0,0,0,0,0]
["2025","D0362","D0362",1,0,0,0,0,0,0,0]
["2025","D0363","D0363",1,0,0,0,0,0,0,0]
["2025","D0364","D0364",0.69679999999999997,178130,141698,102759,119178,0,0,541765]
["2025","D0364","D0498",0.30320000000000003,77510,61657,44714,51858,0,0,235739]
["2025","D0365","D0365",1,0,12628,0,1343,0,0,13971]
["2025","D0366","D0366",1,0,0,0,0,0,0,0]
["2025","D0367","D0367",1,0,0,0,0,0,0,0]
["2025","D0368","D0288",6.3799999999999996E-2,121749,110480,72731,80010,0,0,384970]
["2025","D0368","D0344",3.3599999999999998E-2,64119,58184,38303,42137,0,0,202743]
["2025","D0368","D0346",8.5400000000000004E-2,162968,147883,97354,107098,0,0,515303]
["2025","D0368","D0362",0.14280000000000001,272504,247280,162789,179082,0,0,861655]
["2025","D0368","D0365",0.1168,222888,202257,133149,146476,0,0,704770]
["2025","D0368","D0367",0.19719999999999999,376315,341482,224803,247304,0,0,1189904]
["2025","D0368","D0368",0.19950000000000001,380704,345465,227425,250189,0,0,1203783]
["2025","D0368","D0416",0.16089999999999999,307044,278623,183422,201781,0,0,970870]
["2025","D0369","D0369",1,0,0,0,0,0,0,0]
["2025","D0371","D0371",1,0,0,0,0,0,0,0]
["2025","D0372","D0372",1,156079,158543,99321,109423,0,0,523366]
["2025","D0373","D0373",0.68340000000000001,773383,719663,443412,511985,0,0,2448443]
["2025","D0373","D0440",0.152,172014,160065,98623,113874,0,0,544576]
["2025","D0373","D0460",0.1646,186273,173334,106798,123314,0,0,589719]
["2025","D0374","D0374",1,0,0,0,0,0,0,0]
["2025","D0375","D0375",1,0,0,0,0,0,0,0]
["2025","D0376","D0376",1,0,0,0,0,0,0,0]
["2025","D0377","D0377",1,0,0,0,0,0,0,0]
["2025","D0378","D0378",1,0,0,0,0,0,0,0]
["2025","D0379","D0223",0.14899999999999999,79795,65354,52000,56769,0,0,253918]
["2025","D0379","D0334",7.7299999999999994E-2,41397,33905,26977,29451,0,0,131730]
["2025","D0379","D0378",0.2356,126172,103338,82223,89763,0,0,401496]
["2025","D0379","D0379",0.4279,229155,187685,149335,163029,0,0,729204]
["2025","D0379","D0384",0.11020000000000001,59016,48336,38459,41986,0,0,187797]
["2025","D0380","D0380",1,0,0,0,0,0,0,0]
["2025","D0381","D0381",1,0,0,0,0,0,0,0]
["2025","D0382","D0382",1,0,0,0,0,0,0,0]
["2025","D0383","D0383",1,2011240,1888779,1101719,1359645,0,0,6361383]
["2025","D0384","D0384",1,0,0,0,0,0,0,0]
["2025","D0385","D0385",1,43197,43197,29374,29374,0,0,145142]
["2025","D0386","D0386",1,0,0,0,0,0,0,0]
["2025","D0387","D0387",1,0,0,0,0,0,0,0]
["2025","D0388","D0388",1,0,0,0,0,0,0,0]
["2025","D0389","D0389",1,0,285362,68133,119445,0,0,472940]
["2025","D0390","D0390",1,0,0,0,0,0,0,0]
["2025","D0392","D0392",1,0,0,0,0,0,0,0]
["2025","D0393","D0393",1,0,0,0,0,0,0,0]
["2025","D0394","D0394",1,7700,7700,0,0,0,0,15400]
["2025","D0395","D0395",1,0,0,0,0,0,0,0]
["2025","D0396","D0396",1,0,0,0,0,0,0,0]
["2025","D0397","D0397",1,0,0,0,0,0,0,0]
["2025","D0398","D0398",1,0,0,0,0,0,0,0]
["2025","D0399","D0399",1,0,0,0,0,0,0,0]
["2025","D0400","D0400",1,0,0,0,0,0,0,0]
["2025","D0401","D0401",1,0,0,0,0,0,0,0]
["2025","D0402","D0402",1,0,0,0,0,0,0,0]
["2025","D0403","D0403",1,0,0,0,0,0,0,0]
["2025","D0404","D0404",1,0,0,0,0,0,0,0]
["2025","D0405","D0376",0.28860000000000002,139955,132400,56004,85859,0,0,414218]
["2025","D0405","D0401",9.1600000000000001E-2,44421,42023,17775,27251,0,0,131470]
["2025","D0405","D0405",0.4526,219487,207637,87829,134649,0,0,649602]
["2025","D0405","D0444",0.16719999999999999,81083,76706,32446,49742,0,0,239977]
["2025","D0407","D0407",1,0,0,0,0,0,0,0]
["2025","D0408","D0408",1,0,0,0,0,0,0,0]
["2025","D0409","D0409",1,108724,0,709048,233046,0,0,1050818]
["2025","D0410","D0410",1,0,0,0,0,0,0,0]
["2025","D0411","D0411",1,0,0,0,0,0,0,0]
["2025","D0412","D0412",1,16170,16170,10170,6910,0,0,49420]
["2025","D0413","D0413",1,0,0,0,0,0,0,0]
["2025","D0415","D0415",1,0,0,0,0,0,0,0]
["2025","D0416","D0416",1,0,0,0,0,0,0,0]
["2025","D0417","D0417",1,0,0,0,0,0,0,0]
["2025","D0418","D0400",0.183,220411,202409,120897,152611,0,0,696328]
["2025","D0418","D0418",0.54269999999999996,653646,600258,358530,452579,0,0,2065013]
["2025","D0418","D0419",7.4099999999999999E-2,89249,81959,48954,61795,0,0,281957]
["2025","D0418","D0423",0.1062,127911,117463,70160,88564,0,0,404098]
["2025","D0418","D0448",9.4E-2,113217,103970,62100,78390,0,0,357677]
["2025","D0419","D0419",1,0,0,0,0,0,0,0]
["2025","D0420","D0420",1,0,0,0,0,0,0,0]
["2025","D0421","D0421",1,0,0,0,0,0,0,0]
["2025","D0422","D0422",1,0,0,0,0,0,0,0]
["2025","D0423","D0423",1,0,0,0,0,0,0,0]
["2025","D0426","D0426",1,0,0,0,0,0,0,0]
["2025","D0428","D0355",0.12690000000000001,135430,122372,75977,84233,0,0,418012]
["2025","D0428","D0403",7.2800000000000004E-2,77694,70202,43586,48323,0,0,239805]
["2025","D0428","D0428",0.59740000000000004,637557,576083,357672,396537,0,0,1967849]
["2025","D0428","D0431",0.2029,216539,195660,121479,134679,0,0,668357]
["2025","D0429","D0429",1,0,0,0,0,0,0,0]
["2025","D0430","D0430",1,0,0,0,0,0,0,0]
["2025","D0431","D0431",1,0,0,0,0,0,0,0]
["2025","D0432","D0432",1,0,0,0,0,0,0,0]
["2025","D0434","D0434",1,0,0,0,0,0,0,0]
["2025","D0435","D0435",1,19943,17171,930,12619,0,0,50663]
["2025","D0436","D0436",1,0,0,0,0,0,0,0]
["2025","D0437","D0437",1,1695155,1528639,1008580,1174684,0,0,5407058]
["2025","D0438","D0438",1,0,0,9286,2356,0,0,11642]
["2025","D0439","D0439",1,0,0,0,0,0,0,0]
["2025","D0440","D0440",1,0,0,0,0,0,0,0]
["2025","D0443","D0443",1,0,0,0,0,0,0,0]
["2025","D0444","D0444",1,0,0,0,0,0,0,0]
["2025","D0445","D0445",1,0,0,0,0,0,0,0]
["2025","D0446","D0446",1,0,0,0,0,0,0,0]
["2025","D0447","D0447",1,0,0,0,0,0,0,0]
["2025","D0448","D0448",1,0,0,0,0,0,0,0]
["2025","D0449","D0449",1,0,0,0,0,0,0,0]
["2025","D0450","D0450",1,974897,885997,602559,611578,0,0,3075031]
["2025","D0452","D0452",1,0,0,0,0,0,0,0]
["2025","D0453","D0453",1,802725,737102,398306,502994,0,0,2441127]
["2025","D0454","D0454",1,0,0,0,0,0,0,0]
["2025","D0456","D0456",1,0,0,0,0,0,0,0]
["2025","D0457","D0457",1,1339338,1087367,509820,1134524,0,0,4071049]
["2025","D0458","D0458",0.64949999999999997,780830,641139,413289,462026,0,0,2297284]
["2025","D0458","D0464",0.35049999999999998,421371,345988,223030,249330,0,0,1239719]
["2025","D0459","D0459",1,0,0,0,0,0,0,0]
["2025","D0460","D0460",1,0,0,0,0,0,0,0]
["2025","D0461","D0461",1,0,0,0,0,0,0,0]
["2025","D0462","D0462",1,0,0,0,0,0,0,0]
["2025","D0463","D0463",1,0,0,0,0,0,0,0]
["2025","D0464","D0464",1,0,0,0,0,0,0,0]
["2025","D0465","D0285",2.1999999999999999E-2,34564,31782,22592,22677,0,0,111615]
["2025","D0465","D0462",4.6800000000000001E-2,73528,67608,48059,48240,0,0,237435]
["2025","D0465","D0463",4.8800000000000003E-2,76670,70498,50113,50301,0,0,247582]
["2025","D0465","D0465",0.37830000000000003,594350,546501,388476,389937,0,0,1919264]
["2025","D0465","D0470",0.4592,721453,663371,471552,473326,0,0,2329702]
["2025","D0465","D0471",4.4900000000000002E-2,70543,64864,46108,46281,0,0,227796]
["2025","D0466","D0466",1,0,0,0,0,0,0,0]
["2025","D0467","D0467",1,0,0,0,0,0,0,0]
["2025","D0468","D0468",1,0,0,0,0,0,0,0]
["2025","D0469","D0469",1,745360,674737,276390,440338,0,0,2136825]
["2025","D0470","D0470",1,0,0,0,0,0,0,0]
["2025","D0471","D0471",1,0,0,0,0,0,0,0]
["2025","D0473","D0473",1,0,0,0,0,0,0,0]
["2025","D0474","D0474",1,0,0,0,0,0,0,0]
["2025","D0475","D0475",1,2121966,2031879,1409371,1413431,0,0,6976647]
["2025","D0476","D0476",1,0,0,0,0,0,0,0]
["2025","D0477","D0477",1,0,0,0,0,0,0,0]
["2025","D0479","D0479",1,0,0,0,0,0,0,0]
["2025","D0480","D0480",1,710633,668517,278062,453025,0,0,2110237]
["2025","D0481","D0481",1,0,0,0,0,0,0,0]
["2025","D0482","D0482",1,0,0,0,0,0,0,0]
["2025","D0483","D0483",1,0,0,0,0,0,0,0]
["2025","D0484","D0484",1,0,0,0,0,0,0,0]
["2025","D0487","D0487",1,0,0,2064,523,0,0,2587]
["2025","D0489","D0388",6.8699999999999997E-2,88860,85752,53207,59408,0,0,287227]
["2025","D0489","D0395",5.8200000000000002E-2,75279,72645,45075,50328,0,0,243327]
["2025","D0489","D0407",0.15629999999999999,202166,195094,121051,135160,0,0,653471]
["2025","D0489","D0432",5.3999999999999999E-2,69846,67403,41822,46696,0,0,225767]
["2025","D0489","D0489",0.66279999999999994,857296,827310,513324,573154,0,0,2771084]
["2025","D0490","D0490",1,0,0,0,0,0,0,0]
["2025","D0491","D0491",1,0,0,0,0,0,0,0]
["2025","D0492","D0492",1,0,0,0,0,0,0,0]
["2025","D0493","D0493",1,0,0,0,0,0,0,0]
["2025","D0494","D0494",1,0,0,0,0,0,0,0]
["2025","D0495","D0347",0.21329999999999999,75190,59322,43548,47809,0,0,225869]
["2025","D0495","D0495",0.69530000000000003,245097,193372,141955,155843,0,0,736267]
["2025","D0495","D0496",9.1399999999999995E-2,32219,25420,18661,20486,0,0,96786]
["2025","D0496","D0496",1,0,0,0,0,0,0,0]
["2025","D0497","D0497",1,2637019,2590511,1549132,1799598,0,0,8576260]
["2025","D0498","D0498",1,0,0,0,0,0,0,0]
["2025","D0499","D0499",1,0,0,0,0,0,0,0]
["2025","D0500","D0203",8.8200000000000001E-2,271038,187813,15416,322440,0,0,796707]
["2025","D0500","D0204",9.4500000000000001E-2,290398,201228,16518,345472,0,0,853616]
["2025","D0500","D0500",0.81730000000000003,2511557,1740358,142856,2987875,0,0,7382646]
["2025","D0501","D0501",1,3573416,3732280,2424040,2558427,0,0,12288163]
["2025","D0502","D0502",1,0,0,0,0,0,0,0]
["2025","D0503","D0503",1,0,0,0,0,0,0,0]
["2025","D0504","D0504",1,0,0,0,0,0,0,0]
["2025","D0505","D0505",1,0,0,0,0,0,0,0]
["2025","D0506","D0506",1,0,0,0,0,0,0,0]
["2025","D0507","D0507",1,0,0,0,0,0,0,0]
["2025","D0508","D0508",1,0,0,0,0,0,0,0]
["2025","D0509","D0509",1,0,0,0,0,0,0,0]
["2025","D0511","D0511",1,0,0,0,0,0,0,0]
["2025","D0512","D0512",1,4662273,4416629,2646053,3151820,0,0,14876775]
["2025","D0602","D0103",1.32E-2,9472,7760,7600,10939,0,0,35771]
["2025","D0602","D0105",2.3099999999999999E-2,16576,13581,13300,19143,0,0,62600]
["2025","D0602","D0208",5.4300000000000001E-2,38964,31923,31264,44998,0,0,147149]
["2025","D0602","D0241",2.8199999999999999E-2,20235,16579,16237,23369,0,0,76420]
["2025","D0602","D0242",2.9100000000000001E-2,20881,17108,16755,24115,0,0,78859]
["2025","D0602","D0274",8.8700000000000001E-2,63648,52147,51071,73504,0,0,240370]
["2025","D0602","D0275",1.41E-2,10118,8289,8118,11684,0,0,38209]
["2025","D0602","D0281",9.0200000000000002E-2,64724,53029,51934,74747,0,0,244434]
["2025","D0602","D0291",2.0199999999999999E-2,14495,11876,11631,16739,0,0,54741]
["2025","D0602","D0292",1.7999999999999999E-2,12916,10582,10364,14916,0,0,48778]
["2025","D0602","D0293",0.1188,85246,69843,68401,98448,0,0,321938]
["2025","D0602","D0294",8.9200000000000002E-2,64007,52441,51359,73919,0,0,241726]
["2025","D0602","D0297",1.9699999999999999E-2,14136,11582,11343,16325,0,0,53386]
["2025","D0602","D0314",1.5900000000000001E-2,11409,9348,9155,13176,0,0,43088]
["2025","D0602","D0315",8.8700000000000001E-2,63648,52147,51071,73504,0,0,240370]
["2025","D0602","D0316",2.7699999999999999E-2,19876,16285,15949,22955,0,0,75065]
["2025","D0602","D0352",0.11459999999999999,82233,67374,65983,94967,0,0,310557]
["2025","D0602","D0412",6.6000000000000003E-2,47359,38802,38001,54693,0,0,178855]
["2025","D0602","D0468",1.38E-2,9902,8113,7946,11436,0,0,37397]
["2025","D0602","D0602",6.6500000000000004E-2,47718,39096,38289,55108,0,0,180211]
["2025","D0603","D0101",8.4099999999999994E-2,109167,107136,61673,77860,0,0,355836]
["2025","D0603","D0256",5.0299999999999997E-2,65293,64078,36887,46568,0,0,212826]
["2025","D0603","D0257",0.2104,273113,268030,154294,194788,0,0,890225]
["2025","D0603","D0258",0.17280000000000001,224306,220131,126720,159978,0,0,731135]
["2025","D0603","D0366",8.0299999999999996E-2,104235,102295,58887,74342,0,0,339759]
["2025","D0603","D0387",2.7699999999999999E-2,35956,35287,20313,25645,0,0,117201]
["2025","D0603","D0413",0.32750000000000001,425117,417205,240167,303199,0,0,1385688]
["2025","D0603","D0479",4.6899999999999997E-2,60879,59746,34393,43420,0,0,198438]
["2025","D0603","D0603",0,0,0,0,0,0,0,0]
["2025","D0605","D0254",8.2100000000000006E-2,134172,115100,91614,90665,0,0,431551]
["2025","D0605","D0255",3.7400000000000003E-2,61121,52433,41734,41302,0,0,196590]
["2025","D0605","D0300",5.62E-2,91845,78789,62713,62063,0,0,295410]
["2025","D0605","D0331",0.14360000000000001,234678,201320,160241,158580,0,0,754819]
["2025","D0605","D0332",3.9199999999999999E-2,64063,54956,43743,43289,0,0,206051]
["2025","D0605","D0349",4.1599999999999998E-2,67985,58321,46421,45940,0,0,218667]
["2025","D0605","D0350",5.7700000000000001E-2,94296,80892,64387,63719,0,0,303294]
["2025","D0605","D0351",3.1300000000000001E-2,51152,43881,34927,34565,0,0,164525]
["2025","D0605","D0361",0.1452,237293,203563,162026,160347,0,0,763229]
["2025","D0605","D0382",0.19739999999999999,322601,276744,220276,217993,0,0,1037614]
["2025","D0605","D0422",4.8800000000000003E-2,79751,68415,54455,53891,0,0,256512]
["2025","D0605","D0438",5.4199999999999998E-2,88576,75986,60481,59854,0,0,284897]
["2025","D0605","D0474",1.6500000000000001E-2,26965,23132,18412,18221,0,0,86730]
["2025","D0605","D0502",2.1000000000000001E-2,34319,29441,23434,23191,0,0,110385]
["2025","D0605","D0511",2.7799999999999998E-2,45432,38974,31022,30700,0,0,146128]
["2025","D0605","D0605",0,0,0,0,0,0,0,0]
["2025","D0607","D0436",8.6499999999999994E-2,129394,122495,68551,83813,0,0,404253]
["2025","D0607","D0445",0.2021,302317,286199,160163,195822,0,0,944501]
["2025","D0607","D0446",0.24299999999999999,363499,344119,192576,235452,0,0,1135646]
["2025","D0607","D0447",9.2999999999999999E-2,139117,131700,73702,90111,0,0,434630]
["2025","D0607","D0461",9.8100000000000007E-2,146746,138922,77744,95053,0,0,458465]
["2025","D0607","D0484",8.6599999999999996E-2,129543,122637,68630,83910,0,0,404720]
["2025","D0607","D0503",0.19070000000000001,285264,270055,151129,184776,0,0,891224]
["2025","D0607","D0607",0,0,0,0,0,0,0,0]
["2025","D0608","D0338",8.3000000000000004E-2,113587,142607,55890,79053,0,0,391137]
["2025","D0608","D0339",0.11310000000000001,154780,194323,76158,107721,0,0,532982]
["2025","D0608","D0340",0.1867,255503,320779,125719,177821,0,0,879822]
["2025","D0608","D0341",0.14130000000000001,193372,242775,95148,134580,0,0,665875]
["2025","D0608","D0342",0.1101,150674,189168,74138,104864,0,0,518844]
["2025","D0608","D0343",0.1532,209657,263221,103161,145914,0,0,721953]
["2025","D0608","D0377",0.104,142326,178688,70031,99054,0,0,490099]
["2025","D0608","D0449",0.1086,148621,186591,73128,103435,0,0,511775]
["2025","D0608","D0608",0,0,0,0,0,0,0,0]
["2025","D0609","D0234",2.5999999999999999E-3,13110,6416,4167,4932,0,0,28625]
["2025","D0609","D0321",3.7000000000000002E-3,18657,9131,5930,7019,0,0,40737]
["2025","D0609","D0330",1.6000000000000001E-3,8068,3949,2564,3035,0,0,17616]
["2025","D0609","D0345",3.5000000000000001E-3,17648,8638,5610,6639,0,0,38535]
["2025","D0609","D0368",1.8800000000000001E-2,94798,46396,30133,35663,0,0,206990]
["2025","D0609","D0372",1.9E-3,9581,4689,3045,3604,0,0,20919]
["2025","D0609","D0437",2.92E-2,147239,72062,46802,55391,0,0,321494]
["2025","D0609","D0450",1.44E-2,72611,35537,23080,27316,0,0,158544]
["2025","D0609","D0501",7.1000000000000004E-3,35801,17522,11380,13468,0,0,78171]
["2025","D0609","D0609",0.91720000000000002,4624909,2263537,1470089,1739887,0,0,10098422]
["2025","D0610","D0309",0.19420000000000001,252443,240525,149996,161272,0,0,804236]
["2025","D0610","D0310",5.1999999999999998E-2,67596,64404,40164,43183,0,0,215347]
["2025","D0610","D0311",5.7599999999999998E-2,74875,71340,44489,47833,0,0,238537]
["2025","D0610","D0312",0.15229999999999999,197977,188630,117633,126476,0,0,630716]
["2025","D0610","D0313",0.4718,613299,584344,364408,391803,0,0,1953854]
["2025","D0610","D0610",7.2099999999999997E-2,93724,89299,55688,59875,0,0,298586]
["2025","D0611","D0200",2.7799999999999998E-2,37148,36479,22730,25226,0,0,121583]
["2025","D0611","D0209",1.7299999999999999E-2,23117,22701,14145,15698,0,0,75661]
["2025","D0611","D0210",0.1108,148057,145390,90594,100541,0,0,484582]
["2025","D0611","D0214",0.16309999999999999,217944,214017,133356,147999,0,0,713316]
["2025","D0611","D0215",7.0499999999999993E-2,94206,92509,57643,63972,0,0,308330]
["2025","D0611","D0216",2.7099999999999999E-2,36213,35560,22158,24591,0,0,118522]
["2025","D0611","D0217",1.34E-2,17906,17583,10956,12159,0,0,58604]
["2025","D0611","D0218",0.1,133626,131218,81763,90741,0,0,437348]
["2025","D0611","D0363",0.1051,140441,137910,85933,95369,0,0,459653]
["2025","D0611","D0371",2.41E-2,32204,31624,19705,21869,0,0,105402]
["2025","D0611","D0374",4.3700000000000003E-2,58394,57342,35731,39654,0,0,191121]
["2025","D0611","D0452",4.7500000000000001E-2,63472,62329,38838,43102,0,0,207741]
["2025","D0611","D0466",0.1031,137768,135286,84298,93554,0,0,450906]
["2025","D0611","D0467",4.3999999999999997E-2,58795,57736,35976,39926,0,0,192433]
["2025","D0611","D0476",1.32E-2,17639,17321,10793,11978,0,0,57731]
["2025","D0611","D0494",6.1400000000000003E-2,82046,80568,50203,55715,0,0,268532]
["2025","D0611","D0507",2.7900000000000001E-2,37282,36610,22812,25317,0,0,122021]
["2025","D0611","D0611",0,0,0,0,0,0,0,0]
["2025","D0613","D0102",5.62E-2,130276,58665,62291,71196,0,0,322428]
["2025","D0613","D0106",1.15E-2,26658,12004,12746,14568,0,0,65976]
["2025","D0613","D0219",2.3E-2,53316,24009,25493,29137,0,0,131955]
["2025","D0613","D0220",1.84E-2,42653,19207,20394,23310,0,0,105564]
["2025","D0613","D0225",6.7000000000000002E-3,15531,6994,7426,8488,0,0,38439]
["2025","D0613","D0226",3.39E-2,78583,35387,37574,42945,0,0,194489]
["2025","D0613","D0227",2.7E-2,62588,28184,29926,34204,0,0,154902]
["2025","D0613","D0303",2.6100000000000002E-2,60502,27245,28929,33064,0,0,149740]
["2025","D0613","D0381",3.0499999999999999E-2,70702,31838,33806,38638,0,0,174984]
["2025","D0613","D0443",0.64670000000000005,1499106,675062,716793,819255,0,0,3710216]
["2025","D0613","D0459",2.1299999999999999E-2,49375,22234,23609,26983,0,0,122201]
["2025","D0613","D0477",2.1399999999999999E-2,49607,22339,23719,27110,0,0,122775]
["2025","D0613","D0482",2.2700000000000001E-2,52621,23696,25160,28757,0,0,130234]
["2025","D0613","D0483",5.4600000000000003E-2,126567,56995,60518,69169,0,0,313249]
["2025","D0613","D0613",0,0,0,0,0,0,0,0]
["2025","D0614","D0289",0.2218,239083,220058,147641,156893,0,0,763675]
["2025","D0614","D0348",0.34439999999999998,371237,341695,229250,243616,0,0,1185798]
["2025","D0614","D0491",0.43380000000000002,467603,430393,288759,306855,0,0,1493610]
["2025","D0614","D0614",0,0,0,0,0,0,0,0]
["2025","D0615","D0415",0.63519999999999999,215059,205454,140109,142171,0,0,702793]
["2025","D0615","D0430",0.36480000000000001,123510,117993,80465,81650,0,0,403618]
["2025","D0615","D0615",0,0,0,0,0,0,0,0]
["2025","D0616","D0111",0.30940000000000001,98964,93700,63845,54738,0,0,311247]
["2025","D0616","D0114",0.4415,141217,133706,91104,78109,0,0,444136]
["2025","D0616","D0429",0.24909999999999999,79677,75439,51402,44070,0,0,250588]
["2025","D0616","D0616",0,0,0,0,0,0,0,0]
["2025","D0617","D0397",0.1671,96680,115983,50532,68902,0,0,332097]
["2025","D0617","D0398",0.1042,60288,72325,31510,42966,0,0,207089]
["2025","D0617","D0408",0.26629999999999998,154075,184837,80530,109807,0,0,529249]
["2025","D0617","D0410",0.31830000000000003,184161,220930,96255,131248,0,0,632594]
["2025","D0617","D0411",0.14410000000000001,83373,100019,43576,59418,0,0,286386]
["2025","D0617","D0617",0,0,0,0,0,0,0,0]
["2025","D0619","D0357",0.3337,198956,183123,103472,120707,0,0,606258]
["2025","D0619","D0358",0.24709999999999999,147324,135600,76620,89382,0,0,448926]
["2025","D0619","D0359",0.1109,66120,60858,34387,40115,0,0,201480]
["2025","D0619","D0360",0.16370000000000001,97600,89833,50759,59214,0,0,297406]
["2025","D0619","D0509",0.14460000000000001,86212,79351,44837,52305,0,0,262705]
["2025","D0619","D0619",0,0,0,0,0,0,0,0]
["2025","D0620","D0287",0.1908,181177,171465,116817,118690,0,0,588149]
["2025","D0620","D0420",0.21099999999999999,200358,189618,129184,131256,0,0,650416]
["2025","D0620","D0421",0.13220000000000001,125532,118803,80939,82237,0,0,407511]
["2025","D0620","D0434",0.313,297214,281282,191633,194706,0,0,964835]
["2025","D0620","D0454",8.8700000000000001E-2,84226,79711,54306,55177,0,0,273420]
["2025","D0620","D0456",6.4299999999999996E-2,61057,57784,39367,39999,0,0,198207]
["2025","D0620","D0620",0,0,0,0,0,0,0,0]
["2025","D0628","D0628",1,7700,7700,5236,5236,0,0,25872]
["2025","D0636","D0110",5.1299999999999998E-2,57423,47628,34267,35302,0,0,174620]
["2025","D0636","D0211",0.1933,216370,179464,129118,133020,0,0,657972]
["2025","D0636","D0212",4.2599999999999999E-2,47684,39551,28455,29315,0,0,145005]
["2025","D0636","D0237",0.1265,141598,117446,84498,87051,0,0,430593]
["2025","D0636","D0269",2.1299999999999999E-2,23842,19775,14228,14658,0,0,72503]
["2025","D0636","D0270",0.1143,127942,106119,76349,78656,0,0,389066]
["2025","D0636","D0271",7.9200000000000007E-2,88652,73531,52903,54502,0,0,269588]
["2025","D0636","D0325",0.16400000000000001,183573,152261,109546,112857,0,0,558237]
["2025","D0636","D0326",3.2599999999999997E-2,36491,30267,21776,22434,0,0,110968]
["2025","D0636","D0392",9.1800000000000007E-2,102756,85229,61319,63172,0,0,312476]
["2025","D0636","D0399",2.7099999999999999E-2,30334,25160,18102,18649,0,0,92245]
["2025","D0636","D0636",5.6000000000000001E-2,62684,51992,37406,38536,0,0,190618]
["2025","D0637","D0235",3.7499999999999999E-2,104888,100173,67224,69752,0,0,342037]
["2025","D0637","D0246",3.7400000000000003E-2,104609,99906,67045,69566,0,0,341126]
["2025","D0637","D0247",3.7499999999999999E-2,104888,100173,67224,69752,0,0,342037]
["2025","D0637","D0248",8.0500000000000002E-2,225161,215039,144308,149734,0,0,734242]
["2025","D0637","D0249",7.9399999999999998E-2,222084,212100,142336,147688,0,0,724208]
["2025","D0637","D0250",0.27350000000000002,764986,730597,490290,508724,0,0,2494597]
["2025","D0637","D0404",5.6500000000000002E-2,158032,150928,101285,105093,0,0,515338]
["2025","D0637","D0493",8.0799999999999997E-2,226000,215840,144846,150292,0,0,736978]
["2025","D0637","D0499",5.9799999999999999E-2,167262,159743,107201,111231,0,0,545437]
["2025","D0637","D0504",4.0899999999999999E-2,114398,109256,73319,76076,0,0,373049]
["2025","D0637","D0505",3.2000000000000001E-2,89505,85481,57365,59522,0,0,291873]
["2025","D0637","D0506",0.12,335643,320554,215118,223206,0,0,1094521]
["2025","D0637","D0508",6.4199999999999993E-2,179569,171497,115088,119415,0,0,585569]
["2025","D0637","D0637",0,0,0,0,0,0,0,0]
["2025","D0638","D0205",4.1099999999999998E-2,116708,113276,75220,76107,0,0,381311]
["2025","D0638","D0206",3.9300000000000002E-2,111597,108315,71926,72774,0,0,364612]
["2025","D0638","D0375",0.122,346432,336246,223282,225913,0,0,1131873]
["2025","D0638","D0385",0.37669999999999998,1069680,1038229,689429,697552,0,0,3494890]
["2025","D0638","D0394",9.9400000000000002E-2,282257,273958,181920,184063,0,0,922198]
["2025","D0638","D0396",4.9299999999999997E-2,139993,135876,90228,91291,0,0,457388]
["2025","D0638","D0402",0.1226,348136,337900,224380,227024,0,0,1137440]
["2025","D0638","D0490",0.1237,351259,340931,226393,229061,0,0,1147644]
["2025","D0638","D0492",2.5899999999999999E-2,73546,71383,47402,47960,0,0,240291]
["2025","D0638","D0638",0,0,0,0,0,0,0,0]
[null,null,null,null,{"$f":"SUBTOTAL(109,ScoopSplit[October])","v":0},{"$f":"SUBTOTAL(109,ScoopSplit[December])","v":0},{"$f":"SUBTOTAL(109,ScoopSplit[March])","v":0},{"$f":"SUBTOTAL(109,ScoopSplit[April])","v":0},{"$f":"SUBTOTAL(109,ScoopSplit[June])","v":0},{"$f":"SUBTOTAL(109,ScoopSplit[Supplemental])","v":0},{"$f":"SUBTOTAL(109,ScoopSplit[Total])","v":0}]

{"sheet":"Payment Received","index":2,"n_rows":552,"n_cols":11,"rows_kept":552,"cut":false,"hidden":false,"merged":[[2,0,2,10]]}
[]
[]
["Special Education Payments Received"]
[null,null,"SchoolYear:",{"$f":"SchoolYear","v":2025},null,null,null,null,"Org_no:",{"$f":"Org_no","v":"D0999"}]
[null,null,"County Name:",{"$f":"Org_County!$D$2","v":"All Counties"},null,null,null,null,"USD Name:",{"$f":"Org_County!$E$2","v":"All Districts"}]
[]
["schoolyear","Paid_For","Paid_To","Pct","October","December","March","April","June","Supplemental","Total"]
["2025","D0101","D0101",1,0,0,0,0,0,0,0]
["2025","D0102","D0102",1,0,0,0,0,0,0,0]
["2025","D0103","D0103",1,10780,26180,0,9298,0,0,46258]
["2025","D0105","D0105",1,45892,45892,31207,31206,0,0,154197]
["2025","D0106","D0106",1,0,0,0,0,0,0,0]
["2025","D0107","D0107",1,0,0,0,0,0,0,0]
["2025","D0108","D0108",1,0,0,0,0,0,0,0]
["2025","D0109","D0109",1,0,0,0,0,0,0,0]
["2025","D0110","D0110",1,0,0,0,0,0,0,0]
["2025","D0111","D0111",1,0,0,0,0,0,0,0]
["2025","D0112","D0112",1,0,0,0,0,0,0,0]
["2025","D0113","D0113",1,0,0,0,0,0,0,0]
["2025","D0114","D0114",1,0,0,0,0,0,0,0]
["2025","D0115","D0115",0.60419999999999996,155202,147270,94270,100474,0,0,497216]
["2025","D0115","D0380",0.39579999999999999,101670,96474,61754,65818,0,0,325716]
["2025","D0200","D0200",1,0,0,0,0,0,0,0]
["2025","D0202","D0202",1,661815,673037,457309,445511,0,0,2237672]
["2025","D0203","D0203",1,476168,455532,294697,308268,0,0,1534665]
["2025","D0204","D0204",1,406560,406560,270334,275940,0,0,1359394]
["2025","D0205","D0205",1,3080,3080,2094,0,0,0,8254]
["2025","D0206","D0206",1,0,0,0,0,0,0,0]
["2025","D0207","D0207",1,305690,341511,176518,240403,0,0,1064122]
["2025","D0208","D0208",1,30800,73920,33919,35605,0,0,174244]
["2025","D0209","D0209",1,0,0,0,0,0,0,0]
["2025","D0210","D0210",1,0,0,0,0,0,0,0]
["2025","D0211","D0211",1,0,0,0,0,0,0,0]
["2025","D0212","D0212",1,0,0,0,0,0,0,0]
["2025","D0214","D0214",1,0,0,0,0,0,0,0]
["2025","D0215","D0215",1,0,0,0,0,0,0,0]
["2025","D0216","D0216",1,0,0,0,0,0,0,0]
["2025","D0217","D0217",1,0,0,0,0,0,0,0]
["2025","D0218","D0218",1,0,0,0,0,0,0,0]
["2025","D0219","D0219",1,0,0,0,0,0,0,0]
["2025","D0220","D0220",1,0,0,0,0,0,0,0]
["2025","D0223","D0223",1,0,0,0,0,0,0,0]
["2025","D0224","D0224",1,0,0,0,0,0,0,0]
["2025","D0225","D0225",1,0,0,0,0,0,0,0]
["2025","D0226","D0226",1,0,0,0,0,0,0,0]
["2025","D0227","D0227",1,0,0,0,0,0,0,0]
["2025","D0229","D0229",1,5652724,5380968,3525414,3794890,0,0,18353996]
["2025","D0230","D0230",1,957418,925676,596682,659761,0,0,3139537]
["2025","D0231","D0231",1,1572571,1528881,915820,1025615,0,0,5042887]
["2025","D0232","D0232",1,1603217,1401445,987935,1006217,0,0,4998814]
["2025","D0233","D0233",1,6604367,6559964,4307442,4472234,0,0,21944007]
["2025","D0234","D0234",1,607684,489083,353513,401081,0,0,1851361]
["2025","D0235","D0235",1,0,0,0,0,0,0,0]
["2025","D0237","D0237",1,0,0,0,0,0,0,0]
["2025","D0239","D0239",1,6930,6930,4712,4713,0,0,23285]
["2025","D0240","D0240",1,0,0,0,0,0,0,0]
["2025","D0241","D0241",1,0,0,0,0,0,0,0]
["2025","D0242","D0242",1,0,0,0,0,0,0,0]
["2025","D0243","D0243",1,0,0,0,0,0,0,0]
["2025","D0244","D0243",0.35199999999999998,171053,151653,115291,140294,0,0,578291]
["2025","D0244","D0244",0.5474,266007,235837,179291,218173,0,0,899308]
["2025","D0244","D0245",0.10059999999999999,48886,43342,32950,40095,0,0,165273]
["2025","D0245","D0245",1,0,0,0,0,0,0,0]
["2025","D0246","D0246",1,0,0,0,0,0,0,0]
["2025","D0247","D0247",1,0,0,0,0,0,0,0]
["2025","D0248","D0248",1,0,0,0,0,0,0,0]
["2025","D0249","D0249",1,0,0,0,0,0,0,0]
["2025","D0250","D0250",1,0,0,0,0,0,0,0]
["2025","D0251","D0251",1,0,0,0,0,0,0,0]
["2025","D0252","D0252",1,0,0,0,0,0,0,0]
["2025","D0253","D0251",5.3699999999999998E-2,88214,82983,37117,55213,0,0,263527]
["2025","D0253","D0252",6.4000000000000001E-2,105134,98900,44236,65803,0,0,314073]
["2025","D0253","D0253",0.65880000000000005,1082223,1018052,455357,677358,0,0,3232990]
["2025","D0253","D0284",4.8500000000000001E-2,79672,74948,33523,49866,0,0,238009]
["2025","D0253","D0386",4.1200000000000001E-2,67680,63667,28477,42361,0,0,202185]
["2025","D0253","D0390",1.7000000000000001E-2,27926,26270,11750,17479,0,0,83425]
["2025","D0253","D0417",0.1168,191869,180493,80731,120090,0,0,573183]
["2025","D0254","D0254",1,0,0,0,0,0,0,0]
["2025","D0255","D0255",1,0,0,0,0,0,0,0]
["2025","D0256","D0256",1,0,0,0,0,0,0,0]
["2025","D0257","D0257",1,0,0,0,0,0,0,0]
["2025","D0258","D0258",1,0,0,0,0,0,0,0]
["2025","D0259","D0259",1,10826277,9296755,6348142,5394879,0,0,31866053]
["2025","D0260","D0260",1,1576036,1347689,891411,972340,0,0,4787476]
["2025","D0261","D0261",1,1314390,1327231,962676,719832,0,0,4324129]
["2025","D0262","D0262",0.82569999999999999,854945,805250,555913,542063,0,0,2758171]
["2025","D0262","D0369",4.1799999999999997E-2,43281,40765,28142,27441,0,0,139629]
["2025","D0262","D0439",0.13250000000000001,137193,129218,89207,86985,0,0,442603]
["2025","D0263","D0263",1,462693,421550,285875,286132,0,0,1456250]
["2025","D0264","D0264",1,0,0,0,0,0,0,0]
["2025","D0265","D0264",0.1091,248358,233586,149794,151258,0,0,782996]
["2025","D0265","D0265",0.77439999999999998,1762866,1658009,1063250,1073638,0,0,5557763]
["2025","D0265","D0268",7.7399999999999997E-2,176196,165715,106270,107308,0,0,555489]
["2025","D0265","D0356",3.9100000000000003E-2,89008,83714,53684,54209,0,0,280615]
["2025","D0266","D0266",0.8357,2289534,2177787,1558623,1557393,0,0,7583337]
["2025","D0266","D0267",0.1643,450126,428157,306428,306186,0,0,1490897]
["2025","D0267","D0267",1,0,0,0,0,0,0,0]
["2025","D0268","D0268",1,0,0,0,0,0,0,0]
["2025","D0269","D0269",1,0,0,0,0,0,0,0]
["2025","D0270","D0270",1,0,0,0,0,0,0,0]
["2025","D0271","D0271",1,0,0,0,0,0,0,0]
["2025","D0272","D0272",1,0,0,0,0,0,0,0]
["2025","D0273","D0107",0.1799,92533,74186,56534,58897,0,0,282150]
["2025","D0273","D0272",0.14990000000000001,77103,61815,47107,49075,0,0,235100]
["2025","D0273","D0273",0.39029999999999998,200755,160950,122654,127779,0,0,612138]
["2025","D0273","D0298",0.15989999999999999,82246,65939,50249,52349,0,0,250783]
["2025","D0273","D0299",0.12,61723,49485,37711,39286,0,0,188205]
["2025","D0274","D0274",1,0,0,6773,5236,0,0,12009]
["2025","D0275","D0275",1,4735,11088,0,8879,0,0,24702]
["2025","D0281","D0281",1,0,0,0,0,0,0,0]
["2025","D0282","D0282",0.4239,187910,147465,94816,164544,0,0,594735]
["2025","D0282","D0283",0.21629999999999999,95883,75246,48381,83960,0,0,303470]
["2025","D0282","D0286",0.35980000000000001,159495,125167,80479,139662,0,0,504803]
["2025","D0283","D0283",1,0,0,0,0,0,0,0]
["2025","D0284","D0284",1,0,0,0,0,0,0,0]
["2025","D0285","D0285",1,0,0,0,0,0,0,0]
["2025","D0286","D0286",1,0,0,0,0,0,0,0]
["2025","D0287","D0287",1,0,0,0,0,0,0,0]
["2025","D0288","D0288",1,0,0,0,0,0,0,0]
["2025","D0289","D0289",1,0,0,0,0,0,0,0]
["2025","D0290","D0290",1,606914,373361,320415,437317,0,0,1738007]
["2025","D0291","D0291",1,0,0,0,0,0,0,0]
["2025","D0292","D0292",1,0,11088,3770,3770,0,0,18628]
["2025","D0293","D0293",1,0,10010,6705,0,0,0,16715]
["2025","D0294","D0294",1,0,0,0,0,0,0,0]
["2025","D0297","D0297",1,30800,32340,0,0,0,0,63140]
["2025","D0298","D0298",1,0,0,0,0,0,0,0]
["2025","D0299","D0299",1,0,0,0,0,0,0,0]
["2025","D0300","D0300",1,0,0,0,0,0,0,0]
["2025","D0303","D0303",1,0,0,0,0,0,0,0]
["2025","D0305","D0112",2.7900000000000001E-2,92837,85563,58279,59310,0,0,295989]
["2025","D0305","D0239",4.0500000000000001E-2,134763,124204,84599,86095,0,0,429661]
["2025","D0305","D0240",3.8600000000000002E-2,128441,118378,80630,82056,0,0,409505]
["2025","D0305","D0305",0.55110000000000003,1833773,1690100,1151169,1171525,0,0,5846567]
["2025","D0305","D0306",4.3799999999999999E-2,145744,134325,91492,93110,0,0,464671]
["2025","D0305","D0307",2.69E-2,89509,82496,56190,57184,0,0,285379]
["2025","D0305","D0327",4.2099999999999999E-2,140087,129111,87941,89496,0,0,446635]
["2025","D0305","D0393",2.3599999999999999E-2,78528,72376,49297,50169,0,0,250370]
["2025","D0305","D0435",8.9499999999999996E-2,297809,274476,186953,190259,0,0,949497]
["2025","D0305","D0473",7.2099999999999997E-2,239911,221114,150607,153270,0,0,764902]
["2025","D0305","D0481",1.7899999999999999E-2,59562,54895,37391,38052,0,0,189900]
["2025","D0305","D0487",2.5999999999999999E-2,86514,79736,54310,55271,0,0,275831]
["2025","D0306","D0306",1,0,0,0,0,0,0,0]
["2025","D0307","D0307",1,0,0,0,0,0,0,0]
["2025","D0308","D0308",1,1125740,1181387,777608,805266,0,0,3890001]
["2025","D0309","D0309",1,0,0,0,0,0,0,0]
["2025","D0310","D0310",1,0,0,0,0,0,0,0]
["2025","D0311","D0311",1,0,0,0,0,0,0,0]
["2025","D0312","D0312",1,0,0,0,0,0,0,0]
["2025","D0313","D0313",1,0,0,0,0,0,0,0]
["2025","D0314","D0314",1,20020,41580,13515,16339,0,0,91454]
["2025","D0315","D0315",1,77924,77924,42258,3822,0,0,201928]
["2025","D0316","D0316",1,18711,18711,8184,14158,0,0,59764]
["2025","D0320","D0320",0.51549999999999996,386932,347156,219977,255036,0,0,1209101]
["2025","D0320","D0323",0.36099999999999999,270965,243110,154048,178600,0,0,846723]
["2025","D0320","D0329",0.1235,92699,83169,52701,61100,0,0,289669]
["2025","D0321","D0321",1,401863,371679,254904,261594,0,0,1290040]
["2025","D0322","D0322",1,0,0,0,0,0,0,0]
["2025","D0323","D0323",1,0,0,0,0,0,0,0]
["2025","D0325","D0325",1,0,0,0,0,0,0,0]
["2025","D0326","D0326",1,0,0,0,0,0,0,0]
["2025","D0327","D0327",1,0,0,0,0,0,0,0]
["2025","D0329","D0329",1,0,0,0,0,0,0,0]
["2025","D0330","D0330",1,0,227920,125368,127931,0,0,481219]
["2025","D0331","D0331",1,0,0,0,0,0,0,0]
["2025","D0332","D0332",1,0,0,0,0,0,0,0]
["2025","D0333","D0108",0.1449,86067,83311,36778,52416,0,0,258572]
["2025","D0333","D0109",0.2082,123666,119706,52845,75314,0,0,371531]
["2025","D0333","D0224",0.12089999999999999,71812,69512,30687,43734,0,0,215745]
["2025","D0333","D0333",0.44209999999999999,262598,254188,112213,159924,0,0,788923]
["2025","D0333","D0426",8.3900000000000002E-2,49835,48239,21295,30350,0,0,149719]
["2025","D0334","D0334",1,0,0,0,0,0,0,0]
["2025","D0335","D0335",1,0,0,0,0,0,0,0]
["2025","D0336","D0113",0.24929999999999999,128863,128441,84704,87152,0,0,429160]
["2025","D0336","D0322",8.6900000000000005E-2,44919,44771,29526,30379,0,0,149595]
["2025","D0336","D0335",0.12759999999999999,65957,65740,43354,44607,0,0,219658]
["2025","D0336","D0336",0.309,159722,159199,104988,108022,0,0,531931]
["2025","D0336","D0337",0.22720000000000001,117440,117055,77195,79426,0,0,391116]
["2025","D0337","D0337",1,25718,25718,17488,17488,0,0,86412]
["2025","D0338","D0338",1,0,0,0,0,0,0,0]
["2025","D0339","D0339",1,0,0,0,0,0,0,0]
["2025","D0340","D0340",1,0,0,0,0,0,0,0]
["2025","D0341","D0341",1,0,0,0,0,0,0,0]
["2025","D0342","D0342",1,0,0,0,0,0,0,0]
["2025","D0343","D0343",1,0,0,0,0,0,0,0]
["2025","D0344","D0344",1,0,0,0,0,0,0,0]
["2025","D0345","D0345",1,1155462,896402,519765,634954,0,0,3206583]
["2025","D0346","D0346",1,0,0,0,0,0,0,0]
["2025","D0347","D0347",1,0,0,0,0,0,0,0]
["2025","D0348","D0348",1,0,0,0,0,0,0,0]
["2025","D0349","D0349",1,0,0,0,0,0,0,0]
["2025","D0350","D0350",1,0,0,0,0,0,0,0]
["2025","D0351","D0351",1,0,0,0,0,0,0,0]
["2025","D0352","D0352",1,30800,102872,121595,74530,0,0,329797]
["2025","D0353","D0353",1,523908,513638,275565,377574,0,0,1690685]
["2025","D0355","D0355",1,0,0,0,0,0,0,0]
["2025","D0356","D0356",1,0,0,0,0,0,0,0]
["2025","D0357","D0357",1,0,0,0,0,0,0,0]
["2025","D0358","D0358",1,0,0,0,0,0,0,0]
["2025","D0359","D0359",1,0,0,0,0,0,0,0]
["2025","D0360","D0360",1,0,0,0,0,0,0,0]
["2025","D0361","D0361",1,0,0,0,0,0,0,0]
["2025","D0362","D0362",1,0,0,0,0,0,0,0]
["2025","D0363","D0363",1,0,0,0,0,0,0,0]
["2025","D0364","D0364",0.69679999999999997,178130,141698,102759,119178,0,0,541765]
["2025","D0364","D0498",0.30320000000000003,77510,61657,44714,51858,0,0,235739]
["2025","D0365","D0365",1,0,12628,0,1343,0,0,13971]
["2025","D0366","D0366",1,0,0,0,0,0,0,0]
["2025","D0367","D0367",1,0,0,0,0,0,0,0]
["2025","D0368","D0288",6.3799999999999996E-2,121749,110480,72731,80010,0,0,384970]
["2025","D0368","D0344",3.3599999999999998E-2,64119,58184,38303,42137,0,0,202743]
["2025","D0368","D0346",8.5400000000000004E-2,162968,147883,97354,107098,0,0,515303]
["2025","D0368","D0362",0.14280000000000001,272504,247280,162789,179082,0,0,861655]
["2025","D0368","D0365",0.1168,222888,202257,133149,146476,0,0,704770]
["2025","D0368","D0367",0.19719999999999999,376315,341482,224803,247304,0,0,1189904]
["2025","D0368","D0368",0.19950000000000001,380704,345465,227425,250189,0,0,1203783]
["2025","D0368","D0416",0.16089999999999999,307044,278623,183422,201781,0,0,970870]
["2025","D0369","D0369",1,0,0,0,0,0,0,0]
["2025","D0371","D0371",1,0,0,0,0,0,0,0]
["2025","D0372","D0372",1,156079,158543,99321,109423,0,0,523366]
["2025","D0373","D0373",0.68340000000000001,773383,719663,443412,511985,0,0,2448443]
["2025","D0373","D0440",0.152,172014,160065,98623,113874,0,0,544576]
["2025","D0373","D0460",0.1646,186273,173334,106798,123314,0,0,589719]
["2025","D0374","D0374",1,0,0,0,0,0,0,0]
["2025","D0375","D0375",1,0,0,0,0,0,0,0]
["2025","D0376","D0376",1,0,0,0,0,0,0,0]
["2025","D0377","D0377",1,0,0,0,0,0,0,0]
["2025","D0378","D0378",1,0,0,0,0,0,0,0]
["2025","D0379","D0223",0.14899999999999999,79795,65354,52000,56769,0,0,253918]
["2025","D0379","D0334",7.7299999999999994E-2,41397,33905,26977,29451,0,0,131730]
["2025","D0379","D0378",0.2356,126172,103338,82223,89763,0,0,401496]
["2025","D0379","D0379",0.4279,229155,187685,149335,163029,0,0,729204]
["2025","D0379","D0384",0.11020000000000001,59016,48336,38459,41986,0,0,187797]
["2025","D0380","D0380",1,0,0,0,0,0,0,0]
["2025","D0381","D0381",1,0,0,0,0,0,0,0]
["2025","D0382","D0382",1,0,0,0,0,0,0,0]
["2025","D0383","D0383",1,2011240,1888779,1101719,1359645,0,0,6361383]
["2025","D0384","D0384",1,0,0,0,0,0,0,0]
["2025","D0385","D0385",1,43197,43197,29374,29374,0,0,145142]
["2025","D0386","D0386",1,0,0,0,0,0,0,0]
["2025","D0387","D0387",1,0,0,0,0,0,0,0]
["2025","D0388","D0388",1,0,0,0,0,0,0,0]
["2025","D0389","D0389",1,0,285362,68133,119445,0,0,472940]
["2025","D0390","D0390",1,0,0,0,0,0,0,0]
["2025","D0392","D0392",1,0,0,0,0,0,0,0]
["2025","D0393","D0393",1,0,0,0,0,0,0,0]
["2025","D0394","D0394",1,7700,7700,0,0,0,0,15400]
["2025","D0395","D0395",1,0,0,0,0,0,0,0]
["2025","D0396","D0396",1,0,0,0,0,0,0,0]
["2025","D0397","D0397",1,0,0,0,0,0,0,0]
["2025","D0398","D0398",1,0,0,0,0,0,0,0]
["2025","D0399","D0399",1,0,0,0,0,0,0,0]
["2025","D0400","D0400",1,0,0,0,0,0,0,0]
["2025","D0401","D0401",1,0,0,0,0,0,0,0]
["2025","D0402","D0402",1,0,0,0,0,0,0,0]
["2025","D0403","D0403",1,0,0,0,0,0,0,0]
["2025","D0404","D0404",1,0,0,0,0,0,0,0]
["2025","D0405","D0376",0.28860000000000002,139955,132400,56004,85859,0,0,414218]
["2025","D0405","D0401",9.1600000000000001E-2,44421,42023,17775,27251,0,0,131470]
["2025","D0405","D0405",0.4526,219487,207637,87829,134649,0,0,649602]
["2025","D0405","D0444",0.16719999999999999,81083,76706,32446,49742,0,0,239977]
["2025","D0407","D0407",1,0,0,0,0,0,0,0]
["2025","D0408","D0408",1,0,0,0,0,0,0,0]
["2025","D0409","D0409",1,108724,0,709048,233046,0,0,1050818]
["2025","D0410","D0410",1,0,0,0,0,0,0,0]
["2025","D0411","D0411",1,0,0,0,0,0,0,0]
["2025","D0412","D0412",1,16170,16170,10170,6910,0,0,49420]
["2025","D0413","D0413",1,0,0,0,0,0,0,0]
["2025","D0415","D0415",1,0,0,0,0,0,0,0]
["2025","D0416","D0416",1,0,0,0,0,0,0,0]
["2025","D0417","D0417",1,0,0,0,0,0,0,0]
["2025","D0418","D0400",0.183,220411,202409,120897,152611,0,0,696328]
["2025","D0418","D0418",0.54269999999999996,653646,600258,358530,452579,0,0,2065013]
["2025","D0418","D0419",7.4099999999999999E-2,89249,81959,48954,61795,0,0,281957]
["2025","D0418","D0423",0.1062,127911,117463,70160,88564,0,0,404098]
["2025","D0418","D0448",9.4E-2,113217,103970,62100,78390,0,0,357677]
["2025","D0419","D0419",1,0,0,0,0,0,0,0]
["2025","D0420","D0420",1,0,0,0,0,0,0,0]
["2025","D0421","D0421",1,0,0,0,0,0,0,0]
["2025","D0422","D0422",1,0,0,0,0,0,0,0]
["2025","D0423","D0423",1,0,0,0,0,0,0,0]
["2025","D0426","D0426",1,0,0,0,0,0,0,0]
["2025","D0428","D0355",0.12690000000000001,135430,122372,75977,84233,0,0,418012]
["2025","D0428","D0403",7.2800000000000004E-2,77694,70202,43586,48323,0,0,239805]
["2025","D0428","D0428",0.59740000000000004,637557,576083,357672,396537,0,0,1967849]
["2025","D0428","D0431",0.2029,216539,195660,121479,134679,0,0,668357]
["2025","D0429","D0429",1,0,0,0,0,0,0,0]
["2025","D0430","D0430",1,0,0,0,0,0,0,0]
["2025","D0431","D0431",1,0,0,0,0,0,0,0]
["2025","D0432","D0432",1,0,0,0,0,0,0,0]
["2025","D0434","D0434",1,0,0,0,0,0,0,0]
["2025","D0435","D0435",1,19943,17171,930,12619,0,0,50663]
["2025","D0436","D0436",1,0,0,0,0,0,0,0]
["2025","D0437","D0437",1,1695155,1528639,1008580,1174684,0,0,5407058]
["2025","D0438","D0438",1,0,0,9286,2356,0,0,11642]
["2025","D0439","D0439",1,0,0,0,0,0,0,0]
["2025","D0440","D0440",1,0,0,0,0,0,0,0]
["2025","D0443","D0443",1,0,0,0,0,0,0,0]
["2025","D0444","D0444",1,0,0,0,0,0,0,0]
["2025","D0445","D0445",1,0,0,0,0,0,0,0]
["2025","D0446","D0446",1,0,0,0,0,0,0,0]
["2025","D0447","D0447",1,0,0,0,0,0,0,0]
["2025","D0448","D0448",1,0,0,0,0,0,0,0]
["2025","D0449","D0449",1,0,0,0,0,0,0,0]
["2025","D0450","D0450",1,974897,885997,602559,611578,0,0,3075031]
["2025","D0452","D0452",1,0,0,0,0,0,0,0]
["2025","D0453","D0453",1,802725,737102,398306,502994,0,0,2441127]
["2025","D0454","D0454",1,0,0,0,0,0,0,0]
["2025","D0456","D0456",1,0,0,0,0,0,0,0]
["2025","D0457","D0457",1,1339338,1087367,509820,1134524,0,0,4071049]
["2025","D0458","D0458",0.64949999999999997,780830,641139,413289,462026,0,0,2297284]
["2025","D0458","D0464",0.35049999999999998,421371,345988,223030,249330,0,0,1239719]
["2025","D0459","D0459",1,0,0,0,0,0,0,0]
["2025","D0460","D0460",1,0,0,0,0,0,0,0]
["2025","D0461","D0461",1,0,0,0,0,0,0,0]
["2025","D0462","D0462",1,0,0,0,0,0,0,0]
["2025","D0463","D0463",1,0,0,0,0,0,0,0]
["2025","D0464","D0464",1,0,0,0,0,0,0,0]
["2025","D0465","D0285",2.1999999999999999E-2,34564,31782,22592,22677,0,0,111615]
["2025","D0465","D0462",4.6800000000000001E-2,73528,67608,48059,48240,0,0,237435]
["2025","D0465","D0463",4.8800000000000003E-2,76670,70498,50113,50301,0,0,247582]
["2025","D0465","D0465",0.37830000000000003,594350,546501,388476,389937,0,0,1919264]
["2025","D0465","D0470",0.4592,721453,663371,471552,473326,0,0,2329702]
["2025","D0465","D0471",4.4900000000000002E-2,70543,64864,46108,46281,0,0,227796]
["2025","D0466","D0466",1,0,0,0,0,0,0,0]
["2025","D0467","D0467",1,0,0,0,0,0,0,0]
["2025","D0468","D0468",1,0,0,0,0,0,0,0]
["2025","D0469","D0469",1,745360,674737,276390,440338,0,0,2136825]
["2025","D0470","D0470",1,0,0,0,0,0,0,0]
["2025","D0471","D0471",1,0,0,0,0,0,0,0]
["2025","D0473","D0473",1,0,0,0,0,0,0,0]
["2025","D0474","D0474",1,0,0,0,0,0,0,0]
["2025","D0475","D0475",1,2121966,2031879,1409371,1413431,0,0,6976647]
["2025","D0476","D0476",1,0,0,0,0,0,0,0]
["2025","D0477","D0477",1,0,0,0,0,0,0,0]
["2025","D0479","D0479",1,0,0,0,0,0,0,0]
["2025","D0480","D0480",1,710633,668517,278062,453025,0,0,2110237]
["2025","D0481","D0481",1,0,0,0,0,0,0,0]
["2025","D0482","D0482",1,0,0,0,0,0,0,0]
["2025","D0483","D0483",1,0,0,0,0,0,0,0]
["2025","D0484","D0484",1,0,0,0,0,0,0,0]
["2025","D0487","D0487",1,0,0,2064,523,0,0,2587]
["2025","D0489","D0388",6.8699999999999997E-2,88860,85752,53207,59408,0,0,287227]
["2025","D0489","D0395",5.8200000000000002E-2,75279,72645,45075,50328,0,0,243327]
["2025","D0489","D0407",0.15629999999999999,202166,195094,121051,135160,0,0,653471]
["2025","D0489","D0432",5.3999999999999999E-2,69846,67403,41822,46696,0,0,225767]
["2025","D0489","D0489",0.66279999999999994,857296,827310,513324,573154,0,0,2771084]
["2025","D0490","D0490",1,0,0,0,0,0,0,0]
["2025","D0491","D0491",1,0,0,0,0,0,0,0]
["2025","D0492","D0492",1,0,0,0,0,0,0,0]
["2025","D0493","D0493",1,0,0,0,0,0,0,0]
["2025","D0494","D0494",1,0,0,0,0,0,0,0]
["2025","D0495","D0347",0.21329999999999999,75190,59322,43548,47809,0,0,225869]
["2025","D0495","D0495",0.69530000000000003,245097,193372,141955,155843,0,0,736267]
["2025","D0495","D0496",9.1399999999999995E-2,32219,25420,18661,20486,0,0,96786]
["2025","D0496","D0496",1,0,0,0,0,0,0,0]
["2025","D0497","D0497",1,2637019,2590511,1549132,1799598,0,0,8576260]
["2025","D0498","D0498",1,0,0,0,0,0,0,0]
["2025","D0499","D0499",1,0,0,0,0,0,0,0]
["2025","D0500","D0203",8.8200000000000001E-2,271038,187813,15416,322440,0,0,796707]
["2025","D0500","D0204",9.4500000000000001E-2,290398,201228,16518,345472,0,0,853616]
["2025","D0500","D0500",0.81730000000000003,2511557,1740358,142856,2987875,0,0,7382646]
["2025","D0501","D0501",1,3573416,3732280,2424040,2558427,0,0,12288163]
["2025","D0502","D0502",1,0,0,0,0,0,0,0]
["2025","D0503","D0503",1,0,0,0,0,0,0,0]
["2025","D0504","D0504",1,0,0,0,0,0,0,0]
["2025","D0505","D0505",1,0,0,0,0,0,0,0]
["2025","D0506","D0506",1,0,0,0,0,0,0,0]
["2025","D0507","D0507",1,0,0,0,0,0,0,0]
["2025","D0508","D0508",1,0,0,0,0,0,0,0]
["2025","D0509","D0509",1,0,0,0,0,0,0,0]
["2025","D0511","D0511",1,0,0,0,0,0,0,0]
["2025","D0512","D0512",1,4662273,4416629,2646053,3151820,0,0,14876775]
["2025","D0602","D0103",1.32E-2,9472,7760,7600,10939,0,0,35771]
["2025","D0602","D0105",2.3099999999999999E-2,16576,13581,13300,19143,0,0,62600]
["2025","D0602","D0208",5.4300000000000001E-2,38964,31923,31264,44998,0,0,147149]
["2025","D0602","D0241",2.8199999999999999E-2,20235,16579,16237,23369,0,0,76420]
["2025","D0602","D0242",2.9100000000000001E-2,20881,17108,16755,24115,0,0,78859]
["2025","D0602","D0274",8.8700000000000001E-2,63648,52147,51071,73504,0,0,240370]
["2025","D0602","D0275",1.41E-2,10118,8289,8118,11684,0,0,38209]
["2025","D0602","D0281",9.0200000000000002E-2,64724,53029,51934,74747,0,0,244434]
["2025","D0602","D0291",2.0199999999999999E-2,14495,11876,11631,16739,0,0,54741]
["2025","D0602","D0292",1.7999999999999999E-2,12916,10582,10364,14916,0,0,48778]
["2025","D0602","D0293",0.1188,85246,69843,68401,98448,0,0,321938]
["2025","D0602","D0294",8.9200000000000002E-2,64007,52441,51359,73919,0,0,241726]
["2025","D0602","D0297",1.9699999999999999E-2,14136,11582,11343,16325,0,0,53386]
["2025","D0602","D0314",1.5900000000000001E-2,11409,9348,9155,13176,0,0,43088]
["2025","D0602","D0315",8.8700000000000001E-2,63648,52147,51071,73504,0,0,240370]
["2025","D0602","D0316",2.7699999999999999E-2,19876,16285,15949,22955,0,0,75065]
["2025","D0602","D0352",0.11459999999999999,82233,67374,65983,94967,0,0,310557]
["2025","D0602","D0412",6.6000000000000003E-2,47359,38802,38001,54693,0,0,178855]
["2025","D0602","D0468",1.38E-2,9902,8113,7946,11436,0,0,37397]
["2025","D0602","D0602",6.6500000000000004E-2,47718,39096,38289,55108,0,0,180211]
["2025","D0603","D0101",8.4099999999999994E-2,109167,107136,61673,77860,0,0,355836]
["2025","D0603","D0256",5.0299999999999997E-2,65293,64078,36887,46568,0,0,212826]
["2025","D0603","D0257",0.2104,273113,268030,154294,194788,0,0,890225]
["2025","D0603","D0258",0.17280000000000001,224306,220131,126720,159978,0,0,731135]
["2025","D0603","D0366",8.0299999999999996E-2,104235,102295,58887,74342,0,0,339759]
["2025","D0603","D0387",2.7699999999999999E-2,35956,35287,20313,25645,0,0,117201]
["2025","D0603","D0413",0.32750000000000001,425117,417205,240167,303199,0,0,1385688]
["2025","D0603","D0479",4.6899999999999997E-2,60879,59746,34393,43420,0,0,198438]
["2025","D0603","D0603",0,0,0,0,0,0,0,0]
["2025","D0605","D0254",8.2100000000000006E-2,134172,115100,91614,90665,0,0,431551]
["2025","D0605","D0255",3.7400000000000003E-2,61121,52433,41734,41302,0,0,196590]
["2025","D0605","D0300",5.62E-2,91845,78789,62713,62063,0,0,295410]
["2025","D0605","D0331",0.14360000000000001,234678,201320,160241,158580,0,0,754819]
["2025","D0605","D0332",3.9199999999999999E-2,64063,54956,43743,43289,0,0,206051]
["2025","D0605","D0349",4.1599999999999998E-2,67985,58321,46421,45940,0,0,218667]
["2025","D0605","D0350",5.7700000000000001E-2,94296,80892,64387,63719,0,0,303294]
["2025","D0605","D0351",3.1300000000000001E-2,51152,43881,34927,34565,0,0,164525]
["2025","D0605","D0361",0.1452,237293,203563,162026,160347,0,0,763229]
["2025","D0605","D0382",0.19739999999999999,322601,276744,220276,217993,0,0,1037614]
["2025","D0605","D0422",4.8800000000000003E-2,79751,68415,54455,53891,0,0,256512]
["2025","D0605","D0438",5.4199999999999998E-2,88576,75986,60481,59854,0,0,284897]
["2025","D0605","D0474",1.6500000000000001E-2,26965,23132,18412,18221,0,0,86730]
["2025","D0605","D0502",2.1000000000000001E-2,34319,29441,23434,23191,0,0,110385]
["2025","D0605","D0511",2.7799999999999998E-2,45432,38974,31022,30700,0,0,146128]
["2025","D0605","D0605",0,0,0,0,0,0,0,0]
["2025","D0607","D0436",8.6499999999999994E-2,129394,122495,68551,83813,0,0,404253]
["2025","D0607","D0445",0.2021,302317,286199,160163,195822,0,0,944501]
["2025","D0607","D0446",0.24299999999999999,363499,344119,192576,235452,0,0,1135646]
["2025","D0607","D0447",9.2999999999999999E-2,139117,131700,73702,90111,0,0,434630]
["2025","D0607","D0461",9.8100000000000007E-2,146746,138922,77744,95053,0,0,458465]
["2025","D0607","D0484",8.6599999999999996E-2,129543,122637,68630,83910,0,0,404720]
["2025","D0607","D0503",0.19070000000000001,285264,270055,151129,184776,0,0,891224]
["2025","D0607","D0607",0,0,0,0,0,0,0,0]
["2025","D0608","D0338",8.3000000000000004E-2,113587,142607,55890,79053,0,0,391137]
["2025","D0608","D0339",0.11310000000000001,154780,194323,76158,107721,0,0,532982]
["2025","D0608","D0340",0.1867,255503,320779,125719,177821,0,0,879822]
["2025","D0608","D0341",0.14130000000000001,193372,242775,95148,134580,0,0,665875]
["2025","D0608","D0342",0.1101,150674,189168,74138,104864,0,0,518844]
["2025","D0608","D0343",0.1532,209657,263221,103161,145914,0,0,721953]
["2025","D0608","D0377",0.104,142326,178688,70031,99054,0,0,490099]
["2025","D0608","D0449",0.1086,148621,186591,73128,103435,0,0,511775]
["2025","D0608","D0608",0,0,0,0,0,0,0,0]
["2025","D0609","D0234",2.5999999999999999E-3,13110,6416,4167,4932,0,0,28625]
["2025","D0609","D0321",3.7000000000000002E-3,18657,9131,5930,7019,0,0,40737]
["2025","D0609","D0330",1.6000000000000001E-3,8068,3949,2564,3035,0,0,17616]
["2025","D0609","D0345",3.5000000000000001E-3,17648,8638,5610,6639,0,0,38535]
["2025","D0609","D0368",1.8800000000000001E-2,94798,46396,30133,35663,0,0,206990]
["2025","D0609","D0372",1.9E-3,9581,4689,3045,3604,0,0,20919]
["2025","D0609","D0437",2.92E-2,147239,72062,46802,55391,0,0,321494]
["2025","D0609","D0450",1.44E-2,72611,35537,23080,27316,0,0,158544]
["2025","D0609","D0501",7.1000000000000004E-3,35801,17522,11380,13468,0,0,78171]
["2025","D0609","D0609",0.91720000000000002,4624909,2263537,1470089,1739887,0,0,10098422]
["2025","D0610","D0309",0.19420000000000001,252443,240525,149996,161272,0,0,804236]
["2025","D0610","D0310",5.1999999999999998E-2,67596,64404,40164,43183,0,0,215347]
["2025","D0610","D0311",5.7599999999999998E-2,74875,71340,44489,47833,0,0,238537]
["2025","D0610","D0312",0.15229999999999999,197977,188630,117633,126476,0,0,630716]
["2025","D0610","D0313",0.4718,613299,584344,364408,391803,0,0,1953854]
["2025","D0610","D0610",7.2099999999999997E-2,93724,89299,55688,59875,0,0,298586]
["2025","D0611","D0200",2.7799999999999998E-2,37148,36479,22730,25226,0,0,121583]
["2025","D0611","D0209",1.7299999999999999E-2,23117,22701,14145,15698,0,0,75661]
["2025","D0611","D0210",0.1108,148057,145390,90594,100541,0,0,484582]
["2025","D0611","D0214",0.16309999999999999,217944,214017,133356,147999,0,0,713316]
["2025","D0611","D0215",7.0499999999999993E-2,94206,92509,57643,63972,0,0,308330]
["2025","D0611","D0216",2.7099999999999999E-2,36213,35560,22158,24591,0,0,118522]
["2025","D0611","D0217",1.34E-2,17906,17583,10956,12159,0,0,58604]
["2025","D0611","D0218",0.1,133626,131218,81763,90741,0,0,437348]
["2025","D0611","D0363",0.1051,140441,137910,85933,95369,0,0,459653]
["2025","D0611","D0371",2.41E-2,32204,31624,19705,21869,0,0,105402]
["2025","D0611","D0374",4.3700000000000003E-2,58394,57342,35731,39654,0,0,191121]
["2025","D0611","D0452",4.7500000000000001E-2,63472,62329,38838,43102,0,0,207741]
["2025","D0611","D0466",0.1031,137768,135286,84298,93554,0,0,450906]
["2025","D0611","D0467",4.3999999999999997E-2,58795,57736,35976,39926,0,0,192433]
["2025","D0611","D0476",1.32E-2,17639,17321,10793,11978,0,0,57731]
["2025","D0611","D0494",6.1400000000000003E-2,82046,80568,50203,55715,0,0,268532]
["2025","D0611","D0507",2.7900000000000001E-2,37282,36610,22812,25317,0,0,122021]
["2025","D0611","D0611",0,0,0,0,0,0,0,0]
["2025","D0613","D0102",5.62E-2,130276,58665,62291,71196,0,0,322428]
["2025","D0613","D0106",1.15E-2,26658,12004,12746,14568,0,0,65976]
["2025","D0613","D0219",2.3E-2,53316,24009,25493,29137,0,0,131955]
["2025","D0613","D0220",1.84E-2,42653,19207,20394,23310,0,0,105564]
["2025","D0613","D0225",6.7000000000000002E-3,15531,6994,7426,8488,0,0,38439]
["2025","D0613","D0226",3.39E-2,78583,35387,37574,42945,0,0,194489]
["2025","D0613","D0227",2.7E-2,62588,28184,29926,34204,0,0,154902]
["2025","D0613","D0303",2.6100000000000002E-2,60502,27245,28929,33064,0,0,149740]
["2025","D0613","D0381",3.0499999999999999E-2,70702,31838,33806,38638,0,0,174984]
["2025","D0613","D0443",0.64670000000000005,1499106,675062,716793,819255,0,0,3710216]
["2025","D0613","D0459",2.1299999999999999E-2,49375,22234,23609,26983,0,0,122201]
["2025","D0613","D0477",2.1399999999999999E-2,49607,22339,23719,27110,0,0,122775]
["2025","D0613","D0482",2.2700000000000001E-2,52621,23696,25160,28757,0,0,130234]
["2025","D0613","D0483",5.4600000000000003E-2,126567,56995,60518,69169,0,0,313249]
["2025","D0613","D0613",0,0,0,0,0,0,0,0]
["2025","D0614","D0289",0.2218,239083,220058,147641,156893,0,0,763675]
["2025","D0614","D0348",0.34439999999999998,371237,341695,229250,243616,0,0,1185798]
["2025","D0614","D0491",0.43380000000000002,467603,430393,288759,306855,0,0,1493610]
["2025","D0614","D0614",0,0,0,0,0,0,0,0]
["2025","D0615","D0415",0.63519999999999999,215059,205454,140109,142171,0,0,702793]
["2025","D0615","D0430",0.36480000000000001,123510,117993,80465,81650,0,0,403618]
["2025","D0615","D0615",0,0,0,0,0,0,0,0]
["2025","D0616","D0111",0.30940000000000001,98964,93700,63845,54738,0,0,311247]
["2025","D0616","D0114",0.4415,141217,133706,91104,78109,0,0,444136]
["2025","D0616","D0429",0.24909999999999999,79677,75439,51402,44070,0,0,250588]
["2025","D0616","D0616",0,0,0,0,0,0,0,0]
["2025","D0617","D0397",0.1671,96680,115983,50532,68902,0,0,332097]
["2025","D0617","D0398",0.1042,60288,72325,31510,42966,0,0,207089]
["2025","D0617","D0408",0.26629999999999998,154075,184837,80530,109807,0,0,529249]
["2025","D0617","D0410",0.31830000000000003,184161,220930,96255,131248,0,0,632594]
["2025","D0617","D0411",0.14410000000000001,83373,100019,43576,59418,0,0,286386]
["2025","D0617","D0617",0,0,0,0,0,0,0,0]
["2025","D0619","D0357",0.3337,198956,183123,103472,120707,0,0,606258]
["2025","D0619","D0358",0.24709999999999999,147324,135600,76620,89382,0,0,448926]
["2025","D0619","D0359",0.1109,66120,60858,34387,40115,0,0,201480]
["2025","D0619","D0360",0.16370000000000001,97600,89833,50759,59214,0,0,297406]
["2025","D0619","D0509",0.14460000000000001,86212,79351,44837,52305,0,0,262705]
["2025","D0619","D0619",0,0,0,0,0,0,0,0]
["2025","D0620","D0287",0.1908,181177,171465,116817,118690,0,0,588149]
["2025","D0620","D0420",0.21099999999999999,200358,189618,129184,131256,0,0,650416]
["2025","D0620","D0421",0.13220000000000001,125532,118803,80939,82237,0,0,407511]
["2025","D0620","D0434",0.313,297214,281282,191633,194706,0,0,964835]
["2025","D0620","D0454",8.8700000000000001E-2,84226,79711,54306,55177,0,0,273420]
["2025","D0620","D0456",6.4299999999999996E-2,61057,57784,39367,39999,0,0,198207]
["2025","D0620","D0620",0,0,0,0,0,0,0,0]
["2025","D0628","D0628",1,7700,7700,5236,5236,0,0,25872]
["2025","D0636","D0110",5.1299999999999998E-2,57423,47628,34267,35302,0,0,174620]
["2025","D0636","D0211",0.1933,216370,179464,129118,133020,0,0,657972]
["2025","D0636","D0212",4.2599999999999999E-2,47684,39551,28455,29315,0,0,145005]
["2025","D0636","D0237",0.1265,141598,117446,84498,87051,0,0,430593]
["2025","D0636","D0269",2.1299999999999999E-2,23842,19775,14228,14658,0,0,72503]
["2025","D0636","D0270",0.1143,127942,106119,76349,78656,0,0,389066]
["2025","D0636","D0271",7.9200000000000007E-2,88652,73531,52903,54502,0,0,269588]
["2025","D0636","D0325",0.16400000000000001,183573,152261,109546,112857,0,0,558237]
["2025","D0636","D0326",3.2599999999999997E-2,36491,30267,21776,22434,0,0,110968]
["2025","D0636","D0392",9.1800000000000007E-2,102756,85229,61319,63172,0,0,312476]
["2025","D0636","D0399",2.7099999999999999E-2,30334,25160,18102,18649,0,0,92245]
["2025","D0636","D0636",5.6000000000000001E-2,62684,51992,37406,38536,0,0,190618]
["2025","D0637","D0235",3.7499999999999999E-2,104888,100173,67224,69752,0,0,342037]
["2025","D0637","D0246",3.7400000000000003E-2,104609,99906,67045,69566,0,0,341126]
["2025","D0637","D0247",3.7499999999999999E-2,104888,100173,67224,69752,0,0,342037]
["2025","D0637","D0248",8.0500000000000002E-2,225161,215039,144308,149734,0,0,734242]
["2025","D0637","D0249",7.9399999999999998E-2,222084,212100,142336,147688,0,0,724208]
["2025","D0637","D0250",0.27350000000000002,764986,730597,490290,508724,0,0,2494597]
["2025","D0637","D0404",5.6500000000000002E-2,158032,150928,101285,105093,0,0,515338]
["2025","D0637","D0493",8.0799999999999997E-2,226000,215840,144846,150292,0,0,736978]
["2025","D0637","D0499",5.9799999999999999E-2,167262,159743,107201,111231,0,0,545437]
["2025","D0637","D0504",4.0899999999999999E-2,114398,109256,73319,76076,0,0,373049]
["2025","D0637","D0505",3.2000000000000001E-2,89505,85481,57365,59522,0,0,291873]
["2025","D0637","D0506",0.12,335643,320554,215118,223206,0,0,1094521]
["2025","D0637","D0508",6.4199999999999993E-2,179569,171497,115088,119415,0,0,585569]
["2025","D0637","D0637",0,0,0,0,0,0,0,0]
["2025","D0638","D0205",4.1099999999999998E-2,116708,113276,75220,76107,0,0,381311]
["2025","D0638","D0206",3.9300000000000002E-2,111597,108315,71926,72774,0,0,364612]
["2025","D0638","D0375",0.122,346432,336246,223282,225913,0,0,1131873]
["2025","D0638","D0385",0.37669999999999998,1069680,1038229,689429,697552,0,0,3494890]
["2025","D0638","D0394",9.9400000000000002E-2,282257,273958,181920,184063,0,0,922198]
["2025","D0638","D0396",4.9299999999999997E-2,139993,135876,90228,91291,0,0,457388]
["2025","D0638","D0402",0.1226,348136,337900,224380,227024,0,0,1137440]
["2025","D0638","D0490",0.1237,351259,340931,226393,229061,0,0,1147644]
["2025","D0638","D0492",2.5899999999999999E-2,73546,71383,47402,47960,0,0,240291]
["2025","D0638","D0638",0,0,0,0,0,0,0,0]
[null,null,null,null,{"$f":"SUBTOTAL(109,Received[October])","v":0},{"$f":"SUBTOTAL(109,Received[December])","v":0},{"$f":"SUBTOTAL(109,Received[March])","v":0},{"$f":"SUBTOTAL(109,Received[April])","v":0},{"$f":"SUBTOTAL(109,Received[June])","v":0},{"$f":"SUBTOTAL(109,Received[Supplemental])","v":0},{"$f":"SUBTOTAL(109,Received[Total])","v":0}]

{"sheet":"SpecEd_Data","index":3,"n_rows":16951,"n_cols":10,"rows_kept":4500,"cut":true,"hidden":true,"merged":[],"bounds":{"rows_first":2000,"rows_last":500,"rows_between":2000,"halvings":0}}
["Org_no",null,"Schoolyear",null,"Org_no","Category","OrderId","Repfield","Current_Yr","Previous_Yr"]
["D0101",null,"2011",null,"D0101","Adjustments & Carryovers",1,"Carryover",0,0]
["D0102",null,"2012",null,"D0101","Adjustments & Carryovers",2,"Refund",0,0]
["D0103",null,"2013",null,"D0101","Adjustments & Carryovers",3,"Teacher_Adj",0,0]
["D0105",null,"2014",null,"D0101","Adjustments & Carryovers",4,"Transportation_Adj",0,1918]
["D0106",null,"2015",null,"D0101","Adjustments & Carryovers",5,"Catastrophic_Adj",0,0]
["D0107",null,"2016",null,"D0101","Adjustments & Carryovers",6,"Total_Adj",0,0]
["D0108",null,"2017",null,"D0101","Catastrophic",1,"Cat_total",0,0]
["D0109",null,"2018",null,"D0101","Catastrophic",2,"Cat_Total_students",0,0]
["D0110",null,"2019",null,"D0101","Catastrophic",3,"Cat_Netcost",0,0]
["D0111",null,"2020",null,"D0101","Catastrophic",4,"Cat_Stateaid",0,0]
["D0112",null,"2021",null,"D0101","Catastrophic",5,"Per Student",0,0]
["D0113",null,"2022",null,"D0101","Catastrophic",6,"Supplemental",0,0]
["D0114",null,"2023",null,"D0101","Medicaid",1,"Medicaid_Students",0,26]
["D0115",null,"2024",null,"D0101","Medicaid",2,"Paid",0,15340]
["D0200",null,"2025",null,"D0101","Medicaid",3,"Per Student",0,590]
["D0202",null,null,null,"D0101","Medicaid",4,"Supplemental",0,0]
["D0203",null,null,null,"D0101","Payments",1,"October",0,0]
["D0204",null,null,null,"D0101","Payments",2,"December",0,0]
["D0205",null,null,null,"D0101","Payments",3,"March",0,0]
["D0206",null,null,null,"D0101","Payments",4,"April",0,0]
["D0207",null,null,null,"D0101","Payments",5,"June",0,0]
["D0208",null,null,null,"D0101","Payments",6,"June Total",0,75245]
["D0209",null,null,null,"D0101","Payments",7,"Supplemental",0,0]
["D0210",null,null,null,"D0101","Summary",1,"Total Entitlement",0,75245]
["D0211",null,null,null,"D0101","Summary",2,"Total Payments",0,75245]
["D0212",null,null,null,"D0101","Summary",3,"Overpayment",0,0]
["D0214",null,null,null,"D0101","Teachers",1,"Regular_teachers",0,0]
["D0215",null,null,null,"D0101","Teachers",2,"Non_public_equiv",0,0]
["D0216",null,null,null,"D0101","Teachers",3,"Regular_aides",0,0]
["D0217",null,null,null,"D0101","Teachers",4,"Regular_fte",0,0]
["D0218",null,null,null,"D0101","Teachers",5,"Summer_teachers",0,0]
["D0219",null,null,null,"D0101","Teachers",6,"Summer_aides",0,0]
["D0220",null,null,null,"D0101","Teachers",7,"Summer_fte",0,0]
["D0223",null,null,null,"D0101","Teachers",8,"Entitlement_perfte",30800,31670]
["D0224",null,null,null,"D0101","Teachers",9,"Regular_entitlement",0,0]
["D0225",null,null,null,"D0101","Teachers",10,"Summer_entitlement",0,0]
["D0226",null,null,null,"D0101","Teachers",11,"Tch_total",0,0]
["D0227",null,null,null,"D0101","Teachers",12,"Current Entitlement",0,0]
["D0229",null,null,null,"D0101","Teachers",13,"Current Payment",0,0]
["D0230",null,null,null,"D0101","Teachers",14,"Supplemental",0,0]
["D0231",null,null,null,"D0101","Transportation",1,"Salaries",0,37769]
["D0232",null,null,null,"D0101","Transportation",2,"Contracted_services",0,0]
["D0233",null,null,null,"D0101","Transportation",3,"Insurance",0,1600]
["D0234",null,null,null,"D0101","Transportation",4,"Expend_inLieuOfTrans",0,0]
["D0235",null,null,null,"D0101","Transportation",5,"Other_expenses",0,15366]
["D0237",null,null,null,"D0101","Transportation",6,"Capital_outlay_fund_equip",0,0]
["D0239",null,null,null,"D0101","Transportation",7,"Depreciation",0,20146]
["D0240",null,null,null,"D0101","Transportation",8,"Teacher_transportation",0,0]
["D0241",null,null,null,"D0101","Transportation",9,"Tran_total",0,74881]
["D0242",null,null,null,"D0101","Transportation",10,"Reimbursements",0,0]
["D0243",null,null,null,"D0101","Transportation",11,"Net_transportation_costs",0,74881]
["D0244",null,null,null,"D0101","Transportation",12,"Trans_entitlement_80pcnt",0,59905]
["D0245",null,null,null,"D0101","Transportation",13,"CarryOver Adjustment",0,0]
["D0246",null,null,null,"D0101","Transportation",14,"Transportation Payment",0,59905]
["D0247",null,null,null,"D0101","Transportation",15,"Supplemental",0,0]
["D0248",null,null,null,"D0102","Adjustments & Carryovers",1,"Carryover",0,0]
["D0249",null,null,null,"D0102","Adjustments & Carryovers",2,"Refund",0,0]
["D0250",null,null,null,"D0102","Adjustments & Carryovers",3,"Teacher_Adj",0,0]
["D0251",null,null,null,"D0102","Adjustments & Carryovers",4,"Transportation_Adj",0,213]
["D0252",null,null,null,"D0102","Adjustments & Carryovers",5,"Catastrophic_Adj",0,0]
["D0253",null,null,null,"D0102","Adjustments & Carryovers",6,"Total_Adj",0,0]
["D0254",null,null,null,"D0102","Catastrophic",1,"Cat_total",0,0]
["D0255",null,null,null,"D0102","Catastrophic",2,"Cat_Total_students",0,0]
["D0256",null,null,null,"D0102","Catastrophic",3,"Cat_Netcost",0,0]
["D0257",null,null,null,"D0102","Catastrophic",4,"Cat_Stateaid",0,0]
["D0258",null,null,null,"D0102","Catastrophic",5,"Per Student",0,0]
["D0259",null,null,null,"D0102","Catastrophic",6,"Supplemental",0,0]
["D0260",null,null,null,"D0102","Medicaid",1,"Medicaid_Students",0,0]
["D0261",null,null,null,"D0102","Medicaid",2,"Paid",0,0]
["D0262",null,null,null,"D0102","Medicaid",3,"Per Student",0,0]
["D0263",null,null,null,"D0102","Medicaid",4,"Supplemental",0,0]
["D0264",null,null,null,"D0102","Payments",1,"october",0,0]
["D0265",null,null,null,"D0102","Payments",2,"December",0,0]
["D0266",null,null,null,"D0102","Payments",3,"March",0,0]
["D0267",null,null,null,"D0102","Payments",4,"April",0,0]
["D0268",null,null,null,"D0102","Payments",5,"June",0,0]
["D0269",null,null,null,"D0102","Payments",6,"June Total",0,20714]
["D0270",null,null,null,"D0102","Payments",7,"Supplemental",0,0]
["D0271",null,null,null,"D0102","Summary",1,"Total Entitlement",0,20714]
["D0272",null,null,null,"D0102","Summary",2,"Total Payments",0,20714]
["D0273",null,null,null,"D0102","Summary",3,"Overpayment",0,0]
["D0274",null,null,null,"D0102","Teachers",1,"Regular_teachers",0,0]
["D0275",null,null,null,"D0102","Teachers",2,"Non_public_equiv",0,0]
["D0281",null,null,null,"D0102","Teachers",3,"Regular_aides",0,0]
["D0282",null,null,null,"D0102","Teachers",4,"Regular_fte",0,0]
["D0283",null,null,null,"D0102","Teachers",5,"Summer_teachers",0,0]
["D0284",null,null,null,"D0102","Teachers",6,"Summer_aides",0,0]
["D0285",null,null,null,"D0102","Teachers",7,"Summer_fte",0,0]
["D0286",null,null,null,"D0102","Teachers",8,"Entitlement_perfte",30800,31670]
["D0287",null,null,null,"D0102","Teachers",9,"Regular_entitlement",0,0]
["D0288",null,null,null,"D0102","Teachers",10,"Summer_entitlement",0,0]
["D0289",null,null,null,"D0102","Teachers",11,"Tch_total",0,0]
["D0290",null,null,null,"D0102","Teachers",12,"Current Entitlement",0,0]
["D0291",null,null,null,"D0102","Teachers",13,"Current Payment",0,0]
["D0292",null,null,null,"D0102","Teachers",14,"Supplemental",0,0]
["D0293",null,null,null,"D0102","Transportation",1,"Salaries",0,20895]
["D0294",null,null,null,"D0102","Transportation",2,"Contracted_services",0,0]
["D0297",null,null,null,"D0102","Transportation",3,"Insurance",0,0]
["D0298",null,null,null,"D0102","Transportation",4,"Expend_inLieuOfTrans",0,0]
["D0299",null,null,null,"D0102","Transportation",5,"Other_expenses",0,1910]
["D0300",null,null,null,"D0102","Transportation",6,"Capital_outlay_fund_equip",0,0]
["D0303",null,null,null,"D0102","Transportation",7,"Depreciation",0,3088]
["D0305",null,null,null,"D0102","Transportation",8,"Teacher_transportation",0,0]
["D0306",null,null,null,"D0102","Transportation",9,"Tran_total",0,25893]
["D0307",null,null,null,"D0102","Transportation",10,"Reimbursements",0,0]
["D0308",null,null,null,"D0102","Transportation",11,"Net_transportation_costs",0,25893]
["D0309",null,null,null,"D0102","Transportation",12,"Trans_entitlement_80pcnt",0,20714]
["D0310",null,null,null,"D0102","Transportation",13,"CarryOver Adjustment",0,0]
["D0311",null,null,null,"D0102","Transportation",14,"Transportation Payment",0,20714]
["D0312",null,null,null,"D0102","Transportation",15,"Supplemental",0,0]
["D0313",null,null,null,"D0103","Adjustments & Carryovers",1,"Carryover",0,-7666]
["D0314",null,null,null,"D0103","Adjustments & Carryovers",2,"Refund",0,0]
["D0315",null,null,null,"D0103","Adjustments & Carryovers",3,"Teacher_Adj",-15835,0]
["D0316",null,null,null,"D0103","Adjustments & Carryovers",4,"Transportation_Adj",0,0]
["D0320",null,null,null,"D0103","Adjustments & Carryovers",5,"Catastrophic_Adj",0,0]
["D0321",null,null,null,"D0103","Adjustments & Carryovers",6,"Total_Adj",-15835,-7666]
["D0322",null,null,null,"D0103","Catastrophic",1,"Cat_total",0,0]
["D0323",null,null,null,"D0103","Catastrophic",2,"Cat_Total_students",0,0]
["D0325",null,null,null,"D0103","Catastrophic",3,"Cat_Netcost",0,0]
["D0326",null,null,null,"D0103","Catastrophic",4,"Cat_Stateaid",0,0]
["D0327",null,null,null,"D0103","Catastrophic",5,"Per Student",0,0]
["D0329",null,null,null,"D0103","Catastrophic",6,"Supplemental",0,0]
["D0330",null,null,null,"D0103","Medicaid",1,"Medicaid_Students",0,3]
["D0331",null,null,null,"D0103","Medicaid",2,"Paid",0,1770]
["D0332",null,null,null,"D0103","Medicaid",3,"Per Student",0,590]
["D0333",null,null,null,"D0103","Medicaid",4,"Supplemental",0,0]
["D0334",null,null,null,"D0103","Payments",1,"October",10780,7734]
["D0335",null,null,null,"D0103","Payments",2,"December",26180,0]
["D0336",null,null,null,"D0103","Payments",3,"March",0,0]
["D0337",null,null,null,"D0103","Payments",4,"April",9298,0]
["D0338",null,null,null,"D0103","Payments",5,"June",0,16270]
["D0339",null,null,null,"D0103","Payments",6,"June Total",0,18040]
["D0340",null,null,null,"D0103","Payments",7,"Supplemental",0,0]
["D0341",null,null,null,"D0103","Summary",1,"Total Entitlement",62093,33440]
["D0342",null,null,null,"D0103","Summary",2,"Total Payments",46258,25774]
["D0343",null,null,null,"D0103","Summary",3,"Overpayment",0,0]
["D0344",null,null,null,"D0103","Teachers",1,"Regular_teachers",2,1]
["D0345",null,null,null,"D0103","Teachers",2,"Non_public_equiv",0,0]
["D0346",null,null,null,"D0103","Teachers",3,"Regular_aides",1,0]
["D0347",null,null,null,"D0103","Teachers",4,"Regular_fte",2.4,1]
["D0348",null,null,null,"D0103","Teachers",5,"Summer_teachers",0,0]
["D0349",null,null,null,"D0103","Teachers",6,"Summer_aides",0,0]
["D0350",null,null,null,"D0103","Teachers",7,"Summer_fte",0,0]
["D0351",null,null,null,"D0103","Teachers",8,"Entitlement_perfte",30800,31670]
["D0352",null,null,null,"D0103","Teachers",9,"Regular_entitlement",73920,31670]
["D0353",null,null,null,"D0103","Teachers",10,"Summer_entitlement",0,0]
["D0355",null,null,null,"D0103","Teachers",11,"Tch_total",73920,31670]
["D0356",null,null,null,"D0103","Teachers",12,"Current Entitlement",62093,31670]
["D0357",null,null,null,"D0103","Teachers",13,"Current Payment",9298,0]
["D0358",null,null,null,"D0103","Teachers",14,"Supplemental",0,0]
["D0359",null,null,null,"D0103","Transportation",1,"Salaries",0,0]
["D0360",null,null,null,"D0103","Transportation",2,"Contracted_services",0,0]
["D0361",null,null,null,"D0103","Transportation",3,"Insurance",0,0]
["D0362",null,null,null,"D0103","Transportation",4,"Expend_inLieuOfTrans",0,0]
["D0363",null,null,null,"D0103","Transportation",5,"Other_expenses",0,0]
["D0364",null,null,null,"D0103","Transportation",6,"Capital_outlay_fund_equip",0,0]
["D0365",null,null,null,"D0103","Transportation",7,"Depreciation",0,0]
["D0366",null,null,null,"D0103","Transportation",8,"Teacher_transportation",0,0]
["D0367",null,null,null,"D0103","Transportation",9,"Tran_total",0,0]
["D0368",null,null,null,"D0103","Transportation",10,"Reimbursements",0,0]
["D0369",null,null,null,"D0103","Transportation",11,"Net_transportation_costs",0,0]
["D0371",null,null,null,"D0103","Transportation",12,"Trans_entitlement_80pcnt",0,0]
["D0372",null,null,null,"D0103","Transportation",13,"CarryOver Adjustment",0,0]
["D0373",null,null,null,"D0103","Transportation",14,"Transportation Payment",0,0]
["D0374",null,null,null,"D0103","Transportation",15,"Supplemental",0,0]
["D0375",null,null,null,"D0105","Adjustments & Carryovers",1,"Carryover",0,0]
["D0376",null,null,null,"D0105","Adjustments & Carryovers",2,"Refund",0,0]
["D0377",null,null,null,"D0105","Adjustments & Carryovers",3,"Teacher_Adj",0,-6383]
["D0378",null,null,null,"D0105","Adjustments & Carryovers",4,"Transportation_Adj",0,0]
["D0379",null,null,null,"D0105","Adjustments & Carryovers",5,"Catastrophic_Adj",0,0]
["D0380",null,null,null,"D0105","Adjustments & Carryovers",6,"Total_Adj",0,-6383]
["D0381",null,null,null,"D0105","Catastrophic",1,"Cat_total",0,0]
["D0382",null,null,null,"D0105","Catastrophic",2,"Cat_Total_students",0,0]
["D0383",null,null,null,"D0105","Catastrophic",3,"Cat_Netcost",0,0]
["D0384",null,null,null,"D0105","Catastrophic",4,"Cat_Stateaid",0,0]
["D0385",null,null,null,"D0105","Catastrophic",5,"Per Student",0,0]
["D0386",null,null,null,"D0105","Catastrophic",6,"Supplemental",0,0]
["D0387",null,null,null,"D0105","Medicaid",1,"Medicaid_Students",0,10]
["D0388",null,null,null,"D0105","Medicaid",2,"Paid",0,5900]
["D0389",null,null,null,"D0105","Medicaid",3,"Per Student",0,590]
["D0390",null,null,null,"D0105","Medicaid",4,"Supplemental",0,0]
["D0392",null,null,null,"D0105","Payments",1,"October",45892,40040]
["D0393",null,null,null,"D0105","Payments",2,"December",45892,40040]
["D0394",null,null,null,"D0105","Payments",3,"March",31207,27227]
["D0395",null,null,null,"D0105","Payments",4,"April",31206,30073]
["D0396",null,null,null,"D0105","Payments",5,"June",0,24405]
["D0397",null,null,null,"D0105","Payments",6,"June Total",0,30595]
["D0398",null,null,null,"D0105","Payments",7,"Supplemental",0,0]
["D0399",null,null,null,"D0105","Summary",1,"Total Entitlement",154197,174358]
["D0400",null,null,null,"D0105","Summary",2,"Total Payments",154197,167975]
["D0401",null,null,null,"D0105","Summary",3,"Overpayment",0,0]
["D0402",null,null,null,"D0105","Teachers",1,"Regular_teachers",2,2]
["D0403",null,null,null,"D0105","Teachers",2,"Non_public_equiv",0,0]
["D0404",null,null,null,"D0105","Teachers",3,"Regular_aides",9.89,8.27]
["D0405",null,null,null,"D0105","Teachers",4,"Regular_fte",5.96,5.31]
["D0407",null,null,null,"D0105","Teachers",5,"Summer_teachers",0,0]
["D0408",null,null,null,"D0105","Teachers",6,"Summer_aides",0,0]
["D0409",null,null,null,"D0105","Teachers",7,"Summer_fte",0,0]
["D0410",null,null,null,"D0105","Teachers",8,"Entitlement_perfte",30800,31670]
["D0411",null,null,null,"D0105","Teachers",9,"Regular_entitlement",183568,168168]
["D0412",null,null,null,"D0105","Teachers",10,"Summer_entitlement",0,0]
["D0413",null,null,null,"D0105","Teachers",11,"Tch_total",183568,168168]
["D0415",null,null,null,"D0105","Teachers",12,"Current Entitlement",154197,168168]
["D0416",null,null,null,"D0105","Teachers",13,"Current Payment",31206,30073]
["D0417",null,null,null,"D0105","Teachers",14,"Supplemental",0,0]
["D0418",null,null,null,"D0105","Transportation",1,"Salaries",0,0]
["D0419",null,null,null,"D0105","Transportation",2,"Contracted_services",0,0]
["D0420",null,null,null,"D0105","Transportation",3,"Insurance",0,0]
["D0421",null,null,null,"D0105","Transportation",4,"Expend_inLieuOfTrans",0,0]
["D0422",null,null,null,"D0105","Transportation",5,"Other_expenses",0,0]
["D0423",null,null,null,"D0105","Transportation",6,"Capital_outlay_fund_equip",0,0]
["D0426",null,null,null,"D0105","Transportation",7,"Depreciation",0,362]
["D0428",null,null,null,"D0105","Transportation",8,"Teacher_transportation",0,0]
["D0429",null,null,null,"D0105","Transportation",9,"Tran_total",0,362]
["D0430",null,null,null,"D0105","Transportation",10,"Reimbursements",0,0]
["D0431",null,null,null,"D0105","Transportation",11,"Net_transportation_costs",0,362]
["D0432",null,null,null,"D0105","Transportation",12,"Trans_entitlement_80pcnt",0,290]
["D0434",null,null,null,"D0105","Transportation",13,"CarryOver Adjustment",0,0]
["D0435",null,null,null,"D0105","Transportation",14,"Transportation Payment",0,290]
["D0436",null,null,null,"D0105","Transportation",15,"Supplemental",0,0]
["D0437",null,null,null,"D0106","Adjustments & Carryovers",1,"Carryover",-4963,-4963]
["D0438",null,null,null,"D0106","Adjustments & Carryovers",2,"Refund",0,0]
["D0439",null,null,null,"D0106","Adjustments & Carryovers",3,"Teacher_Adj",0,0]
["D0440",null,null,null,"D0106","Adjustments & Carryovers",4,"Transportation_Adj",0,0]
["D0443",null,null,null,"D0106","Adjustments & Carryovers",5,"Catastrophic_Adj",0,0]
["D0444",null,null,null,"D0106","Adjustments & Carryovers",6,"Total_Adj",-4963,-4963]
["D0445",null,null,null,"D0106","Catastrophic",1,"Cat_total",0,0]
["D0446",null,null,null,"D0106","Catastrophic",2,"Cat_Total_students",0,0]
["D0447",null,null,null,"D0106","Catastrophic",3,"Cat_Netcost",0,0]
["D0448",null,null,null,"D0106","Catastrophic",4,"Cat_Stateaid",0,0]
["D0449",null,null,null,"D0106","Catastrophic",5,"Per Student",0,0]
["D0450",null,null,null,"D0106","Catastrophic",6,"Supplemental",0,0]
["D0452",null,null,null,"D0106","Medicaid",1,"Medicaid_Students",0,2]
["D0453",null,null,null,"D0106","Medicaid",2,"Paid",0,1180]
["D0454",null,null,null,"D0106","Medicaid",3,"Per Student",0,590]
["D0456",null,null,null,"D0106","Medicaid",4,"Supplemental",0,0]
["D0457",null,null,null,"D0106","Payments",1,"October",0,0]
["D0458",null,null,null,"D0106","Payments",2,"December",0,0]
["D0459",null,null,null,"D0106","Payments",3,"March",0,0]
["D0460",null,null,null,"D0106","Payments",4,"April",0,0]
["D0461",null,null,null,"D0106","Payments",5,"June",0,0]
["D0462",null,null,null,"D0106","Payments",6,"June Total",0,1180]
["D0463",null,null,null,"D0106","Payments",7,"Supplemental",0,0]
["D0464",null,null,null,"D0106","Summary",1,"Total Entitlement",0,1180]
["D0465",null,null,null,"D0106","Summary",2,"Total Payments",0,1180]
["D0466",null,null,null,"D0106","Summary",3,"Overpayment",-4963,-4963]
["D0467",null,null,null,"D0106","Teachers",1,"Regular_teachers",0,0]
["D0468",null,null,null,"D0106","Teachers",2,"Non_public_equiv",0,0]
["D0469",null,null,null,"D0106","Teachers",3,"Regular_aides",0,0]
["D0470",null,null,null,"D0106","Teachers",4,"Regular_fte",0,0]
["D0471",null,null,null,"D0106","Teachers",5,"Summer_teachers",0,0]
["D0473",null,null,null,"D0106","Teachers",6,"Summer_aides",0,0]
["D0474",null,null,null,"D0106","Teachers",7,"Summer_fte",0,0]
["D0475",null,null,null,"D0106","Teachers",8,"Entitlement_perfte",30800,31670]
["D0476",null,null,null,"D0106","Teachers",9,"Regular_entitlement",0,0]
["D0477",null,null,null,"D0106","Teachers",10,"Summer_entitlement",0,0]
["D0479",null,null,null,"D0106","Teachers",11,"Tch_total",0,0]
["D0480",null,null,null,"D0106","Teachers",12,"Current Entitlement",0,0]
["D0481",null,null,null,"D0106","Teachers",13,"Current Payment",0,0]
["D0482",null,null,null,"D0106","Teachers",14,"Supplemental",0,0]
["D0483",null,null,null,"D0106","Transportation",1,"Salaries",0,0]
["D0484",null,null,null,"D0106","Transportation",2,"Contracted_services",0,0]
["D0487",null,null,null,"D0106","Transportation",3,"Insurance",0,0]
["D0489",null,null,null,"D0106","Transportation",4,"Expend_inLieuOfTrans",0,0]
["D0490",null,null,null,"D0106","Transportation",5,"Other_expenses",0,0]
["D0491",null,null,null,"D0106","Transportation",6,"Capital_outlay_fund_equip",0,0]
["D0492",null,null,null,"D0106","Transportation",7,"Depreciation",0,0]
["D0493",null,null,null,"D0106","Transportation",8,"Teacher_transportation",0,0]
["D0494",null,null,null,"D0106","Transportation",9,"Tran_total",0,0]
["D0495",null,null,null,"D0106","Transportation",10,"Reimbursements",0,0]
["D0496",null,null,null,"D0106","Transportation",11,"Net_transportation_costs",0,0]
["D0497",null,null,null,"D0106","Transportation",12,"Trans_entitlement_80pcnt",0,0]
["D0498",null,null,null,"D0106","Transportation",13,"CarryOver Adjustment",-4963,-4963]
["D0499",null,null,null,"D0106","Transportation",14,"Transportation Payment",0,0]
["D0500",null,null,null,"D0106","Transportation",15,"Supplemental",0,0]
["D0501",null,null,null,"D0107","Adjustments & Carryovers",1,"Carryover",-7499,0]
["D0502",null,null,null,"D0107","Adjustments & Carryovers",2,"Refund",0,0]
["D0503",null,null,null,"D0107","Adjustments & Carryovers",3,"Teacher_Adj",0,0]
["D0504",null,null,null,"D0107","Adjustments & Carryovers",4,"Transportation_Adj",0,-7499]
["D0505",null,null,null,"D0107","Adjustments & Carryovers",5,"Catastrophic_Adj",0,0]
["D0506",null,null,null,"D0107","Adjustments & Carryovers",6,"Total_Adj",-7499,-7499]
["D0507",null,null,null,"D0107","Catastrophic",1,"Cat_total",0,0]
["D0508",null,null,null,"D0107","Catastrophic",2,"Cat_Total_students",0,0]
["D0509",null,null,null,"D0107","Catastrophic",3,"Cat_Netcost",0,0]
["D0511",null,null,null,"D0107","Catastrophic",4,"Cat_Stateaid",0,0]
["D0512",null,null,null,"D0107","Catastrophic",5,"Per Student",0,0]
["D0602",null,null,null,"D0107","Catastrophic",6,"Supplemental",0,0]
["D0603",null,null,null,"D0107","Medicaid",1,"Medicaid_Students",0,10]
["D0605",null,null,null,"D0107","Medicaid",2,"Paid",0,5900]
["D0607",null,null,null,"D0107","Medicaid",3,"Per Student",0,590]
["D0608",null,null,null,"D0107","Medicaid",4,"Supplemental",0,0]
["D0609",null,null,null,"D0107","Payments",1,"october",0,0]
["D0610",null,null,null,"D0107","Payments",2,"December",0,0]
["D0611",null,null,null,"D0107","Payments",3,"March",0,0]
["D0613",null,null,null,"D0107","Payments",4,"April",0,0]
["D0614",null,null,null,"D0107","Payments",5,"June",0,0]
["D0615",null,null,null,"D0107","Payments",6,"June Total",0,5900]
["D0616",null,null,null,"D0107","Payments",7,"Supplemental",0,0]
["D0617",null,null,null,"D0107","Summary",1,"Total Entitlement",0,5900]
["D0619",null,null,null,"D0107","Summary",2,"Total Payments",0,5900]
["D0620",null,null,null,"D0107","Summary",3,"Overpayment",-7499,-7499]
["D0628",null,null,null,"D0107","Teachers",1,"Regular_teachers",0,0]
["D0636",null,null,null,"D0107","Teachers",2,"Non_public_equiv",0,0]
["D0637",null,null,null,"D0107","Teachers",3,"Regular_aides",0,0]
["D0638",null,null,null,"D0107","Teachers",4,"Regular_fte",0,0]
["D0999",null,null,null,"D0107","Teachers",5,"Summer_teachers",0,0]
[null,null,null,null,"D0107","Teachers",6,"Summer_aides",0,0]
[null,null,null,null,"D0107","Teachers",7,"Summer_fte",0,0]
[null,null,null,null,"D0107","Teachers",8,"Entitlement_perfte",30800,31670]
[null,null,null,null,"D0107","Teachers",9,"Regular_entitlement",0,0]
[null,null,null,null,"D0107","Teachers",10,"Summer_entitlement",0,0]
[null,null,null,null,"D0107","Teachers",11,"Tch_total",0,0]
[null,null,null,null,"D0107","Teachers",12,"Current Entitlement",0,0]
[null,null,null,null,"D0107","Teachers",13,"Current Payment",0,0]
[null,null,null,null,"D0107","Teachers",14,"Supplemental",0,0]
[null,null,null,null,"D0107","Transportation",1,"Salaries",0,0]
[null,null,null,null,"D0107","Transportation",2,"Contracted_services",0,0]
[null,null,null,null,"D0107","Transportation",3,"Insurance",0,0]
[null,null,null,null,"D0107","Transportation",4,"Expend_inLieuOfTrans",0,0]
[null,null,null,null,"D0107","Transportation",5,"Other_expenses",0,0]
[null,null,null,null,"D0107","Transportation",6,"Capital_outlay_fund_equip",0,0]
[null,null,null,null,"D0107","Transportation",7,"Depreciation",0,0]
[null,null,null,null,"D0107","Transportation",8,"Teacher_transportation",0,0]
[null,null,null,null,"D0107","Transportation",9,"Tran_total",0,0]
[null,null,null,null,"D0107","Transportation",10,"Reimbursements",0,0]
[null,null,null,null,"D0107","Transportation",11,"Net_transportation_costs",0,0]
[null,null,null,null,"D0107","Transportation",12,"Trans_entitlement_80pcnt",0,0]
[null,null,null,null,"D0107","Transportation",13,"CarryOver Adjustment",-7499,-7499]
[null,null,null,null,"D0107","Transportation",14,"Transportation Payment",0,0]
[null,null,null,null,"D0107","Transportation",15,"Supplemental",0,0]
[null,null,null,null,"D0108","Adjustments & Carryovers",1,"Carryover",0,0]
[null,null,null,null,"D0108","Adjustments & Carryovers",2,"Refund",0,0]
[null,null,null,null,"D0108","Adjustments & Carryovers",3,"Teacher_Adj",0,0]
[null,null,null,null,"D0108","Adjustments & Carryovers",4,"Transportation_Adj",0,-1411]
[null,null,null,null,"D0108","Adjustments & Carryovers",5,"Catastrophic_Adj",0,0]
[null,null,null,null,"D0108","Adjustments & Carryovers",6,"Total_Adj",0,-1411]
[null,null,null,null,"D0108","Catastrophic",1,"Cat_total",0,0]
[null,null,null,null,"D0108","Catastrophic",2,"Cat_Total_students",0,0]
[null,null,null,null,"D0108","Catastrophic",3,"Cat_Netcost",0,0]
[null,null,null,null,"D0108","Catastrophic",4,"Cat_Stateaid",0,0]
[null,null,null,null,"D0108","Catastrophic",5,"Per Student",0,0]
[null,null,null,null,"D0108","Catastrophic",6,"Supplemental",0,0]
[null,null,null,null,"D0108","Medicaid",1,"Medicaid_Students",0,9]
[null,null,null,null,"D0108","Medicaid",2,"Paid",0,5310]
[null,null,null,null,"D0108","Medicaid",3,"Per Student",0,590]
[null,null,null,null,"D0108","Medicaid",4,"Supplemental",0,0]
[null,null,null,null,"D0108","Payments",1,"October",0,0]
[null,null,null,null,"D0108","Payments",2,"December",0,0]
[null,null,null,null,"D0108","Payments",3,"March",0,0]
[null,null,null,null,"D0108","Payments",4,"April",0,0]
[null,null,null,null,"D0108","Payments",5,"June",0,0]
[null,null,null,null,"D0108","Payments",6,"June Total",0,22190]
[null,null,null,null,"D0108","Payments",7,"Supplemental",0,0]
[null,null,null,null,"D0108","Summary",1,"Total Entitlement",0,23601]
[null,null,null,null,"D0108","Summary",2,"Total Payments",0,22190]
[null,null,null,null,"D0108","Summary",3,"Overpayment",0,0]
[null,null,null,null,"D0108","Teachers",1,"Regular_teachers",0,0]
[null,null,null,null,"D0108","Teachers",2,"Non_public_equiv",0,0]
[null,null,null,null,"D0108","Teachers",3,"Regular_aides",0,0]
[null,null,null,null,"D0108","Teachers",4,"Regular_fte",0,0]
[null,null,null,null,"D0108","Teachers",5,"Summer_teachers",0,0]
[null,null,null,null,"D0108","Teachers",6,"Summer_aides",0,0]
[null,null,null,null,"D0108","Teachers",7,"Summer_fte",0,0]
[null,null,null,null,"D0108","Teachers",8,"Entitlement_perfte",30800,31670]
[null,null,null,null,"D0108","Teachers",9,"Regular_entitlement",0,0]
[null,null,null,null,"D0108","Teachers",10,"Summer_entitlement",0,0]
[null,null,null,null,"D0108","Teachers",11,"Tch_total",0,0]
[null,null,null,null,"D0108","Teachers",12,"Current Entitlement",0,0]
[null,null,null,null,"D0108","Teachers",13,"Current Payment",0,0]
[null,null,null,null,"D0108","Teachers",14,"Supplemental",0,0]
[null,null,null,null,"D0108","Transportation",1,"Salaries",0,13894]
[null,null,null,null,"D0108","Transportation",2,"Contracted_services",0,0]
[null,null,null,null,"D0108","Transportation",3,"Insurance",0,0]
[null,null,null,null,"D0108","Transportation",4,"Expend_inLieuOfTrans",0,0]
[null,null,null,null,"D0108","Transportation",5,"Other_expenses",0,14583]
[null,null,null,null,"D0108","Transportation",6,"Capital_outlay_fund_equip",0,0]
[null,null,null,null,"D0108","Transportation",7,"Depreciation",0,0]
[null,null,null,null,"D0108","Transportation",8,"Teacher_transportation",0,0]
[null,null,null,null,"D0108","Transportation",9,"Tran_total",0,28477]
[null,null,null,null,"D0108","Transportation",10,"Reimbursements",0,5613]
[null,null,null,null,"D0108","Transportation",11,"Net_transportation_costs",0,22864]
[null,null,null,null,"D0108","Transportation",12,"Trans_entitlement_80pcnt",0,18291]
[null,null,null,null,"D0108","Transportation",13,"CarryOver Adjustment",0,-1411]
[null,null,null,null,"D0108","Transportation",14,"Transportation Payment",0,16880]
[null,null,null,null,"D0108","Transportation",15,"Supplemental",0,0]
[null,null,null,null,"D0109","Adjustments & Carryovers",1,"Carryover",0,0]
[null,null,null,null,"D0109","Adjustments & Carryovers",2,"Refund",0,0]
[null,null,null,null,"D0109","Adjustments & Carryovers",3,"Teacher_Adj",0,0]
[null,null,null,null,"D0109","Adjustments & Carryovers",4,"Transportation_Adj",0,9]
[null,null,null,null,"D0109","Adjustments & Carryovers",5,"Catastrophic_Adj",0,0]
[null,null,null,null,"D0109","Adjustments & Carryovers",6,"Total_Adj",0,0]
[null,null,null,null,"D0109","Catastrophic",1,"Cat_total",0,0]
[null,null,null,null,"D0109","Catastrophic",2,"Cat_Total_students",0,0]
[null,null,null,null,"D0109","Catastrophic",3,"Cat_Netcost",0,0]
[null,null,null,null,"D0109","Catastrophic",4,"Cat_Stateaid",0,0]
[null,null,null,null,"D0109","Catastrophic",5,"Per Student",0,0]
[null,null,null,null,"D0109","Catastrophic",6,"Supplemental",0,0]
[null,null,null,null,"D0109","Medicaid",1,"Medicaid_Students",0,20]
[null,null,null,null,"D0109","Medicaid",2,"Paid",0,11800]
[null,null,null,null,"D0109","Medicaid",3,"Per Student",0,590]
[null,null,null,null,"D0109","Medicaid",4,"Supplemental",0,0]
[null,null,null,null,"D0109","Payments",1,"october",0,0]
[null,null,null,null,"D0109","Payments",2,"December",0,0]
[null,null,null,null,"D0109","Payments",3,"March",0,0]
[null,null,null,null,"D0109","Payments",4,"April",0,0]
[null,null,null,null,"D0109","Payments",5,"June",0,0]
[null,null,null,null,"D0109","Payments",6,"June Total",0,13237]
[null,null,null,null,"D0109","Payments",7,"Supplemental",0,0]
[null,null,null,null,"D0109","Summary",1,"Total Entitlement",0,13237]
[null,null,null,null,"D0109","Summary",2,"Total Payments",0,13237]
[null,null,null,null,"D0109","Summary",3,"Overpayment",0,0]
[null,null,null,null,"D0109","Teachers",1,"Regular_teachers",0,0]
[null,null,null,null,"D0109","Teachers",2,"Non_public_equiv",0,0]
[null,null,null,null,"D0109","Teachers",3,"Regular_aides",0,0]
[null,null,null,null,"D0109","Teachers",4,"Regular_fte",0,0]
[null,null,null,null,"D0109","Teachers",5,"Summer_teachers",0,0]
[null,null,null,null,"D0109","Teachers",6,"Summer_aides",0,0]
[null,null,null,null,"D0109","Teachers",7,"Summer_fte",0,0]
[null,null,null,null,"D0109","Teachers",8,"Entitlement_perfte",30800,31670]
[null,null,null,null,"D0109","Teachers",9,"Regular_entitlement",0,0]
[null,null,null,null,"D0109","Teachers",10,"Summer_entitlement",0,0]
[null,null,null,null,"D0109","Teachers",11,"Tch_total",0,0]
[null,null,null,null,"D0109","Teachers",12,"Current Entitlement",0,0]
[null,null,null,null,"D0109","Teachers",13,"Current Payment",0,0]
[null,null,null,null,"D0109","Teachers",14,"Supplemental",0,0]
[null,null,null,null,"D0109","Transportation",1,"Salaries",0,0]
[null,null,null,null,"D0109","Transportation",2,"Contracted_services",0,0]
[null,null,null,null,"D0109","Transportation",3,"Insurance",0,0]
[null,null,null,null,"D0109","Transportation",4,"Expend_inLieuOfTrans",0,0]
[null,null,null,null,"D0109","Transportation",5,"Other_expenses",0,555]
[null,null,null,null,"D0109","Transportation",6,"Capital_outlay_fund_equip",0,0]
[null,null,null,null,"D0109","Transportation",7,"Depreciation",0,1241]
[null,null,null,null,"D0109","Transportation",8,"Teacher_transportation",0,0]
[null,null,null,null,"D0109","Transportation",9,"Tran_total",0,1796]
[null,null,null,null,"D0109","Transportation",10,"Reimbursements",0,0]
[null,null,null,null,"D0109","Transportation",11,"Net_transportation_costs",0,1796]
[null,null,null,null,"D0109","Transportation",12,"Trans_entitlement_80pcnt",0,1437]
[null,null,null,null,"D0109","Transportation",13,"CarryOver Adjustment",0,0]
[null,null,null,null,"D0109","Transportation",14,"Transportation Payment",0,1437]
[null,null,null,null,"D0109","Transportation",15,"Supplemental",0,0]
[null,null,null,null,"D0110","Adjustments & Carryovers",1,"Carryover",0,0]
[null,null,null,null,"D0110","Adjustments & Carryovers",2,"Refund",0,0]
[null,null,null,null,"D0110","Adjustments & Carryovers",3,"Teacher_Adj",0,0]
[null,null,null,null,"D0110","Adjustments & Carryovers",4,"Transportation_Adj",0,0]
[null,null,null,null,"D0110","Adjustments & Carryovers",5,"Catastrophic_Adj",0,0]
[null,null,null,null,"D0110","Adjustments & Carryovers",6,"Total_Adj",0,0]
[null,null,null,null,"D0110","Catastrophic",1,"Cat_total",0,0]
[null,null,null,null,"D0110","Catastrophic",2,"Cat_Total_students",0,0]
[null,null,null,null,"D0110","Catastrophic",3,"Cat_Netcost",0,0]
[null,null,null,null,"D0110","Catastrophic",4,"Cat_Stateaid",0,0]
[null,null,null,null,"D0110","Catastrophic",5,"Per Student",0,0]
[null,null,null,null,"D0110","Catastrophic",6,"Supplemental",0,0]
[null,null,null,null,"D0110","Medicaid",1,"Medicaid_Students",0,5]
[null,null,null,null,"D0110","Medicaid",2,"Paid",0,2950]
[null,null,null,null,"D0110","Medicaid",3,"Per Student",0,590]
[null,null,null,null,"D0110","Medicaid",4,"Supplemental",0,0]
[null,null,null,null,"D0110","Payments",1,"October",0,0]
[null,null,null,null,"D0110","Payments",2,"December",0,0]
[null,null,null,null,"D0110","Payments",3,"March",0,0]
[null,null,null,null,"D0110","Payments",4,"April",0,0]
[null,null,null,null,"D0110","Payments",5,"June",0,0]
[null,null,null,null,"D0110","Payments",6,"June Total",0,2950]
[null,null,null,null,"D0110","Payments",7,"Supplemental",0,0]
[null,null,null,null,"D0110","Summary",1,"Total Entitlement",0,2950]
[null,null,null,null,"D0110","Summary",2,"Total Payments",0,2950]
[null,null,null,null,"D0110","Summary",3,"Overpayment",0,0]
[null,null,null,null,"D0110","Teachers",1,"Regular_teachers",0,0]
[null,null,null,null,"D0110","Teachers",2,"Non_public_equiv",0,0]
[null,null,null,null,"D0110","Teachers",3,"Regular_aides",0,0]
[null,null,null,null,"D0110","Teachers",4,"Regular_fte",0,0]
[null,null,null,null,"D0110","Teachers",5,"Summer_teachers",0,0]
[null,null,null,null,"D0110","Teachers",6,"Summer_aides",0,0]
[null,null,null,null,"D0110","Teachers",7,"Summer_fte",0,0]
[null,null,null,null,"D0110","Teachers",8,"Entitlement_perfte",30800,31670]
[null,null,null,null,"D0110","Teachers",9,"Regular_entitlement",0,0]
[null,null,null,null,"D0110","Teachers",10,"Summer_entitlement",0,0]
[null,null,null,null,"D0110","Teachers",11,"Tch_total",0,0]
[null,null,null,null,"D0110","Teachers",12,"Current Entitlement",0,0]
[null,null,null,null,"D0110","Teachers",13,"Current Payment",0,0]
[null,null,null,null,"D0110","Teachers",14,"Supplemental",0,0]
[null,null,null,null,"D0110","Transportation",1,"Salaries",0,0]
[null,null,null,null,"D0110","Transportation",2,"Contracted_services",0,0]
[null,null,null,null,"D0110","Transportation",3,"Insurance",0,0]
[null,null,null,null,"D0110","Transportation",4,"Expend_inLieuOfTrans",0,0]
[null,null,null,null,"D0110","Transportation",5,"Other_expenses",0,0]
[null,null,null,null,"D0110","Transportation",6,"Capital_outlay_fund_equip",0,0]
[null,null,null,null,"D0110","Transportation",7,"Depreciation",0,0]
[null,null,null,null,"D0110","Transportation",8,"Teacher_transportation",0,0]
[null,null,null,null,"D0110","Transportation",9,"Tran_total",0,0]
[null,null,null,null,"D0110","Transportation",10,"Reimbursements",0,0]
[null,null,null,null,"D0110","Transportation",11,"Net_transportation_costs",0,0]
[null,null,null,null,"D0110","Transportation",12,"Trans_entitlement_80pcnt",0,0]
[null,null,null,null,"D0110","Transportation",13,"CarryOver Adjustment",0,0]
[null,null,null,null,"D0110","Transportation",14,"Transportation Payment",0,0]
[null,null,null,null,"D0110","Transportation",15,"Supplemental",0,0]
[null,null,null,null,"D0111","Adjustments & Carryovers",1,"Carryover",0,0]
[null,null,null,null,"D0111","Adjustments & Carryovers",2,"Refund",0,0]
[null,null,null,null,"D0111","Adjustments & Carryovers",3,"Teacher_Adj",0,0]
[null,null,null,null,"D0111","Adjustments & Carryovers",4,"Transportation_Adj",0,0]
[null,null,null,null,"D0111","Adjustments & Carryovers",5,"Catastrophic_Adj",0,0]
[null,null,null,null,"D0111","Adjustments & Carryovers",6,"Total_Adj",0,0]
[null,null,null,null,"D0111","Catastrophic",1,"Cat_total",0,0]
[null,null,null,null,"D0111","Catastrophic",2,"Cat_Total_students",0,0]
[null,null,null,null,"D0111","Catastrophic",3,"Cat_Netcost",0,0]
[null,null,null,null,"D0111","Catastrophic",4,"Cat_Stateaid",0,0]
[null,null,null,null,"D0111","Catastrophic",5,"Per Student",0,0]
[null,null,null,null,"D0111","Catastrophic",6,"Supplemental",0,0]
[null,null,null,null,"D0111","Medicaid",1,"Medicaid_Students",0,16]
[null,null,null,null,"D0111","Medicaid",2,"Paid",0,9440]
[null,null,null,null,"D0111","Medicaid",3,"Per Student",0,590]
[null,null,null,null,"D0111","Medicaid",4,"Supplemental",0,0]
[null,null,null,null,"D0111","Payments",1,"october",0,0]
[null,null,null,null,"D0111","Payments",2,"December",0,0]
[null,null,null,null,"D0111","Payments",3,"March",0,0]
[null,null,null,null,"D0111","Payments",4,"April",0,0]
[null,null,null,null,"D0111","Payments",5,"June",0,0]
[null,null,null,null,"D0111","Payments",6,"June Total",0,21184]
[null,null,null,null,"D0111","Payments",7,"Supplemental",0,0]
[null,null,null,null,"D0111","Summary",1,"Total Entitlement",0,21184]
[null,null,null,null,"D0111","Summary",2,"Total Payments",0,21184]
[null,null,null,null,"D0111","Summary",3,"Overpayment",0,0]
[null,null,null,null,"D0111","Teachers",1,"Regular_teachers",0,0]
[null,null,null,null,"D0111","Teachers",2,"Non_public_equiv",0,0]
[null,null,null,null,"D0111","Teachers",3,"Regular_aides",0,0]
[null,null,null,null,"D0111","Teachers",4,"Regular_fte",0,0]
[null,null,null,null,"D0111","Teachers",5,"Summer_teachers",0,0]
[null,null,null,null,"D0111","Teachers",6,"Summer_aides",0,0]
[null,null,null,null,"D0111","Teachers",7,"Summer_fte",0,0]
[null,null,null,null,"D0111","Teachers",8,"Entitlement_perfte",30800,31670]
[null,null,null,null,"D0111","Teachers",9,"Regular_entitlement",0,0]
[null,null,null,null,"D0111","Teachers",10,"Summer_entitlement",0,0]
[null,null,null,null,"D0111","Teachers",11,"Tch_total",0,0]
[null,null,null,null,"D0111","Teachers",12,"Current Entitlement",0,0]
[null,null,null,null,"D0111","Teachers",13,"Current Payment",0,0]
[null,null,null,null,"D0111","Teachers",14,"Supplemental",0,0]
[null,null,null,null,"D0111","Transportation",1,"Salaries",0,8981]
[null,null,null,null,"D0111","Transportation",2,"Contracted_services",0,0]
[null,null,null,null,"D0111","Transportation",3,"Insurance",0,630]
[null,null,null,null,"D0111","Transportation",4,"Expend_inLieuOfTrans",0,0]
[null,null,null,null,"D0111","Transportation",5,"Other_expenses",0,3416]
[null,null,null,null,"D0111","Transportation",6,"Capital_outlay_fund_equip",0,0]
[null,null,null,null,"D0111","Transportation",7,"Depreciation",0,1653]
[null,null,null,null,"D0111","Transportation",8,"Teacher_transportation",0,0]
[null,null,null,null,"D0111","Transportation",9,"Tran_total",0,14680]
[null,null,null,null,"D0111","Transportation",10,"Reimbursements",0,0]
[null,null,null,null,"D0111","Transportation",11,"Net_transportation_costs",0,14680]
[null,null,null,null,"D0111","Transportation",12,"Trans_entitlement_80pcnt",0,11744]
[null,null,null,null,"D0111","Transportation",13,"CarryOver Adjustment",0,0]
[null,null,null,null,"D0111","Transportation",14,"Transportation Payment",0,11744]
[null,null,null,null,"D0111","Transportation",15,"Supplemental",0,0]
[null,null,null,null,"D0112","Adjustments & Carryovers",1,"Carryover",0,0]
[null,null,null,null,"D0112","Adjustments & Carryovers",2,"Refund",0,0]
[null,null,null,null,"D0112","Adjustments & Carryovers",3,"Teacher_Adj",0,0]
[null,null,null,null,"D0112","Adjustments & Carryovers",4,"Transportation_Adj",789,-437]
[null,null,null,null,"D0112","Adjustments & Carryovers",5,"Catastrophic_Adj",0,0]
[null,null,null,null,"D0112","Adjustments & Carryovers",6,"Total_Adj",0,-437]
[null,null,null,null,"D0112","Catastrophic",1,"Cat_total",0,0]
[null,null,null,null,"D0112","Catastrophic",2,"Cat_Total_students",0,0]
[null,null,null,null,"D0112","Catastrophic",3,"Cat_Netcost",0,0]
[null,null,null,null,"D0112","Catastrophic",4,"Cat_Stateaid",0,0]
[null,null,null,null,"D0112","Catastrophic",5,"Per Student",0,0]
[null,null,null,null,"D0112","Catastrophic",6,"Supplemental",0,0]
[null,null,null,null,"D0112","Medicaid",1,"Medicaid_Students",0,14]
[null,null,null,null,"D0112","Medicaid",2,"Paid",0,8260]
[null,null,null,null,"D0112","Medicaid",3,"Per Student",0,590]
[null,null,null,null,"D0112","Medicaid",4,"Supplemental",0,0]
[null,null,null,null,"D0112","Payments",1,"October",0,0]
[null,null,null,null,"D0112","Payments",2,"December",0,0]
[null,null,null,null,"D0112","Payments",3,"March",0,0]
[null,null,null,null,"D0112","Payments",4,"April",0,0]
[null,null,null,null,"D0112","Payments",5,"June",0,0]
[null,null,null,null,"D0112","Payments",6,"June Total",0,67502]
[null,null,null,null,"D0112","Payments",7,"Supplemental",0,0]
[null,null,null,null,"D0112","Summary",1,"Total Entitlement",0,67939]
[null,null,null,null,"D0112","Summary",2,"Total Payments",0,67502]
[null,null,null,null,"D0112","Summary",3,"Overpayment",0,0]
[null,null,null,null,"D0112","Teachers",1,"Regular_teachers",0,0]
[null,null,null,null,"D0112","Teachers",2,"Non_public_equiv",0,0]
[null,null,null,null,"D0112","Teachers",3,"Regular_aides",0,0]
[null,null,null,null,"D0112","Teachers",4,"Regular_fte",0,0]
[null,null,null,null,"D0112","Teachers",5,"Summer_teachers",0,0]
[null,null,null,null,"D0112","Teachers",6,"Summer_aides",0,0]
[null,null,null,null,"D0112","Teachers",7,"Summer_fte",0,0]
[null,null,null,null,"D0112","Teachers",8,"Entitlement_perfte",30800,31670]
[null,null,null,null,"D0112","Teachers",9,"Regular_entitlement",0,0]
[null,null,null,null,"D0112","Teachers",10,"Summer_entitlement",0,0]
[null,null,null,null,"D0112","Teachers",11,"Tch_total",0,0]
[null,null,null,null,"D0112","Teachers",12,"Current Entitlement",0,0]
[null,null,null,null,"D0112","Teachers",13,"Current Payment",0,0]
[null,null,null,null,"D0112","Teachers",14,"Supplemental",0,0]
[null,null,null,null,"D0112","Transportation",1,"Salaries",0,55000]
[null,null,null,null,"D0112","Transportation",2,"Contracted_services",0,1995]
[null,null,null,null,"D0112","Transportation",3,"Insurance",0,4384]
[null,null,null,null,"D0112","Transportation",4,"Expend_inLieuOfTrans",0,0]
[null,null,null,null,"D0112","Transportation",5,"Other_expenses",0,13220]
[null,null,null,null,"D0112","Transportation",6,"Capital_outlay_fund_equip",0,0]
[null,null,null,null,"D0112","Transportation",7,"Depreciation",0,0]
[null,null,null,null,"D0112","Transportation",8,"Teacher_transportation",0,0]
[null,null,null,null,"D0112","Transportation",9,"Tran_total",0,74599]
[null,null,null,null,"D0112","Transportation",10,"Reimbursements",0,0]
[null,null,null,null,"D0112","Transportation",11,"Net_transportation_costs",0,74599]
[null,null,null,null,"D0112","Transportation",12,"Trans_entitlement_80pcnt",0,59679]
[null,null,null,null,"D0112","Transportation",13,"CarryOver Adjustment",0,-437]
[null,null,null,null,"D0112","Transportation",14,"Transportation Payment",0,59242]
[null,null,null,null,"D0112","Transportation",15,"Supplemental",0,0]
[null,null,null,null,"D0113","Adjustments & Carryovers",1,"Carryover",0,0]
[null,null,null,null,"D0113","Adjustments & Carryovers",2,"Refund",0,0]
[null,null,null,null,"D0113","Adjustments & Carryovers",3,"Teacher_Adj",0,0]
[null,null,null,null,"D0113","Adjustments & Carryovers",4,"Transportation_Adj",0,0]
[null,null,null,null,"D0113","Adjustments & Carryovers",5,"Catastrophic_Adj",0,0]
[null,null,null,null,"D0113","Adjustments & Carryovers",6,"Total_Adj",0,0]
[null,null,null,null,"D0113","Catastrophic",1,"Cat_total",0,0]
[null,null,null,null,"D0113","Catastrophic",2,"Cat_Total_students",0,0]
[null,null,null,null,"D0113","Catastrophic",3,"Cat_Netcost",0,0]
[null,null,null,null,"D0113","Catastrophic",4,"Cat_Stateaid",0,0]
[null,null,null,null,"D0113","Catastrophic",5,"Per Student",0,0]
[null,null,null,null,"D0113","Catastrophic",6,"Supplemental",0,0]
[null,null,null,null,"D0113","Medicaid",1,"Medicaid_Students",0,18]
[null,null,null,null,"D0113","Medicaid",2,"Paid",0,10620]
[null,null,null,null,"D0113","Medicaid",3,"Per Student",0,590]
[null,null,null,null,"D0113","Medicaid",4,"Supplemental",0,0]
[null,null,null,null,"D0113","Payments",1,"october",0,0]
[null,null,null,null,"D0113","Payments",2,"December",0,0]
[null,null,null,null,"D0113","Payments",3,"March",0,0]
[null,null,null,null,"D0113","Payments",4,"April",0,0]
[null,null,null,null,"D0113","Payments",5,"June",0,0]
[null,null,null,null,"D0113","Payments",6,"June Total",0,11286]
[null,null,null,null,"D0113","Payments",7,"Supplemental",0,0]
[null,null,null,null,"D0113","Summary",1,"Total Entitlement",0,11286]
[null,null,null,null,"D0113","Summary",2,"Total Payments",0,11286]
[null,null,null,null,"D0113","Summary",3,"Overpayment",0,0]
[null,null,null,null,"D0113","Teachers",1,"Regular_teachers",0,0]
[null,null,null,null,"D0113","Teachers",2,"Non_public_equiv",0,0]
[null,null,null,null,"D0113","Teachers",3,"Regular_aides",0,0]
[null,null,null,null,"D0113","Teachers",4,"Regular_fte",0,0]
[null,null,null,null,"D0113","Teachers",5,"Summer_teachers",0,0]
[null,null,null,null,"D0113","Teachers",6,"Summer_aides",0,0]
[null,null,null,null,"D0113","Teachers",7,"Summer_fte",0,0]
[null,null,null,null,"D0113","Teachers",8,"Entitlement_perfte",30800,31670]
[null,null,null,null,"D0113","Teachers",9,"Regular_entitlement",0,0]
[null,null,null,null,"D0113","Teachers",10,"Summer_entitlement",0,0]
[null,null,null,null,"D0113","Teachers",11,"Tch_total",0,0]
[null,null,null,null,"D0113","Teachers",12,"Current Entitlement",0,0]
[null,null,null,null,"D0113","Teachers",13,"Current Payment",0,0]
[null,null,null,null,"D0113","Teachers",14,"Supplemental",0,0]
[null,null,null,null,"D0113","Transportation",1,"Salaries",0,0]
[null,null,null,null,"D0113","Transportation",2,"Contracted_services",0,833]
[null,null,null,null,"D0113","Transportation",3,"Insurance",0,0]
[null,null,null,null,"D0113","Transportation",4,"Expend_inLieuOfTrans",0,0]
[null,null,null,null,"D0113","Transportation",5,"Other_expenses",0,0]
[null,null,null,null,"D0113","Transportation",6,"Capital_outlay_fund_equip",0,0]
[null,null,null,null,"D0113","Transportation",7,"Depreciation",0,0]
[null,null,null,null,"D0113","Transportation",8,"Teacher_transportation",0,0]
[null,null,null,null,"D0113","Transportation",9,"Tran_total",0,833]
[null,null,null,null,"D0113","Transportation",10,"Reimbursements",0,0]
[null,null,null,null,"D0113","Transportation",11,"Net_transportation_costs",0,833]
[null,null,null,null,"D0113","Transportation",12,"Trans_entitlement_80pcnt",0,666]
[null,null,null,null,"D0113","Transportation",13,"CarryOver Adjustment",0,0]
[null,null,null,null,"D0113","Transportation",14,"Transportation Payment",0,666]
[null,null,null,null,"D0113","Transportation",15,"Supplemental",0,0]
[null,null,null,null,"D0114","Adjustments & Carryovers",1,"Carryover",0,-5882]
[null,null,null,null,"D0114","Adjustments & Carryovers",2,"Refund",0,0]
[null,null,null,null,"D0114","Adjustments & Carryovers",3,"Teacher_Adj",0,0]
[null,null,null,null,"D0114","Adjustments & Carryovers",4,"Transportation_Adj",0,-3293]
[null,null,null,null,"D0114","Adjustments & Carryovers",5,"Catastrophic_Adj",0,0]
[null,null,null,null,"D0114","Adjustments & Carryovers",6,"Total_Adj",0,-9175]
[null,null,null,null,"D0114","Catastrophic",1,"Cat_total",0,0]
[null,null,null,null,"D0114","Catastrophic",2,"Cat_Total_students",0,0]
[null,null,null,null,"D0114","Catastrophic",3,"Cat_Netcost",0,0]
[null,null,null,null,"D0114","Catastrophic",4,"Cat_Stateaid",0,0]
[null,null,null,null,"D0114","Catastrophic",5,"Per Student",0,0]
[null,null,null,null,"D0114","Catastrophic",6,"Supplemental",0,0]
[null,null,null,null,"D0114","Medicaid",1,"Medicaid_Students",0,23]
[null,null,null,null,"D0114","Medicaid",2,"Paid",0,13570]
[null,null,null,null,"D0114","Medicaid",3,"Per Student",0,590]
[null,null,null,null,"D0114","Medicaid",4,"Supplemental",0,0]
[null,null,null,null,"D0114","Payments",1,"October",0,0]
[null,null,null,null,"D0114","Payments",2,"December",0,0]
[null,null,null,null,"D0114","Payments",3,"March",0,0]
[null,null,null,null,"D0114","Payments",4,"April",0,0]
[null,null,null,null,"D0114","Payments",5,"June",0,0]
[null,null,null,null,"D0114","Payments",6,"June Total",0,19181]
[null,null,null,null,"D0114","Payments",7,"Supplemental",0,0]
[null,null,null,null,"D0114","Summary",1,"Total Entitlement",0,28356]
[null,null,null,null,"D0114","Summary",2,"Total Payments",0,19181]
[null,null,null,null,"D0114","Summary",3,"Overpayment",0,0]
[null,null,null,null,"D0114","Teachers",1,"Regular_teachers",0,0]
[null,null,null,null,"D0114","Teachers",2,"Non_public_equiv",0,0]
[null,null,null,null,"D0114","Teachers",3,"Regular_aides",0,0]
[null,null,null,null,"D0114","Teachers",4,"Regular_fte",0,0]
[null,null,null,null,"D0114","Teachers",5,"Summer_teachers",0,0]
[null,null,null,null,"D0114","Teachers",6,"Summer_aides",0,0]
[null,null,null,null,"D0114","Teachers",7,"Summer_fte",0,0]
[null,null,null,null,"D0114","Teachers",8,"Entitlement_perfte",30800,31670]
[null,null,null,null,"D0114","Teachers",9,"Regular_entitlement",0,0]
[null,null,null,null,"D0114","Teachers",10,"Summer_entitlement",0,0]
[null,null,null,null,"D0114","Teachers",11,"Tch_total",0,0]
[null,null,null,null,"D0114","Teachers",12,"Current Entitlement",0,0]
[null,null,null,null,"D0114","Teachers",13,"Current Payment",0,0]
[null,null,null,null,"D0114","Teachers",14,"Supplemental",0,0]
[null,null,null,null,"D0114","Transportation",1,"Salaries",0,10747]
[null,null,null,null,"D0114","Transportation",2,"Contracted_services",0,0]
[null,null,null,null,"D0114","Transportation",3,"Insurance",0,2112]
[null,null,null,null,"D0114","Transportation",4,"Expend_inLieuOfTrans",0,0]
[null,null,null,null,"D0114","Transportation",5,"Other_expenses",0,2432]
[null,null,null,null,"D0114","Transportation",6,"Capital_outlay_fund_equip",0,0]
[null,null,null,null,"D0114","Transportation",7,"Depreciation",0,3191]
[null,null,null,null,"D0114","Transportation",8,"Teacher_transportation",0,0]
[null,null,null,null,"D0114","Transportation",9,"Tran_total",0,18482]
[null,null,null,null,"D0114","Transportation",10,"Reimbursements",0,0]
[null,null,null,null,"D0114","Transportation",11,"Net_transportation_costs",0,18482]
[null,null,null,null,"D0114","Transportation",12,"Trans_entitlement_80pcnt",0,14786]
[null,null,null,null,"D0114","Transportation",13,"CarryOver Adjustment",0,-9175]
[null,null,null,null,"D0114","Transportation",14,"Transportation Payment",0,5611]
[null,null,null,null,"D0114","Transportation",15,"Supplemental",0,0]
[null,null,null,null,"D0115","Adjustments & Carryovers",1,"Carryover",0,0]
[null,null,null,null,"D0115","Adjustments & Carryovers",2,"Refund",0,0]
[null,null,null,null,"D0115","Adjustments & Carryovers",3,"Teacher_Adj",-6968,11809]
[null,null,null,null,"D0115","Adjustments & Carryovers",4,"Transportation_Adj",0,-702]
[null,null,null,null,"D0115","Adjustments & Carryovers",5,"Catastrophic_Adj",0,0]
[null,null,null,null,"D0115","Adjustments & Carryovers",6,"Total_Adj",-6968,0]
[null,null,null,null,"D0115","Catastrophic",1,"Cat_total",0,0]
[null,null,null,null,"D0115","Catastrophic",2,"Cat_Total_students",0,0]
[null,null,null,null,"D0115","Catastrophic",3,"Cat_Netcost",0,0]
[null,null,null,null,"D0115","Catastrophic",4,"Cat_Stateaid",0,0]
[null,null,null,null,"D0115","Catastrophic",5,"Per Student",0,0]
[null,null,null,null,"D0115","Catastrophic",6,"Supplemental",0,0]
[null,null,null,null,"D0115","Medicaid",1,"Medicaid_Students",0,36]
[null,null,null,null,"D0115","Medicaid",2,"Paid",0,21240]
[null,null,null,null,"D0115","Medicaid",3,"Per Student",0,590]
[null,null,null,null,"D0115","Medicaid",4,"Supplemental",0,0]
[null,null,null,null,"D0115","Payments",1,"October",256872,253946]
[null,null,null,null,"D0115","Payments",2,"December",243744,253946]
[null,null,null,null,"D0115","Payments",3,"March",156024,105699]
[null,null,null,null,"D0115","Payments",4,"April",166292,157777]
[null,null,null,null,"D0115","Payments",5,"June",0,206919]
[null,null,null,null,"D0115","Payments",6,"June Total",0,240453]
[null,null,null,null,"D0115","Payments",7,"Supplemental",0,0]
[null,null,null,null,"D0115","Summary",1,"Total Entitlement",829900,1011821]
[null,null,null,null,"D0115","Summary",2,"Total Payments",822932,1011821]
[null,null,null,null,"D0115","Summary",3,"Overpayment",0,0]
[null,null,null,null,"D0115","Teachers",1,"Regular_teachers",17.75,19.850000000000001]
[null,null,null,null,"D0115","Teachers",2,"Non_public_equiv",0,0]
[null,null,null,null,"D0115","Teachers",3,"Regular_aides",34.93,27.23]
[null,null,null,null,"D0115","Teachers",4,"Regular_fte",31.72,30.74]
[null,null,null,null,"D0115","Teachers",5,"Summer_teachers",0.3,0.15]
[null,null,null,null,"D0115","Teachers",6,"Summer_aides",0.01,0]
[null,null,null,null,"D0115","Teachers",7,"Summer_fte",0.3,0.15]
[null,null,null,null,"D0115","Teachers",8,"Entitlement_perfte",30800,31670]
[null,null,null,null,"D0115","Teachers",9,"Regular_entitlement",976976,973536]
[null,null,null,null,"D0115","Teachers",10,"Summer_entitlement",9240,4751]
[null,null,null,null,"D0115","Teachers",11,"Tch_total",986216,978287]
[null,null,null,null,"D0115","Teachers",12,"Current Entitlement",829900,978287]
[null,null,null,null,"D0115","Teachers",13,"Current Payment",166292,157777]
[null,null,null,null,"D0115","Teachers",14,"Supplemental",0,0]
[null,null,null,null,"D0115","Transportation",1,"Salaries",0,5000]
[null,null,null,null,"D0115","Transportation",2,"Contracted_services",0,0]
[null,null,null,null,"D0115","Transportation",3,"Insurance",0,744]
[null,null,null,null,"D0115","Transportation",4,"Expend_inLieuOfTrans",0,0]
[null,null,null,null,"D0115","Transportation",5,"Other_expenses",0,1061]
[null,null,null,null,"D0115","Transportation",6,"Capital_outlay_fund_equip",0,0]
[null,null,null,null,"D0115","Transportation",7,"Depreciation",0,1563]
[null,null,null,null,"D0115","Transportation",8,"Teacher_transportation",0,7000]
[null,null,null,null,"D0115","Transportation",9,"Tran_total",0,15368]
[null,null,null,null,"D0115","Transportation",10,"Reimbursements",0,0]
[null,null,null,null,"D0115","Transportation",11,"Net_transportation_costs",0,15368]
[null,null,null,null,"D0115","Transportation",12,"Trans_entitlement_80pcnt",0,12294]
[null,null,null,null,"D0115","Transportation",13,"CarryOver Adjustment",0,0]
[null,null,null,null,"D0115","Transportation",14,"Transportation Payment",0,12294]
[null,null,null,null,"D0115","Transportation",15,"Supplemental",0,0]
[null,null,null,null,"D0200","Adjustments & Carryovers",1,"Carryover",0,0]
[null,null,null,null,"D0200","Adjustments & Carryovers",2,"Refund",0,0]
[null,null,null,null,"D0200","Adjustments & Carryovers",3,"Teacher_Adj",0,0]
[null,null,null,null,"D0200","Adjustments & Carryovers",4,"Transportation_Adj",0,0]
[null,null,null,null,"D0200","Adjustments & Carryovers",5,"Catastrophic_Adj",0,0]
[null,null,null,null,"D0200","Adjustments & Carryovers",6,"Total_Adj",0,0]
[null,null,null,null,"D0200","Catastrophic",1,"Cat_total",0,0]
[null,null,null,null,"D0200","Catastrophic",2,"Cat_Total_students",0,0]
[null,null,null,null,"D0200","Catastrophic",3,"Cat_Netcost",0,0]
[null,null,null,null,"D0200","Catastrophic",4,"Cat_Stateaid",0,0]
[null,null,null,null,"D0200","Catastrophic",5,"Per Student",0,0]
[null,null,null,null,"D0200","Catastrophic",6,"Supplemental",0,0]
[null,null,null,null,"D0200","Medicaid",1,"Medicaid_Students",0,5]
[null,null,null,null,"D0200","Medicaid",2,"Paid",0,2950]
[null,null,null,null,"D0200","Medicaid",3,"Per Student",0,590]
[null,null,null,null,"D0200","Medicaid",4,"Supplemental",0,0]
[null,null,null,null,"D0200","Payments",1,"October",0,0]
[null,null,null,null,"D0200","Payments",2,"December",0,0]
[null,null,null,null,"D0200","Payments",3,"March",0,0]
[null,null,null,null,"D0200","Payments",4,"April",0,0]
[null,null,null,null,"D0200","Payments",5,"June",0,0]
[null,null,null,null,"D0200","Payments",6,"June Total",0,2950]
[null,null,null,null,"D0200","Payments",7,"Supplemental",0,0]
[null,null,null,null,"D0200","Summary",1,"Total Entitlement",0,2950]
[null,null,null,null,"D0200","Summary",2,"Total Payments",0,2950]
[null,null,null,null,"D0200","Summary",3,"Overpayment",0,0]
[null,null,null,null,"D0200","Teachers",1,"Regular_teachers",0,0]
[null,null,null,null,"D0200","Teachers",2,"Non_public_equiv",0,0]
[null,null,null,null,"D0200","Teachers",3,"Regular_aides",0,0]
[null,null,null,null,"D0200","Teachers",4,"Regular_fte",0,0]
[null,null,null,null,"D0200","Teachers",5,"Summer_teachers",0,0]
[null,null,null,null,"D0200","Teachers",6,"Summer_aides",0,0]
[null,null,null,null,"D0200","Teachers",7,"Summer_fte",0,0]
[null,null,null,null,"D0200","Teachers",8,"Entitlement_perfte",30800,31670]
[null,null,null,null,"D0200","Teachers",9,"Regular_entitlement",0,0]
[null,null,null,null,"D0200","Teachers",10,"Summer_entitlement",0,0]
[null,null,null,null,"D0200","Teachers",11,"Tch_total",0,0]
[null,null,null,null,"D0200","Teachers",12,"Current Entitlement",0,0]
[null,null,null,null,"D0200","Teachers",13,"Current Payment",0,0]
[null,null,null,null,"D0200","Teachers",14,"Supplemental",0,0]
[null,null,null,null,"D0200","Transportation",1,"Salaries",0,0]
[null,null,null,null,"D0200","Transportation",2,"Contracted_services",0,0]
[null,null,null,null,"D0200","Transportation",3,"Insurance",0,0]
[null,null,null,null,"D0200","Transportation",4,"Expend_inLieuOfTrans",0,0]
[null,null,null,null,"D0200","Transportation",5,"Other_expenses",0,0]
[null,null,null,null,"D0200","Transportation",6,"Capital_outlay_fund_equip",0,0]
[null,null,null,null,"D0200","Transportation",7,"Depreciation",0,0]
[null,null,null,null,"D0200","Transportation",8,"Teacher_transportation",0,0]
[null,null,null,null,"D0200","Transportation",9,"Tran_total",0,0]
[null,null,null,null,"D0200","Transportation",10,"Reimbursements",0,0]
[null,null,null,null,"D0200","Transportation",11,"Net_transportation_costs",0,0]
[null,null,null,null,"D0200","Transportation",12,"Trans_entitlement_80pcnt",0,0]
[null,null,null,null,"D0200","Transportation",13,"CarryOver Adjustment",0,0]
[null,null,null,null,"D0200","Transportation",14,"Transportation Payment",0,0]
[null,null,null,null,"D0200","Transportation",15,"Supplemental",0,0]
[null,null,null,null,"D0202","Adjustments & Carryovers",1,"Carryover",0,0]
[null,null,null,null,"D0202","Adjustments & Carryovers",2,"Refund",0,0]
[null,null,null,null,"D0202","Adjustments & Carryovers",3,"Teacher_Adj",-62390,-101490]
[null,null,null,null,"D0202","Adjustments & Carryovers",4,"Transportation_Adj",-47958,-32399]
[null,null,null,null,"D0202","Adjustments & Carryovers",5,"Catastrophic_Adj",0,0]
[null,null,null,null,"D0202","Adjustments & Carryovers",6,"Total_Adj",-110348,-133889]
[null,null,null,null,"D0202","Catastrophic",1,"Cat_total",0,0]
[null,null,null,null,"D0202","Catastrophic",2,"Cat_Total_students",0,0]
[null,null,null,null,"D0202","Catastrophic",3,"Cat_Netcost",0,0]
[null,null,null,null,"D0202","Catastrophic",4,"Cat_Stateaid",0,0]
[null,null,null,null,"D0202","Catastrophic",5,"Per Student",0,0]
[null,null,null,null,"D0202","Catastrophic",6,"Supplemental",0,0]
[null,null,null,null,"D0202","Medicaid",1,"Medicaid_Students",0,154]
[null,null,null,null,"D0202","Medicaid",2,"Paid",0,90860]
[null,null,null,null,"D0202","Medicaid",3,"Per Student",0,590]
[null,null,null,null,"D0202","Medicaid",4,"Supplemental",0,0]
[null,null,null,null,"D0202","Payments",1,"October",661815,667667]
[null,null,null,null,"D0202","Payments",2,"December",673037,524443]
[null,null,null,null,"D0202","Payments",3,"March",457309,439703]
[null,null,null,null,"D0202","Payments",4,"April",445511,448904]
[null,null,null,null,"D0202","Payments",5,"June",0,491596]
[null,null,null,null,"D0202","Payments",6,"June Total",0,1171166]
[null,null,null,null,"D0202","Payments",7,"Supplemental",0,0]
[null,null,null,null,"D0202","Summary",1,"Total Entitlement",2348020,3385772]
[null,null,null,null,"D0202","Summary",2,"Total Payments",2237672,3251883]
[null,null,null,null,"D0202","Summary",3,"Overpayment",0,0]
[null,null,null,null,"D0202","Teachers",1,"Regular_teachers",64.7,64.41]
[null,null,null,null,"D0202","Teachers",2,"Non_public_equiv",0,0]
[null,null,null,null,"D0202","Teachers",3,"Regular_aides",63.02,50.64]
[null,null,null,null,"D0202","Teachers",4,"Regular_fte",89.91,84.67]
[null,null,null,null,"D0202","Teachers",5,"Summer_teachers",0.67,0.71]
[null,null,null,null,"D0202","Teachers",6,"Summer_aides",0.1,0.17]
[null,null,null,null,"D0202","Teachers",7,"Summer_fte",0.71,0.78]
[null,null,null,null,"D0202","Teachers",8,"Entitlement_perfte",30800,31670]
[null,null,null,null,"D0202","Teachers",9,"Regular_entitlement",2769228,2681499]
[null,null,null,null,"D0202","Teachers",10,"Summer_entitlement",21868,24703]
[null,null,null,null,"D0202","Teachers",11,"Tch_total",2791096,2706202]
[null,null,null,null,"D0202","Teachers",12,"Current Entitlement",2348020,2706202]
[null,null,null,null,"D0202","Teachers",13,"Current Payment",445511,448904]
[null,null,null,null,"D0202","Teachers",14,"Supplemental",0,0]
[null,null,null,null,"D0202","Transportation",1,"Salaries",0,373137]
[null,null,null,null,"D0202","Transportation",2,"Contracted_services",0,35098]
[null,null,null,null,"D0202","Transportation",3,"Insurance",0,14688]
[null,null,null,null,"D0202","Transportation",4,"Expend_inLieuOfTrans",0,0]
[null,null,null,null,"D0202","Transportation",5,"Other_expenses",0,281808]
[null,null,null,null,"D0202","Transportation",6,"Capital_outlay_fund_equip",0,0]
[null,null,null,null,"D0202","Transportation",7,"Depreciation",0,24829]
[null,null,null,null,"D0202","Transportation",8,"Teacher_transportation",0,6327]
[null,null,null,null,"D0202","Transportation",9,"Tran_total",0,735887]
[null,null,null,null,"D0202","Transportation",10,"Reimbursements",0,0]
[null,null,null,null,"D0202","Transportation",11,"Net_transportation_costs",0,735887]
[null,null,null,null,"D0202","Transportation",12,"Trans_entitlement_80pcnt",0,588710]
[null,null,null,null,"D0202","Transportation",13,"CarryOver Adjustment",0,0]
[null,null,null,null,"D0202","Transportation",14,"Transportation Payment",0,588710]
[null,null,null,null,"D0202","Transportation",15,"Supplemental",0,0]
[null,null,null,null,"D0203","Adjustments & Carryovers",1,"Carryover",0,0]
[null,null,null,null,"D0203","Adjustments & Carryovers",2,"Refund",0,0]
[null,null,null,null,"D0203","Adjustments & Carryovers",3,"Teacher_Adj",13618,-8936]
[null,null,null,null,"D0203","Adjustments & Carryovers",4,"Transportation_Adj",0,-41436]
[null,null,null,null,"D0203","Adjustments & Carryovers",5,"Catastrophic_Adj",0,0]
[null,null,null,null,"D0203","Adjustments & Carryovers",6,"Total_Adj",0,-50372]
[null,null,null,null,"D0203","Catastrophic",1,"Cat_total",0,0]
[null,null,null,null,"D0203","Catastrophic",2,"Cat_Total_students",0,0]
[null,null,null,null,"D0203","Catastrophic",3,"Cat_Netcost",0,0]
[null,null,null,null,"D0203","Catastrophic",4,"Cat_Stateaid",0,0]
[null,null,null,null,"D0203","Catastrophic",5,"Per Student",0,0]
[null,null,null,null,"D0203","Catastrophic",6,"Supplemental",0,0]
[null,null,null,null,"D0203","Medicaid",1,"Medicaid_Students",0,40]
[null,null,null,null,"D0203","Medicaid",2,"Paid",0,23600]
[null,null,null,null,"D0203","Medicaid",3,"Per Student",0,590]
[null,null,null,null,"D0203","Medicaid",4,"Supplemental",0,0]
[null,null,null,null,"D0203","Payments",1,"October",476168,430430]
[null,null,null,null,"D0203","Payments",2,"December",455532,417798]
[null,null,null,null,"D0203","Payments",3,"March",294697,253259]
[null,null,null,null,"D0203","Payments",4,"April",308268,240313]
[null,null,null,null,"D0203","Payments",5,"June",0,314524]
[null,null,null,null,"D0203","Payments",6,"June Total",0,902124]
[null,null,null,null,"D0203","Payments",7,"Supplemental",0,0]
[null,null,null,null,"D0203","Summary",1,"Total Entitlement",1534665,2294296]
[null,null,null,null,"D0203","Summary",2,"Total Payments",1534665,2243924]
[null,null,null,null,"D0203","Summary",3,"Overpayment",0,0]
[null,null,null,null,"D0203","Teachers",1,"Regular_teachers",43.31,39.85]
[null,null,null,null,"D0203","Teachers",2,"Non_public_equiv",0,0]
[null,null,null,null,"D0203","Teachers",3,"Regular_aides",38.03,35.090000000000003]
[null,null,null,null,"D0203","Teachers",4,"Regular_fte",58.52,53.89]
[null,null,null,null,"D0203","Teachers",5,"Summer_teachers",0.4,0]
[null,null,null,null,"D0203","Teachers",6,"Summer_aides",0.67,0]
[null,null,null,null,"D0203","Teachers",7,"Summer_fte",0.67,0]
[null,null,null,null,"D0203","Teachers",8,"Entitlement_perfte",30800,31670]
[null,null,null,null,"D0203","Teachers",9,"Regular_entitlement",1802416,1706696]
[null,null,null,null,"D0203","Teachers",10,"Summer_entitlement",20636,0]
[null,null,null,null,"D0203","Teachers",11,"Tch_total",1823052,1706696]
[null,null,null,null,"D0203","Teachers",12,"Current Entitlement",1534665,1706696]
[null,null,null,null,"D0203","Teachers",13,"Current Payment",308268,240313]
[null,null,null,null,"D0203","Teachers",14,"Supplemental",0,0]
[null,null,null,null,"D0203","Transportation",1,"Salaries",0,0]
[null,null,null,null,"D0203","Transportation",2,"Contracted_services",0,680000]
[null,null,null,null,"D0203","Transportation",3,"Insurance",0,0]
[null,null,null,null,"D0203","Transportation",4,"Expend_inLieuOfTrans",0,0]
[null,null,null,null,"D0203","Transportation",5,"Other_expenses",0,25000]
[null,null,null,null,"D0203","Transportation",6,"Capital_outlay_fund_equip",0,0]
[null,null,null,null,"D0203","Transportation",7,"Depreciation",0,0]
[null,null,null,null,"D0203","Transportation",8,"Teacher_transportation",0,0]
[null,null,null,null,"D0203","Transportation",9,"Tran_total",0,705000]
[null,null,null,null,"D0203","Transportation",10,"Reimbursements",0,0]
[null,null,null,null,"D0203","Transportation",11,"Net_transportation_costs",0,705000]
[null,null,null,null,"D0203","Transportation",12,"Trans_entitlement_80pcnt",0,564000]
[null,null,null,null,"D0203","Transportation",13,"CarryOver Adjustment",0,0]
[null,null,null,null,"D0203","Transportation",14,"Transportation Payment",0,564000]
[null,null,null,null,"D0203","Transportation",15,"Supplemental",0,0]
[null,null,null,null,"D0204","Adjustments & Carryovers",1,"Carryover",0,0]
[null,null,null,null,"D0204","Adjustments & Carryovers",2,"Refund",0,0]
[null,null,null,null,"D0204","Adjustments & Carryovers",3,"Teacher_Adj",3801,-24256]
[null,null,null,null,"D0204","Adjustments & Carryovers",4,"Transportation_Adj",-8724,-23481]
[null,null,null,null,"D0204","Adjustments & Carryovers",5,"Catastrophic_Adj",0,0]
[null,null,null,null,"D0204","Adjustments & Carryovers",6,"Total_Adj",-4923,-47737]
[null,null,null,null,"D0204","Catastrophic",1,"Cat_total",0,0]
[null,null,null,null,"D0204","Catastrophic",2,"Cat_Total_students",0,0]
[null,null,null,null,"D0204","Catastrophic",3,"Cat_Netcost",0,0]
[null,null,null,null,"D0204","Catastrophic",4,"Cat_Stateaid",0,0]
[null,null,null,null,"D0204","Catastrophic",5,"Per Student",0,0]
[null,null,null,null,"D0204","Catastrophic",6,"Supplemental",0,0]
[null,null,null,null,"D0204","Medicaid",1,"Medicaid_Students",0,60]
[null,null,null,null,"D0204","Medicaid",2,"Paid",0,35400]
[null,null,null,null,"D0204","Medicaid",3,"Per Student",0,590]
[null,null,null,null,"D0204","Medicaid",4,"Supplemental",0,0]
[null,null,null,null,"D0204","Payments",1,"October",406560,418572]
[null,null,null,null,"D0204","Payments",2,"December",406560,359512]
[null,null,null,null,"D0204","Payments",3,"March",270334,289729]
[null,null,null,null,"D0204","Payments",4,"April",275940,250233]
[null,null,null,null,"D0204","Payments",5,"June",0,305759]
[null,null,null,null,"D0204","Payments",6,"June Total",0,726546]
[null,null,null,null,"D0204","Payments",7,"Supplemental",0,0]
[null,null,null,null,"D0204","Summary",1,"Total Entitlement",1364317,2092329]
[null,null,null,null,"D0204","Summary",2,"Total Payments",1359394,2044592]
[null,null,null,null,"D0204","Summary",3,"Overpayment",0,0]
[null,null,null,null,"D0204","Teachers",1,"Regular_teachers",33.49,33.76]
[null,null,null,null,"D0204","Teachers",2,"Non_public_equiv",0,0]
[null,null,null,null,"D0204","Teachers",3,"Regular_aides",44.77,44.39]
[null,null,null,null,"D0204","Teachers",4,"Regular_fte",51.4,51.52]
[null,null,null,null,"D0204","Teachers",5,"Summer_teachers",0.8,1.04]
[null,null,null,null,"D0204","Teachers",6,"Summer_aides",0.8,0.56000000000000005]
[null,null,null,null,"D0204","Teachers",7,"Summer_fte",1.1200000000000001,1.26]
[null,null,null,null,"D0204","Teachers",8,"Entitlement_perfte",30800,31670]
[null,null,null,null,"D0204","Teachers",9,"Regular_entitlement",1583120,1631638]
[null,null,null,null,"D0204","Teachers",10,"Summer_entitlement",34496,39904]
[null,null,null,null,"D0204","Teachers",11,"Tch_total",1617616,1671542]
[null,null,null,null,"D0204","Teachers",12,"Current Entitlement",1364317,1671542]
[null,null,null,null,"D0204","Teachers",13,"Current Payment",275940,250233]
[null,null,null,null,"D0204","Teachers",14,"Supplemental",0,0]
[null,null,null,null,"D0204","Transportation",1,"Salaries",0,235000]
[null,null,null,null,"D0204","Transportation",2,"Contracted_services",0,83609]
[null,null,null,null,"D0204","Transportation",3,"Insurance",0,21084]
[null,null,null,null,"D0204","Transportation",4,"Expend_inLieuOfTrans",0,0]
[null,null,null,null,"D0204","Transportation",5,"Other_expenses",0,67000]
[null,null,null,null,"D0204","Transportation",6,"Capital_outlay_fund_equip",0,0]
[null,null,null,null,"D0204","Transportation",7,"Depreciation",0,74422]
[null,null,null,null,"D0204","Transportation",8,"Teacher_transportation",0,619]
[null,null,null,null,"D0204","Transportation",9,"Tran_total",0,481734]
[null,null,null,null,"D0204","Transportation",10,"Reimbursements",0,0]
[null,null,null,null,"D0204","Transportation",11,"Net_transportation_costs",0,481734]
[null,null,null,null,"D0204","Transportation",12,"Trans_entitlement_80pcnt",0,385387]
[null,null,null,null,"D0204","Transportation",13,"CarryOver Adjustment",0,0]
[null,null,null,null,"D0204","Transportation",14,"Transportation Payment",0,385387]
[null,null,null,null,"D0204","Transportation",15,"Supplemental",0,0]
[null,null,null,null,"D0205","Adjustments & Carryovers",1,"Carryover",0,0]
[null,null,null,null,"D0205","Adjustments & Carryovers",2,"Refund",0,0]
[null,null,null,null,"D0205","Adjustments & Carryovers",3,"Teacher_Adj",0,0]
[null,null,null,null,"D0205","Adjustments & Carryovers",4,"Transportation_Adj",-37107,-16484]
[null,null,null,null,"D0205","Adjustments & Carryovers",5,"Catastrophic_Adj",0,0]
[null,null,null,null,"D0205","Adjustments & Carryovers",6,"Total_Adj",-37107,-16484]
[null,null,null,null,"D0205","Catastrophic",1,"Cat_total",0,0]
[null,null,null,null,"D0205","Catastrophic",2,"Cat_Total_students",0,0]
[null,null,null,null,"D0205","Catastrophic",3,"Cat_Netcost",0,0]
[null,null,null,null,"D0205","Catastrophic",4,"Cat_Stateaid",0,0]
[null,null,null,null,"D0205","Catastrophic",5,"Per Student",0,0]
[null,null,null,null,"D0205","Catastrophic",6,"Supplemental",0,0]
[null,null,null,null,"D0205","Medicaid",1,"Medicaid_Students",0,20]
[null,null,null,null,"D0205","Medicaid",2,"Paid",0,11800]
[null,null,null,null,"D0205","Medicaid",3,"Per Student",0,590]
[null,null,null,null,"D0205","Medicaid",4,"Supplemental",0,0]
[null,null,null,null,"D0205","Payments",1,"October",3080,5775]
[null,null,null,null,"D0205","Payments",2,"December",3080,5775]
[null,null,null,null,"D0205","Payments",3,"March",2094,3927]
[null,null,null,null,"D0205","Payments",4,"April",0,3927]
[null,null,null,null,"D0205","Payments",5,"June",0,0]
[null,null,null,null,"D0205","Payments",6,"June Total",0,68995]
[null,null,null,null,"D0205","Payments",7,"Supplemental",0,0]
[null,null,null,null,"D0205","Summary",1,"Total Entitlement",10349,104883]
[null,null,null,null,"D0205","Summary",2,"Total Payments",8254,88399]
[null,null,null,null,"D0205","Summary",3,"Overpayment",-35012,0]
[null,null,null,null,"D0205","Teachers",1,"Regular_teachers",0.4,0.75]
[null,null,null,null,"D0205","Teachers",2,"Non_public_equiv",0,0]
[null,null,null,null,"D0205","Teachers",3,"Regular_aides",0,0]
[null,null,null,null,"D0205","Teachers",4,"Regular_fte",0.4,0.75]
[null,null,null,null,"D0205","Teachers",5,"Summer_teachers",0,0]
[null,null,null,null,"D0205","Teachers",6,"Summer_aides",0,0]
[null,null,null,null,"D0205","Teachers",7,"Summer_fte",0,0]
[null,null,null,null,"D0205","Teachers",8,"Entitlement_perfte",30800,31670]
[null,null,null,null,"D0205","Teachers",9,"Regular_entitlement",12320,23753]
[null,null,null,null,"D0205","Teachers",10,"Summer_entitlement",0,0]
[null,null,null,null,"D0205","Teachers",11,"Tch_total",12320,23753]
[null,null,null,null,"D0205","Teachers",12,"Current Entitlement",10349,23753]
[null,null,null,null,"D0205","Teachers",13,"Current Payment",0,3927]
[null,null,null,null,"D0205","Teachers",14,"Supplemental",0,0]
[null,null,null,null,"D0205","Transportation",1,"Salaries",0,50955]
[null,null,null,null,"D0205","Transportation",2,"Contracted_services",0,0]
[null,null,null,null,"D0205","Transportation",3,"Insurance",0,8565]
[null,null,null,null,"D0205","Transportation",4,"Expend_inLieuOfTrans",0,0]
[null,null,null,null,"D0205","Transportation",5,"Other_expenses",0,27143]
[null,null,null,null,"D0205","Transportation",6,"Capital_outlay_fund_equip",0,0]
[null,null,null,null,"D0205","Transportation",7,"Depreciation",0,0]
[null,null,null,null,"D0205","Transportation",8,"Teacher_transportation",0,0]
[null,null,null,null,"D0205","Transportation",9,"Tran_total",0,86663]
[null,null,null,null,"D0205","Transportation",10,"Reimbursements",0,0]
[null,null,null,null,"D0205","Transportation",11,"Net_transportation_costs",0,86663]
[null,null,null,null,"D0205","Transportation",12,"Trans_entitlement_80pcnt",0,69330]
[null,null,null,null,"D0205","Transportation",13,"CarryOver Adjustment",-35012,-12135]
[null,null,null,null,"D0205","Transportation",14,"Transportation Payment",0,57195]
[null,null,null,null,"D0205","Transportation",15,"Supplemental",0,0]
[null,null,null,null,"D0206","Adjustments & Carryovers",1,"Carryover",0,0]
[null,null,null,null,"D0206","Adjustments & Carryovers",2,"Refund",0,0]
[null,null,null,null,"D0206","Adjustments & Carryovers",3,"Teacher_Adj",0,0]
[null,null,null,null,"D0206","Adjustments & Carryovers",4,"Transportation_Adj",0,-1647]
[null,null,null,null,"D0206","Adjustments & Carryovers",5,"Catastrophic_Adj",0,0]
[null,null,null,null,"D0206","Adjustments & Carryovers",6,"Total_Adj",0,-1647]
[null,null,null,null,"D0206","Catastrophic",1,"Cat_total",0,0]
[null,null,null,null,"D0206","Catastrophic",2,"Cat_Total_students",0,0]
[null,null,null,null,"D0206","Catastrophic",3,"Cat_Netcost",0,0]
[null,null,null,null,"D0206","Catastrophic",4,"Cat_Stateaid",0,0]
[null,null,null,null,"D0206","Catastrophic",5,"Per Student",0,0]
[null,null,null,null,"D0206","Catastrophic",6,"Supplemental",0,0]
[null,null,null,null,"D0206","Medicaid",1,"Medicaid_Students",0,15]
[null,null,null,null,"D0206","Medicaid",2,"Paid",0,8850]
[null,null,null,null,"D0206","Medicaid",3,"Per Student",0,590]
[null,null,null,null,"D0206","Medicaid",4,"Supplemental",0,0]
[null,null,null,null,"D0206","Payments",1,"october",0,0]
[null,null,null,null,"D0206","Payments",2,"December",0,0]
[null,null,null,null,"D0206","Payments",3,"March",0,0]
[null,null,null,null,"D0206","Payments",4,"April",0,0]
[null,null,null,null,"D0206","Payments",5,"June",0,0]
[null,null,null,null,"D0206","Payments",6,"June Total",0,60129]
[null,null,null,null,"D0206","Payments",7,"Supplemental",0,0]
[null,null,null,null,"D0206","Summary",1,"Total Entitlement",0,61776]
[null,null,null,null,"D0206","Summary",2,"Total Payments",0,60129]
[null,null,null,null,"D0206","Summary",3,"Overpayment",0,0]
[null,null,null,null,"D0206","Teachers",1,"Regular_teachers",0,0]
[null,null,null,null,"D0206","Teachers",2,"Non_public_equiv",0,0]
[null,null,null,null,"D0206","Teachers",3,"Regular_aides",0,0]
[null,null,null,null,"D0206","Teachers",4,"Regular_fte",0,0]
[null,null,null,null,"D0206","Teachers",5,"Summer_teachers",0,0]
[null,null,null,null,"D0206","Teachers",6,"Summer_aides",0,0]
[null,null,null,null,"D0206","Teachers",7,"Summer_fte",0,0]
[null,null,null,null,"D0206","Teachers",8,"Entitlement_perfte",30800,31670]
[null,null,null,null,"D0206","Teachers",9,"Regular_entitlement",0,0]
[null,null,null,null,"D0206","Teachers",10,"Summer_entitlement",0,0]
[null,null,null,null,"D0206","Teachers",11,"Tch_total",0,0]
[null,null,null,null,"D0206","Teachers",12,"Current Entitlement",0,0]
[null,null,null,null,"D0206","Teachers",13,"Current Payment",0,0]
[null,null,null,null,"D0206","Teachers",14,"Supplemental",0,0]
[null,null,null,null,"D0206","Transportation",1,"Salaries",0,34834]
[null,null,null,null,"D0206","Transportation",2,"Contracted_services",0,7062]
[null,null,null,null,"D0206","Transportation",3,"Insurance",0,2784]
[null,null,null,null,"D0206","Transportation",4,"Expend_inLieuOfTrans",0,0]
[null,null,null,null,"D0206","Transportation",5,"Other_expenses",0,11009]
[null,null,null,null,"D0206","Transportation",6,"Capital_outlay_fund_equip",0,0]
[null,null,null,null,"D0206","Transportation",7,"Depreciation",0,10468]
[null,null,null,null,"D0206","Transportation",8,"Teacher_transportation",0,0]
[null,null,null,null,"D0206","Transportation",9,"Tran_total",0,66157]
[null,null,null,null,"D0206","Transportation",10,"Reimbursements",0,0]
[null,null,null,null,"D0206","Transportation",11,"Net_transportation_costs",0,66157]
[null,null,null,null,"D0206","Transportation",12,"Trans_entitlement_80pcnt",0,52926]
[null,null,null,null,"D0206","Transportation",13,"CarryOver Adjustment",0,-1647]
[null,null,null,null,"D0206","Transportation",14,"Transportation Payment",0,51279]
[null,null,null,null,"D0206","Transportation",15,"Supplemental",0,0]
[null,null,null,null,"D0207","Adjustments & Carryovers",1,"Carryover",0,0]
[null,null,null,null,"D0207","Adjustments & Carryovers",2,"Refund",0,0]
[null,null,null,null,"D0207","Adjustments & Carryovers",3,"Teacher_Adj",-6968,-22021]
[null,null,null,null,"D0207","Adjustments & Carryovers",4,"Transportation_Adj",0,8219]
[null,null,null,null,"D0207","Adjustments & Carryovers",5,"Catastrophic_Adj",-1563,0]
[null,null,null,null,"D0207","Adjustments & Carryovers",6,"Total_Adj",-8531,-13802]
[null,null,null,null,"D0207","Catastrophic",1,"Cat_total",0,89895]
[null,null,null,null,"D0207","Catastrophic",2,"Cat_Total_students",0,1]
[null,null,null,null,"D0207","Catastrophic",3,"Cat_Netcost",0,26065]
[null,null,null,null,"D0207","Catastrophic",4,"Cat_Stateaid",0,19549]
[null,null,null,null,"D0207","Catastrophic",5,"Per Student",0,63830]
[null,null,null,null,"D0207","Catastrophic",6,"Supplemental",0,0]
[null,null,null,null,"D0207","Medicaid",1,"Medicaid_Students",0,0]
[null,null,null,null,"D0207","Medicaid",2,"Paid",0,0]
[null,null,null,null,"D0207","Medicaid",3,"Per Student",0,0]
[null,null,null,null,"D0207","Medicaid",4,"Supplemental",0,0]
[null,null,null,null,"D0207","Payments",1,"October",305690,257103]
[null,null,null,null,"D0207","Payments",2,"December",341511,273428]
[null,null,null,null,"D0207","Payments",3,"March",176518,160009]
[null,null,null,null,"D0207","Payments",4,"April",240403,190631]
[null,null,null,null,"D0207","Payments",5,"June",0,211577]
[null,null,null,null,"D0207","Payments",6,"June Total",0,365912]
[null,null,null,null,"D0207","Payments",7,"Supplemental",0,0]
[null,null,null,null,"D0207","Summary",1,"Total Entitlement",1072653,1260885]
[null,null,null,null,"D0207","Summary",2,"Total Payments",1064122,1247083]
[null,null,null,null,"D0207","Summary",3,"Overpayment",0,0]
[null,null,null,null,"D0207","Teachers",1,"Regular_teachers",23.73,22.68]
[null,null,null,null,"D0207","Teachers",2,"Non_public_equiv",0,0.24]
[null,null,null,null,"D0207","Teachers",3,"Regular_aides",44.32,30.04]
[null,null,null,null,"D0207","Teachers",4,"Regular_fte",41.46,34.94]
[null,null,null,null,"D0207","Teachers",5,"Summer_teachers",0,0]
[null,null,null,null,"D0207","Teachers",6,"Summer_aides",0,0]
[null,null,null,null,"D0207","Teachers",7,"Summer_fte",0,0]
[null,null,null,null,"D0207","Teachers",8,"Entitlement_perfte",30800,31670]
[null,null,null,null,"D0207","Teachers",9,"Regular_entitlement",1276968,1106550]
[null,null,null,null,"D0207","Teachers",10,"Summer_entitlement",0,0]
[null,null,null,null,"D0207","Teachers",11,"Tch_total",1276968,1106550]
[null,null,null,null,"D0207","Teachers",12,"Current Entitlement",1072653,1106550]
[null,null,null,null,"D0207","Teachers",13,"Current Payment",240403,190631]
[null,null,null,null,"D0207","Teachers",14,"Supplemental",0,0]
[null,null,null,null,"D0207","Transportation",1,"Salaries",0,98766]
[null,null,null,null,"D0207","Transportation",2,"Contracted_services",0,0]
[null,null,null,null,"D0207","Transportation",3,"Insurance",0,5953]
[null,null,null,null,"D0207","Transportation",4,"Expend_inLieuOfTrans",0,0]
[null,null,null,null,"D0207","Transportation",5,"Other_expenses",0,10619]
[null,null,null,null,"D0207","Transportation",6,"Capital_outlay_fund_equip",0,0]
[null,null,null,null,"D0207","Transportation",7,"Depreciation",0,15637]
[null,null,null,null,"D0207","Transportation",8,"Teacher_transportation",0,37508]
[null,null,null,null,"D0207","Transportation",9,"Tran_total",0,168483]
[null,null,null,null,"D0207","Transportation",10,"Reimbursements",0,0]
[null,null,null,null,"D0207","Transportation",11,"Net_transportation_costs",0,168483]
[null,null,null,null,"D0207","Transportation",12,"Trans_entitlement_80pcnt",0,134786]
[null,null,null,null,"D0207","Transportation",13,"CarryOver Adjustment",0,0]
[null,null,null,null,"D0207","Transportation",14,"Transportation Payment",0,134786]
[null,null,null,null,"D0207","Transportation",15,"Supplemental",0,0]
[null,null,null,null,"D0208","Adjustments & Carryovers",1,"Carryover",0,0]
[null,null,null,null,"D0208","Adjustments & Carryovers",2,"Refund",0,0]
[null,null,null,null,"D0208","Adjustments & Carryovers",3,"Teacher_Adj",-950,-3191]
[null,null,null,null,"D0208","Adjustments & Carryovers",4,"Transportation_Adj",-736,0]
[null,null,null,null,"D0208","Adjustments & Carryovers",5,"Catastrophic_Adj",0,0]
[null,null,null,null,"D0208","Adjustments & Carryovers",6,"Total_Adj",-1686,-3191]
[null,null,null,null,"D0208","Catastrophic",1,"Cat_total",0,0]
[null,null,null,null,"D0208","Catastrophic",2,"Cat_Total_students",0,0]
[null,null,null,null,"D0208","Catastrophic",3,"Cat_Netcost",0,0]
[null,null,null,null,"D0208","Catastrophic",4,"Cat_Stateaid",0,0]
[null,null,null,null,"D0208","Catastrophic",5,"Per Student",0,0]
[null,null,null,null,"D0208","Catastrophic",6,"Supplemental",0,0]
[null,null,null,null,"D0208","Medicaid",1,"Medicaid_Students",0,10]
[null,null,null,null,"D0208","Medicaid",2,"Paid",0,5900]
[null,null,null,null,"D0208","Medicaid",3,"Per Student",0,590]
[null,null,null,null,"D0208","Medicaid",4,"Supplemental",0,0]
[null,null,null,null,"D0208","Payments",1,"October",30800,52360]
[null,null,null,null,"D0208","Payments",2,"December",73920,52360]
[null,null,null,null,"D0208","Payments",3,"March",33919,32414]
[null,null,null,null,"D0208","Payments",4,"April",35605,35605]
[null,null,null,null,"D0208","Payments",5,"June",0,39426]
[null,null,null,null,"D0208","Payments",6,"June Total",0,46062]
[null,null,null,null,"D0208","Payments",7,"Supplemental",0,0]
[null,null,null,null,"D0208","Summary",1,"Total Entitlement",175930,221992]
[null,null,null,null,"D0208","Summary",2,"Total Payments",174244,218801]
[null,null,null,null,"D0208","Summary",3,"Overpayment",0,0]
[null,null,null,null,"D0208","Teachers",1,"Regular_teachers",0,0]
[null,null,null,null,"D0208","Teachers",2,"Non_public_equiv",0,0]
[null,null,null,null,"D0208","Teachers",3,"Regular_aides",17,17]
[null,null,null,null,"D0208","Teachers",4,"Regular_fte",6.8,6.8]
[null,null,null,null,"D0208","Teachers",5,"Summer_teachers",0,0]
[null,null,null,null,"D0208","Teachers",6,"Summer_aides",0,0]
[null,null,null,null,"D0208","Teachers",7,"Summer_fte",0,0]
[null,null,null,null,"D0208","Teachers",8,"Entitlement_perfte",30800,31670]
[null,null,null,null,"D0208","Teachers",9,"Regular_entitlement",209440,215356]
[null,null,null,null,"D0208","Teachers",10,"Summer_entitlement",0,0]
[null,null,null,null,"D0208","Teachers",11,"Tch_total",209440,215356]
[null,null,null,null,"D0208","Teachers",12,"Current Entitlement",175930,215356]
[null,null,null,null,"D0208","Teachers",13,"Current Payment",35605,35605]
[null,null,null,null,"D0208","Teachers",14,"Supplemental",0,0]
[null,null,null,null,"D0208","Transportation",1,"Salaries",0,27]
[null,null,null,null,"D0208","Transportation",2,"Contracted_services",0,0]
[null,null,null,null,"D0208","Transportation",3,"Insurance",0,431]
[null,null,null,null,"D0208","Transportation",4,"Expend_inLieuOfTrans",0,0]
[null,null,null,null,"D0208","Transportation",5,"Other_expenses",0,127]
[null,null,null,null,"D0208","Transportation",6,"Capital_outlay_fund_equip",0,0]
[null,null,null,null,"D0208","Transportation",7,"Depreciation",0,335]
[null,null,null,null,"D0208","Transportation",8,"Teacher_transportation",0,0]
[null,null,null,null,"D0208","Transportation",9,"Tran_total",0,920]
[null,null,null,null,"D0208","Transportation",10,"Reimbursements",0,0]
[null,null,null,null,"D0208","Transportation",11,"Net_transportation_costs",0,920]
[null,null,null,null,"D0208","Transportation",12,"Trans_entitlement_80pcnt",0,736]
[null,null,null,null,"D0208","Transportation",13,"CarryOver Adjustment",0,0]
[null,null,null,null,"D0208","Transportation",14,"Transportation Payment",0,736]
[null,null,null,null,"D0208","Transportation",15,"Supplemental",0,0]
[null,null,null,null,"D0209","Adjustments & Carryovers",1,"Carryover",0,0]
[null,null,null,null,"D0209","Adjustments & Carryovers",2,"Refund",0,0]
[null,null,null,null,"D0209","Adjustments & Carryovers",3,"Teacher_Adj",0,0]
[null,null,null,null,"D0209","Adjustments & Carryovers",4,"Transportation_Adj",0,0]
[null,null,null,null,"D0209","Adjustments & Carryovers",5,"Catastrophic_Adj",0,0]
[null,null,null,null,"D0209","Adjustments & Carryovers",6,"Total_Adj",0,0]
[null,null,null,null,"D0209","Catastrophic",1,"Cat_total",0,0]
[null,null,null,null,"D0209","Catastrophic",2,"Cat_Total_students",0,0]
[null,null,null,null,"D0209","Catastrophic",3,"Cat_Netcost",0,0]
[null,null,null,null,"D0209","Catastrophic",4,"Cat_Stateaid",0,0]
[null,null,null,null,"D0209","Catastrophic",5,"Per Student",0,0]
[null,null,null,null,"D0209","Catastrophic",6,"Supplemental",0,0]
[null,null,null,null,"D0209","Medicaid",1,"Medicaid_Students",0,1]
[null,null,null,null,"D0209","Medicaid",2,"Paid",0,590]
[null,null,null,null,"D0209","Medicaid",3,"Per Student",0,590]
[null,null,null,null,"D0209","Medicaid",4,"Supplemental",0,0]
[null,null,null,null,"D0209","Payments",1,"October",0,0]
[null,null,null,null,"D0209","Payments",2,"December",0,0]
[null,null,null,null,"D0209","Payments",3,"March",0,0]
[null,null,null,null,"D0209","Payments",4,"April",0,0]
[null,null,null,null,"D0209","Payments",5,"June",0,0]
[null,null,null,null,"D0209","Payments",6,"June Total",0,590]
[null,null,null,null,"D0209","Payments",7,"Supplemental",0,0]
[null,null,null,null,"D0209","Summary",1,"Total Entitlement",0,590]
[null,null,null,null,"D0209","Summary",2,"Total Payments",0,590]
[null,null,null,null,"D0209","Summary",3,"Overpayment",0,0]
[null,null,null,null,"D0209","Teachers",1,"Regular_teachers",0,0]
[null,null,null,null,"D0209","Teachers",2,"Non_public_equiv",0,0]
[null,null,null,null,"D0209","Teachers",3,"Regular_aides",0,0]
[null,null,null,null,"D0209","Teachers",4,"Regular_fte",0,0]
[null,null,null,null,"D0209","Teachers",5,"Summer_teachers",0,0]
[null,null,null,null,"D0209","Teachers",6,"Summer_aides",0,0]
[null,null,null,null,"D0209","Teachers",7,"Summer_fte",0,0]
[null,null,null,null,"D0209","Teachers",8,"Entitlement_perfte",30800,31670]
[null,null,null,null,"D0209","Teachers",9,"Regular_entitlement",0,0]
[null,null,null,null,"D0209","Teachers",10,"Summer_entitlement",0,0]
[null,null,null,null,"D0209","Teachers",11,"Tch_total",0,0]
[null,null,null,null,"D0209","Teachers",12,"Current Entitlement",0,0]
[null,null,null,null,"D0209","Teachers",13,"Current Payment",0,0]
[null,null,null,null,"D0209","Teachers",14,"Supplemental",0,0]
[null,null,null,null,"D0209","Transportation",1,"Salaries",0,0]
[null,null,null,null,"D0209","Transportation",2,"Contracted_services",0,0]
[null,null,null,null,"D0209","Transportation",3,"Insurance",0,0]
[null,null,null,null,"D0209","Transportation",4,"Expend_inLieuOfTrans",0,0]
[null,null,null,null,"D0209","Transportation",5,"Other_expenses",0,0]
[null,null,null,null,"D0209","Transportation",6,"Capital_outlay_fund_equip",0,0]
[null,null,null,null,"D0209","Transportation",7,"Depreciation",0,0]
[null,null,null,null,"D0209","Transportation",8,"Teacher_transportation",0,0]
[null,null,null,null,"D0209","Transportation",9,"Tran_total",0,0]
[null,null,null,null,"D0209","Transportation",10,"Reimbursements",0,0]
[null,null,null,null,"D0209","Transportation",11,"Net_transportation_costs",0,0]
[null,null,null,null,"D0209","Transportation",12,"Trans_entitlement_80pcnt",0,0]
[null,null,null,null,"D0209","Transportation",13,"CarryOver Adjustment",0,0]
[null,null,null,null,"D0209","Transportation",14,"Transportation Payment",0,0]
[null,null,null,null,"D0209","Transportation",15,"Supplemental",0,0]
[null,null,null,null,"D0210","Adjustments & Carryovers",1,"Carryover",0,0]
[null,null,null,null,"D0210","Adjustments & Carryovers",2,"Refund",0,0]
[null,null,null,null,"D0210","Adjustments & Carryovers",3,"Teacher_Adj",0,0]
[null,null,null,null,"D0210","Adjustments & Carryovers",4,"Transportation_Adj",0,-400]
[null,null,null,null,"D0210","Adjustments & Carryovers",5,"Catastrophic_Adj",0,0]
[null,null,null,null,"D0210","Adjustments & Carryovers",6,"Total_Adj",0,-400]
[null,null,null,null,"D0210","Catastrophic",1,"Cat_total",0,0]
[null,null,null,null,"D0210","Catastrophic",2,"Cat_Total_students",0,0]
[null,null,null,null,"D0210","Catastrophic",3,"Cat_Netcost",0,0]
[null,null,null,null,"D0210","Catastrophic",4,"Cat_Stateaid",0,0]
[null,null,null,null,"D0210","Catastrophic",5,"Per Student",0,0]
[null,null,null,null,"D0210","Catastrophic",6,"Supplemental",0,0]
[null,null,null,null,"D0210","Medicaid",1,"Medicaid_Students",0,11]
[null,null,null,null,"D0210","Medicaid",2,"Paid",0,6490]
[null,null,null,null,"D0210","Medicaid",3,"Per Student",0,590]
[null,null,null,null,"D0210","Medicaid",4,"Supplemental",0,0]
[null,null,null,null,"D0210","Payments",1,"october",0,0]
[null,null,null,null,"D0210","Payments",2,"December",0,0]
[null,null,null,null,"D0210","Payments",3,"March",0,0]
[null,null,null,null,"D0210","Payments",4,"April",0,0]
[null,null,null,null,"D0210","Payments",5,"June",0,0]
[null,null,null,null,"D0210","Payments",6,"June Total",0,14854]
[null,null,null,null,"D0210","Payments",7,"Supplemental",0,0]
[null,null,null,null,"D0210","Summary",1,"Total Entitlement",0,15254]
[null,null,null,null,"D0210","Summary",2,"Total Payments",0,14854]
[null,null,null,null,"D0210","Summary",3,"Overpayment",0,0]
[null,null,null,null,"D0210","Teachers",1,"Regular_teachers",0,0]
[null,null,null,null,"D0210","Teachers",2,"Non_public_equiv",0,0]
[null,null,null,null,"D0210","Teachers",3,"Regular_aides",0,0]
[null,null,null,null,"D0210","Teachers",4,"Regular_fte",0,0]
[null,null,null,null,"D0210","Teachers",5,"Summer_teachers",0,0]
[null,null,null,null,"D0210","Teachers",6,"Summer_aides",0,0]
[null,null,null,null,"D0210","Teachers",7,"Summer_fte",0,0]
[null,null,null,null,"D0210","Teachers",8,"Entitlement_perfte",30800,31670]
[null,null,null,null,"D0210","Teachers",9,"Regular_entitlement",0,0]
[null,null,null,null,"D0210","Teachers",10,"Summer_entitlement",0,0]
[null,null,null,null,"D0210","Teachers",11,"Tch_total",0,0]
[null,null,null,null,"D0210","Teachers",12,"Current Entitlement",0,0]
[null,null,null,null,"D0210","Teachers",13,"Current Payment",0,0]
[null,null,null,null,"D0210","Teachers",14,"Supplemental",0,0]
[null,null,null,null,"D0210","Transportation",1,"Salaries",0,9214]
[null,null,null,null,"D0210","Transportation",2,"Contracted_services",0,0]
[null,null,null,null,"D0210","Transportation",3,"Insurance",0,311]
[null,null,null,null,"D0210","Transportation",4,"Expend_inLieuOfTrans",0,0]
[null,null,null,null,"D0210","Transportation",5,"Other_expenses",0,1430]
[null,null,null,null,"D0210","Transportation",6,"Capital_outlay_fund_equip",0,0]
[null,null,null,null,"D0210","Transportation",7,"Depreciation",0,0]
[null,null,null,null,"D0210","Transportation",8,"Teacher_transportation",0,0]
[null,null,null,null,"D0210","Transportation",9,"Tran_total",0,10955]
[null,null,null,null,"D0210","Transportation",10,"Reimbursements",0,0]
[null,null,null,null,"D0210","Transportation",11,"Net_transportation_costs",0,10955]
[null,null,null,null,"D0210","Transportation",12,"Trans_entitlement_80pcnt",0,8764]
[null,null,null,null,"D0210","Transportation",13,"CarryOver Adjustment",0,-400]
[null,null,null,null,"D0210","Transportation",14,"Transportation Payment",0,8364]
[null,null,null,null,"D0210","Transportation",15,"Supplemental",0,0]
[null,null,null,null,"D0211","Adjustments & Carryovers",1,"Carryover",-4379,-5148]
[null,null,null,null,"D0211","Adjustments & Carryovers",2,"Refund",0,0]
[null,null,null,null,"D0211","Adjustments & Carryovers",3,"Teacher_Adj",0,0]
[null,null,null,null,"D0211","Adjustments & Carryovers",4,"Transportation_Adj",-180,-249]
[null,null,null,null,"D0211","Adjustments & Carryovers",5,"Catastrophic_Adj",0,0]
[null,null,null,null,"D0211","Adjustments & Carryovers",6,"Total_Adj",-4559,-5397]
[null,null,null,null,"D0211","Catastrophic",1,"Cat_total",0,0]
[null,null,null,null,"D0211","Catastrophic",2,"Cat_Total_students",0,0]
[null,null,null,null,"D0211","Catastrophic",3,"Cat_Netcost",0,0]
[null,null,null,null,"D0211","Catastrophic",4,"Cat_Stateaid",0,0]
[null,null,null,null,"D0211","Catastrophic",5,"Per Student",0,0]
[null,null,null,null,"D0211","Catastrophic",6,"Supplemental",0,0]
[null,null,null,null,"D0211","Medicaid",1,"Medicaid_Students",0,22]
[null,null,null,null,"D0211","Medicaid",2,"Paid",0,12980]
[null,null,null,null,"D0211","Medicaid",3,"Per Student",0,590]
[null,null,null,null,"D0211","Medicaid",4,"Supplemental",0,0]
[null,null,null,null,"D0211","Payments",1,"October",0,0]
[null,null,null,null,"D0211","Payments",2,"December",0,0]
[null,null,null,null,"D0211","Payments",3,"March",0,0]
[null,null,null,null,"D0211","Payments",4,"April",0,0]
[null,null,null,null,"D0211","Payments",5,"June",0,0]
[null,null,null,null,"D0211","Payments",6,"June Total",0,12980]
[null,null,null,null,"D0211","Payments",7,"Supplemental",0,0]
[null,null,null,null,"D0211","Summary",1,"Total Entitlement",0,13998]
[null,null,null,null,"D0211","Summary",2,"Total Payments",0,12980]
[null,null,null,null,"D0211","Summary",3,"Overpayment",-4559,-4379]
[null,null,null,null,"D0211","Teachers",1,"Regular_teachers",0,0]
[null,null,null,null,"D0211","Teachers",2,"Non_public_equiv",0,0]
[null,null,null,null,"D0211","Teachers",3,"Regular_aides",0,0]
[null,null,null,null,"D0211","Teachers",4,"Regular_fte",0,0]
[null,null,null,null,"D0211","Teachers",5,"Summer_teachers",0,0]
[null,null,null,null,"D0211","Teachers",6,"Summer_aides",0,0]
[null,null,null,null,"D0211","Teachers",7,"Summer_fte",0,0]
[null,null,null,null,"D0211","Teachers",8,"Entitlement_perfte",30800,31670]
[null,null,null,null,"D0211","Teachers",9,"Regular_entitlement",0,0]
[null,null,null,null,"D0211","Teachers",10,"Summer_entitlement",0,0]
[null,null,null,null,"D0211","Teachers",11,"Tch_total",0,0]
[null,null,null,null,"D0211","Teachers",12,"Current Entitlement",0,0]
[null,null,null,null,"D0211","Teachers",13,"Current Payment",0,0]
[null,null,null,null,"D0211","Teachers",14,"Supplemental",0,0]
[null,null,null,null,"D0211","Transportation",1,"Salaries",0,0]
[null,null,null,null,"D0211","Transportation",2,"Contracted_services",0,0]
[null,null,null,null,"D0211","Transportation",3,"Insurance",0,643]
[null,null,null,null,"D0211","Transportation",4,"Expend_inLieuOfTrans",0,0]
[null,null,null,null,"D0211","Transportation",5,"Other_expenses",0,630]
[null,null,null,null,"D0211","Transportation",6,"Capital_outlay_fund_equip",0,0]
[null,null,null,null,"D0211","Transportation",7,"Depreciation",0,0]
[null,null,null,null,"D0211","Transportation",8,"Teacher_transportation",0,0]
[null,null,null,null,"D0211","Transportation",9,"Tran_total",0,1273]
[null,null,null,null,"D0211","Transportation",10,"Reimbursements",0,0]
[null,null,null,null,"D0211","Transportation",11,"Net_transportation_costs",0,1273]
[null,null,null,null,"D0211","Transportation",12,"Trans_entitlement_80pcnt",0,1018]
[null,null,null,null,"D0211","Transportation",13,"CarryOver Adjustment",-4559,-5397]
[null,null,null,null,"D0211","Transportation",14,"Transportation Payment",0,0]
[null,null,null,null,"D0211","Transportation",15,"Supplemental",0,0]
[null,null,null,null,"D0212","Adjustments & Carryovers",1,"Carryover",0,0]
[null,null,null,null,"D0212","Adjustments & Carryovers",2,"Refund",0,0]
[null,null,null,null,"D0212","Adjustments & Carryovers",3,"Teacher_Adj",0,0]
[null,null,null,null,"D0212","Adjustments & Carryovers",4,"Transportation_Adj",0,0]
[null,null,null,null,"D0212","Adjustments & Carryovers",5,"Catastrophic_Adj",0,0]
[null,null,null,null,"D0212","Adjustments & Carryovers",6,"Total_Adj",0,0]
[null,null,null,null,"D0212","Catastrophic",1,"Cat_total",0,0]
[null,null,null,null,"D0212","Catastrophic",2,"Cat_Total_students",0,0]
[null,null,null,null,"D0212","Catastrophic",3,"Cat_Netcost",0,0]
[null,null,null,null,"D0212","Catastrophic",4,"Cat_Stateaid",0,0]
[null,null,null,null,"D0212","Catastrophic",5,"Per Student",0,0]
[null,null,null,null,"D0212","Catastrophic",6,"Supplemental",0,0]
[null,null,null,null,"D0212","Medicaid",1,"Medicaid_Students",0,4]
[null,null,null,null,"D0212","Medicaid",2,"Paid",0,2360]
[null,null,null,null,"D0212","Medicaid",3,"Per Student",0,590]
[null,null,null,null,"D0212","Medicaid",4,"Supplemental",0,0]
[null,null,null,null,"D0212","Payments",1,"october",0,0]
[null,null,null,null,"D0212","Payments",2,"December",0,0]
[null,null,null,null,"D0212","Payments",3,"March",0,0]
[null,null,null,null,"D0212","Payments",4,"April",0,0]
[null,null,null,null,"D0212","Payments",5,"June",0,0]
[null,null,null,null,"D0212","Payments",6,"June Total",0,2360]
[null,null,null,null,"D0212","Payments",7,"Supplemental",0,0]
[null,null,null,null,"D0212","Summary",1,"Total Entitlement",0,2360]
[null,null,null,null,"D0212","Summary",2,"Total Payments",0,2360]
[null,null,null,null,"D0212","Summary",3,"Overpayment",0,0]
[null,null,null,null,"D0212","Teachers",1,"Regular_teachers",0,0]
[null,null,null,null,"D0212","Teachers",2,"Non_public_equiv",0,0]
[null,null,null,null,"D0212","Teachers",3,"Regular_aides",0,0]
[null,null,null,null,"D0212","Teachers",4,"Regular_fte",0,0]
[null,null,null,null,"D0212","Teachers",5,"Summer_teachers",0,0]
[null,null,null,null,"D0212","Teachers",6,"Summer_aides",0,0]
[null,null,null,null,"D0212","Teachers",7,"Summer_fte",0,0]
[null,null,null,null,"D0212","Teachers",8,"Entitlement_perfte",30800,31670]
[null,null,null,null,"D0212","Teachers",9,"Regular_entitlement",0,0]
[null,null,null,null,"D0212","Teachers",10,"Summer_entitlement",0,0]
[null,null,null,null,"D0212","Teachers",11,"Tch_total",0,0]
[null,null,null,null,"D0212","Teachers",12,"Current Entitlement",0,0]
[null,null,null,null,"D0212","Teachers",13,"Current Payment",0,0]
[null,null,null,null,"D0212","Teachers",14,"Supplemental",0,0]
[null,null,null,null,"D0212","Transportation",1,"Salaries",0,0]
[null,null,null,null,"D0212","Transportation",2,"Contracted_services",0,0]
[null,null,null,null,"D0212","Transportation",3,"Insurance",0,0]
[null,null,null,null,"D0212","Transportation",4,"Expend_inLieuOfTrans",0,0]
[null,null,null,null,"D0212","Transportation",5,"Other_expenses",0,0]
[null,null,null,null,"D0212","Transportation",6,"Capital_outlay_fund_equip",0,0]
[null,null,null,null,"D0212","Transportation",7,"Depreciation",0,0]
[null,null,null,null,"D0212","Transportation",8,"Teacher_transportation",0,0]
[null,null,null,null,"D0212","Transportation",9,"Tran_total",0,0]
[null,null,null,null,"D0212","Transportation",10,"Reimbursements",0,0]
[null,null,null,null,"D0212","Transportation",11,"Net_transportation_costs",0,0]
[null,null,null,null,"D0212","Transportation",12,"Trans_entitlement_80pcnt",0,0]
[null,null,null,null,"D0212","Transportation",13,"CarryOver Adjustment",0,0]
[null,null,null,null,"D0212","Transportation",14,"Transportation Payment",0,0]
[null,null,null,null,"D0212","Transportation",15,"Supplemental",0,0]
[null,null,null,null,"D0214","Adjustments & Carryovers",1,"Carryover",0,0]
[null,null,null,null,"D0214","Adjustments & Carryovers",2,"Refund",0,0]
[null,null,null,null,"D0214","Adjustments & Carryovers",3,"Teacher_Adj",0,0]
[null,null,null,null,"D0214","Adjustments & Carryovers",4,"Transportation_Adj",0,0]
[null,null,null,null,"D0214","Adjustments & Carryovers",5,"Catastrophic_Adj",0,0]
[null,null,null,null,"D0214","Adjustments & Carryovers",6,"Total_Adj",0,0]
[null,null,null,null,"D0214","Catastrophic",1,"Cat_total",0,0]
[null,null,null,null,"D0214","Catastrophic",2,"Cat_Total_students",0,0]
[null,null,null,null,"D0214","Catastrophic",3,"Cat_Netcost",0,0]
[null,null,null,null,"D0214","Catastrophic",4,"Cat_Stateaid",0,0]
[null,null,null,null,"D0214","Catastrophic",5,"Per Student",0,0]
[null,null,null,null,"D0214","Catastrophic",6,"Supplemental",0,0]
[null,null,null,null,"D0214","Medicaid",1,"Medicaid_Students",0,55]
[null,null,null,null,"D0214","Medicaid",2,"Paid",0,32450]
[null,null,null,null,"D0214","Medicaid",3,"Per Student",0,590]
[null,null,null,null,"D0214","Medicaid",4,"Supplemental",0,0]
[null,null,null,null,"D0214","Payments",1,"October",0,0]
[null,null,null,null,"D0214","Payments",2,"December",0,0]
[null,null,null,null,"D0214","Payments",3,"March",0,0]
[null,null,null,null,"D0214","Payments",4,"April",0,0]
[null,null,null,null,"D0214","Payments",5,"June",0,0]
[null,null,null,null,"D0214","Payments",6,"June Total",0,42037]
[null,null,null,null,"D0214","Payments",7,"Supplemental",0,0]
[null,null,null,null,"D0214","Summary",1,"Total Entitlement",0,42037]
[null,null,null,null,"D0214","Summary",2,"Total Payments",0,42037]
[null,null,null,null,"D0214","Summary",3,"Overpayment",0,0]
[null,null,null,null,"D0214","Teachers",1,"Regular_teachers",0,0]
[null,null,null,null,"D0214","Teachers",2,"Non_public_equiv",0,0]
[null,null,null,null,"D0214","Teachers",3,"Regular_aides",0,0]
[null,null,null,null,"D0214","Teachers",4,"Regular_fte",0,0]
[null,null,null,null,"D0214","Teachers",5,"Summer_teachers",0,0]
[null,null,null,null,"D0214","Teachers",6,"Summer_aides",0,0]
[null,null,null,null,"D0214","Teachers",7,"Summer_fte",0,0]
[null,null,null,null,"D0214","Teachers",8,"Entitlement_perfte",30800,31670]
[null,null,null,null,"D0214","Teachers",9,"Regular_entitlement",0,0]
[null,null,null,null,"D0214","Teachers",10,"Summer_entitlement",0,0]
[null,null,null,null,"D0214","Teachers",11,"Tch_total",0,0]
[null,null,null,null,"D0214","Teachers",12,"Current Entitlement",0,0]
[null,null,null,null,"D0214","Teachers",13,"Current Payment",0,0]
[null,null,null,null,"D0214","Teachers",14,"Supplemental",0,0]
[null,null,null,null,"D0214","Transportation",1,"Salaries",0,1082]
[null,null,null,null,"D0214","Transportation",2,"Contracted_services",0,0]
[null,null,null,null,"D0214","Transportation",3,"Insurance",0,55]
[null,null,null,null,"D0214","Transportation",4,"Expend_inLieuOfTrans",0,0]
[null,null,null,null,"D0214","Transportation",5,"Other_expenses",0,10847]
[null,null,null,null,"D0214","Transportation",6,"Capital_outlay_fund_equip",0,0]
[null,null,null,null,"D0214","Transportation",7,"Depreciation",0,0]
[null,null,null,null,"D0214","Transportation",8,"Teacher_transportation",0,0]
[null,null,null,null,"D0214","Transportation",9,"Tran_total",0,11984]
[null,null,null,null,"D0214","Transportation",10,"Reimbursements",0,0]
[null,null,null,null,"D0214","Transportation",11,"Net_transportation_costs",0,11984]
[null,null,null,null,"D0214","Transportation",12,"Trans_entitlement_80pcnt",0,9587]
[null,null,null,null,"D0214","Transportation",13,"CarryOver Adjustment",0,0]
[null,null,null,null,"D0214","Transportation",14,"Transportation Payment",0,9587]
[null,null,null,null,"D0214","Transportation",15,"Supplemental",0,0]
[null,null,null,null,"D0215","Adjustments & Carryovers",1,"Carryover",0,0]
[null,null,null,null,"D0215","Adjustments & Carryovers",2,"Refund",0,0]
[null,null,null,null,"D0215","Adjustments & Carryovers",3,"Teacher_Adj",0,0]
[null,null,null,null,"D0215","Adjustments & Carryovers",4,"Transportation_Adj",0,0]
[null,null,null,null,"D0215","Adjustments & Carryovers",5,"Catastrophic_Adj",0,0]
[null,null,null,null,"D0215","Adjustments & Carryovers",6,"Total_Adj",0,0]
[null,null,null,null,"D0215","Catastrophic",1,"Cat_total",0,0]
[null,null,null,null,"D0215","Catastrophic",2,"Cat_Total_students",0,0]
[null,null,null,null,"D0215","Catastrophic",3,"Cat_Netcost",0,0]
[null,null,null,null,"D0215","Catastrophic",4,"Cat_Stateaid",0,0]
[null,null,null,null,"D0215","Catastrophic",5,"Per Student",0,0]
[null,null,null,null,"D0215","Catastrophic",6,"Supplemental",0,0]
[null,null,null,null,"D0215","Medicaid",1,"Medicaid_Students",0,7]
[null,null,null,null,"D0215","Medicaid",2,"Paid",0,4130]
[null,null,null,null,"D0215","Medicaid",3,"Per Student",0,590]
[null,null,null,null,"D0215","Medicaid",4,"Supplemental",0,0]
[null,null,null,null,"D0215","Payments",1,"october",0,0]
[null,null,null,null,"D0215","Payments",2,"December",0,0]
[null,null,null,null,"D0215","Payments",3,"March",0,0]
[null,null,null,null,"D0215","Payments",4,"April",0,0]
[null,null,null,null,"D0215","Payments",5,"June",0,0]
[null,null,null,null,"D0215","Payments",6,"June Total",0,4130]
[null,null,null,null,"D0215","Payments",7,"Supplemental",0,0]
[null,null,null,null,"D0215","Summary",1,"Total Entitlement",0,4130]
[null,null,null,null,"D0215","Summary",2,"Total Payments",0,4130]
[null,null,null,null,"D0215","Summary",3,"Overpayment",0,0]
[null,null,null,null,"D0215","Teachers",1,"Regular_teachers",0,0]
[null,null,null,null,"D0215","Teachers",2,"Non_public_equiv",0,0]
[null,null,null,null,"D0215","Teachers",3,"Regular_aides",0,0]
[null,null,null,null,"D0215","Teachers",4,"Regular_fte",0,0]
[null,null,null,null,"D0215","Teachers",5,"Summer_teachers",0,0]
[null,null,null,null,"D0215","Teachers",6,"Summer_aides",0,0]
[null,null,null,null,"D0215","Teachers",7,"Summer_fte",0,0]
[null,null,null,null,"D0215","Teachers",8,"Entitlement_perfte",30800,31670]
[null,null,null,null,"D0215","Teachers",9,"Regular_entitlement",0,0]
[null,null,null,null,"D0215","Teachers",10,"Summer_entitlement",0,0]
[null,null,null,null,"D0215","Teachers",11,"Tch_total",0,0]
[null,null,null,null,"D0215","Teachers",12,"Current Entitlement",0,0]
[null,null,null,null,"D0215","Teachers",13,"Current Payment",0,0]
[null,null,null,null,"D0215","Teachers",14,"Supplemental",0,0]
[null,null,null,null,"D0215","Transportation",1,"Salaries",0,0]
[null,null,null,null,"D0215","Transportation",2,"Contracted_services",0,0]
[null,null,null,null,"D0215","Transportation",3,"Insurance",0,0]
[null,null,null,null,"D0215","Transportation",4,"Expend_inLieuOfTrans",0,0]
[null,null,null,null,"D0215","Transportation",5,"Other_expenses",0,0]
[null,null,null,null,"D0215","Transportation",6,"Capital_outlay_fund_equip",0,0]
[null,null,null,null,"D0215","Transportation",7,"Depreciation",0,0]
[null,null,null,null,"D0215","Transportation",8,"Teacher_transportation",0,0]
[null,null,null,null,"D0215","Transportation",9,"Tran_total",0,0]
[null,null,null,null,"D0215","Transportation",10,"Reimbursements",0,0]
[null,null,null,null,"D0215","Transportation",11,"Net_transportation_costs",0,0]
[null,null,null,null,"D0215","Transportation",12,"Trans_entitlement_80pcnt",0,0]
[null,null,null,null,"D0215","Transportation",13,"CarryOver Adjustment",0,0]
[null,null,null,null,"D0215","Transportation",14,"Transportation Payment",0,0]
[null,null,null,null,"D0215","Transportation",15,"Supplemental",0,0]
[null,null,null,null,"D0216","Adjustments & Carryovers",1,"Carryover",-3946,-4000]
[null,null,null,null,"D0216","Adjustments & Carryovers",2,"Refund",0,0]
[null,null,null,null,"D0216","Adjustments & Carryovers",3,"Teacher_Adj",0,0]
[null,null,null,null,"D0216","Adjustments & Carryovers",4,"Transportation_Adj",0,0]
[null,null,null,null,"D0216","Adjustments & Carryovers",5,"Catastrophic_Adj",0,0]
[null,null,null,null,"D0216","Adjustments & Carryovers",6,"Total_Adj",-3946,-4000]
[null,null,null,null,"D0216","Catastrophic",1,"Cat_total",0,0]
[null,null,null,null,"D0216","Catastrophic",2,"Cat_Total_students",0,0]
[null,null,null,null,"D0216","Catastrophic",3,"Cat_Netcost",0,0]
[null,null,null,null,"D0216","Catastrophic",4,"Cat_Stateaid",0,0]
[null,null,null,null,"D0216","Catastrophic",5,"Per Student",0,0]
[null,null,null,null,"D0216","Catastrophic",6,"Supplemental",0,0]
[null,null,null,null,"D0216","Medicaid",1,"Medicaid_Students",0,6]
[null,null,null,null,"D0216","Medicaid",2,"Paid",0,3540]
[null,null,null,null,"D0216","Medicaid",3,"Per Student",0,590]
[null,null,null,null,"D0216","Medicaid",4,"Supplemental",0,0]
[null,null,null,null,"D0216","Payments",1,"October",0,0]
[null,null,null,null,"D0216","Payments",2,"December",0,0]
[null,null,null,null,"D0216","Payments",3,"March",0,0]
[null,null,null,null,"D0216","Payments",4,"April",0,0]
[null,null,null,null,"D0216","Payments",5,"June",0,0]
[null,null,null,null,"D0216","Payments",6,"June Total",0,3540]
[null,null,null,null,"D0216","Payments",7,"Supplemental",0,0]
[null,null,null,null,"D0216","Summary",1,"Total Entitlement",0,3594]
[null,null,null,null,"D0216","Summary",2,"Total Payments",0,3540]
[null,null,null,null,"D0216","Summary",3,"Overpayment",-3946,-3946]
[null,null,null,null,"D0216","Teachers",1,"Regular_teachers",0,0]
[null,null,null,null,"D0216","Teachers",2,"Non_public_equiv",0,0]
[null,null,null,null,"D0216","Teachers",3,"Regular_aides",0,0]
[null,null,null,null,"D0216","Teachers",4,"Regular_fte",0,0]
[null,null,null,null,"D0216","Teachers",5,"Summer_teachers",0,0]
[null,null,null,null,"D0216","Teachers",6,"Summer_aides",0,0]
[null,null,null,null,"D0216","Teachers",7,"Summer_fte",0,0]
[null,null,null,null,"D0216","Teachers",8,"Entitlement_perfte",30800,31670]
[null,null,null,null,"D0216","Teachers",9,"Regular_entitlement",0,0]
[null,null,null,null,"D0216","Teachers",10,"Summer_entitlement",0,0]
[null,null,null,null,"D0216","Teachers",11,"Tch_total",0,0]
[null,null,null,null,"D0216","Teachers",12,"Current Entitlement",0,0]
[null,null,null,null,"D0216","Teachers",13,"Current Payment",0,0]
[null,null,null,null,"D0216","Teachers",14,"Supplemental",0,0]
[null,null,null,null,"D0216","Transportation",1,"Salaries",0,0]
[null,null,null,null,"D0216","Transportation",2,"Contracted_services",0,0]
[null,null,null,null,"D0216","Transportation",3,"Insurance",0,0]
[null,null,null,null,"D0216","Transportation",4,"Expend_inLieuOfTrans",0,0]
[null,null,null,null,"D0216","Transportation",5,"Other_expenses",0,0]
[null,null,null,null,"D0216","Transportation",6,"Capital_outlay_fund_equip",0,0]
[null,null,null,null,"D0216","Transportation",7,"Depreciation",0,67]
[null,null,null,null,"D0216","Transportation",8,"Teacher_transportation",0,0]
[null,null,null,null,"D0216","Transportation",9,"Tran_total",0,67]
[null,null,null,null,"D0216","Transportation",10,"Reimbursements",0,0]
[null,null,null,null,"D0216","Transportation",11,"Net_transportation_costs",0,67]
[null,null,null,null,"D0216","Transportation",12,"Trans_entitlement_80pcnt",0,54]
[null,null,null,null,"D0216","Transportation",13,"CarryOver Adjustment",-3946,-4000]
[null,null,null,null,"D0216","Transportation",14,"Transportation Payment",0,0]
[null,null,null,null,"D0216","Transportation",15,"Supplemental",0,0]
[null,null,null,null,"D0217","Adjustments & Carryovers",1,"Carryover",0,0]
[null,null,null,null,"D0217","Adjustments & Carryovers",2,"Refund",0,0]
[null,null,null,null,"D0217","Adjustments & Carryovers",3,"Teacher_Adj",0,0]
[null,null,null,null,"D0217","Adjustments & Carryovers",4,"Transportation_Adj",0,0]
[null,null,null,null,"D0217","Adjustments & Carryovers",5,"Catastrophic_Adj",0,0]
[null,null,null,null,"D0217","Adjustments & Carryovers",6,"Total_Adj",0,0]
[null,null,null,null,"D0217","Catastrophic",1,"Cat_total",0,0]
[null,null,null,null,"D0217","Catastrophic",2,"Cat_Total_students",0,0]
[null,null,null,null,"D0217","Catastrophic",3,"Cat_Netcost",0,0]
[null,null,null,null,"D0217","Catastrophic",4,"Cat_Stateaid",0,0]
[null,null,null,null,"D0217","Catastrophic",5,"Per Student",0,0]
[null,null,null,null,"D0217","Catastrophic",6,"Supplemental",0,0]
[null,null,null,null,"D0217","Medicaid",1,"Medicaid_Students",0,1]
[null,null,null,null,"D0217","Medicaid",2,"Paid",0,590]
[null,null,null,null,"D0217","Medicaid",3,"Per Student",0,590]
[null,null,null,null,"D0217","Medicaid",4,"Supplemental",0,0]
[null,null,null,null,"D0217","Payments",1,"october",0,0]
[null,null,null,null,"D0217","Payments",2,"December",0,0]
[null,null,null,null,"D0217","Payments",3,"March",0,0]
[null,null,null,null,"D0217","Payments",4,"April",0,0]
[null,null,null,null,"D0217","Payments",5,"June",0,0]
[null,null,null,null,"D0217","Payments",6,"June Total",0,590]
[null,null,null,null,"D0217","Payments",7,"Supplemental",0,0]
[null,null,null,null,"D0217","Summary",1,"Total Entitlement",0,590]
[null,null,null,null,"D0217","Summary",2,"Total Payments",0,590]
[null,null,null,null,"D0217","Summary",3,"Overpayment",0,0]
[null,null,null,null,"D0217","Teachers",1,"Regular_teachers",0,0]
[null,null,null,null,"D0217","Teachers",2,"Non_public_equiv",0,0]
[null,null,null,null,"D0217","Teachers",3,"Regular_aides",0,0]
[null,null,null,null,"D0217","Teachers",4,"Regular_fte",0,0]
[null,null,null,null,"D0217","Teachers",5,"Summer_teachers",0,0]
[null,null,null,null,"D0217","Teachers",6,"Summer_aides",0,0]
[null,null,null,null,"D0217","Teachers",7,"Summer_fte",0,0]
[null,null,null,null,"D0217","Teachers",8,"Entitlement_perfte",30800,31670]
[null,null,null,null,"D0217","Teachers",9,"Regular_entitlement",0,0]
[null,null,null,null,"D0217","Teachers",10,"Summer_entitlement",0,0]
[null,null,null,null,"D0217","Teachers",11,"Tch_total",0,0]
[null,null,null,null,"D0217","Teachers",12,"Current Entitlement",0,0]
[null,null,null,null,"D0217","Teachers",13,"Current Payment",0,0]
[null,null,null,null,"D0217","Teachers",14,"Supplemental",0,0]
[null,null,null,null,"D0217","Transportation",1,"Salaries",0,0]
[null,null,null,null,"D0217","Transportation",2,"Contracted_services",0,0]
[null,null,null,null,"D0217","Transportation",3,"Insurance",0,0]
[null,null,null,null,"D0217","Transportation",4,"Expend_inLieuOfTrans",0,0]
[null,null,null,null,"D0217","Transportation",5,"Other_expenses",0,0]
[null,null,null,null,"D0217","Transportation",6,"Capital_outlay_fund_equip",0,0]
[null,null,null,null,"D0217","Transportation",7,"Depreciation",0,0]
[null,null,null,null,"D0217","Transportation",8,"Teacher_transportation",0,0]
[null,null,null,null,"D0217","Transportation",9,"Tran_total",0,0]
[null,null,null,null,"D0217","Transportation",10,"Reimbursements",0,0]
[null,null,null,null,"D0217","Transportation",11,"Net_transportation_costs",0,0]
[null,null,null,null,"D0217","Transportation",12,"Trans_entitlement_80pcnt",0,0]
[null,null,null,null,"D0217","Transportation",13,"CarryOver Adjustment",0,0]
[null,null,null,null,"D0217","Transportation",14,"Transportation Payment",0,0]
[null,null,null,null,"D0217","Transportation",15,"Supplemental",0,0]
[null,null,null,null,"D0218","Adjustments & Carryovers",1,"Carryover",0,0]
[null,null,null,null,"D0218","Adjustments & Carryovers",2,"Refund",0,0]
[null,null,null,null,"D0218","Adjustments & Carryovers",3,"Teacher_Adj",0,0]
[null,null,null,null,"D0218","Adjustments & Carryovers",4,"Transportation_Adj",0,0]
[null,null,null,null,"D0218","Adjustments & Carryovers",5,"Catastrophic_Adj",0,0]
[null,null,null,null,"D0218","Adjustments & Carryovers",6,"Total_Adj",0,0]
[null,null,null,null,"D0218","Catastrophic",1,"Cat_total",0,0]
[null,null,null,null,"D0218","Catastrophic",2,"Cat_Total_students",0,0]
[null,null,null,null,"D0218","Catastrophic",3,"Cat_Netcost",0,0]
[null,null,null,null,"D0218","Catastrophic",4,"Cat_Stateaid",0,0]
[null,null,null,null,"D0218","Catastrophic",5,"Per Student",0,0]
[null,null,null,null,"D0218","Catastrophic",6,"Supplemental",0,0]
[null,null,null,null,"D0218","Medicaid",1,"Medicaid_Students",0,3]
[null,null,null,null,"D0218","Medicaid",2,"Paid",0,1770]
[null,null,null,null,"D0218","Medicaid",3,"Per Student",0,590]
[null,null,null,null,"D0218","Medicaid",4,"Supplemental",0,0]
[null,null,null,null,"D0218","Payments",1,"October",0,0]
[null,null,null,null,"D0218","Payments",2,"December",0,0]
[null,null,null,null,"D0218","Payments",3,"March",0,0]
[null,null,null,null,"D0218","Payments",4,"April",0,0]
[null,null,null,null,"D0218","Payments",5,"June",0,0]
[null,null,null,null,"D0218","Payments",6,"June Total",0,2348]
[null,null,null,null,"D0218","Payments",7,"Supplemental",0,0]
[null,null,null,null,"D0218","Summary",1,"Total Entitlement",0,2348]
[null,null,null,null,"D0218","Summary",2,"Total Payments",0,2348]
[null,null,null,null,"D0218","Summary",3,"Overpayment",0,0]
[null,null,null,null,"D0218","Teachers",1,"Regular_teachers",0,0]
[null,null,null,null,"D0218","Teachers",2,"Non_public_equiv",0,0]
[null,null,null,null,"D0218","Teachers",3,"Regular_aides",0,0]
[null,null,null,null,"D0218","Teachers",4,"Regular_fte",0,0]
[null,null,null,null,"D0218","Teachers",5,"Summer_teachers",0,0]
[null,null,null,null,"D0218","Teachers",6,"Summer_aides",0,0]
[null,null,null,null,"D0218","Teachers",7,"Summer_fte",0,0]
[null,null,null,null,"D0218","Teachers",8,"Entitlement_perfte",30800,31670]
[null,null,null,null,"D0218","Teachers",9,"Regular_entitlement",0,0]
[null,null,null,null,"D0218","Teachers",10,"Summer_entitlement",0,0]
[null,null,null,null,"D0218","Teachers",11,"Tch_total",0,0]
[null,null,null,null,"D0218","Teachers",12,"Current Entitlement",0,0]
[null,null,null,null,"D0218","Teachers",13,"Current Payment",0,0]
[null,null,null,null,"D0218","Teachers",14,"Supplemental",0,0]
[null,null,null,null,"D0218","Transportation",1,"Salaries",0,0]
[null,null,null,null,"D0218","Transportation",2,"Contracted_services",0,0]
[null,null,null,null,"D0218","Transportation",3,"Insurance",0,723]
[null,null,null,null,"D0218","Transportation",4,"Expend_inLieuOfTrans",0,0]
[null,null,null,null,"D0218","Transportation",5,"Other_expenses",0,0]
[null,null,null,null,"D0218","Transportation",6,"Capital_outlay_fund_equip",0,0]
[null,null,null,null,"D0218","Transportation",7,"Depreciation",0,0]
[null,null,null,null,"D0218","Transportation",8,"Teacher_transportation",0,0]
[null,null,null,null,"D0218","Transportation",9,"Tran_total",0,723]
[null,null,null,null,"D0218","Transportation",10,"Reimbursements",0,0]
[null,null,null,null,"D0218","Transportation",11,"Net_transportation_costs",0,723]
[null,null,null,null,"D0218","Transportation",12,"Trans_entitlement_80pcnt",0,578]
[null,null,null,null,"D0218","Transportation",13,"CarryOver Adjustment",0,0]
[null,null,null,null,"D0218","Transportation",14,"Transportation Payment",0,578]
[null,null,null,null,"D0218","Transportation",15,"Supplemental",0,0]
[null,null,null,null,"D0219","Adjustments & Carryovers",1,"Carryover",0,0]
[null,null,null,null,"D0219","Adjustments & Carryovers",2,"Refund",0,0]
[null,null,null,null,"D0219","Adjustments & Carryovers",3,"Teacher_Adj",0,0]
[null,null,null,null,"D0219","Adjustments & Carryovers",4,"Transportation_Adj",1,-28]
[null,null,null,null,"D0219","Adjustments & Carryovers",5,"Catastrophic_Adj",0,0]
[null,null,null,null,"D0219","Adjustments & Carryovers",6,"Total_Adj",0,-28]
[null,null,null,null,"D0219","Catastrophic",1,"Cat_total",0,0]
[null,null,null,null,"D0219","Catastrophic",2,"Cat_Total_students",0,0]
[null,null,null,null,"D0219","Catastrophic",3,"Cat_Netcost",0,0]
[null,null,null,null,"D0219","Catastrophic",4,"Cat_Stateaid",0,0]
[null,null,null,null,"D0219","Catastrophic",5,"Per Student",0,0]
[null,null,null,null,"D0219","Catastrophic",6,"Supplemental",0,0]
[null,null,null,null,"D0219","Medicaid",1,"Medicaid_Students",0,2]
[null,null,null,null,"D0219","Medicaid",2,"Paid",0,1180]
[null,null,null,null,"D0219","Medicaid",3,"Per Student",0,590]
[null,null,null,null,"D0219","Medicaid",4,"Supplemental",0,0]
[null,null,null,null,"D0219","Payments",1,"october",0,0]
[null,null,null,null,"D0219","Payments",2,"December",0,0]
[null,null,null,null,"D0219","Payments",3,"March",0,0]
[null,null,null,null,"D0219","Payments",4,"April",0,0]
[null,null,null,null,"D0219","Payments",5,"June",0,0]
[null,null,null,null,"D0219","Payments",6,"June Total",0,2933]
[null,null,null,null,"D0219","Payments",7,"Supplemental",0,0]
[null,null,null,null,"D0219","Summary",1,"Total Entitlement",0,2961]
[null,null,null,null,"D0219","Summary",2,"Total Payments",0,2933]
[null,null,null,null,"D0219","Summary",3,"Overpayment",0,0]
[null,null,null,null,"D0219","Teachers",1,"Regular_teachers",0,0]
[null,null,null,null,"D0219","Teachers",2,"Non_public_equiv",0,0]
[null,null,null,null,"D0219","Teachers",3,"Regular_aides",0,0]
[null,null,null,null,"D0219","Teachers",4,"Regular_fte",0,0]
[null,null,null,null,"D0219","Teachers",5,"Summer_teachers",0,0]
[null,null,null,null,"D0219","Teachers",6,"Summer_aides",0,0]
[null,null,null,null,"D0219","Teachers",7,"Summer_fte",0,0]
[null,null,null,null,"D0219","Teachers",8,"Entitlement_perfte",30800,31670]
[null,null,null,null,"D0219","Teachers",9,"Regular_entitlement",0,0]
[null,null,null,null,"D0219","Teachers",10,"Summer_entitlement",0,0]
[null,null,null,null,"D0219","Teachers",11,"Tch_total",0,0]
[null,null,null,null,"D0219","Teachers",12,"Current Entitlement",0,0]
[null,null,null,null,"D0219","Teachers",13,"Current Payment",0,0]
[null,null,null,null,"D0219","Teachers",14,"Supplemental",0,0]
[null,null,null,null,"D0219","Transportation",1,"Salaries",0,0]
[null,null,null,null,"D0219","Transportation",2,"Contracted_services",0,0]
[null,null,null,null,"D0219","Transportation",3,"Insurance",0,695]
[null,null,null,null,"D0219","Transportation",4,"Expend_inLieuOfTrans",0,0]
[null,null,null,null,"D0219","Transportation",5,"Other_expenses",0,293]
[null,null,null,null,"D0219","Transportation",6,"Capital_outlay_fund_equip",0,0]
[null,null,null,null,"D0219","Transportation",7,"Depreciation",0,1238]
[null,null,null,null,"D0219","Transportation",8,"Teacher_transportation",0,0]
[null,null,null,null,"D0219","Transportation",9,"Tran_total",0,2226]
[null,null,null,null,"D0219","Transportation",10,"Reimbursements",0,0]
[null,null,null,null,"D0219","Transportation",11,"Net_transportation_costs",0,2226]
[null,null,null,null,"D0219","Transportation",12,"Trans_entitlement_80pcnt",0,1781]
[null,null,null,null,"D0219","Transportation",13,"CarryOver Adjustment",0,-28]
[null,null,null,null,"D0219","Transportation",14,"Transportation Payment",0,1753]
[null,null,null,null,"D0219","Transportation",15,"Supplemental",0,0]
[null,null,null,null,"D0220","Adjustments & Carryovers",1,"Carryover",0,0]
[null,null,null,null,"D0220","Adjustments & Carryovers",2,"Refund",0,0]
[null,null,null,null,"D0220","Adjustments & Carryovers",3,"Teacher_Adj",0,0]
[null,null,null,null,"D0220","Adjustments & Carryovers",4,"Transportation_Adj",181,-2754]
[null,null,null,null,"D0220","Adjustments & Carryovers",5,"Catastrophic_Adj",0,0]
[null,null,null,null,"D0220","Adjustments & Carryovers",6,"Total_Adj",0,-2754]
[null,null,null,null,"D0220","Catastrophic",1,"Cat_total",0,0]
[null,null,null,null,"D0220","Catastrophic",2,"Cat_Total_students",0,0]
[null,null,null,null,"D0220","Catastrophic",3,"Cat_Netcost",0,0]
[null,null,null,null,"D0220","Catastrophic",4,"Cat_Stateaid",0,0]
[null,null,null,null,"D0220","Catastrophic",5,"Per Student",0,0]
[null,null,null,null,"D0220","Catastrophic",6,"Supplemental",0,0]
[null,null,null,null,"D0220","Medicaid",1,"Medicaid_Students",0,0]
[null,null,null,null,"D0220","Medicaid",2,"Paid",0,0]
[null,null,null,null,"D0220","Medicaid",3,"Per Student",0,0]
[null,null,null,null,"D0220","Medicaid",4,"Supplemental",0,0]
[null,null,null,null,"D0220","Payments",1,"October",0,0]
[null,null,null,null,"D0220","Payments",2,"December",0,0]
[null,null,null,null,"D0220","Payments",3,"March",0,0]
[null,null,null,null,"D0220","Payments",4,"April",0,0]
[null,null,null,null,"D0220","Payments",5,"June",0,0]
[null,null,null,null,"D0220","Payments",6,"June Total",0,4756]
[null,null,null,null,"D0220","Payments",7,"Supplemental",0,0]
[null,null,null,null,"D0220","Summary",1,"Total Entitlement",0,7510]
[null,null,null,null,"D0220","Summary",2,"Total Payments",0,4756]
[null,null,null,null,"D0220","Summary",3,"Overpayment",0,0]
[null,null,null,null,"D0220","Teachers",1,"Regular_teachers",0,0]
[null,null,null,null,"D0220","Teachers",2,"Non_public_equiv",0,0]
[null,null,null,null,"D0220","Teachers",3,"Regular_aides",0,0]
[null,null,null,null,"D0220","Teachers",4,"Regular_fte",0,0]
[null,null,null,null,"D0220","Teachers",5,"Summer_teachers",0,0]
[null,null,null,null,"D0220","Teachers",6,"Summer_aides",0,0]
[null,null,null,null,"D0220","Teachers",7,"Summer_fte",0,0]
[null,null,null,null,"D0220","Teachers",8,"Entitlement_perfte",30800,31670]
[null,null,null,null,"D0220","Teachers",9,"Regular_entitlement",0,0]
[null,null,null,null,"D0220","Teachers",10,"Summer_entitlement",0,0]
[null,null,null,null,"D0220","Teachers",11,"Tch_total",0,0]
[null,null,null,null,"D0220","Teachers",12,"Current Entitlement",0,0]
[null,null,null,null,"D0220","Teachers",13,"Current Payment",0,0]
[null,null,null,null,"D0220","Teachers",14,"Supplemental",0,0]
[null,null,null,null,"D0220","Transportation",1,"Salaries",0,7621]
[null,null,null,null,"D0220","Transportation",2,"Contracted_services",0,0]
[null,null,null,null,"D0220","Transportation",3,"Insurance",0,0]
[null,null,null,null,"D0220","Transportation",4,"Expend_inLieuOfTrans",0,0]
[null,null,null,null,"D0220","Transportation",5,"Other_expenses",0,1500]
[null,null,null,null,"D0220","Transportation",6,"Capital_outlay_fund_equip",0,0]
[null,null,null,null,"D0220","Transportation",7,"Depreciation",0,266]
[null,null,null,null,"D0220","Transportation",8,"Teacher_transportation",0,0]
[null,null,null,null,"D0220","Transportation",9,"Tran_total",0,9387]
[null,null,null,null,"D0220","Transportation",10,"Reimbursements",0,0]
[null,null,null,null,"D0220","Transportation",11,"Net_transportation_costs",0,9387]
[null,null,null,null,"D0220","Transportation",12,"Trans_entitlement_80pcnt",0,7510]
[null,null,null,null,"D0220","Transportation",13,"CarryOver Adjustment",0,-2754]
[null,null,null,null,"D0220","Transportation",14,"Transportation Payment",0,4756]
[null,null,null,null,"D0220","Transportation",15,"Supplemental",0,0]
[null,null,null,null,"D0223","Adjustments & Carryovers",1,"Carryover",0,0]
[null,null,null,null,"D0223","Adjustments & Carryovers",2,"Refund",0,0]
[null,null,null,null,"D0223","Adjustments & Carryovers",3,"Teacher_Adj",0,0]
[null,null,null,null,"D0223","Adjustments & Carryovers",4,"Transportation_Adj",0,-3020]
[null,null,null,null,"D0223","Adjustments & Carryovers",5,"Catastrophic_Adj",0,0]
[null,null,null,null,"D0223","Adjustments & Carryovers",6,"Total_Adj",0,-3020]
[null,null,null,null,"D0223","Catastrophic",1,"Cat_total",0,0]
[null,null,null,null,"D0223","Catastrophic",2,"Cat_Total_students",0,0]
[null,null,null,null,"D0223","Catastrophic",3,"Cat_Netcost",0,0]
[null,null,null,null,"D0223","Catastrophic",4,"Cat_Stateaid",0,0]
[null,null,null,null,"D0223","Catastrophic",5,"Per Student",0,0]
[null,null,null,null,"D0223","Catastrophic",6,"Supplemental",0,0]
[null,null,null,null,"D0223","Medicaid",1,"Medicaid_Students",0,3]
[null,null,null,null,"D0223","Medicaid",2,"Paid",0,1770]
[null,null,null,null,"D0223","Medicaid",3,"Per Student",0,590]
[null,null,null,null,"D0223","Medicaid",4,"Supplemental",0,0]
[null,null,null,null,"D0223","Payments",1,"october",0,0]
[null,null,null,null,"D0223","Payments",2,"December",0,0]
[null,null,null,null,"D0223","Payments",3,"March",0,0]
[null,null,null,null,"D0223","Payments",4,"April",0,0]
[null,null,null,null,"D0223","Payments",5,"June",0,0]
[null,null,null,null,"D0223","Payments",6,"June Total",0,39836]
[null,null,null,null,"D0223","Payments",7,"Supplemental",0,0]
[null,null,null,null,"D0223","Summary",1,"Total Entitlement",0,42856]
[null,null,null,null,"D0223","Summary",2,"Total Payments",0,39836]
[null,null,null,null,"D0223","Summary",3,"Overpayment",0,0]
[null,null,null,null,"D0223","Teachers",1,"Regular_teachers",0,0]
[null,null,null,null,"D0223","Teachers",2,"Non_public_equiv",0,0]
[null,null,null,null,"D0223","Teachers",3,"Regular_aides",0,0]
[null,null,null,null,"D0223","Teachers",4,"Regular_fte",0,0]
[null,null,null,null,"D0223","Teachers",5,"Summer_teachers",0,0]
[null,null,null,null,"D0223","Teachers",6,"Summer_aides",0,0]
[null,null,null,null,"D0223","Teachers",7,"Summer_fte",0,0]
[null,null,null,null,"D0223","Teachers",8,"Entitlement_perfte",30800,31670]
[null,null,null,null,"D0223","Teachers",9,"Regular_entitlement",0,0]
[null,null,null,null,"D0223","Teachers",10,"Summer_entitlement",0,0]
[null,null,null,null,"D0223","Teachers",11,"Tch_total",0,0]
[null,null,null,null,"D0223","Teachers",12,"Current Entitlement",0,0]
[null,null,null,null,"D0223","Teachers",13,"Current Payment",0,0]
[null,null,null,null,"D0223","Teachers",14,"Supplemental",0,0]
[null,null,null,null,"D0223","Transportation",1,"Salaries",0,26000]
[null,null,null,null,"D0223","Transportation",2,"Contracted_services",0,0]
[null,null,null,null,"D0223","Transportation",3,"Insurance",0,5335]
[null,null,null,null,"D0223","Transportation",4,"Expend_inLieuOfTrans",0,0]
[null,null,null,null,"D0223","Transportation",5,"Other_expenses",0,9500]
[null,null,null,null,"D0223","Transportation",6,"Capital_outlay_fund_equip",0,0]
[null,null,null,null,"D0223","Transportation",7,"Depreciation",0,10523]
[null,null,null,null,"D0223","Transportation",8,"Teacher_transportation",0,0]
[null,null,null,null,"D0223","Transportation",9,"Tran_total",0,51358]
[null,null,null,null,"D0223","Transportation",10,"Reimbursements",0,0]
[null,null,null,null,"D0223","Transportation",11,"Net_transportation_costs",0,51358]
[null,null,null,null,"D0223","Transportation",12,"Trans_entitlement_80pcnt",0,41086]
[null,null,null,null,"D0223","Transportation",13,"CarryOver Adjustment",0,-3020]
[null,null,null,null,"D0223","Transportation",14,"Transportation Payment",0,38066]
[null,null,null,null,"D0223","Transportation",15,"Supplemental",0,0]
[null,null,null,null,"D0224","Adjustments & Carryovers",1,"Carryover",0,0]
[null,null,null,null,"D0224","Adjustments & Carryovers",2,"Refund",0,0]
[null,null,null,null,"D0224","Adjustments & Carryovers",3,"Teacher_Adj",0,0]
[null,null,null,null,"D0224","Adjustments & Carryovers",4,"Transportation_Adj",0,-596]
[null,null,null,null,"D0224","Adjustments & Carryovers",5,"Catastrophic_Adj",0,0]
[null,null,null,null,"D0224","Adjustments & Carryovers",6,"Total_Adj",0,-596]
[null,null,null,null,"D0224","Catastrophic",1,"Cat_total",0,0]
[null,null,null,null,"D0224","Catastrophic",2,"Cat_Total_students",0,0]
[null,null,null,null,"D0224","Catastrophic",3,"Cat_Netcost",0,0]
[null,null,null,null,"D0224","Catastrophic",4,"Cat_Stateaid",0,0]
[null,null,null,null,"D0224","Catastrophic",5,"Per Student",0,0]
[null,null,null,null,"D0224","Catastrophic",6,"Supplemental",0,0]
[null,null,null,null,"D0224","Medicaid",1,"Medicaid_Students",0,8]
[null,null,null,null,"D0224","Medicaid",2,"Paid",0,4720]
[null,null,null,null,"D0224","Medicaid",3,"Per Student",0,590]
[null,null,null,null,"D0224","Medicaid",4,"Supplemental",0,0]
[null,null,null,null,"D0224","Payments",1,"October",0,0]
[null,null,null,null,"D0224","Payments",2,"December",0,0]
[null,null,null,null,"D0224","Payments",3,"March",0,0]
[null,null,null,null,"D0224","Payments",4,"April",0,0]
[null,null,null,null,"D0224","Payments",5,"June",0,0]
[null,null,null,null,"D0224","Payments",6,"June Total",0,13371]
[null,null,null,null,"D0224","Payments",7,"Supplemental",0,0]
[null,null,null,null,"D0224","Summary",1,"Total Entitlement",0,13967]
[null,null,null,null,"D0224","Summary",2,"Total Payments",0,13371]
[null,null,null,null,"D0224","Summary",3,"Overpayment",0,0]
[null,null,null,null,"D0224","Teachers",1,"Regular_teachers",0,0]
[null,null,null,null,"D0224","Teachers",2,"Non_public_equiv",0,0]
[null,null,null,null,"D0224","Teachers",3,"Regular_aides",0,0]
[null,null,null,null,"D0224","Teachers",4,"Regular_fte",0,0]
[null,null,null,null,"D0224","Teachers",5,"Summer_teachers",0,0]
[null,null,null,null,"D0224","Teachers",6,"Summer_aides",0,0]
[null,null,null,null,"D0224","Teachers",7,"Summer_fte",0,0]
[null,null,null,null,"D0224","Teachers",8,"Entitlement_perfte",30800,31670]
[null,null,null,null,"D0224","Teachers",9,"Regular_entitlement",0,0]
[null,null,null,null,"D0224","Teachers",10,"Summer_entitlement",0,0]
[null,null,null,null,"D0224","Teachers",11,"Tch_total",0,0]
[null,null,null,null,"D0224","Teachers",12,"Current Entitlement",0,0]
[null,null,null,null,"D0224","Teachers",13,"Current Payment",0,0]
[null,null,null,null,"D0224","Teachers",14,"Supplemental",0,0]
[null,null,null,null,"D0224","Transportation",1,"Salaries",0,7550]
[null,null,null,null,"D0224","Transportation",2,"Contracted_services",0,700]
[null,null,null,null,"D0224","Transportation",3,"Insurance",0,500]
[null,null,null,null,"D0224","Transportation",4,"Expend_inLieuOfTrans",0,0]
[null,null,null,null,"D0224","Transportation",5,"Other_expenses",0,2500]
[null,null,null,null,"D0224","Transportation",6,"Capital_outlay_fund_equip",0,0]
[null,null,null,null,"D0224","Transportation",7,"Depreciation",0,309]
[null,null,null,null,"D0224","Transportation",8,"Teacher_transportation",0,0]
[null,null,null,null,"D0224","Transportation",9,"Tran_total",0,11559]
[null,null,null,null,"D0224","Transportation",10,"Reimbursements",0,0]
[null,null,null,null,"D0224","Transportation",11,"Net_transportation_costs",0,11559]
[null,null,null,null,"D0224","Transportation",12,"Trans_entitlement_80pcnt",0,9247]
[null,null,null,null,"D0224","Transportation",13,"CarryOver Adjustment",0,-596]
[null,null,null,null,"D0224","Transportation",14,"Transportation Payment",0,8651]
[null,null,null,null,"D0224","Transportation",15,"Supplemental",0,0]
[null,null,null,null,"D0225","Adjustments & Carryovers",1,"Carryover",0,0]
[null,null,null,null,"D0225","Adjustments & Carryovers",2,"Refund",0,0]
[null,null,null,null,"D0225","Adjustments & Carryovers",3,"Teacher_Adj",0,0]
[null,null,null,null,"D0225","Adjustments & Carryovers",4,"Transportation_Adj",0,0]
[null,null,null,null,"D0225","Adjustments & Carryovers",5,"Catastrophic_Adj",0,0]
[null,null,null,null,"D0225","Adjustments & Carryovers",6,"Total_Adj",0,0]
[null,null,null,null,"D0225","Catastrophic",1,"Cat_total",0,0]
[null,null,null,null,"D0225","Catastrophic",2,"Cat_Total_students",0,0]
[null,null,null,null,"D0225","Catastrophic",3,"Cat_Netcost",0,0]
[null,null,null,null,"D0225","Catastrophic",4,"Cat_Stateaid",0,0]
[null,null,null,null,"D0225","Catastrophic",5,"Per Student",0,0]
[null,null,null,null,"D0225","Catastrophic",6,"Supplemental",0,0]
[null,null,null,null,"D0225","Medicaid",1,"Medicaid_Students",0,0]
[null,null,null,null,"D0225","Medicaid",2,"Paid",0,0]
[null,null,null,null,"D0225","Medicaid",3,"Per Student",0,0]
[null,null,null,null,"D0225","Medicaid",4,"Supplemental",0,0]
[null,null,null,null,"D0225","Payments",1,"october",0,0]
[null,null,null,null,"D0225","Payments",2,"December",0,0]
[null,null,null,null,"D0225","Payments",3,"March",0,0]
[null,null,null,null,"D0225","Payments",4,"April",0,0]
[null,null,null,null,"D0225","Payments",5,"June",0,0]
[null,null,null,null,"D0225","Payments",6,"June Total",0,0]
[null,null,null,null,"D0225","Payments",7,"Supplemental",0,0]
[null,null,null,null,"D0225","Summary",1,"Total Entitlement",0,0]
[null,null,null,null,"D0225","Summary",2,"Total Payments",0,0]
[null,null,null,null,"D0225","Summary",3,"Overpayment",0,0]
[null,null,null,null,"D0225","Teachers",1,"Regular_teachers",0,0]
[null,null,null,null,"D0225","Teachers",2,"Non_public_equiv",0,0]
[null,null,null,null,"D0225","Teachers",3,"Regular_aides",0,0]
[null,null,null,null,"D0225","Teachers",4,"Regular_fte",0,0]
[null,null,null,null,"D0225","Teachers",5,"Summer_teachers",0,0]
[null,null,null,null,"D0225","Teachers",6,"Summer_aides",0,0]
[null,null,null,null,"D0225","Teachers",7,"Summer_fte",0,0]
[null,null,null,null,"D0225","Teachers",8,"Entitlement_perfte",30800,31670]
[null,null,null,null,"D0225","Teachers",9,"Regular_entitlement",0,0]
[null,null,null,null,"D0225","Teachers",10,"Summer_entitlement",0,0]
[null,null,null,null,"D0225","Teachers",11,"Tch_total",0,0]
[null,null,null,null,"D0225","Teachers",12,"Current Entitlement",0,0]
[null,null,null,null,"D0225","Teachers",13,"Current Payment",0,0]
[null,null,null,null,"D0225","Teachers",14,"Supplemental",0,0]
[null,null,null,null,"D0225","Transportation",1,"Salaries",0,0]
[null,null,null,null,"D0225","Transportation",2,"Contracted_services",0,0]
[null,null,null,null,"D0225","Transportation",3,"Insurance",0,0]
[null,null,null,null,"D0225","Transportation",4,"Expend_inLieuOfTrans",0,0]
[null,null,null,null,"D0225","Transportation",5,"Other_expenses",0,0]
[null,null,null,null,"D0225","Transportation",6,"Capital_outlay_fund_equip",0,0]
[null,null,null,null,"D0225","Transportation",7,"Depreciation",0,0]
[null,null,null,null,"D0225","Transportation",8,"Teacher_transportation",0,0]
[null,null,null,null,"D0225","Transportation",9,"Tran_total",0,0]
[null,null,null,null,"D0225","Transportation",10,"Reimbursements",0,0]
[null,null,null,null,"D0225","Transportation",11,"Net_transportation_costs",0,0]
[null,null,null,null,"D0225","Transportation",12,"Trans_entitlement_80pcnt",0,0]
[null,null,null,null,"D0225","Transportation",13,"CarryOver Adjustment",0,0]
[null,null,null,null,"D0225","Transportation",14,"Transportation Payment",0,0]
[null,null,null,null,"D0225","Transportation",15,"Supplemental",0,0]
[null,null,null,null,"D0226","Adjustments & Carryovers",1,"Carryover",0,-3553]
[null,null,null,null,"D0226","Adjustments & Carryovers",2,"Refund",0,0]
[null,null,null,null,"D0226","Adjustments & Carryovers",3,"Teacher_Adj",0,0]
[null,null,null,null,"D0226","Adjustments & Carryovers",4,"Transportation_Adj",0,0]
[null,null,null,null,"D0226","Adjustments & Carryovers",5,"Catastrophic_Adj",0,0]
[null,null,null,null,"D0226","Adjustments & Carryovers",6,"Total_Adj",0,-3553]
[null,null,null,null,"D0226","Catastrophic",1,"Cat_total",0,0]
[null,null,null,null,"D0226","Catastrophic",2,"Cat_Total_students",0,0]
[null,null,null,null,"D0226","Catastrophic",3,"Cat_Netcost",0,0]
[null,null,null,null,"D0226","Catastrophic",4,"Cat_Stateaid",0,0]
[null,null,null,null,"D0226","Catastrophic",5,"Per Student",0,0]
[null,null,null,null,"D0226","Catastrophic",6,"Supplemental",0,0]
[null,null,null,null,"D0226","Medicaid",1,"Medicaid_Students",0,2]
[null,null,null,null,"D0226","Medicaid",2,"Paid",0,1180]
[null,null,null,null,"D0226","Medicaid",3,"Per Student",0,590]
[null,null,null,null,"D0226","Medicaid",4,"Supplemental",0,0]
[null,null,null,null,"D0226","Payments",1,"October",0,0]
[null,null,null,null,"D0226","Payments",2,"December",0,0]
[null,null,null,null,"D0226","Payments",3,"March",0,0]
[null,null,null,null,"D0226","Summary",1,"Total Entitlement",0,14570]
[null,null,null,null,"D0226","Teachers",3,"Regular_aides",0,0]
[null,null,null,null,"D0226","Teachers",11,"Tch_total",0,0]
[null,null,null,null,"D0226","Transportation",2,"Contracted_services",0,700]
[null,null,null,null,"D0226","Transportation",13,"CarryOver Adjustment",0,-3553]
[null,null,null,null,"D0227","Adjustments & Carryovers",4,"Transportation_Adj",0,0]
[null,null,null,null,"D0227","Catastrophic",3,"Cat_Netcost",0,0]
[null,null,null,null,"D0227","Payments",1,"october",0,0]
[null,null,null,null,"D0227","Payments",7,"Supplemental",0,0]
[null,null,null,null,"D0227","Teachers",5,"Summer_teachers",0,0]
[null,null,null,null,"D0227","Teachers",13,"Current Payment",0,0]
[null,null,null,null,"D0227","Transportation",4,"Expend_inLieuOfTrans",0,0]
[null,null,null,null,"D0227","Transportation",12,"Trans_entitlement_80pcnt",0,0]
[null,null,null,null,"D0229","Catastrophic",3,"Cat_Netcost",0,224369]
[null,null,null,null,"D0229","Catastrophic",5,"Per Student",0,63830]
[null,null,null,null,"D0229","Payments",3,"March",3525414,3367179]
[null,null,null,null,"D0229","Teachers",5,"Summer_teachers",9.3000000000000007,8.5399999999999991]
[null,null,null,null,"D0229","Teachers",8,"Entitlement_perfte",30800,31670]
[null,null,null,null,"D0229","Transportation",1,"Salaries",0,0]
[null,null,null,null,"D0229","Transportation",13,"CarryOver Adjustment",0,0]
[null,null,null,null,"D0229","Transportation",14,"Transportation Payment",0,6894910]
[null,null,null,null,"D0230","Catastrophic",5,"Per Student",0,63830]
[null,null,null,null,"D0230","Payments",4,"April",659761,637813]
[null,null,null,null,"D0230","Payments",5,"June",0,657557]
[null,null,null,null,"D0230","Teachers",7,"Summer_fte",1.02,0.88]
[null,null,null,null,"D0230","Transportation",1,"Salaries",0,0]
[null,null,null,null,"D0230","Transportation",5,"Other_expenses",0,10000]
[null,null,null,null,"D0230","Transportation",15,"Supplemental",0,0]
[null,null,null,null,"D0231","Catastrophic",2,"Cat_Total_students",0,5]
[null,null,null,null,"D0231","Medicaid",1,"Medicaid_Students",0,178]
[null,null,null,null,"D0231","Payments",5,"June",0,1111266]
[null,null,null,null,"D0231","Payments",7,"Supplemental",0,0]
[null,null,null,null,"D0231","Teachers",9,"Regular_entitlement",5945632,5883653]
[null,null,null,null,"D0231","Transportation",3,"Insurance",0,2933]
[null,null,null,null,"D0231","Transportation",11,"Net_transportation_costs",0,3681167]
[null,null,null,null,"D0232","Adjustments & Carryovers",1,"Carryover",0,0]
[null,null,null,null,"D0232","Catastrophic",4,"Cat_Stateaid",0,0]
[null,null,null,null,"D0232","Medicaid",3,"Per Student",0,590]
[null,null,null,null,"D0232","Payments",7,"Supplemental",0,0]
[null,null,null,null,"D0232","Summary",3,"Overpayment",0,0]
[null,null,null,null,"D0232","Teachers",11,"Tch_total",5991832,5948893]
[null,null,null,null,"D0232","Transportation",5,"Other_expenses",0,1711]
[null,null,null,null,"D0232","Transportation",10,"Reimbursements",0,0]
[null,null,null,null,"D0233","Adjustments & Carryovers",3,"Teacher_Adj",-12034,9574]
[null,null,null,null,"D0233","Catastrophic",6,"Supplemental",0,0]
[null,null,null,null,"D0233","Payments",1,"October",6604367,6601441]
[null,null,null,null,"D0233","Summary",2,"Total Payments",21944007,35574214]
[null,null,null,null,"D0233","Teachers",7,"Summer_fte",10.37,10.51]
[null,null,null,null,"D0233","Teachers",11,"Tch_total",26073124,26119199]
[null,null,null,null,"D0233","Transportation",7,"Depreciation",0,0]
[null,null,null,null,"D0233","Transportation",12,"Trans_entitlement_80pcnt",0,9103957]
[null,null,null,null,"D0234","Adjustments & Carryovers",5,"Catastrophic_Adj",0,0]
[null,null,null,null,"D0234","Medicaid",1,"Medicaid_Students",0,108]
[null,null,null,null,"D0234","Payments",7,"Supplemental",0,0]
[null,null,null,null,"D0234","Teachers",1,"Regular_teachers",33.44,29.86]
[null,null,null,null,"D0234","Teachers",6,"Summer_aides",1.02,2.2599999999999998]
[null,null,null,null,"D0234","Teachers",14,"Supplemental",0,0]
[null,null,null,null,"D0234","Transportation",8,"Teacher_transportation",0,1055]
[null,null,null,null,"D0234","Transportation",14,"Transportation Payment",0,158797]
[null,null,null,null,"D0235","Catastrophic",1,"Cat_total",0,0]
[null,null,null,null,"D0235","Medicaid",3,"Per Student",0,590]
[null,null,null,null,"D0235","Payments",4,"April",0,0]
[null,null,null,null,"D0235","Teachers",8,"Entitlement_perfte",30800,31670]
[null,null,null,null,"D0235","Transportation",1,"Salaries",0,79500]
[null,null,null,null,"D0235","Transportation",2,"Contracted_services",0,0]
[null,null,null,null,"D0235","Transportation",10,"Reimbursements",0,0]
[null,null,null,null,"D0237","Adjustments & Carryovers",4,"Transportation_Adj",0,6240]
[null,null,null,null,"D0237","Catastrophic",3,"Cat_Netcost",0,0]
[null,null,null,null,"D0237","Payments",1,"october",0,0]
[null,null,null,null,"D0237","Teachers",3,"Regular_aides",0,0]
[null,null,null,null,"D0237","Teachers",11,"Tch_total",0,0]
[null,null,null,null,"D0237","Transportation",3,"Insurance",0,821]
[null,null,null,null,"D0237","Transportation",11,"Net_transportation_costs",0,31590]
[null,null,null,null,"D0237","Transportation",12,"Trans_entitlement_80pcnt",0,25272]
[null,null,null,null,"D0239","Catastrophic",3,"Cat_Netcost",0,0]
[null,null,null,null,"D0239","Medicaid",3,"Per Student",0,590]
[null,null,null,null,"D0239","Payments",7,"Supplemental",0,0]
[null,null,null,null,"D0239","Teachers",5,"Summer_teachers",0,0]
[null,null,null,null,"D0239","Teachers",13,"Current Payment",4713,4346]
[null,null,null,null,"D0239","Teachers",14,"Supplemental",0,0]
[null,null,null,null,"D0239","Transportation",13,"CarryOver Adjustment",0,0]
[null,null,null,null,"D0240","Adjustments & Carryovers",6,"Total_Adj",0,0]
[null,null,null,null,"D0240","Catastrophic",5,"Per Student",0,0]
[null,null,null,null,"D0240","Payments",3,"March",0,0]
[null,null,null,null,"D0240","Summary",3,"Overpayment",0,0]
[null,null,null,null,"D0240","Teachers",7,"Summer_fte",0,0]
[null,null,null,null,"D0240","Transportation",1,"Salaries",0,22449]
[null,null,null,null,"D0240","Transportation",6,"Capital_outlay_fund_equip",0,0]
[null,null,null,null,"D0240","Transportation",11,"Net_transportation_costs",0,44833]
[null,null,null,null,"D0241","Catastrophic",2,"Cat_Total_students",0,0]
[null,null,null,null,"D0241","Medicaid",1,"Medicaid_Students",0,1]
[null,null,null,null,"D0241","Payments",5,"June",0,0]
[null,null,null,null,"D0241","Summary",3,"Overpayment",0,0]
[null,null,null,null,"D0241","Teachers",11,"Tch_total",0,0]
[null,null,null,null,"D0241","Transportation",3,"Insurance",0,0]
[null,null,null,null,"D0241","Transportation",8,"Teacher_transportation",0,0]
[null,null,null,null,"D0242","Adjustments & Carryovers",1,"Carryover",0,0]
[null,null,null,null,"D0242","Catastrophic",1,"Cat_total",0,0]
[null,null,null,null,"D0242","Medicaid",3,"Per Student",0,590]
[null,null,null,null,"D0242","Payments",7,"Supplemental",0,0]
[null,null,null,null,"D0242","Teachers",2,"Non_public_equiv",0,0]
[null,null,null,null,"D0242","Teachers",14,"Supplemental",0,0]
[null,null,null,null,"D0242","Transportation",5,"Other_expenses",0,1925]
[null,null,null,null,"D0242","Transportation",10,"Reimbursements",0,0]
[null,null,null,null,"D0243","Adjustments & Carryovers",3,"Teacher_Adj",0,0]
[null,null,null,null,"D0243","Catastrophic",2,"Cat_Total_students",0,0]
[null,null,null,null,"D0243","Payments",2,"December",0,0]
[null,null,null,null,"D0243","Summary",2,"Total Payments",0,26118]
[null,null,null,null,"D0243","Teachers",4,"Regular_fte",0,0]
[null,null,null,null,"D0243","Teachers",12,"Current Entitlement",0,0]
[null,null,null,null,"D0243","Transportation",11,"Net_transportation_costs",0,38472]
[null,null,null,null,"D0243","Transportation",12,"Trans_entitlement_80pcnt",0,30778]
[null,null,null,null,"D0244","Adjustments & Carryovers",5,"Catastrophic_Adj",0,0]
[null,null,null,null,"D0244","Payments",1,"October",485946,482944]
[null,null,null,null,"D0244","Payments",2,"December",430832,477352]
[null,null,null,null,"D0244","Teachers",3,"Regular_aides",75.069999999999993,78.52]
[null,null,null,null,"D0244","Teachers",13,"Current Payment",398562,312359]
[null,null,null,null,"D0244","Teachers",14,"Supplemental",0,0]
[null,null,null,null,"D0244","Transportation",12,"Trans_entitlement_80pcnt",0,33302]
[null,null,null,null,"D0244","Transportation",14,"Transportation Payment",0,33302]
[null,null,null,null,"D0245","Catastrophic",1,"Cat_total",0,0]
[null,null,null,null,"D0245","Payments",3,"March",0,0]
[null,null,null,null,"D0245","Teachers",1,"Regular_teachers",0,0]
[null,null,null,null,"D0245","Teachers",2,"Non_public_equiv",0,0]
[null,null,null,null,"D0245","Teachers",14,"Supplemental",0,0]
[null,null,null,null,"D0245","Transportation",9,"Tran_total",0,1081]
[null,null,null,null,"D0245","Transportation",14,"Transportation Payment",0,515]
[null,null,null,null,"D0246","Catastrophic",1,"Cat_total",0,0]
[null,null,null,null,"D0246","Catastrophic",4,"Cat_Stateaid",0,0]
[null,null,null,null,"D0246","Payments",5,"June",0,0]
[null,null,null,null,"D0246","Teachers",3,"Regular_aides",0,0]
[null,null,null,null,"D0246","Teachers",8,"Entitlement_perfte",30800,31670]
[null,null,null,null,"D0246","Transportation",2,"Contracted_services",0,7700]
[null,null,null,null,"D0246","Transportation",11,"Net_transportation_costs",0,132419]
[null,null,null,null,"D0247","Adjustments & Carryovers",1,"Carryover",0,0]
[null,null,null,null,"D0247","Catastrophic",3,"Cat_Netcost",0,0]
[null,null,null,null,"D0247","Payments",1,"October",0,0]
[null,null,null,null,"D0247","Payments",5,"June",0,0]
[null,null,null,null,"D0247","Teachers",5,"Summer_teachers",0,0]
[null,null,null,null,"D0247","Teachers",10,"Summer_entitlement",0,0]
[null,null,null,null,"D0247","Transportation",4,"Expend_inLieuOfTrans",0,0]
[null,null,null,null,"D0247","Transportation",14,"Transportation Payment",0,31719]
[null,null,null,null,"D0248","Adjustments & Carryovers",3,"Teacher_Adj",0,0]
[null,null,null,null,"D0248","Catastrophic",5,"Per Student",0,0]
[null,null,null,null,"D0248","Medicaid",4,"Supplemental",0,0]
[null,null,null,null,"D0248","Summary",1,"Total Entitlement",0,103542]
[null,null,null,null,"D0248","Teachers",6,"Summer_aides",0,0]
[null,null,null,null,"D0248","Teachers",12,"Current Entitlement",0,0]
[null,null,null,null,"D0248","Transportation",6,"Capital_outlay_fund_equip",0,0]
[null,null,null,null,"D0248","Transportation",14,"Transportation Payment",0,79753]
[null,null,null,null,"D0249","Catastrophic",4,"Cat_Stateaid",0,0]
[null,null,null,null,"D0249","Medicaid",1,"Medicaid_Students",0,18]
[null,null,null,null,"D0249","Payments",2,"December",0,0]
[null,null,null,null,"D0249","Summary",3,"Overpayment",-802,0]
[null,null,null,null,"D0249","Teachers",8,"Entitlement_perfte",30800,31670]
[null,null,null,null,"D0249","Transportation",3,"Insurance",0,4483]
[null,null,null,null,"D0249","Transportation",8,"Teacher_transportation",0,0]
[null,null,null,null,"D0250","Adjustments & Carryovers",1,"Carryover",0,0]
[null,null,null,null,"D0250","Adjustments & Carryovers",6,"Total_Adj",0,0]
[null,null,null,null,"D0250","Medicaid",1,"Medicaid_Students",0,186]
[null,null,null,null,"D0250","Teachers",1,"Regular_teachers",0,0]
[null,null,null,null,"D0250","Teachers",2,"Non_public_equiv",0,0]
[null,null,null,null,"D0250","Teachers",10,"Summer_entitlement",0,0]
[null,null,null,null,"D0250","Transportation",8,"Teacher_transportation",0,0]
[null,null,null,null,"D0250","Transportation",14,"Transportation Payment",0,410771]
[null,null,null,null,"D0251","Catastrophic",1,"Cat_total",0,0]
[null,null,null,null,"D0251","Medicaid",3,"Per Student",0,590]
[null,null,null,null,"D0251","Medicaid",4,"Supplemental",0,0]
[null,null,null,null,"D0251","Summary",1,"Total Entitlement",0,62307]
[null,null,null,null,"D0251","Teachers",11,"Tch_total",0,0]
[null,null,null,null,"D0251","Teachers",12,"Current Entitlement",0,0]
[null,null,null,null,"D0251","Transportation",10,"Reimbursements",0,0]
[null,null,null,null,"D0252","Adjustments & Carryovers",2,"Refund",0,0]
[null,null,null,null,"D0252","Catastrophic",3,"Cat_Netcost",0,0]
[null,null,null,null,"D0252","Payments",1,"October",0,0]
[null,null,null,null,"D0252","Summary",2,"Total Payments",0,10030]
[null,null,null,null,"D0252","Teachers",4,"Regular_fte",0,0]
[null,null,null,null,"D0252","Teachers",9,"Regular_entitlement",0,0]
[null,null,null,null,"D0252","Transportation",7,"Depreciation",0,1500]
[null,null,null,null,"D0252","Transportation",12,"Trans_entitlement_80pcnt",0,4473]
[null,null,null,null,"D0253","Adjustments & Carryovers",5,"Catastrophic_Adj",-15379,6171]
[null,null,null,null,"D0253","Medicaid",1,"Medicaid_Students",0,181]
[null,null,null,null,"D0253","Payments",3,"March",691191,631360]
[null,null,null,null,"D0253","Teachers",1,"Regular_teachers",99.09,102.81]
[null,null,null,null,"D0253","Teachers",6,"Summer_aides",1.02,1.21]
[null,null,null,null,"D0253","Teachers",14,"Supplemental",0,0]
[null,null,null,null,"D0253","Transportation",6,"Capital_outlay_fund_equip",0,0]
[null,null,null,null,"D0253","Transportation",14,"Transportation Payment",0,671384]
[null,null,null,null,"D0254","Catastrophic",1,"Cat_total",0,0]
[null,null,null,null,"D0254","Catastrophic",6,"Supplemental",0,0]
[null,null,null,null,"D0254","Summary",1,"Total Entitlement",0,39127]
[null,null,null,null,"D0254","Teachers",3,"Regular_aides",0,1]
[null,null,null,null,"D0254","Teachers",8,"Entitlement_perfte",30800,31670]
[null,null,null,null,"D0254","Transportation",2,"Contracted_services",0,0]
[null,null,null,null,"D0254","Transportation",7,"Depreciation",0,6351]
[null,null,null,null,"D0255","Adjustments & Carryovers",2,"Refund",0,0]
[null,null,null,null,"D0255","Catastrophic",3,"Cat_Netcost",0,0]
[null,null,null,null,"D0255","Medicaid",2,"Paid",0,7080]
[null,null,null,null,"D0255","Payments",6,"June Total",0,7080]
[null,null,null,null,"D0255","Teachers",1,"Regular_teachers",0,0]
[null,null,null,null,"D0255","Teachers",10,"Summer_entitlement",0,0]
[null,null,null,null,"D0255","Transportation",4,"Expend_inLieuOfTrans",0,0]
[null,null,null,null,"D0255","Transportation",9,"Tran_total",0,10017]
[null,null,null,null,"D0256","Adjustments & Carryovers",5,"Catastrophic_Adj",0,0]
[null,null,null,null,"D0256","Catastrophic",5,"Per Student",0,0]
[null,null,null,null,"D0256","Medicaid",4,"Supplemental",0,0]
[null,null,null,null,"D0256","Summary",1,"Total Entitlement",0,8958]
[null,null,null,null,"D0256","Teachers",10,"Summer_entitlement",0,0]
[null,null,null,null,"D0256","Teachers",12,"Current Entitlement",0,0]
[null,null,null,null,"D0256","Transportation",6,"Capital_outlay_fund_equip",0,0]
[null,null,null,null,"D0257","Adjustments & Carryovers",3,"Teacher_Adj",0,0]
[null,null,null,null,"D0257","Adjustments & Carryovers",4,"Transportation_Adj",0,-17431]
[null,null,null,null,"D0257","Medicaid",4,"Supplemental",0,0]
[null,null,null,null,"D0257","Summary",2,"Total Payments",0,100323]
[null,null,null,null,"D0257","Summary",3,"Overpayment",0,0]
[null,null,null,null,"D0257","Teachers",12,"Current Entitlement",0,0]
[null,null,null,null,"D0257","Transportation",6,"Capital_outlay_fund_equip",0,0]
[null,null,null,null,"D0257","Transportation",9,"Tran_total",0,108843]
[null,null,null,null,"D0258","Adjustments & Carryovers",5,"Catastrophic_Adj",0,0]
[null,null,null,null,"D0258","Medicaid",1,"Medicaid_Students",0,15]
[null,null,null,null,"D0258","Payments",2,"December",0,0]
[null,null,null,null,"D0258","Teachers",1,"Regular_teachers",0,0]
[null,null,null,null,"D0258","Teachers",9,"Regular_entitlement",0,0]
[null,null,null,null,"D0258","Teachers",14,"Supplemental",0,0]
[null,null,null,null,"D0258","Transportation",8,"Teacher_transportation",0,0]
[null,null,null,null,"D0259","Adjustments & Carryovers",1,"Carryover",0,0]
[null,null,null,null,"D0259","Adjustments & Carryovers",5,"Catastrophic_Adj",0,-9685]
[null,null,null,null,"D0259","Medicaid",3,"Per Student",0,590]
[null,null,null,null,"D0259","Payments",4,"April",5394879,6426306]
[null,null,null,null,"D0259","Teachers",2,"Non_public_equiv",0,0]
[null,null,null,null,"D0259","Teachers",12,"Current Entitlement",33220264,42483088]
[null,null,null,null,"D0259","Transportation",2,"Contracted_services",0,15576879]
[null,null,null,null,"D0259","Transportation",10,"Reimbursements",0,0]
[null,null,null,null,"D0260","Adjustments & Carryovers",3,"Teacher_Adj",-166901,-116809]
[null,null,null,null,"D0260","Catastrophic",2,"Cat_Total_students",0,0]
[null,null,null,null,"D0260","Medicaid",4,"Supplemental",0,0]
[null,null,null,null,"D0260","Payments",6,"June Total",0,2194140]
[null,null,null,null,"D0260","Teachers",4,"Regular_fte",188.71,186.12]
[null,null,null,null,"D0260","Teachers",12,"Current Entitlement",4954377,5945409]
[null,null,null,null,"D0260","Transportation",1,"Salaries",0,685787]
[null,null,null,null,"D0260","Transportation",12,"Trans_entitlement_80pcnt",0,788976]
[null,null,null,null,"D0261","Adjustments & Carryovers",2,"Refund",0,0]
[null,null,null,null,"D0261","Catastrophic",4,"Cat_Stateaid",0,0]
[null,null,null,null,"D0261","Payments",3,"March",962676,828649]
[null,null,null,null,"D0261","Summary",1,"Total Entitlement",4476842,6432872]
[null,null,null,null,"D0261","Teachers",6,"Summer_aides",1.98,1.89]
[null,null,null,null,"D0261","Teachers",14,"Supplemental",0,0]
[null,null,null,null,"D0261","Transportation",5,"Other_expenses",0,75000]
[null,null,null,null,"D0261","Transportation",12,"Trans_entitlement_80pcnt",0,954156]
[null,null,null,null,"D0262","Adjustments & Carryovers",4,"Transportation_Adj",-41564,-58408]
[null,null,null,null,"D0262","Catastrophic",6,"Supplemental",0,0]
[null,null,null,null,"D0262","Payments",4,"April",656489,635205]
[null,null,null,null,"D0262","Teachers",4,"Regular_fte",130.47999999999999,120.16]
[null,null,null,null,"D0262","Teachers",8,"Entitlement_perfte",30800,31670]
[null,null,null,null,"D0262","Transportation",6,"Capital_outlay_fund_equip",0,0]
[null,null,null,null,"D0262","Transportation",7,"Depreciation",0,66399]
[null,null,null,null,"D0262","Transportation",15,"Supplemental",0,0]
[null,null,null,null,"D0263","Catastrophic",2,"Cat_Total_students",0,0]
[null,null,null,null,"D0263","Medicaid",2,"Paid",0,30680]
[null,null,null,null,"D0263","Payments",6,"June Total",0,453370]
[null,null,null,null,"D0263","Teachers",8,"Entitlement_perfte",30800,31670]
[null,null,null,null,"D0263","Transportation",1,"Salaries",0,95000]
[null,null,null,null,"D0263","Transportation",8,"Teacher_transportation",0,0]
[null,null,null,null,"D0264","Adjustments & Carryovers",1,"Carryover",0,0]
[null,null,null,null,"D0264","Adjustments & Carryovers",2,"Refund",0,0]
[null,null,null,null,"D0264","Medicaid",2,"Paid",0,23600]
[null,null,null,null,"D0264","Payments",3,"March",0,2618]
[null,null,null,null,"D0264","Summary",1,"Total Entitlement",0,222291]
[null,null,null,null,"D0264","Teachers",10,"Summer_entitlement",0,0]
[null,null,null,null,"D0264","Transportation",4,"Expend_inLieuOfTrans",0,0]
[null,null,null,null,"D0264","Transportation",12,"Trans_entitlement_80pcnt",0,182856]
[null,null,null,null,"D0265","Adjustments & Carryovers",3,"Teacher_Adj",-46238,-42128]
[null,null,null,null,"D0265","Catastrophic",5,"Per Student",0,0]
[null,null,null,null,"D0265","Medicaid",4,"Supplemental",0,0]
[null,null,null,null,"D0265","Payments",6,"June Total",0,2510745]
[null,null,null,null,"D0265","Teachers",4,"Regular_fte",282.61,284.73]
[null,null,null,null,"D0265","Teachers",12,"Current Entitlement",7352342,9066171]
[null,null,null,null,"D0265","Transportation",6,"Capital_outlay_fund_equip",0,0]
[null,null,null,null,"D0265","Transportation",11,"Net_transportation_costs",0,1050134]
[null,null,null,null,"D0265","Transportation",15,"Supplemental",0,0]
[null,null,null,null,"D0266","Medicaid",1,"Medicaid_Students",0,209]
[null,null,null,null,"D0266","Payments",2,"December",2605944,2524124]
[null,null,null,null,"D0266","Summary",3,"Overpayment",0,0]
[null,null,null,null,"D0266","Teachers",7,"Summer_fte",2.37,2.36]
[null,null,null,null,"D0266","Teachers",14,"Supplemental",0,0]
[null,null,null,null,"D0266","Transportation",8,"Teacher_transportation",0,65000]
[null,null,null,null,"D0266","Transportation",13,"CarryOver Adjustment",0,0]
[null,null,null,null,"D0267","Adjustments & Carryovers",6,"Total_Adj",-12952,-8125]
[null,null,null,null,"D0267","Catastrophic",5,"Per Student",0,0]
[null,null,null,null,"D0267","Payments",4,"April",0,0]
[null,null,null,null,"D0267","Teachers",2,"Non_public_equiv",0,0]
[null,null,null,null,"D0267","Teachers",7,"Summer_fte",0,0]
[null,null,null,null,"D0267","Transportation",4,"Expend_inLieuOfTrans",0,0]
[null,null,null,null,"D0267","Transportation",10,"Reimbursements",0,0]
[null,null,null,null,"D0267","Transportation",15,"Supplemental",0,0]
[null,null,null,null,"D0268","Catastrophic",2,"Cat_Total_students",0,0]
[null,null,null,null,"D0268","Medicaid",1,"Medicaid_Students",0,36]
[null,null,null,null,"D0268","Payments",6,"June Total",0,98758]
[null,null,null,null,"D0268","Teachers",4,"Regular_fte",0,0]
[null,null,null,null,"D0268","Teachers",9,"Regular_entitlement",0,0]
[null,null,null,null,"D0268","Transportation",3,"Insurance",0,5184]
[null,null,null,null,"D0268","Transportation",15,"Supplemental",0,0]
[null,null,null,null,"D0269","Adjustments & Carryovers",2,"Refund",0,0]
[null,null,null,null,"D0269","Catastrophic",4,"Cat_Stateaid",0,0]
[null,null,null,null,"D0269","Payments",6,"June Total",0,1180]
[null,null,null,null,"D0269","Summary",2,"Total Payments",0,1180]
[null,null,null,null,"D0269","Teachers",6,"Summer_aides",0,0]
[null,null,null,null,"D0269","Transportation",4,"Expend_inLieuOfTrans",0,0]
[null,null,null,null,"D0269","Transportation",5,"Other_expenses",0,0]
[null,null,null,null,"D0270","Adjustments & Carryovers",2,"Refund",0,0]
[null,null,null,null,"D0270","Catastrophic",5,"Per Student",0,0]
[null,null,null,null,"D0270","Catastrophic",6,"Supplemental",0,0]
[null,null,null,null,"D0270","Summary",1,"Total Entitlement",0,11800]
[null,null,null,null,"D0270","Teachers",6,"Summer_aides",0,0]
[null,null,null,null,"D0270","Teachers",10,"Summer_entitlement",0,0]
[null,null,null,null,"D0270","Transportation",6,"Capital_outlay_fund_equip",0,0]
[null,null,null,null,"D0270","Transportation",14,"Transportation Payment",0,0]
[null,null,null,null,"D0271","Adjustments & Carryovers",4,"Transportation_Adj",0,0]
[null,null,null,null,"D0271","Catastrophic",6,"Supplemental",0,0]
[null,null,null,null,"D0271","Medicaid",2,"Paid",0,4720]
[null,null,null,null,"D0271","Summary",3,"Overpayment",0,0]
[null,null,null,null,"D0271","Teachers",8,"Entitlement_perfte",30800,31670]
[null,null,null,null,"D0271","Transportation",2,"Contracted_services",0,0]
[null,null,null,null,"D0271","Transportation",7,"Depreciation",0,0]
[null,null,null,null,"D0272","Adjustments & Carryovers",1,"Carryover",-4849,0]
[null,null,null,null,"D0272","Adjustments & Carryovers",6,"Total_Adj",-4849,-4849]
[null,null,null,null,"D0272","Medicaid",2,"Paid",0,5900]
[null,null,null,null,"D0272","Payments",6,"June Total",0,5900]
[null,null,null,null,"D0272","Summary",2,"Total Payments",0,5900]
[null,null,null,null,"D0272","Teachers",10,"Summer_entitlement",0,0]
[null,null,null,null,"D0272","Transportation",1,"Salaries",0,0]
[null,null,null,null,"D0272","Transportation",9,"Tran_total",0,0]
[null,null,null,null,"D0273","Adjustments & Carryovers",3,"Teacher_Adj",-79809,-110426]
[null,null,null,null,"D0273","Catastrophic",2,"Cat_Total_students",0,0]
[null,null,null,null,"D0273","Medicaid",4,"Supplemental",0,0]
[null,null,null,null,"D0273","Summary",1,"Total Entitlement",1654698,2302109]
[null,null,null,null,"D0273","Teachers",3,"Regular_aides",57.7,53.63]
[null,null,null,null,"D0273","Teachers",10,"Summer_entitlement",22176,20586]
[null,null,null,null,"D0273","Transportation",3,"Insurance",0,0]
[null,null,null,null,"D0273","Transportation",11,"Net_transportation_costs",0,195898]
[null,null,null,null,"D0274","Adjustments & Carryovers",4,"Transportation_Adj",388,0]
[null,null,null,null,"D0274","Medicaid",2,"Paid",0,7670]
[null,null,null,null,"D0274","Payments",2,"December",0,0]
[null,null,null,null,"D0274","Payments",7,"Supplemental",0,0]
[null,null,null,null,"D0274","Teachers",5,"Summer_teachers",0,0]
[null,null,null,null,"D0274","Teachers",13,"Current Payment",5236,25872]
[null,null,null,null,"D0274","Transportation",5,"Other_expenses",0,903]
[null,null,null,null,"D0274","Transportation",13,"CarryOver Adjustment",0,0]
[null,null,null,null,"D0275","Adjustments & Carryovers",6,"Total_Adj",-4275,-6063]
[null,null,null,null,"D0275","Catastrophic",5,"Per Student",0,0]
[null,null,null,null,"D0275","Summary",2,"Total Payments",24702,21878]
[null,null,null,null,"D0275","Teachers",6,"Summer_aides",0,0]
[null,null,null,null,"D0275","Teachers",7,"Summer_fte",0,0]
[null,null,null,null,"D0275","Transportation",1,"Salaries",0,0]
[null,null,null,null,"D0275","Transportation",10,"Reimbursements",0,0]
[null,null,null,null,"D0275","Transportation",15,"Supplemental",0,0]
[null,null,null,null,"D0281","Catastrophic",2,"Cat_Total_students",0,0]
[null,null,null,null,"D0281","Payments",4,"April",0,0]
[null,null,null,null,"D0281","Payments",5,"June",0,0]
[null,null,null,null,"D0281","Teachers",2,"Non_public_equiv",0,0]
[null,null,null,null,"D0281","Transportation",2,"Contracted_services",0,0]
[null,null,null,null,"D0281","Transportation",3,"Insurance",0,0]
[null,null,null,null,"D0281","Transportation",15,"Supplemental",0,0]
[null,null,null,null,"D0282","Adjustments & Carryovers",6,"Total_Adj",-132064,-141451]
[null,null,null,null,"D0282","Medicaid",2,"Paid",0,20650]
[null,null,null,null,"D0282","Payments",6,"June Total",0,412406]
[null,null,null,null,"D0282","Teachers",4,"Regular_fte",59,53.99]
[null,null,null,null,"D0282","Teachers",9,"Regular_entitlement",1817200,1709863]
[null,null,null,null,"D0282","Teachers",13,"Current Payment",388166,298000]
[null,null,null,null,"D0282","Transportation",12,"Trans_entitlement_80pcnt",0,91680]
[null,null,null,null,"D0283","Adjustments & Carryovers",2,"Refund",0,0]
[null,null,null,null,"D0283","Catastrophic",4,"Cat_Stateaid",0,0]
[null,null,null,null,"D0283","Payments",1,"October",0,0]
[null,null,null,null,"D0283","Summary",1,"Total Entitlement",0,11150]
[null,null,null,null,"D0283","Teachers",6,"Summer_aides",0,0]
[null,null,null,null,"D0283","Teachers",11,"Tch_total",0,0]
[null,null,null,null,"D0283","Transportation",2,"Contracted_services",0,0]
[null,null,null,null,"D0283","Transportation",11,"Net_transportation_costs",0,6563]
[null,null,null,null,"D0284","Adjustments & Carryovers",4,"Transportation_Adj",0,-5711]
[null,null,null,null,"D0284","Catastrophic",6,"Supplemental",0,0]
[null,null,null,null,"D0284","Payments",1,"october",0,0]
[null,null,null,null,"D0284","Teachers",2,"Non_public_equiv",0,0]
[null,null,null,null,"D0284","Teachers",8,"Entitlement_perfte",30800,31670]
[null,null,null,null,"D0284","Teachers",13,"Current Payment",0,0]
[null,null,null,null,"D0284","Transportation",7,"Depreciation",0,5709]
[null,null,null,null,"D0284","Transportation",13,"CarryOver Adjustment",0,-5711]
[null,null,null,null,"D0285","Adjustments & Carryovers",6,"Total_Adj",0,0]
[null,null,null,null,"D0285","Medicaid",2,"Paid",0,3540]
[null,null,null,null,"D0285","Payments",3,"March",0,0]
[null,null,null,null,"D0285","Teachers",1,"Regular_teachers",0,0]
[null,null,null,null,"D0285","Teachers",13,"Current Payment",0,0]
[null,null,null,null,"D0285","Transportation",1,"Salaries",0,12597]
[null,null,null,null,"D0285","Transportation",9,"Tran_total",0,17201]
[null,null,null,null,"D0285","Transportation",14,"Transportation Payment",0,13761]
[null,null,null,null,"D0286","Catastrophic",3,"Cat_Netcost",0,0]
[null,null,null,null,"D0286","Medicaid",4,"Supplemental",0,0]
[null,null,null,null,"D0286","Payments",5,"June",0,0]
[null,null,null,null,"D0286","Teachers",3,"Regular_aides",0,0]
[null,null,null,null,"D0286","Transportation",1,"Salaries",0,6055]
[null,null,null,null,"D0286","Transportation",2,"Contracted_services",0,0]
[null,null,null,null,"D0286","Transportation",11,"Net_transportation_costs",0,59442]
[null,null,null,null,"D0287","Catastrophic",2,"Cat_Total_students",0,0]
[null,null,null,null,"D0287","Catastrophic",3,"Cat_Netcost",0,0]
[null,null,null,null,"D0287","Payments",4,"April",0,0]
[null,null,null,null,"D0287","Teachers",4,"Regular_fte",0,0]
[null,null,null,null,"D0287","Teachers",5,"Summer_teachers",0,0]
[null,null,null,null,"D0287","Transportation",3,"Insurance",0,5371]
[null,null,null,null,"D0287","Transportation",5,"Other_expenses",0,40243]
[null,null,null,null,"D0287","Transportation",13,"CarryOver Adjustment",0,-210]
[null,null,null,null,"D0288","Catastrophic",4,"Cat_Stateaid",0,0]
[null,null,null,null,"D0288","Payments",2,"December",0,0]
[null,null,null,null,"D0288","Payments",3,"March",0,0]
[null,null,null,null,"D0288","Teachers",5,"Summer_teachers",0,0]
[null,null,null,null,"D0288","Teachers",14,"Supplemental",0,0]
[null,null,null,null,"D0288","Transportation",5,"Other_expenses",0,28750]
[null,null,null,null,"D0288","Transportation",13,"CarryOver Adjustment",-3767,-19607]
[null,null,null,null,"D0289","Adjustments & Carryovers",1,"Carryover",0,0]
[null,null,null,null,"D0289","Catastrophic",6,"Supplemental",0,0]
[null,null,null,null,"D0289","Payments",4,"April",0,0]
[null,null,null,null,"D0289","Summary",2,"Total Payments",0,136222]
[null,null,null,null,"D0289","Teachers",7,"Summer_fte",0,0]
[null,null,null,null,"D0289","Transportation",2,"Contracted_services",0,0]
[null,null,null,null,"D0289","Transportation",7,"Depreciation",0,16469]
[null,null,null,null,"D0289","Transportation",15,"Supplemental",0,0]
[null,null,null,null,"D0290","Catastrophic",2,"Cat_Total_students",0,1]
[null,null,null,null,"D0290","Catastrophic",6,"Supplemental",0,0]
[null,null,null,null,"D0290","Payments",6,"June Total",0,902961]
[null,null,null,null,"D0290","Teachers",1,"Regular_teachers",46.86,52.68]
[null,null,null,null,"D0290","Teachers",9,"Regular_entitlement",2285976,2475961]
[null,null,null,null,"D0290","Transportation",3,"Insurance",0,8889]
[null,null,null,null,"D0290","Transportation",13,"CarryOver Adjustment",0,0]
[null,null,null,null,"D0291","Adjustments & Carryovers",2,"Refund",0,0]
[null,null,null,null,"D0291","Catastrophic",1,"Cat_total",0,0]
[null,null,null,null,"D0291","Medicaid",3,"Per Student",0,590]
[null,null,null,null,"D0291","Payments",7,"Supplemental",0,0]
[null,null,null,null,"D0291","Teachers",3,"Regular_aides",0,0]
[null,null,null,null,"D0291","Teachers",11,"Tch_total",0,0]
[null,null,null,null,"D0291","Transportation",5,"Other_expenses",0,0]
[null,null,null,null,"D0291","Transportation",10,"Reimbursements",0,0]
[null,null,null,null,"D0292","Adjustments & Carryovers",1,"Carryover",0,0]
[null,null,null,null,"D0292","Catastrophic",3,"Cat_Netcost",0,0]
[null,null,null,null,"D0292","Payments",1,"october",0,0]
[null,null,null,null,"D0292","Summary",2,"Total Payments",18628,13848]
[null,null,null,null,"D0292","Teachers",8,"Entitlement_perfte",30800,31670]
[null,null,null,null,"D0292","Teachers",13,"Current Payment",3770,0]
[null,null,null,null,"D0292","Transportation",7,"Depreciation",0,0]
[null,null,null,null,"D0292","Transportation",12,"Trans_entitlement_80pcnt",0,0]
[null,null,null,null,"D0293","Adjustments & Carryovers",4,"Transportation_Adj",118,0]
[null,null,null,null,"D0293","Payments",2,"December",10010,7777]
[null,null,null,null,"D0293","Payments",3,"March",6705,5288]
[null,null,null,null,"D0293","Teachers",1,"Regular_teachers",0.25,0.25]
[null,null,null,null,"D0293","Teachers",13,"Current Payment",0,5289]
[null,null,null,null,"D0293","Transportation",5,"Other_expenses",0,1100]
[null,null,null,null,"D0293","Transportation",13,"CarryOver Adjustment",-75,0]
[null,null,null,null,"D0294","Adjustments & Carryovers",6,"Total_Adj",0,0]
[null,null,null,null,"D0294","Catastrophic",1,"Cat_total",0,0]
[null,null,null,null,"D0294","Medicaid",3,"Per Student",0,590]
[null,null,null,null,"D0294","Teachers",2,"Non_public_equiv",0,0]
[null,null,null,null,"D0294","Teachers",3,"Regular_aides",0,0]
[null,null,null,null,"D0294","Transportation",1,"Salaries",0,26403]
[null,null,null,null,"D0294","Transportation",9,"Tran_total",0,33227]
[null,null,null,null,"D0297","Adjustments & Carryovers",1,"Carryover",0,0]
[null,null,null,null,"D0297","Catastrophic",2,"Cat_Total_students",0,0]
[null,null,null,null,"D0297","Medicaid",4,"Supplemental",0,0]
[null,null,null,null,"D0297","Payments",5,"June",0,11702]
[null,null,null,null,"D0297","Summary",3,"Overpayment",-22744,0]
[null,null,null,null,"D0297","Teachers",12,"Current Entitlement",54331,126680]
[null,null,null,null,"D0297","Transportation",3,"Insurance",0,0]
[null,null,null,null,"D0297","Transportation",11,"Net_transportation_costs",0,0]
[null,null,null,null,"D0298","Adjustments & Carryovers",1,"Carryover",-8652,-8652]
[null,null,null,null,"D0298","Catastrophic",6,"Supplemental",0,0]
[null,null,null,null,"D0298","Payments",2,"December",0,0]
[null,null,null,null,"D0298","Payments",7,"Supplemental",0,0]
[null,null,null,null,"D0298","Teachers",5,"Summer_teachers",0,0]
[null,null,null,null,"D0298","Teachers",11,"Tch_total",0,0]
[null,null,null,null,"D0298","Transportation",5,"Other_expenses",0,0]
[null,null,null,null,"D0298","Transportation",13,"CarryOver Adjustment",-8652,-8652]
[null,null,null,null,"D0299","Adjustments & Carryovers",3,"Teacher_Adj",0,0]
[null,null,null,null,"D0299","Medicaid",3,"Per Student",0,590]
[null,null,null,null,"D0299","Payments",4,"April",0,0]
[null,null,null,null,"D0299","Summary",2,"Total Payments",0,6159]
[null,null,null,null,"D0299","Teachers",7,"Summer_fte",0,0]
[null,null,null,null,"D0299","Teachers",12,"Current Entitlement",0,0]
[null,null,null,null,"D0299","Transportation",8,"Teacher_transportation",0,0]
[null,null,null,null,"D0299","Transportation",15,"Supplemental",0,0]
[null,null,null,null,"D0300","Adjustments & Carryovers",5,"Catastrophic_Adj",0,0]
[null,null,null,null,"D0300","Medicaid",1,"Medicaid_Students",0,29]
[null,null,null,null,"D0300","Payments",2,"December",0,0]
[null,null,null,null,"D0300","Teachers",1,"Regular_teachers",0,0]
[null,null,null,null,"D0300","Teachers",9,"Regular_entitlement",0,0]
[null,null,null,null,"D0300","Teachers",14,"Supplemental",0,0]
[null,null,null,null,"D0300","Transportation",8,"Teacher_transportation",0,0]
[null,null,null,null,"D0303","Adjustments & Carryovers",4,"Transportation_Adj",0,0]
[null,null,null,null,"D0303","Catastrophic",1,"Cat_total",0,0]
[null,null,null,null,"D0303","Medicaid",3,"Per Student",0,590]
[null,null,null,null,"D0303","Teachers",1,"Regular_teachers",0,0]
[null,null,null,null,"D0303","Teachers",3,"Regular_aides",0,0]
[null,null,null,null,"D0303","Teachers",11,"Tch_total",0,0]
[null,null,null,null,"D0303","Transportation",9,"Tran_total",0,0]
[null,null,null,null,"D0303","Transportation",10,"Reimbursements",0,0]
[null,null,null,null,"D0305","Adjustments & Carryovers",3,"Teacher_Adj",-88993,-62873]
[null,null,null,null,"D0305","Medicaid",3,"Per Student",0,590]
[null,null,null,null,"D0305","Payments",1,"October",3327478,3325708]
[null,null,null,null,"D0305","Teachers",3,"Regular_aides",399.86,397.24]
[null,null,null,null,"D0305","Teachers",11,"Tch_total",12712084,13091428]
[null,null,null,null,"D0305","Teachers",14,"Supplemental",0,0]
[null,null,null,null,"D0305","Transportation",11,"Net_transportation_costs",0,1943276]
[null,null,null,null,"D0306","Adjustments & Carryovers",4,"Transportation_Adj",0,-7630]
[null,null,null,null,"D0306","Catastrophic",3,"Cat_Netcost",0,0]
[null,null,null,null,"D0306","Payments",2,"December",0,0]
[null,null,null,null,"D0306","Summary",3,"Overpayment",0,0]
[null,null,null,null,"D0306","Teachers",5,"Summer_teachers",0,0]
[null,null,null,null,"D0306","Teachers",13,"Current Payment",0,0]
[null,null,null,null,"D0306","Transportation",7,"Depreciation",0,0]
[null,null,null,null,"D0306","Transportation",11,"Net_transportation_costs",0,66439]
[null,null,null,null,"D0307","Adjustments & Carryovers",6,"Total_Adj",0,-2965]
[null,null,null,null,"D0307","Catastrophic",5,"Per Student",0,0]
[null,null,null,null,"D0307","Payments",3,"March",0,0]
[null,null,null,null,"D0307","Teachers",3,"Regular_aides",0,0]
[null,null,null,null,"D0307","Teachers",7,"Summer_fte",0,0]
[null,null,null,null,"D0307","Transportation",1,"Salaries",0,12489]
[null,null,null,null,"D0307","Transportation",6,"Capital_outlay_fund_equip",0,0]
[null,null,null,null,"D0307","Transportation",14,"Transportation Payment",0,13043]
[null,null,null,null,"D0308","Catastrophic",1,"Cat_total",0,0]
[null,null,null,null,"D0308","Medicaid",1,"Medicaid_Students",0,386]
[null,null,null,null,"D0308","Payments",5,"June",0,783514]
[null,null,null,null,"D0308","Teachers",3,"Regular_aides",175.14,133.56]
[null,null,null,null,"D0308","Teachers",6,"Summer_aides",0.98,1.1100000000000001]
[null,null,null,null,"D0308","Transportation",3,"Insurance",0,0]
[null,null,null,null,"D0308","Transportation",8,"Teacher_transportation",0,13000]
[null,null,null,null,"D0309","Adjustments & Carryovers",1,"Carryover",0,0]
[null,null,null,null,"D0309","Catastrophic",3,"Cat_Netcost",0,0]
[null,null,null,null,"D0309","Payments",2,"December",0,0]
[null,null,null,null,"D0309","Payments",7,"Supplemental",0,0]
[null,null,null,null,"D0309","Teachers",5,"Summer_teachers",0,0]
[null,null,null,null,"D0309","Teachers",10,"Summer_entitlement",0,0]
[null,null,null,null,"D0309","Transportation",3,"Insurance",0,1921]
[null,null,null,null,"D0309","Transportation",10,"Reimbursements",0,0]
[null,null,null,null,"D0310","Adjustments & Carryovers",3,"Teacher_Adj",0,0]
[null,null,null,null,"D0310","Catastrophic",5,"Per Student",0,0]
[null,null,null,null,"D0310","Medicaid",4,"Supplemental",0,0]
[null,null,null,null,"D0310","Teachers",3,"Regular_aides",0,0]
[null,null,null,null,"D0310","Teachers",11,"Tch_total",0,0]
[null,null,null,null,"D0310","Teachers",12,"Current Entitlement",0,0]
[null,null,null,null,"D0310","Transportation",6,"Capital_outlay_fund_equip",0,0]
[null,null,null,null,"D0310","Transportation",14,"Transportation Payment",0,39876]
[null,null,null,null,"D0311","Adjustments & Carryovers",5,"Catastrophic_Adj",0,0]
[null,null,null,null,"D0311","Medicaid",1,"Medicaid_Students",0,6]
[null,null,null,null,"D0311","Summary",2,"Total Payments",0,7264]
[null,null,null,null,"D0311","Teachers",6,"Summer_aides",0,0]
[null,null,null,null,"D0311","Teachers",13,"Current Payment",0,0]
[null,null,null,null,"D0311","Transportation",7,"Depreciation",0,0]
[null,null,null,null,"D0311","Transportation",8,"Teacher_transportation",0,0]
[null,null,null,null,"D0312","Adjustments & Carryovers",5,"Catastrophic_Adj",0,0]
[null,null,null,null,"D0312","Catastrophic",4,"Cat_Stateaid",0,0]
[null,null,null,null,"D0312","Medicaid",3,"Per Student",0,590]
[null,null,null,null,"D0312","Teachers",1,"Regular_teachers",0,0]
[null,null,null,null,"D0312","Teachers",9,"Regular_entitlement",0,0]
[null,null,null,null,"D0312","Transportation",3,"Insurance",0,2900]
[null,null,null,null,"D0312","Transportation",9,"Tran_total",0,154713]
[null,null,null,null,"D0313","Adjustments & Carryovers",2,"Refund",0,0]
[null,null,null,null,"D0313","Catastrophic",1,"Cat_total",0,0]
[null,null,null,null,"D0313","Medicaid",3,"Per Student",0,590]
[null,null,null,null,"D0313","Payments",5,"June",0,0]
[null,null,null,null,"D0313","Teachers",3,"Regular_aides",0,0]
[null,null,null,null,"D0313","Teachers",11,"Tch_total",0,0]
[null,null,null,null,"D0313","Transportation",2,"Contracted_services",0,10000]
[null,null,null,null,"D0313","Transportation",6,"Capital_outlay_fund_equip",0,0]
[null,null,null,null,"D0314","Adjustments & Carryovers",4,"Transportation_Adj",0,0]
[null,null,null,null,"D0314","Catastrophic",3,"Cat_Netcost",0,0]
[null,null,null,null,"D0314","Payments",1,"October",20020,19096]
[null,null,null,null,"D0314","Payments",6,"June Total",0,12716]
[null,null,null,null,"D0314","Teachers",6,"Summer_aides",0,0]
[null,null,null,null,"D0314","Teachers",13,"Current Payment",16339,0]
[null,null,null,null,"D0314","Transportation",4,"Expend_inLieuOfTrans",0,0]
[null,null,null,null,"D0314","Transportation",12,"Trans_entitlement_80pcnt",0,0]
[null,null,null,null,"D0315","Adjustments & Carryovers",2,"Refund",0,0]
[null,null,null,null,"D0315","Catastrophic",5,"Per Student",0,0]
[null,null,null,null,"D0315","Payments",3,"March",42258,0]
[null,null,null,null,"D0315","Summary",1,"Total Entitlement",249665,328514]
[null,null,null,null,"D0315","Teachers",9,"Regular_entitlement",297220,307199]
[null,null,null,null,"D0315","Transportation",1,"Salaries",0,7206]
[null,null,null,null,"D0315","Transportation",6,"Capital_outlay_fund_equip",0,0]
[null,null,null,null,"D0315","Transportation",14,"Transportation Payment",0,0]
[null,null,null,null,"D0316","Adjustments & Carryovers",4,"Transportation_Adj",0,0]
[null,null,null,null,"D0316","Medicaid",1,"Medicaid_Students",0,3]
[null,null,null,null,"D0316","Payments",5,"June",0,10204]
[null,null,null,null,"D0316","Summary",3,"Overpayment",0,0]
[null,null,null,null,"D0316","Teachers",8,"Entitlement_perfte",30800,31670]
[null,null,null,null,"D0316","Transportation",6,"Capital_outlay_fund_equip",0,0]
[null,null,null,null,"D0316","Transportation",8,"Teacher_transportation",0,0]
[null,null,null,null,"D0320","Adjustments & Carryovers",1,"Carryover",0,0]
[null,null,null,null,"D0320","Medicaid",1,"Medicaid_Students",0,91]
[null,null,null,null,"D0320","Medicaid",2,"Paid",0,53690]
[null,null,null,null,"D0320","Summary",1,"Total Entitlement",2362593,3030608]
[null,null,null,null,"D0320","Teachers",9,"Regular_entitlement",2760912,2801528]
[null,null,null,null,"D0320","Teachers",10,"Summer_entitlement",43428,41804]
[null,null,null,null,"D0320","Transportation",8,"Teacher_transportation",0,35724]
[null,null,null,null,"D0321","Adjustments & Carryovers",2,"Refund",0,0]
[null,null,null,null,"D0321","Adjustments & Carryovers",3,"Teacher_Adj",11085,-30957]
[null,null,null,null,"D0321","Medicaid",3,"Per Student",0,590]
[null,null,null,null,"D0321","Payments",7,"Supplemental",0,0]
[null,null,null,null,"D0321","Summary",1,"Total Entitlement",1290040,1700183]
[null,null,null,null,"D0321","Teachers",9,"Regular_entitlement",1498728,1564498]
[null,null,null,null,"D0321","Transportation",5,"Other_expenses",0,19393]
[null,null,null,null,"D0321","Transportation",10,"Reimbursements",0,0]
[null,null,null,null,"D0322","Adjustments & Carryovers",3,"Teacher_Adj",0,0]
[null,null,null,null,"D0322","Adjustments & Carryovers",5,"Catastrophic_Adj",0,0]
[null,null,null,null,"D0322","Payments",1,"october",0,0]
[null,null,null,null,"D0322","Summary",2,"Total Payments",0,15636]
[null,null,null,null,"D0322","Teachers",7,"Summer_fte",0,0]
[null,null,null,null,"D0322","Teachers",12,"Current Entitlement",0,0]
[null,null,null,null,"D0322","Transportation",7,"Depreciation",0,1118]
[null,null,null,null,"D0322","Transportation",12,"Trans_entitlement_80pcnt",0,6786]
[null,null,null,null,"D0323","Adjustments & Carryovers",5,"Catastrophic_Adj",0,0]
[null,null,null,null,"D0323","Medicaid",1,"Medicaid_Students",0,23]
[null,null,null,null,"D0323","Medicaid",4,"Supplemental",0,0]
[null,null,null,null,"D0323","Teachers",1,"Regular_teachers",0,0]
[null,null,null,null,"D0323","Teachers",6,"Summer_aides",0,0]
[null,null,null,null,"D0323","Teachers",14,"Supplemental",0,0]
[null,null,null,null,"D0323","Transportation",9,"Tran_total",0,100470]
[null,null,null,null,"D0323","Transportation",14,"Transportation Payment",0,70166]
[null,null,null,null,"D0325","Catastrophic",1,"Cat_total",0,0]
[null,null,null,null,"D0325","Medicaid",3,"Per Student",0,590]
[null,null,null,null,"D0325","Payments",4,"April",0,0]
[null,null,null,null,"D0325","Teachers",1,"Regular_teachers",0,0]
[null,null,null,null,"D0325","Teachers",8,"Entitlement_perfte",30800,31670]
[null,null,null,null,"D0325","Transportation",2,"Contracted_services",0,0]
[null,null,null,null,"D0325","Transportation",10,"Reimbursements",0,0]
[null,null,null,null,"D0326","Adjustments & Carryovers",5,"Catastrophic_Adj",0,0]
[null,null,null,null,"D0326","Catastrophic",3,"Cat_Netcost",0,0]
[null,null,null,null,"D0326","Medicaid",2,"Paid",0,1180]
[null,null,null,null,"D0326","Payments",6,"June Total",0,1180]
[null,null,null,null,"D0326","Teachers",4,"Regular_fte",0,0]
[null,null,null,null,"D0326","Teachers",12,"Current Entitlement",0,0]
[null,null,null,null,"D0326","Transportation",4,"Expend_inLieuOfTrans",0,0]
[null,null,null,null,"D0326","Transportation",12,"Trans_entitlement_80pcnt",0,0]
[null,null,null,null,"D0327","Adjustments & Carryovers",2,"Refund",0,0]
[null,null,null,null,"D0327","Medicaid",4,"Supplemental",0,0]
[null,null,null,null,"D0327","Payments",7,"Supplemental",0,0]
[null,null,null,null,"D0327","Summary",1,"Total Entitlement",0,38079]
[null,null,null,null,"D0327","Teachers",6,"Summer_aides",0,0]
[null,null,null,null,"D0327","Transportation",4,"Expend_inLieuOfTrans",0,0]
[null,null,null,null,"D0327","Transportation",9,"Tran_total",0,40961]
[null,null,null,null,"D0327","Transportation",14,"Transportation Payment",0,31034]
[null,null,null,null,"D0329","Catastrophic",5,"Per Student",0,0]
[null,null,null,null,"D0329","Catastrophic",6,"Supplemental",0,0]
[null,null,null,null,"D0329","Payments",3,"March",0,0]
[null,null,null,null,"D0329","Teachers",7,"Summer_fte",0,0]
[null,null,null,null,"D0329","Teachers",8,"Entitlement_perfte",30800,31670]
[null,null,null,null,"D0329","Transportation",6,"Capital_outlay_fund_equip",0,0]
[null,null,null,null,"D0329","Transportation",12,"Trans_entitlement_80pcnt",0,19313]
[null,null,null,null,"D0330","Adjustments & Carryovers",5,"Catastrophic_Adj",0,0]
[null,null,null,null,"D0330","Medicaid",1,"Medicaid_Students",0,7]
[null,null,null,null,"D0330","Payments",5,"June",0,244304]
[null,null,null,null,"D0330","Summary",3,"Overpayment",0,0]
[null,null,null,null,"D0330","Teachers",4,"Regular_fte",18.600000000000001,19.12]
[null,null,null,null,"D0330","Transportation",3,"Insurance",0,3973]
[null,null,null,null,"D0330","Transportation",8,"Teacher_transportation",0,425]
[null,null,null,null,"D0331","Adjustments & Carryovers",1,"Carryover",0,0]
[null,null,null,null,"D0331","Catastrophic",2,"Cat_Total_students",0,0]
[null,null,null,null,"D0331","Medicaid",3,"Per Student",0,590]
[null,null,null,null,"D0331","Payments",7,"Supplemental",0,0]
[null,null,null,null,"D0331","Teachers",2,"Non_public_equiv",0,0]
[null,null,null,null,"D0331","Teachers",10,"Summer_entitlement",0,0]
[null,null,null,null,"D0331","Transportation",1,"Salaries",0,27632]
[null,null,null,null,"D0331","Transportation",10,"Reimbursements",0,0]
[null,null,null,null,"D0332","Adjustments & Carryovers",3,"Teacher_Adj",0,0]
[null,null,null,null,"D0332","Catastrophic",2,"Cat_Total_students",0,0]
[null,null,null,null,"D0332","Payments",3,"March",0,0]
[null,null,null,null,"D0332","Summary",2,"Total Payments",0,7009]
[null,null,null,null,"D0332","Teachers",4,"Regular_fte",0,0]
[null,null,null,null,"D0332","Teachers",12,"Current Entitlement",0,0]
[null,null,null,null,"D0332","Transportation",3,"Insurance",0,0]
[null,null,null,null,"D0332","Transportation",12,"Trans_entitlement_80pcnt",0,2879]
[null,null,null,null,"D0333","Adjustments & Carryovers",5,"Catastrophic_Adj",0,0]
[null,null,null,null,"D0333","Catastrophic",4,"Cat_Stateaid",0,0]
[null,null,null,null,"D0333","Payments",2,"December",574956,535323]
[null,null,null,null,"D0333","Teachers",4,"Regular_fte",66.84,68.53]
[null,null,null,null,"D0333","Teachers",6,"Summer_aides",0.47,0.73]
[null,null,null,null,"D0333","Teachers",14,"Supplemental",0,0]
[null,null,null,null,"D0333","Transportation",5,"Other_expenses",0,12895]
[null,null,null,null,"D0333","Transportation",15,"Supplemental",0,0]
[null,null,null,null,"D0334","Catastrophic",1,"Cat_total",0,0]
[null,null,null,null,"D0334","Catastrophic",6,"Supplemental",0,0]
[null,null,null,null,"D0334","Payments",4,"April",0,0]
[null,null,null,null,"D0334","Teachers",6,"Summer_aides",0,0]
[null,null,null,null,"D0334","Teachers",7,"Summer_fte",0,0]
[null,null,null,null,"D0334","Transportation",2,"Contracted_services",0,0]
[null,null,null,null,"D0334","Transportation",14,"Transportation Payment",0,0]
[null,null,null,null,"D0334","Transportation",15,"Supplemental",0,0]
[null,null,null,null,"D0335","Catastrophic",5,"Per Student",0,0]
[null,null,null,null,"D0335","Payments",5,"June",0,0]
[null,null,null,null,"D0335","Payments",6,"June Total",0,45898]
[null,null,null,null,"D0335","Teachers",8,"Entitlement_perfte",30800,31670]
[null,null,null,null,"D0335","Transportation",2,"Contracted_services",0,0]
[null,null,null,null,"D0335","Transportation",4,"Expend_inLieuOfTrans",0,0]
[null,null,null,null,"D0336","Adjustments & Carryovers",1,"Carryover",0,0]
[null,null,null,null,"D0336","Catastrophic",3,"Cat_Netcost",0,0]
[null,null,null,null,"D0336","Catastrophic",4,"Cat_Stateaid",0,0]
[null,null,null,null,"D0336","Payments",6,"June Total",0,442753]
[null,null,null,null,"D0336","Teachers",5,"Summer_teachers",0.04,0.06]
[null,null,null,null,"D0336","Teachers",10,"Summer_entitlement",1232,2217]
[null,null,null,null,"D0336","Transportation",4,"Expend_inLieuOfTrans",0,3082]
[null,null,null,null,"D0336","Transportation",12,"Trans_entitlement_80pcnt",0,52310]
[null,null,null,null,"D0336","Transportation",15,"Supplemental",0,0]
[null,null,null,null,"D0337","Catastrophic",5,"Per Student",0,0]
[null,null,null,null,"D0337","Medicaid",4,"Supplemental",0,0]
[null,null,null,null,"D0337","Summary",1,"Total Entitlement",86412,197146]
[null,null,null,null,"D0337","Teachers",7,"Summer_fte",0,0]
[null,null,null,null,"D0337","Teachers",12,"Current Entitlement",86412,88676]
[null,null,null,null,"D0337","Transportation",6,"Capital_outlay_fund_equip",0,0]
[null,null,null,null,"D0337","Transportation",14,"Transportation Payment",0,93130]
[null,null,null,null,"D0338","Adjustments & Carryovers",3,"Teacher_Adj",0,0]
[null,null,null,null,"D0338","Medicaid",1,"Medicaid_Students",0,12]
[null,null,null,null,"D0338","Payments",2,"December",0,0]
[null,null,null,null,"D0338","Summary",3,"Overpayment",0,0]
[null,null,null,null,"D0338","Teachers",8,"Entitlement_perfte",30800,31670]
[null,null,null,null,"D0338","Transportation",4,"Expend_inLieuOfTrans",0,0]
[null,null,null,null,"D0338","Transportation",8,"Teacher_transportation",0,0]
[null,null,null,null,"D0338","Transportation",13,"CarryOver Adjustment",0,-229]
[null,null,null,null,"D0339","Adjustments & Carryovers",6,"Total_Adj",-699,0]
[null,null,null,null,"D0339","Medicaid",2,"Paid",0,14160]
[null,null,null,null,"D0339","Payments",4,"April",0,0]
[null,null,null,null,"D0339","Teachers",2,"Non_public_equiv",0,0]
[null,null,null,null,"D0339","Teachers",10,"Summer_entitlement",0,0]
[null,null,null,null,"D0339","Transportation",1,"Salaries",0,26116]
[null,null,null,null,"D0339","Transportation",7,"Depreciation",0,6549]
[null,null,null,null,"D0339","Transportation",15,"Supplemental",0,0]
[null,null,null,null,"D0340","Catastrophic",2,"Cat_Total_students",0,0]
[null,null,null,null,"D0340","Medicaid",4,"Supplemental",0,0]
[null,null,null,null,"D0340","Summary",2,"Total Payments",0,66636]
[null,null,null,null,"D0340","Teachers",4,"Regular_fte",0,0]
[null,null,null,null,"D0340","Teachers",12,"Current Entitlement",0,0]
[null,null,null,null,"D0340","Transportation",3,"Insurance",0,4944]
[null,null,null,null,"D0340","Transportation",11,"Net_transportation_costs",0,73209]
[null,null,null,null,"D0341","Adjustments & Carryovers",3,"Teacher_Adj",0,0]
[null,null,null,null,"D0341","Catastrophic",4,"Cat_Stateaid",0,0]
[null,null,null,null,"D0341","Payments",2,"December",0,0]
[null,null,null,null,"D0341","Teachers",4,"Regular_fte",0,0]
[null,null,null,null,"D0341","Teachers",10,"Summer_entitlement",0,0]
[null,null,null,null,"D0341","Transportation",4,"Expend_inLieuOfTrans",0,0]
[null,null,null,null,"D0341","Transportation",12,"Trans_entitlement_80pcnt",0,53380]
[null,null,null,null,"D0341","Transportation",13,"CarryOver Adjustment",-51688,-16477]
[null,null,null,null,"D0342","Catastrophic",4,"Cat_Stateaid",0,0]
[null,null,null,null,"D0342","Medicaid",2,"Paid",0,14160]
[null,null,null,null,"D0342","Payments",4,"April",0,0]
[null,null,null,null,"D0342","Teachers",6,"Summer_aides",0,0]
[null,null,null,null,"D0342","Teachers",14,"Supplemental",0,0]
[null,null,null,null,"D0342","Transportation",7,"Depreciation",0,1395]
[null,null,null,null,"D0342","Transportation",14,"Transportation Payment",0,33651]
[null,null,null,null,"D0343","Catastrophic",1,"Cat_total",0,0]
[null,null,null,null,"D0343","Catastrophic",6,"Supplemental",0,0]
[null,null,null,null,"D0343","Payments",1,"October",0,0]
[null,null,null,null,"D0343","Summary",3,"Overpayment",-22482,0]
[null,null,null,null,"D0343","Teachers",8,"Entitlement_perfte",30800,31670]
[null,null,null,null,"D0343","Transportation",2,"Contracted_services",0,380]
[null,null,null,null,"D0343","Transportation",7,"Depreciation",0,3000]
[null,null,null,null,"D0344","Adjustments & Carryovers",3,"Teacher_Adj",0,0]
[null,null,null,null,"D0344","Catastrophic",3,"Cat_Netcost",0,0]
[null,null,null,null,"D0344","Medicaid",2,"Paid",0,11800]
[null,null,null,null,"D0344","Payments",6,"June Total",0,148342]
[null,null,null,null,"D0344","Teachers",2,"Non_public_equiv",0,0]
[null,null,null,null,"D0344","Teachers",10,"Summer_entitlement",0,0]
[null,null,null,null,"D0344","Transportation",4,"Expend_inLieuOfTrans",0,0]
[null,null,null,null,"D0344","Transportation",9,"Tran_total",0,170677]
[null,null,null,null,"D0345","Adjustments & Carryovers",2,"Refund",0,0]
[null,null,null,null,"D0345","Adjustments & Carryovers",6,"Total_Adj",-28711,-34242]
[null,null,null,null,"D0345","Medicaid",4,"Supplemental",0,0]
[null,null,null,null,"D0345","Summary",1,"Total Entitlement",3235294,5479269]
[null,null,null,null,"D0345","Teachers",3,"Regular_aides",113.65,105.67]
[null,null,null,null,"D0345","Teachers",13,"Current Payment",634954,647234]
[null,null,null,null,"D0345","Transportation",6,"Capital_outlay_fund_equip",0,0]
[null,null,null,null,"D0345","Transportation",11,"Net_transportation_costs",0,1764530]
[null,null,null,null,"D0346","Adjustments & Carryovers",4,"Transportation_Adj",2891,-18040]
[null,null,null,null,"D0346","Catastrophic",3,"Cat_Netcost",0,0]
[null,null,null,null,"D0346","Payments",1,"october",0,0]
[null,null,null,null,"D0346","Summary",3,"Overpayment",0,0]
[null,null,null,null,"D0346","Teachers",5,"Summer_teachers",0,0]
[null,null,null,null,"D0346","Teachers",13,"Current Payment",0,0]
[null,null,null,null,"D0346","Transportation",10,"Reimbursements",0,0]
[null,null,null,null,"D0346","Transportation",13,"CarryOver Adjustment",0,-18040]
[null,null,null,null,"D0347","Adjustments & Carryovers",6,"Total_Adj",0,-2]
[null,null,null,null,"D0347","Payments",2,"December",0,0]
[null,null,null,null,"D0347","Payments",4,"April",0,0]
[null,null,null,null,"D0347","Teachers",2,"Non_public_equiv",0,0]
[null,null,null,null,"D0347","Teachers",14,"Supplemental",0,0]
[null,null,null,null,"D0347","Transportation",1,"Salaries",0,0]
[null,null,null,null,"D0347","Transportation",9,"Tran_total",0,0]
[null,null,null,null,"D0348","Adjustments & Carryovers",6,"Total_Adj",-501,-97879]
[null,null,null,null,"D0348","Catastrophic",2,"Cat_Total_students",0,0]
[null,null,null,null,"D0348","Payments",4,"April",0,0]
[null,null,null,null,"D0348","Teachers",2,"Non_public_equiv",0,0]
[null,null,null,null,"D0348","Teachers",5,"Summer_teachers",0,0]
[null,null,null,null,"D0348","Transportation",2,"Contracted_services",0,0]
[null,null,null,null,"D0348","Transportation",10,"Reimbursements",0,0]
[null,null,null,null,"D0348","Transportation",15,"Supplemental",0,0]
[null,null,null,null,"D0349","Catastrophic",2,"Cat_Total_students",0,0]
[null,null,null,null,"D0349","Payments",1,"October",0,0]
[null,null,null,null,"D0349","Payments",6,"June Total",0,67288]
[null,null,null,null,"D0349","Teachers",4,"Regular_fte",0,0]
[null,null,null,null,"D0349","Teachers",12,"Current Entitlement",0,0]
[null,null,null,null,"D0349","Transportation",2,"Contracted_services",0,5565]
[null,null,null,null,"D0349","Transportation",12,"Trans_entitlement_80pcnt",0,60798]
[null,null,null,null,"D0350","Adjustments & Carryovers",2,"Refund",0,0]
[null,null,null,null,"D0350","Catastrophic",4,"Cat_Stateaid",0,0]
[null,null,null,null,"D0350","Payments",2,"December",0,0]
[null,null,null,null,"D0350","Payments",4,"April",0,0]
[null,null,null,null,"D0350","Teachers",6,"Summer_aides",0,0]
[null,null,null,null,"D0350","Teachers",11,"Tch_total",0,0]
[null,null,null,null,"D0350","Transportation",5,"Other_expenses",0,8216]
[null,null,null,null,"D0350","Transportation",13,"CarryOver Adjustment",0,-4504]
[null,null,null,null,"D0351","Adjustments & Carryovers",4,"Transportation_Adj",0,1025]
[null,null,null,null,"D0351","Catastrophic",6,"Supplemental",0,0]
[null,null,null,null,"D0351","Payments",4,"April",0,0]
[null,null,null,null,"D0351","Payments",7,"Supplemental",0,0]
[null,null,null,null,"D0351","Teachers",8,"Entitlement_perfte",30800,31670]
[null,null,null,null,"D0351","Teachers",13,"Current Payment",0,0]
[null,null,null,null,"D0351","Transportation",7,"Depreciation",0,0]
[null,null,null,null,"D0351","Transportation",15,"Supplemental",0,0]
[null,null,null,null,"D0352","Catastrophic",3,"Cat_Netcost",0,0]
[null,null,null,null,"D0352","Medicaid",2,"Paid",0,11210]
[null,null,null,null,"D0352","Payments",6,"June Total",0,84172]
[null,null,null,null,"D0352","Teachers",1,"Regular_teachers",0,0]
[null,null,null,null,"D0352","Teachers",8,"Entitlement_perfte",30800,31670]
[null,null,null,null,"D0352","Transportation",1,"Salaries",0,8089]
[null,null,null,null,"D0352","Transportation",9,"Tran_total",0,15319]
[null,null,null,null,"D0353","Adjustments & Carryovers",2,"Refund",0,0]
[null,null,null,null,"D0353","Catastrophic",1,"Cat_total",0,0]
[null,null,null,null,"D0353","Payments",4,"April",377574,347586]
[null,null,null,null,"D0353","Teachers",2,"Non_public_equiv",0,0]
[null,null,null,null,"D0353","Teachers",3,"Regular_aides",85.54,79.22]
[null,null,null,null,"D0353","Teachers",11,"Tch_total",2039268,1906217]
[null,null,null,null,"D0353","Transportation",5,"Other_expenses",0,1024]
[null,null,null,null,"D0353","Transportation",11,"Net_transportation_costs",0,160565]
[null,null,null,null,"D0355","Adjustments & Carryovers",4,"Transportation_Adj",-13750,2642]
[null,null,null,null,"D0355","Medicaid",4,"Supplemental",0,0]
[null,null,null,null,"D0355","Payments",1,"october",0,0]
[null,null,null,null,"D0355","Teachers",5,"Summer_teachers",0,0]
[null,null,null,null,"D0355","Teachers",12,"Current Entitlement",0,0]
[null,null,null,null,"D0355","Teachers",13,"Current Payment",0,0]
[null,null,null,null,"D0355","Transportation",11,"Net_transportation_costs",0,74000]
[null,null,null,null,"D0356","Adjustments & Carryovers",1,"Carryover",0,0]
[null,null,null,null,"D0356","Adjustments & Carryovers",6,"Total_Adj",0,-10763]
[null,null,null,null,"D0356","Payments",2,"December",0,0]
[null,null,null,null,"D0356","Summary",3,"Overpayment",0,0]
[null,null,null,null,"D0356","Teachers",5,"Summer_teachers",0,0]
[null,null,null,null,"D0356","Teachers",8,"Entitlement_perfte",30800,31670]
[null,null,null,null,"D0356","Transportation",8,"Teacher_transportation",0,0]
[null,null,null,null,"D0356","Transportation",13,"CarryOver Adjustment",0,-10763]
[null,null,null,null,"D0357","Adjustments & Carryovers",6,"Total_Adj",-80269,-21044]
[null,null,null,null,"D0357","Catastrophic",6,"Supplemental",0,0]
[null,null,null,null,"D0357","Payments",4,"April",0,15708]
[null,null,null,null,"D0357","Teachers",2,"Non_public_equiv",0,0]
[null,null,null,null,"D0357","Teachers",7,"Summer_fte",0,0]
[null,null,null,null,"D0357","Teachers",11,"Tch_total",92400,12985]
[null,null,null,null,"D0357","Transportation",10,"Reimbursements",0,0]
[null,null,null,null,"D0357","Transportation",15,"Supplemental",0,0]
[null,null,null,null,"D0358","Catastrophic",2,"Cat_Total_students",0,0]
[null,null,null,null,"D0358","Medicaid",1,"Medicaid_Students",0,6]
[null,null,null,null,"D0358","Payments",7,"Supplemental",0,0]
[null,null,null,null,"D0358","Teachers",4,"Regular_fte",0,0]
[null,null,null,null,"D0358","Teachers",9,"Regular_entitlement",0,0]
[null,null,null,null,"D0358","Transportation",3,"Insurance",0,0]
[null,null,null,null,"D0358","Transportation",8,"Teacher_transportation",0,0]
[null,null,null,null,"D0359","Adjustments & Carryovers",2,"Refund",0,0]
[null,null,null,null,"D0359","Catastrophic",4,"Cat_Stateaid",0,0]
[null,null,null,null,"D0359","Medicaid",3,"Per Student",0,590]
[null,null,null,null,"D0359","Payments",7,"Supplemental",0,0]
[null,null,null,null,"D0359","Teachers",8,"Entitlement_perfte",30800,31670]
[null,null,null,null,"D0359","Teachers",11,"Tch_total",0,0]
[null,null,null,null,"D0359","Transportation",5,"Other_expenses",0,0]
[null,null,null,null,"D0359","Transportation",10,"Reimbursements",0,0]
[null,null,null,null,"D0360","Adjustments & Carryovers",4,"Transportation_Adj",0,0]
[null,null,null,null,"D0360","Catastrophic",6,"Supplemental",0,0]
[null,null,null,null,"D0360","Payments",1,"October",0,0]
[null,null,null,null,"D0360","Summary",2,"Total Payments",0,5310]
[null,null,null,null,"D0360","Teachers",7,"Summer_fte",0,0]
[null,null,null,null,"D0360","Transportation",5,"Other_expenses",0,0]
[null,null,null,null,"D0360","Transportation",7,"Depreciation",0,0]
[null,null,null,null,"D0361","Adjustments & Carryovers",4,"Transportation_Adj",13277,9605]
[null,null,null,null,"D0361","Adjustments & Carryovers",5,"Catastrophic_Adj",0,0]
[null,null,null,null,"D0361","Medicaid",3,"Per Student",0,590]
[null,null,null,null,"D0361","Summary",3,"Overpayment",0,0]
[null,null,null,null,"D0361","Teachers",1,"Regular_teachers",0,0]
[null,null,null,null,"D0361","Teachers",13,"Current Payment",0,0]
[null,null,null,null,"D0361","Transportation",8,"Teacher_transportation",0,0]
[null,null,null,null,"D0361","Transportation",9,"Tran_total",0,143291]
[null,null,null,null,"D0362","Adjustments & Carryovers",6,"Total_Adj",0,-68828]
[null,null,null,null,"D0362","Medicaid",2,"Paid",0,20060]
[null,null,null,null,"D0362","Medicaid",3,"Per Student",0,590]
[null,null,null,null,"D0362","Summary",3,"Overpayment",0,0]
[null,null,null,null,"D0362","Teachers",10,"Summer_entitlement",0,0]
[null,null,null,null,"D0362","Transportation",1,"Salaries",0,388057]
[null,null,null,null,"D0362","Transportation",9,"Tran_total",0,565971]
[null,null,null,null,"D0362","Transportation",11,"Net_transportation_costs",0,565971]
[null,null,null,null,"D0363","Catastrophic",2,"Cat_Total_students",0,0]
[null,null,null,null,"D0363","Medicaid",4,"Supplemental",0,0]
[null,null,null,null,"D0363","Payments",5,"June",0,0]
[null,null,null,null,"D0363","Teachers",3,"Regular_aides",0,0]
[null,null,null,null,"D0363","Teachers",11,"Tch_total",0,0]
[null,null,null,null,"D0363","Transportation",3,"Insurance",0,103]
[null,null,null,null,"D0363","Transportation",11,"Net_transportation_costs",0,2200]
[null,null,null,null,"D0364","Adjustments & Carryovers",4,"Transportation_Adj",0,-9442]
[null,null,null,null,"D0364","Catastrophic",1,"Cat_total",0,0]
[null,null,null,null,"D0364","Payments",2,"December",203355,248126]
[null,null,null,null,"D0364","Payments",7,"Supplemental",0,0]
[null,null,null,null,"D0364","Teachers",5,"Summer_teachers",0,0]
[null,null,null,null,"D0364","Teachers",13,"Current Payment",171036,163278]
[null,null,null,null,"D0364","Transportation",8,"Teacher_transportation",0,5000]
[null,null,null,null,"D0364","Transportation",13,"CarryOver Adjustment",0,0]
[null,null,null,null,"D0365","Adjustments & Carryovers",6,"Total_Adj",0,0]
[null,null,null,null,"D0365","Catastrophic",5,"Per Student",0,0]
[null,null,null,null,"D0365","Payments",2,"December",12628,0]
[null,null,null,null,"D0365","Summary",2,"Total Payments",13971,228808]
[null,null,null,null,"D0365","Teachers",7,"Summer_fte",0,0]
[null,null,null,null,"D0365","Transportation",1,"Salaries",0,159868]
[null,null,null,null,"D0365","Transportation",11,"Net_transportation_costs",0,252822]
[null,null,null,null,"D0365","Transportation",15,"Supplemental",0,0]
[null,null,null,null,"D0366","Adjustments & Carryovers",5,"Catastrophic_Adj",0,0]
[null,null,null,null,"D0366","Medicaid",1,"Medicaid_Students",0,23]
[null,null,null,null,"D0366","Payments",5,"June",0,0]
[null,null,null,null,"D0366","Teachers",3,"Regular_aides",0,0]
[null,null,null,null,"D0366","Teachers",9,"Regular_entitlement",0,0]
[null,null,null,null,"D0366","Transportation",3,"Insurance",0,1178]
[null,null,null,null,"D0366","Transportation",8,"Teacher_transportation",0,0]
[null,null,null,null,"D0367","Catastrophic",1,"Cat_total",0,0]
[null,null,null,null,"D0367","Medicaid",2,"Paid",0,51920]
[null,null,null,null,"D0367","Medicaid",3,"Per Student",0,590]
[null,null,null,null,"D0367","Payments",7,"Supplemental",0,0]
[null,null,null,null,"D0367","Teachers",9,"Regular_entitlement",0,0]
[null,null,null,null,"D0367","Teachers",14,"Supplemental",0,0]
[null,null,null,null,"D0367","Transportation",5,"Other_expenses",0,25066]
[null,null,null,null,"D0368","Adjustments & Carryovers",2,"Refund",0,0]
[null,null,null,null,"D0368","Adjustments & Carryovers",3,"Teacher_Adj",-106412,-37021]
[null,null,null,null,"D0368","Catastrophic",4,"Cat_Stateaid",0,0]
[null,null,null,null,"D0368","Summary",1,"Total Entitlement",6140411,7991286]
[null,null,null,null,"D0368","Summary",2,"Total Payments",6033998,7922261]
[null,null,null,null,"D0368","Teachers",11,"Tch_total",7287896,7448784]
[null,null,null,null,"D0368","Transportation",5,"Other_expenses",0,36072]
[null,null,null,null,"D0368","Transportation",11,"Net_transportation_costs",0,633137]
[null,null,null,null,"D0369","Adjustments & Carryovers",4,"Transportation_Adj",0,-1462]
[null,null,null,null,"D0369","Catastrophic",6,"Supplemental",0,0]
[null,null,null,null,"D0369","Payments",1,"october",0,0]
[null,null,null,null,"D0369","Payments",5,"June",0,0]
[null,null,null,null,"D0369","Teachers",8,"Entitlement_perfte",30800,31670]
[null,null,null,null,"D0369","Teachers",13,"Current Payment",0,0]
[null,null,null,null,"D0369","Transportation",7,"Depreciation",0,1112]
[null,null,null,null,"D0369","Transportation",12,"Trans_entitlement_80pcnt",0,44090]
[null,null,null,null,"D0371","Catastrophic",1,"Cat_total",0,0]
[null,null,null,null,"D0371","Medicaid",2,"Paid",0,1180]
[null,null,null,null,"D0371","Payments",3,"March",0,0]
[null,null,null,null,"D0371","Teachers",1,"Regular_teachers",0,0]
[null,null,null,null,"D0371","Teachers",6,"Summer_aides",0,0]
[null,null,null,null,"D0371","Transportation",1,"Salaries",0,0]
[null,null,null,null,"D0371","Transportation",9,"Tran_total",0,0]
[null,null,null,null,"D0371","Transportation",14,"Transportation Payment",0,0]
[null,null,null,null,"D0372","Catastrophic",4,"Cat_Stateaid",0,0]
[null,null,null,null,"D0372","Medicaid",4,"Supplemental",0,0]
[null,null,null,null,"D0372","Payments",5,"June",0,105697]
[null,null,null,null,"D0372","Teachers",3,"Regular_aides",20.2,20.95]
[null,null,null,null,"D0372","Teachers",8,"Entitlement_perfte",30800,31670]
[null,null,null,null,"D0372","Transportation",3,"Insurance",0,0]
[null,null,null,null,"D0372","Transportation",11,"Net_transportation_costs",0,1353]
[null,null,null,null,"D0373","Adjustments & Carryovers",1,"Carryover",0,0]
[null,null,null,null,"D0373","Catastrophic",3,"Cat_Netcost",0,36684]
[null,null,null,null,"D0373","Payments",5,"June",0,765541]
[null,null,null,null,"D0373","Payments",7,"Supplemental",0,0]
[null,null,null,null,"D0373","Teachers",5,"Summer_teachers",0.77,0.55000000000000004]
[null,null,null,null,"D0373","Teachers",10,"Summer_entitlement",48664,40221]
[null,null,null,null,"D0373","Transportation",4,"Expend_inLieuOfTrans",0,0]
[null,null,null,null,"D0373","Transportation",14,"Transportation Payment",0,346243]
[null,null,null,null,"D0374","Adjustments & Carryovers",3,"Teacher_Adj",0,0]
[null,null,null,null,"D0374","Catastrophic",5,"Per Student",0,0]
[null,null,null,null,"D0374","Payments",7,"Supplemental",0,0]
[null,null,null,null,"D0374","Summary",1,"Total Entitlement",0,2360]
[null,null,null,null,"D0374","Teachers",7,"Summer_fte",0,0]
[null,null,null,null,"D0374","Transportation",5,"Other_expenses",0,0]
[null,null,null,null,"D0374","Transportation",6,"Capital_outlay_fund_equip",0,0]
[null,null,null,null,"D0374","Transportation",14,"Transportation Payment",0,0]
[null,null,null,null,"D0375","Catastrophic",4,"Cat_Stateaid",0,0]
[null,null,null,null,"D0375","Medicaid",1,"Medicaid_Students",0,48]
[null,null,null,null,"D0375","Summary",2,"Total Payments",0,341724]
[null,null,null,null,"D0375","Teachers",7,"Summer_fte",0,0]
[null,null,null,null,"D0375","Teachers",9,"Regular_entitlement",0,0]
[null,null,null,null,"D0375","Transportation",7,"Depreciation",0,33762]
[null,null,null,null,"D0375","Transportation",15,"Supplemental",0,0]
[null,null,null,null,"D0376","Adjustments & Carryovers",5,"Catastrophic_Adj",0,0]
[null,null,null,null,"D0376","Medicaid",1,"Medicaid_Students",0,13]
[null,null,null,null,"D0376","Payments",6,"June Total",0,35013]
[null,null,null,null,"D0376","Teachers",1,"Regular_teachers",0,0]
[null,null,null,null,"D0376","Teachers",9,"Regular_entitlement",0,0]
[null,null,null,null,"D0376","Transportation",3,"Insurance",0,1072]
[null,null,null,null,"D0376","Transportation",6,"Capital_outlay_fund_equip",0,0]
[null,null,null,null,"D0377","Adjustments & Carryovers",2,"Refund",0,0]
[null,null,null,null,"D0377","Catastrophic",1,"Cat_total",0,0]
[null,null,null,null,"D0377","Medicaid",3,"Per Student",0,590]
[null,null,null,null,"D0377","Summary",1,"Total Entitlement",0,42217]
[null,null,null,null,"D0377","Teachers",3,"Regular_aides",0,0]
[null,null,null,null,"D0377","Teachers",11,"Tch_total",0,0]
[null,null,null,null,"D0377","Transportation",5,"Other_expenses",0,21351]
[null,null,null,null,"D0377","Transportation",10,"Reimbursements",0,0]
[null,null,null,null,"D0378","Adjustments & Carryovers",2,"Refund",0,0]
[null,null,null,null,"D0378","Catastrophic",3,"Cat_Netcost",0,0]
[null,null,null,null,"D0378","Payments",1,"october",0,0]
[null,null,null,null,"D0378","Summary",2,"Total Payments",0,13884]
[null,null,null,null,"D0378","Teachers",9,"Regular_entitlement",0,0]
[null,null,null,null,"D0378","Teachers",13,"Current Payment",0,0]
[null,null,null,null,"D0378","Transportation",4,"Expend_inLieuOfTrans",0,0]
[null,null,null,null,"D0378","Transportation",12,"Trans_entitlement_80pcnt",0,16300]
[null,null,null,null,"D0379","Adjustments & Carryovers",5,"Catastrophic_Adj",3110,5349]
[null,null,null,null,"D0379","Medicaid",1,"Medicaid_Students",0,32]
[null,null,null,null,"D0379","Payments",3,"March",348994,366825]
[null,null,null,null,"D0379","Teachers",1,"Regular_teachers",42.46,42.85]
[null,null,null,null,"D0379","Teachers",6,"Summer_aides",0.03,0.04]
[null,null,null,null,"D0379","Teachers",12,"Current Entitlement",1821697,2298926]
[null,null,null,null,"D0379","Transportation",6,"Capital_outlay_fund_equip",0,0]
[null,null,null,null,"D0379","Transportation",14,"Transportation Payment",0,118546]
[null,null,null,null,"D0380","Catastrophic",1,"Cat_total",0,0]
[null,null,null,null,"D0380","Medicaid",4,"Supplemental",0,0]
[null,null,null,null,"D0380","Payments",5,"June",0,0]
[null,null,null,null,"D0380","Teachers",3,"Regular_aides",0,0]
[null,null,null,null,"D0380","Teachers",8,"Entitlement_perfte",30800,31670]
[null,null,null,null,"D0380","Transportation",2,"Contracted_services",0,0]
[null,null,null,null,"D0380","Transportation",9,"Tran_total",0,0]
[null,null,null,null,"D0381","Adjustments & Carryovers",1,"Carryover",0,0]
[null,null,null,null,"D0381","Catastrophic",3,"Cat_Netcost",0,0]
[null,null,null,null,"D0381","Payments",5,"June",0,0]
[null,null,null,null,"D0381","Teachers",1,"Regular_teachers",0,0]
[null,null,null,null,"D0381","Teachers",9,"Regular_entitlement",0,0]
[null,null,null,null,"D0381","Transportation",3,"Insurance",0,0]
[null,null,null,null,"D0381","Transportation",4,"Expend_inLieuOfTrans",0,0]
[null,null,null,null,"D0382","Adjustments & Carryovers",1,"Carryover",-30307,-10389]
[null,null,null,null,"D0382","Adjustments & Carryovers",5,"Catastrophic_Adj",0,0]
[null,null,null,null,"D0382","Catastrophic",5,"Per Student",0,0]
[null,null,null,null,"D0382","Payments",7,"Supplemental",0,0]
[null,null,null,null,"D0382","Teachers",5,"Summer_teachers",0,0]
[null,null,null,null,"D0382","Teachers",12,"Current Entitlement",46570,105778]
[null,null,null,null,"D0382","Transportation",5,"Other_expenses",0,4843]
[null,null,null,null,"D0382","Transportation",13,"CarryOver Adjustment",-47556,-67215]
[null,null,null,null,"D0383","Adjustments & Carryovers",3,"Teacher_Adj",-29137,-48829]
[null,null,null,null,"D0383","Catastrophic",5,"Per Student",0,0]
[null,null,null,null,"D0383","Medicaid",4,"Supplemental",0,0]
[null,null,null,null,"D0383","Summary",2,"Total Payments",6361383,9029854]
[null,null,null,null,"D0383","Teachers",7,"Summer_fte",3.86,3.7800000000000002]
[null,null,null,null,"D0383","Teachers",12,"Current Entitlement",6390520,8016944]
[null,null,null,null,"D0383","Transportation",9,"Tran_total",0,1089809]
[null,null,null,null,"D0383","Transportation",15,"Supplemental",0,0]
[null,null,null,null,"D0384","Adjustments & Carryovers",5,"Catastrophic_Adj",0,0]
[null,null,null,null,"D0384","Medicaid",1,"Medicaid_Students",0,3]
[null,null,null,null,"D0384","Payments",3,"March",0,0]
[null,null,null,null,"D0384","Teachers",1,"Regular_teachers",0,0]
[null,null,null,null,"D0384","Teachers",9,"Regular_entitlement",0,0]
[null,null,null,null,"D0384","Teachers",14,"Supplemental",0,0]
[null,null,null,null,"D0384","Transportation",8,"Teacher_transportation",0,0]
[null,null,null,null,"D0384","Transportation",12,"Trans_entitlement_80pcnt",0,2445]
[null,null,null,null,"D0385","Catastrophic",1,"Cat_total",0,0]
[null,null,null,null,"D0385","Medicaid",3,"Per Student",0,590]
[null,null,null,null,"D0385","Payments",4,"April",29374,27542]
[null,null,null,null,"D0385","Teachers",4,"Regular_fte",5.61,5.26]
[null,null,null,null,"D0385","Teachers",11,"Tch_total",172788,166584]
[null,null,null,null,"D0385","Transportation",2,"Contracted_services",0,815175]
[null,null,null,null,"D0385","Transportation",10,"Reimbursements",0,0]
[null,null,null,null,"D0385","Transportation",15,"Supplemental",0,0]
[null,null,null,null,"D0386","Catastrophic",2,"Cat_Total_students",0,0]
[null,null,null,null,"D0386","Payments",1,"october",0,0]
[null,null,null,null,"D0386","Payments",6,"June Total",0,54576]
[null,null,null,null,"D0386","Teachers",4,"Regular_fte",0,0]
[null,null,null,null,"D0386","Transportation",1,"Salaries",0,0]
[null,null,null,null,"D0386","Transportation",4,"Expend_inLieuOfTrans",0,0]
[null,null,null,null,"D0386","Transportation",12,"Trans_entitlement_80pcnt",0,47496]
[null,null,null,null,"D0387","Catastrophic",3,"Cat_Netcost",0,0]
[null,null,null,null,"D0387","Catastrophic",4,"Cat_Stateaid",0,0]
[null,null,null,null,"D0387","Payments",3,"March",0,0]
[null,null,null,null,"D0387","Teachers",5,"Summer_teachers",0,0]
[null,null,null,null,"D0387","Teachers",6,"Summer_aides",0,0]
[null,null,null,null,"D0387","Teachers",14,"Supplemental",0,0]
[null,null,null,null,"D0387","Transportation",12,"Trans_entitlement_80pcnt",0,3996]
[null,null,null,null,"D0387","Transportation",14,"Transportation Payment",0,3996]
[null,null,null,null,"D0388","Catastrophic",5,"Per Student",0,0]
[null,null,null,null,"D0388","Payments",3,"March",0,0]
[null,null,null,null,"D0388","Payments",4,"April",0,0]
[null,null,null,null,"D0388","Teachers",4,"Regular_fte",0,0]
[null,null,null,null,"D0388","Transportation",1,"Salaries",0,22000]
[null,null,null,null,"D0388","Transportation",6,"Capital_outlay_fund_equip",0,0]
[null,null,null,null,"D0388","Transportation",14,"Transportation Payment",0,20788]
[null,null,null,null,"D0389","Catastrophic",2,"Cat_Total_students",0,0]
[null,null,null,null,"D0389","Medicaid",1,"Medicaid_Students",0,35]
[null,null,null,null,"D0389","Payments",5,"June",0,203113]
[null,null,null,null,"D0389","Teachers",3,"Regular_aides",27,22.48]
[null,null,null,null,"D0389","Teachers",7,"Summer_fte",0,0]
[null,null,null,null,"D0389","Transportation",3,"Insurance",0,0]
[null,null,null,null,"D0389","Transportation",8,"Teacher_transportation",0,0]
[null,null,null,null,"D0390","Adjustments & Carryovers",1,"Carryover",0,0]
[null,null,null,null,"D0390","Catastrophic",3,"Cat_Netcost",0,0]
[null,null,null,null,"D0390","Catastrophic",5,"Per Student",0,0]
[null,null,null,null,"D0390","Payments",7,"Supplemental",0,0]
[null,null,null,null,"D0390","Teachers",2,"Non_public_equiv",0,0]
[null,null,null,null,"D0390","Teachers",10,"Summer_entitlement",0,0]
[null,null,null,null,"D0390","Transportation",4,"Expend_inLieuOfTrans",0,0]
[null,null,null,null,"D0390","Transportation",10,"Reimbursements",0,0]
[null,null,null,null,"D0392","Adjustments & Carryovers",3,"Teacher_Adj",0,0]
[null,null,null,null,"D0392","Catastrophic",5,"Per Student",0,0]
[null,null,null,null,"D0392","Medicaid",4,"Supplemental",0,0]
[null,null,null,null,"D0392","Payments",6,"June Total",0,38216]
[null,null,null,null,"D0392","Teachers",4,"Regular_fte",0,0]
[null,null,null,null,"D0392","Teachers",12,"Current Entitlement",0,0]
[null,null,null,null,"D0392","Transportation",6,"Capital_outlay_fund_equip",0,0]
[null,null,null,null,"D0392","Transportation",15,"Supplemental",0,0]
[null,null,null,null,"D0393","Adjustments & Carryovers",5,"Catastrophic_Adj",0,0]
[null,null,null,null,"D0393","Medicaid",1,"Medicaid_Students",0,13]
[null,null,null,null,"D0393","Payments",2,"December",0,0]
[null,null,null,null,"D0393","Summary",3,"Overpayment",-6433,0]
[null,null,null,null,"D0393","Teachers",7,"Summer_fte",0,0]
[null,null,null,null,"D0393","Teachers",14,"Supplemental",0,0]
[null,null,null,null,"D0393","Transportation",8,"Teacher_transportation",0,0]
[null,null,null,null,"D0393","Transportation",13,"CarryOver Adjustment",-6433,-14506]
[null,null,null,null,"D0394","Catastrophic",5,"Per Student",0,0]
[null,null,null,null,"D0394","Payments",3,"March",0,5236]
[null,null,null,null,"D0394","Payments",4,"April",0,5236]
[null,null,null,null,"D0394","Teachers",2,"Non_public_equiv",0,0]
[null,null,null,null,"D0394","Teachers",10,"Summer_entitlement",0,0]
[null,null,null,null,"D0394","Transportation",2,"Contracted_services",0,0]
[null,null,null,null,"D0394","Transportation",10,"Reimbursements",0,0]
[null,null,null,null,"D0395","Catastrophic",1,"Cat_total",0,0]
[null,null,null,null,"D0395","Catastrophic",2,"Cat_Total_students",0,0]
[null,null,null,null,"D0395","Payments",6,"June Total",0,69061]
[null,null,null,null,"D0395","Teachers",3,"Regular_aides",0,0]
[null,null,null,null,"D0395","Teachers",4,"Regular_fte",0,0]
[null,null,null,null,"D0395","Transportation",2,"Contracted_services",0,79452]
[null,null,null,null,"D0395","Transportation",7,"Depreciation",0,243]
[null,null,null,null,"D0396","Adjustments & Carryovers",1,"Carryover",0,0]
[null,null,null,null,"D0396","Catastrophic",3,"Cat_Netcost",0,0]
[null,null,null,null,"D0396","Payments",1,"October",0,0]
[null,null,null,null,"D0396","Payments",6,"June Total",0,54082]
[null,null,null,null,"D0396","Summary",2,"Total Payments",0,54082]
[null,null,null,null,"D0396","Teachers",13,"Current Payment",0,0]
[null,null,null,null,"D0396","Transportation",4,"Expend_inLieuOfTrans",0,0]
[null,null,null,null,"D0396","Transportation",12,"Trans_entitlement_80pcnt",0,43786]
[null,null,null,null,"D0397","Adjustments & Carryovers",3,"Teacher_Adj",0,0]
[null,null,null,null,"D0397","Catastrophic",5,"Per Student",0,0]
[null,null,null,null,"D0397","Payments",3,"March",0,0]
[null,null,null,null,"D0397","Summary",1,"Total Entitlement",0,43678]
[null,null,null,null,"D0397","Teachers",6,"Summer_aides",0,0]
[null,null,null,null,"D0397","Teachers",10,"Summer_entitlement",0,0]
[null,null,null,null,"D0397","Transportation",6,"Capital_outlay_fund_equip",0,0]
[null,null,null,null,"D0397","Transportation",14,"Transportation Payment",0,36008]
[null,null,null,null,"D0398","Adjustments & Carryovers",4,"Transportation_Adj",0,-3976]
[null,null,null,null,"D0398","Medicaid",2,"Paid",0,7080]
[null,null,null,null,"D0398","Payments",5,"June",0,0]
[null,null,null,null,"D0398","Summary",3,"Overpayment",0,0]
[null,null,null,null,"D0398","Teachers",8,"Entitlement_perfte",30800,31670]
[null,null,null,null,"D0398","Teachers",13,"Current Payment",0,0]
[null,null,null,null,"D0398","Transportation",8,"Teacher_transportation",0,0]
[null,null,null,null,"D0399","Adjustments & Carryovers",1,"Carryover",0,0]
[null,null,null,null,"D0399","Adjustments & Carryovers",6,"Total_Adj",0,0]
[null,null,null,null,"D0399","Medicaid",2,"Paid",0,4720]
[null,null,null,null,"D0399","Summary",2,"Total Payments",0,4720]
[null,null,null,null,"D0399","Teachers",2,"Non_public_equiv",0,0]
[null,null,null,null,"D0399","Teachers",10,"Summer_entitlement",0,0]
[null,null,null,null,"D0399","Transportation",1,"Salaries",0,0]
[null,null,null,null,"D0399","Transportation",10,"Reimbursements",0,0]
[null,null,null,null,"D0400","Adjustments & Carryovers",3,"Teacher_Adj",0,0]
[null,null,null,null,"D0400","Catastrophic",2,"Cat_Total_students",0,0]
[null,null,null,null,"D0400","Medicaid",4,"Supplemental",0,0]
[null,null,null,null,"D0400","Summary",1,"Total Entitlement",0,62527]
[null,null,null,null,"D0400","Teachers",10,"Summer_entitlement",0,0]
[null,null,null,null,"D0400","Teachers",12,"Current Entitlement",0,0]
[null,null,null,null,"D0400","Transportation",10,"Reimbursements",0,0]
[null,null,null,null,"D0400","Transportation",11,"Net_transportation_costs",0,66359]
[null,null,null,null,"D0401","Adjustments & Carryovers",6,"Total_Adj",0,0]
[null,null,null,null,"D0401","Payments",1,"october",0,0]
[null,null,null,null,"D0401","Payments",2,"December",0,0]
[null,null,null,null,"D0401","Teachers",4,"Regular_fte",0,0]
[null,null,null,null,"D0401","Teachers",12,"Current Entitlement",0,0]
[null,null,null,null,"D0401","Teachers",13,"Current Payment",0,0]
[null,null,null,null,"D0401","Transportation",12,"Trans_entitlement_80pcnt",0,8721]
[null,null,null,null,"D0402","Adjustments & Carryovers",5,"Catastrophic_Adj",0,0]
[null,null,null,null,"D0402","Adjustments & Carryovers",6,"Total_Adj",0,-9914]
[null,null,null,null,"D0402","Payments",1,"October",0,0]
[null,null,null,null,"D0402","Teachers",1,"Regular_teachers",0,0]
[null,null,null,null,"D0402","Teachers",6,"Summer_aides",0,0]
[null,null,null,null,"D0402","Teachers",14,"Supplemental",0,0]
[null,null,null,null,"D0402","Transportation",8,"Teacher_transportation",0,0]
[null,null,null,null,"D0402","Transportation",10,"Reimbursements",0,0]
[null,null,null,null,"D0403","Catastrophic",1,"Cat_total",0,0]
[null,null,null,null,"D0403","Catastrophic",6,"Supplemental",0,0]
[null,null,null,null,"D0403","Payments",4,"April",0,0]
[null,null,null,null,"D0403","Teachers",2,"Non_public_equiv",0,0]
[null,null,null,null,"D0403","Teachers",8,"Entitlement_perfte",30800,31670]
[null,null,null,null,"D0403","Transportation",2,"Contracted_services",0,250]
[null,null,null,null,"D0403","Transportation",10,"Reimbursements",0,0]
[null,null,null,null,"D0403","Transportation",13,"CarryOver Adjustment",0,-13986]
[null,null,null,null,"D0404","Catastrophic",3,"Cat_Netcost",0,0]
[null,null,null,null,"D0404","Medicaid",2,"Paid",0,16520]
[null,null,null,null,"D0404","Payments",6,"June Total",0,40094]
[null,null,null,null,"D0404","Teachers",4,"Regular_fte",0,0]
[null,null,null,null,"D0404","Teachers",13,"Current Payment",0,0]
[null,null,null,null,"D0404","Transportation",4,"Expend_inLieuOfTrans",0,0]
[null,null,null,null,"D0404","Transportation",12,"Trans_entitlement_80pcnt",0,23574]
[null,null,null,null,"D0405","Adjustments & Carryovers",2,"Refund",0,0]
[null,null,null,null,"D0405","Catastrophic",3,"Cat_Netcost",0,0]
[null,null,null,null,"D0405","Medicaid",4,"Supplemental",0,0]
[null,null,null,null,"D0405","Summary",1,"Total Entitlement",1435268,1850901]
[null,null,null,null,"D0405","Teachers",6,"Summer_aides",0.76,0.76]
[null,null,null,null,"D0405","Teachers",11,"Tch_total",1704780,1794106]
[null,null,null,null,"D0405","Transportation",10,"Reimbursements",0,0]
[null,null,null,null,"D0405","Transportation",11,"Net_transportation_costs",0,45920]
[null,null,null,null,"D0407","Adjustments & Carryovers",4,"Transportation_Adj",0,0]
[null,null,null,null,"D0407","Catastrophic",6,"Supplemental",0,0]
[null,null,null,null,"D0407","Payments",4,"April",0,132843]
[null,null,null,null,"D0407","Summary",3,"Overpayment",-31171,0]
[null,null,null,null,"D0407","Teachers",8,"Entitlement_perfte",30800,31670]
[null,null,null,null,"D0407","Teachers",13,"Current Payment",0,132843]
[null,null,null,null,"D0407","Transportation",7,"Depreciation",0,0]
[null,null,null,null,"D0407","Transportation",13,"CarryOver Adjustment",-31171,0]
[null,null,null,null,"D0408","Adjustments & Carryovers",6,"Total_Adj",0,0]
[null,null,null,null,"D0408","Medicaid",2,"Paid",0,11800]
[null,null,null,null,"D0408","Summary",3,"Overpayment",0,0]
[null,null,null,null,"D0408","Teachers",5,"Summer_teachers",0,0]
[null,null,null,null,"D0408","Teachers",10,"Summer_entitlement",0,0]
[null,null,null,null,"D0408","Transportation",8,"Teacher_transportation",0,0]
[null,null,null,null,"D0408","Transportation",9,"Tran_total",0,24138]
[null,null,null,null,"D0409","Adjustments & Carryovers",1,"Carryover",0,0]
[null,null,null,null,"D0409","Medicaid",3,"Per Student",0,590]
[null,null,null,null,"D0409","Medicaid",4,"Supplemental",0,0]
[null,null,null,null,"D0409","Teachers",2,"Non_public_equiv",0,0]
[null,null,null,null,"D0409","Teachers",10,"Summer_entitlement",27104,24703]
[null,null,null,null,"D0409","Transportation",2,"Contracted_services",0,23000]
[null,null,null,null,"D0409","Transportation",10,"Reimbursements",0,0]
[null,null,null,null,"D0410","Adjustments & Carryovers",3,"Teacher_Adj",0,0]
[null,null,null,null,"D0410","Catastrophic",2,"Cat_Total_students",0,0]
[null,null,null,null,"D0410","Catastrophic",6,"Supplemental",0,0]
[null,null,null,null,"D0410","Summary",2,"Total Payments",0,44609]
[null,null,null,null,"D0410","Teachers",4,"Regular_fte",0,0]
[null,null,null,null,"D0410","Teachers",12,"Current Entitlement",0,0]
[null,null,null,null,"D0410","Transportation",3,"Insurance",0,660]
[null,null,null,null,"D0410","Transportation",13,"CarryOver Adjustment",0,-1801]
[null,null,null,null,"D0411","Adjustments & Carryovers",5,"Catastrophic_Adj",0,0]
[null,null,null,null,"D0411","Catastrophic",4,"Cat_Stateaid",0,0]
[null,null,null,null,"D0411","Payments",2,"December",0,0]
[null,null,null,null,"D0411","Payments",7,"Supplemental",0,0]
[null,null,null,null,"D0411","Teachers",6,"Summer_aides",0,0]
[null,null,null,null,"D0411","Teachers",14,"Supplemental",0,0]
[null,null,null,null,"D0411","Transportation",5,"Other_expenses",0,0]
[null,null,null,null,"D0411","Transportation",13,"CarryOver Adjustment",0,0]
[null,null,null,null,"D0412","Catastrophic",3,"Cat_Netcost",0,0]
[null,null,null,null,"D0412","Catastrophic",6,"Supplemental",0,0]
[null,null,null,null,"D0412","Payments",4,"April",6910,13090]
[null,null,null,null,"D0412","Summary",2,"Total Payments",49420,87696]
[null,null,null,null,"D0412","Teachers",8,"Entitlement_perfte",30800,31670]
[null,null,null,null,"D0412","Transportation",2,"Contracted_services",0,5934]
[null,null,null,null,"D0412","Transportation",7,"Depreciation",0,0]
[null,null,null,null,"D0412","Transportation",15,"Supplemental",0,0]
[null,null,null,null,"D0413","Catastrophic",6,"Supplemental",0,0]
[null,null,null,null,"D0413","Medicaid",2,"Paid",0,53100]
[null,null,null,null,"D0413","Payments",6,"June Total",0,270990]
[null,null,null,null,"D0413","Teachers",1,"Regular_teachers",0,0]
[null,null,null,null,"D0413","Teachers",9,"Regular_entitlement",0,0]
[null,null,null,null,"D0413","Transportation",5,"Other_expenses",0,22122]
[null,null,null,null,"D0413","Transportation",9,"Tran_total",0,277835]
[null,null,null,null,"D0415","Adjustments & Carryovers",2,"Refund",0,0]
[null,null,null,null,"D0415","Medicaid",2,"Paid",0,16520]
[null,null,null,null,"D0415","Medicaid",3,"Per Student",0,590]
[null,null,null,null,"D0415","Summary",1,"Total Entitlement",0,16520]
[null,null,null,null,"D0415","Teachers",10,"Summer_entitlement",0,0]
[null,null,null,null,"D0415","Teachers",11,"Tch_total",0,0]
[null,null,null,null,"D0415","Transportation",5,"Other_expenses",0,0]
[null,null,null,null,"D0416","Adjustments & Carryovers",1,"Carryover",0,0]
[null,null,null,null,"D0416","Adjustments & Carryovers",4,"Transportation_Adj",-1861,-33812]
[null,null,null,null,"D0416","Medicaid",4,"Supplemental",0,0]
[null,null,null,null,"D0416","Summary",1,"Total Entitlement",0,272641]
[null,null,null,null,"D0416","Summary",3,"Overpayment",-1861,0]
[null,null,null,null,"D0416","Teachers",12,"Current Entitlement",0,0]
[null,null,null,null,"D0416","Transportation",6,"Capital_outlay_fund_equip",0,0]
[null,null,null,null,"D0416","Transportation",11,"Net_transportation_costs",0,320889]
[null,null,null,null,"D0417","Adjustments & Carryovers",4,"Transportation_Adj",-8490,-41302]
[null,null,null,null,"D0417","Catastrophic",6,"Supplemental",0,0]
[null,null,null,null,"D0417","Payments",2,"December",0,0]
[null,null,null,null,"D0417","Summary",3,"Overpayment",-8490,0]
[null,null,null,null,"D0417","Teachers",8,"Entitlement_perfte",30800,31670]
[null,null,null,null,"D0417","Teachers",11,"Tch_total",0,0]
[null,null,null,null,"D0417","Transportation",8,"Teacher_transportation",0,0]
[null,null,null,null,"D0417","Transportation",13,"CarryOver Adjustment",-8490,-41302]
[null,null,null,null,"D0418","Adjustments & Carryovers",6,"Total_Adj",-47588,-43685]
[null,null,null,null,"D0418","Medicaid",2,"Paid",0,57820]
[null,null,null,null,"D0418","Payments",7,"Supplemental",0,0]
[null,null,null,null,"D0418","Teachers",2,"Non_public_equiv",0,0]
[null,null,null,null,"D0418","Teachers",10,"Summer_entitlement",44044,63973]
[null,null,null,null,"D0418","Transportation",1,"Salaries",0,130145]
[null,null,null,null,"D0418","Transportation",8,"Teacher_transportation",0,74714]
[null,null,null,null,"D0418","Transportation",15,"Supplemental",0,0]
[null,null,null,null,"D0419","Catastrophic",2,"Cat_Total_students",0,0]
[null,null,null,null,"D0419","Medicaid",4,"Supplemental",0,0]
[null,null,null,null,"D0419","Summary",3,"Overpayment",-455,0]
[null,null,null,null,"D0419","Teachers",4,"Regular_fte",0,0]
[null,null,null,null,"D0419","Teachers",9,"Regular_entitlement",0,0]
[null,null,null,null,"D0419","Transportation",3,"Insurance",0,0]
[null,null,null,null,"D0419","Transportation",11,"Net_transportation_costs",0,18269]
[null,null,null,null,"D0420","Adjustments & Carryovers",4,"Transportation_Adj",-2526,2375]
[null,null,null,null,"D0420","Catastrophic",4,"Cat_Stateaid",0,0]
[null,null,null,null,"D0420","Payments",2,"December",0,0]
[null,null,null,null,"D0420","Payments",7,"Supplemental",0,0]
[null,null,null,null,"D0420","Teachers",3,"Regular_aides",0,0]
[null,null,null,null,"D0420","Teachers",11,"Tch_total",0,0]
[null,null,null,null,"D0420","Transportation",5,"Other_expenses",0,6570]
[null,null,null,null,"D0420","Transportation",13,"CarryOver Adjustment",-2526,0]
[null,null,null,null,"D0421","Adjustments & Carryovers",3,"Teacher_Adj",0,0]
[null,null,null,null,"D0421","Medicaid",3,"Per Student",0,590]
[null,null,null,null,"D0421","Payments",4,"April",0,0]
[null,null,null,null,"D0421","Summary",2,"Total Payments",0,16815]
[null,null,null,null,"D0421","Teachers",7,"Summer_fte",0,0]
[null,null,null,null,"D0421","Teachers",14,"Supplemental",0,0]
[null,null,null,null,"D0421","Transportation",7,"Depreciation",0,6581]
[null,null,null,null,"D0421","Transportation",15,"Supplemental",0,0]
[null,null,null,null,"D0422","Catastrophic",6,"Supplemental",0,0]
[null,null,null,null,"D0422","Medicaid",1,"Medicaid_Students",0,10]
[null,null,null,null,"D0422","Summary",3,"Overpayment",0,0]
[null,null,null,null,"D0422","Teachers",8,"Entitlement_perfte",30800,31670]
[null,null,null,null,"D0422","Teachers",9,"Regular_entitlement",0,0]
[null,null,null,null,"D0422","Transportation",7,"Depreciation",0,7627]
[null,null,null,null,"D0422","Transportation",11,"Net_transportation_costs",0,32008]
[null,null,null,null,"D0423","Adjustments & Carryovers",2,"Refund",0,0]
[null,null,null,null,"D0423","Medicaid",2,"Paid",0,8850]
[null,null,null,null,"D0423","Payments",6,"June Total",0,37320]
[null,null,null,null,"D0423","Teachers",3,"Regular_aides",0,0]
[null,null,null,null,"D0423","Teachers",10,"Summer_entitlement",0,0]
[null,null,null,null,"D0423","Transportation",4,"Expend_inLieuOfTrans",0,0]
[null,null,null,null,"D0423","Transportation",9,"Tran_total",0,45488]
[null,null,null,null,"D0426","Adjustments & Carryovers",2,"Refund",0,0]
[null,null,null,null,"D0426","Catastrophic",1,"Cat_total",0,0]
[null,null,null,null,"D0426","Medicaid",4,"Supplemental",0,0]
[null,null,null,null,"D0426","Summary",1,"Total Entitlement",0,1770]
[null,null,null,null,"D0426","Teachers",3,"Regular_aides",0,0]
[null,null,null,null,"D0426","Teachers",14,"Supplemental",0,0]
[null,null,null,null,"D0426","Transportation",6,"Capital_outlay_fund_equip",0,0]
[null,null,null,null,"D0426","Transportation",11,"Net_transportation_costs",0,0]
[null,null,null,null,"D0428","Adjustments & Carryovers",4,"Transportation_Adj",0,-9972]
[null,null,null,null,"D0428","Catastrophic",3,"Cat_Netcost",0,0]
[null,null,null,null,"D0428","Payments",2,"December",964317,815334]
[null,null,null,null,"D0428","Summary",3,"Overpayment",0,0]
[null,null,null,null,"D0428","Teachers",5,"Summer_teachers",2.2200000000000002,1.92]
[null,null,null,null,"D0428","Teachers",13,"Current Payment",663772,637903]
[null,null,null,null,"D0428","Transportation",3,"Insurance",0,27818]
[null,null,null,null,"D0428","Transportation",13,"CarryOver Adjustment",0,0]
[null,null,null,null,"D0429","Adjustments & Carryovers",6,"Total_Adj",0,0]
[null,null,null,null,"D0429","Catastrophic",5,"Per Student",0,0]
[null,null,null,null,"D0429","Payments",3,"March",0,0]
[null,null,null,null,"D0429","Teachers",3,"Regular_aides",0,0]
[null,null,null,null,"D0429","Teachers",7,"Summer_fte",0,0]
[null,null,null,null,"D0429","Transportation",1,"Salaries",0,0]
[null,null,null,null,"D0429","Transportation",6,"Capital_outlay_fund_equip",0,0]
[null,null,null,null,"D0429","Transportation",14,"Transportation Payment",0,5963]
[null,null,null,null,"D0430","Catastrophic",2,"Cat_Total_students",0,0]
[null,null,null,null,"D0430","Medicaid",1,"Medicaid_Students",0,30]
[null,null,null,null,"D0430","Payments",5,"June",0,0]
[null,null,null,null,"D0430","Teachers",6,"Summer_aides",0,0]
[null,null,null,null,"D0430","Teachers",9,"Regular_entitlement",0,0]
[null,null,null,null,"D0430","Transportation",3,"Insurance",0,0]
[null,null,null,null,"D0430","Transportation",15,"Supplemental",0,0]
[null,null,null,null,"D0431","Adjustments & Carryovers",1,"Carryover",0,0]
[null,null,null,null,"D0431","Catastrophic",4,"Cat_Stateaid",0,0]
[null,null,null,null,"D0431","Payments",6,"June Total",0,51252]
[null,null,null,null,"D0431","Payments",7,"Supplemental",0,0]
[null,null,null,null,"D0431","Teachers",9,"Regular_entitlement",0,0]
[null,null,null,null,"D0431","Transportation",3,"Insurance",0,0]
[null,null,null,null,"D0431","Transportation",5,"Other_expenses",0,6715]
[null,null,null,null,"D0432","Adjustments & Carryovers",2,"Refund",0,0]
[null,null,null,null,"D0432","Catastrophic",4,"Cat_Stateaid",0,0]
[null,null,null,null,"D0432","Catastrophic",5,"Per Student",0,0]
[null,null,null,null,"D0432","Payments",5,"June",0,0]
[null,null,null,null,"D0432","Teachers",6,"Summer_aides",0,0]
[null,null,null,null,"D0432","Teachers",11,"Tch_total",0,0]
[null,null,null,null,"D0432","Transportation",5,"Other_expenses",0,3545]
[null,null,null,null,"D0432","Transportation",14,"Transportation Payment",0,11982]
[null,null,null,null,"D0434","Adjustments & Carryovers",4,"Transportation_Adj",-6312,-67766]
[null,null,null,null,"D0434","Catastrophic",6,"Supplemental",0,0]
[null,null,null,null,"D0434","Payments",4,"April",0,0]
[null,null,null,null,"D0434","Summary",2,"Total Payments",0,116072]
[null,null,null,null,"D0434","Teachers",6,"Summer_aides",0,0]
[null,null,null,null,"D0434","Teachers",13,"Current Payment",0,0]
[null,null,null,null,"D0434","Transportation",7,"Depreciation",0,6192]
[null,null,null,null,"D0434","Transportation",15,"Supplemental",0,0]
[null,null,null,null,"D0435","Adjustments & Carryovers",2,"Refund",0,0]
[null,null,null,null,"D0435","Medicaid",2,"Paid",0,26550]
[null,null,null,null,"D0435","Payments",3,"March",930,28065]
[null,null,null,null,"D0435","Teachers",1,"Regular_teachers",1.02,2]
[null,null,null,null,"D0435","Teachers",9,"Regular_entitlement",74228,126680]
[null,null,null,null,"D0435","Transportation",3,"Insurance",0,2327]
[null,null,null,null,"D0435","Transportation",9,"Tran_total",0,137768]
[null,null,null,null,"D0436","Adjustments & Carryovers",2,"Refund",0,0]
[null,null,null,null,"D0436","Catastrophic",1,"Cat_total",0,0]
[null,null,null,null,"D0436","Medicaid",1,"Medicaid_Students",0,25]
[null,null,null,null,"D0436","Payments",5,"June",0,0]
[null,null,null,null,"D0436","Teachers",3,"Regular_aides",0,0]
[null,null,null,null,"D0436","Teachers",11,"Tch_total",0,0]
[null,null,null,null,"D0436","Transportation",6,"Capital_outlay_fund_equip",0,0]
[null,null,null,null,"D0436","Transportation",11,"Net_transportation_costs",0,67352]
[null,null,null,null,"D0437","Adjustments & Carryovers",4,"Transportation_Adj",0,169182]
[null,null,null,null,"D0437","Catastrophic",3,"Cat_Netcost",0,0]
[null,null,null,null,"D0437","Payments",1,"October",1695155,1619772]
[null,null,null,null,"D0437","Summary",1,"Total Entitlement",5498268,7809391]
[null,null,null,null,"D0437","Teachers",5,"Summer_teachers",1.4,1.28]
[null,null,null,null,"D0437","Teachers",13,"Current Payment",1174684,1139086]
[null,null,null,null,"D0437","Transportation",4,"Expend_inLieuOfTrans",0,0]
[null,null,null,null,"D0438","Adjustments & Carryovers",2,"Refund",0,0]
[null,null,null,null,"D0438","Catastrophic",4,"Cat_Stateaid",0,0]
[null,null,null,null,"D0438","Catastrophic",5,"Per Student",0,0]
[null,null,null,null,"D0438","Payments",3,"March",9286,0]
[null,null,null,null,"D0438","Teachers",5,"Summer_teachers",0,0]
[null,null,null,null,"D0438","Teachers",9,"Regular_entitlement",13860,15835]
[null,null,null,null,"D0438","Transportation",1,"Salaries",0,0]
[null,null,null,null,"D0438","Transportation",13,"CarryOver Adjustment",0,0]
[null,null,null,null,"D0438","Transportation",14,"Transportation Payment",0,602]
[null,null,null,null,"D0439","Medicaid",1,"Medicaid_Students",0,26]
[null,null,null,null,"D0439","Payments",4,"April",0,0]
[null,null,null,null,"D0439","Payments",5,"June",0,0]
[null,null,null,null,"D0439","Teachers",7,"Summer_fte",0,0]
[null,null,null,null,"D0439","Transportation",1,"Salaries",0,51780]
[null,null,null,null,"D0439","Transportation",6,"Capital_outlay_fund_equip",0,0]
[null,null,null,null,"D0439","Transportation",15,"Supplemental",0,0]
[null,null,null,null,"D0440","Catastrophic",2,"Cat_Total_students",0,0]
[null,null,null,null,"D0440","Medicaid",1,"Medicaid_Students",0,0]
[null,null,null,null,"D0440","Medicaid",4,"Supplemental",0,0]
[null,null,null,null,"D0440","Teachers",4,"Regular_fte",0,0]
[null,null,null,null,"D0440","Teachers",9,"Regular_entitlement",0,0]
[null,null,null,null,"D0440","Transportation",3,"Insurance",0,2500]
[null,null,null,null,"D0440","Transportation",9,"Tran_total",0,51871]
[null,null,null,null,"D0443","Adjustments & Carryovers",2,"Refund",0,0]
[null,null,null,null,"D0443","Catastrophic",4,"Cat_Stateaid",0,0]
[null,null,null,null,"D0443","Medicaid",3,"Per Student",0,590]
[null,null,null,null,"D0443","Payments",7,"Supplemental",0,0]
[null,null,null,null,"D0443","Teachers",1,"Regular_teachers",0,0]
[null,null,null,null,"D0443","Teachers",11,"Tch_total",0,0]
[null,null,null,null,"D0443","Transportation",5,"Other_expenses",0,46307]
[null,null,null,null,"D0443","Transportation",10,"Reimbursements",0,0]
[null,null,null,null,"D0444","Adjustments & Carryovers",5,"Catastrophic_Adj",0,0]
[null,null,null,null,"D0444","Catastrophic",6,"Supplemental",0,0]
[null,null,null,null,"D0444","Payments",1,"october",0,0]
[null,null,null,null,"D0444","Summary",2,"Total Payments",0,7221]
[null,null,null,null,"D0444","Teachers",4,"Regular_fte",0,0]
[null,null,null,null,"D0444","Teachers",12,"Current Entitlement",0,0]
[null,null,null,null,"D0444","Transportation",7,"Depreciation",0,2375]
[null,null,null,null,"D0444","Transportation",12,"Trans_entitlement_80pcnt",0,3131]
[null,null,null,null,"D0445","Adjustments & Carryovers",5,"Catastrophic_Adj",0,0]
[null,null,null,null,"D0445","Medicaid",4,"Supplemental",0,0]
[null,null,null,null,"D0445","Payments",3,"March",0,0]
[null,null,null,null,"D0445","Teachers",1,"Regular_teachers",0,0]
[null,null,null,null,"D0445","Teachers",6,"Summer_aides",0,0]
[null,null,null,null,"D0445","Teachers",14,"Supplemental",0,0]
[null,null,null,null,"D0445","Transportation",9,"Tran_total",0,348569]
[null,null,null,null,"D0445","Transportation",14,"Transportation Payment",0,278855]
[null,null,null,null,"D0446","Catastrophic",1,"Cat_total",0,0]
[null,null,null,null,"D0446","Medicaid",3,"Per Student",0,590]
[null,null,null,null,"D0446","Teachers",1,"Regular_teachers",0,0]
[null,null,null,null,"D0446","Teachers",3,"Regular_aides",0,0]
[null,null,null,null,"D0446","Transportation",1,"Salaries",0,72649]
[null,null,null,null,"D0446","Transportation",2,"Contracted_services",0,0]
[null,null,null,null,"D0446","Transportation",12,"Trans_entitlement_80pcnt",0,87696]
[null,null,null,null,"D0447","Catastrophic",2,"Cat_Total_students",0,0]
[null,null,null,null,"D0447","Catastrophic",3,"Cat_Netcost",0,0]
[null,null,null,null,"D0447","Payments",5,"June",0,0]
[null,null,null,null,"D0447","Teachers",3,"Regular_aides",0,0]
[null,null,null,null,"D0447","Teachers",4,"Regular_fte",0,0]
[null,null,null,null,"D0447","Transportation",3,"Insurance",0,168]
[null,null,null,null,"D0447","Transportation",11,"Net_transportation_costs",0,6946]
[null,null,null,null,"D0447","Transportation",12,"Trans_entitlement_80pcnt",0,5557]
[null,null,null,null,"D0448","Catastrophic",2,"Cat_Total_students",0,0]
[null,null,null,null,"D0448","Payments",2,"December",0,0]
[null,null,null,null,"D0448","Payments",7,"Supplemental",0,0]
[null,null,null,null,"D0448","Teachers",5,"Summer_teachers",0,0]
[null,null,null,null,"D0448","Teachers",13,"Current Payment",0,0]
[null,null,null,null,"D0448","Transportation",1,"Salaries",0,36754]
[null,null,null,null,"D0448","Transportation",13,"CarryOver Adjustment",-23561,-137]
[null,null,null,null,"D0449","Adjustments & Carryovers",3,"Teacher_Adj",0,0]
[null,null,null,null,"D0449","Catastrophic",5,"Per Student",0,0]
[null,null,null,null,"D0449","Payments",3,"March",0,0]
[null,null,null,null,"D0449","Summary",2,"Total Payments",0,138722]
[null,null,null,null,"D0449","Teachers",7,"Summer_fte",0,0]
[null,null,null,null,"D0449","Transportation",1,"Salaries",0,122000]
[null,null,null,null,"D0449","Transportation",6,"Capital_outlay_fund_equip",0,0]
[null,null,null,null,"D0449","Transportation",12,"Trans_entitlement_80pcnt",0,156000]
[null,null,null,null,"D0450","Adjustments & Carryovers",5,"Catastrophic_Adj",0,0]
[null,null,null,null,"D0450","Medicaid",1,"Medicaid_Students",0,103]
[null,null,null,null,"D0450","Payments",5,"June",0,599421]
[null,null,null,null,"D0450","Teachers",4,"Regular_fte",120.82,111.93]
[null,null,null,null,"D0450","Teachers",9,"Regular_entitlement",3721256,3544823]
[null,null,null,null,"D0450","Transportation",3,"Insurance",0,10700]
[null,null,null,null,"D0450","Transportation",8,"Teacher_transportation",0,6261]
[null,null,null,null,"D0452","Adjustments & Carryovers",1,"Carryover",0,0]
[null,null,null,null,"D0452","Catastrophic",2,"Cat_Total_students",0,0]
[null,null,null,null,"D0452","Medicaid",3,"Per Student",0,590]
[null,null,null,null,"D0452","Payments",7,"Supplemental",0,0]
[null,null,null,null,"D0452","Teachers",2,"Non_public_equiv",0,0]
[null,null,null,null,"D0452","Transportation",1,"Salaries",0,13610]
[null,null,null,null,"D0452","Transportation",2,"Contracted_services",0,0]
[null,null,null,null,"D0452","Transportation",10,"Reimbursements",0,0]
[null,null,null,null,"D0453","Adjustments & Carryovers",3,"Teacher_Adj",-23119,-8937]
[null,null,null,null,"D0453","Catastrophic",5,"Per Student",0,0]
[null,null,null,null,"D0453","Payments",1,"October",802725,808731]
[null,null,null,null,"D0453","Summary",2,"Total Payments",2441127,3925771]
[null,null,null,null,"D0453","Teachers",4,"Regular_fte",93.7,86.27]
[null,null,null,null,"D0453","Teachers",12,"Current Entitlement",2464246,2773025]
[null,null,null,null,"D0453","Transportation",4,"Expend_inLieuOfTrans",0,0]
[null,null,null,null,"D0453","Transportation",12,"Trans_entitlement_80pcnt",0,1108048]
[null,null,null,null,"D0454","Adjustments & Carryovers",5,"Catastrophic_Adj",0,0]
[null,null,null,null,"D0454","Payments",1,"October",0,0]
[null,null,null,null,"D0454","Payments",6,"June Total",0,7952]
[null,null,null,null,"D0454","Teachers",5,"Summer_teachers",0,0]
[null,null,null,null,"D0454","Teachers",13,"Current Payment",0,0]
[null,null,null,null,"D0454","Teachers",14,"Supplemental",0,0]
[null,null,null,null,"D0454","Transportation",12,"Trans_entitlement_80pcnt",0,5002]
[null,null,null,null,"D0454","Transportation",15,"Supplemental",0,0]
[null,null,null,null,"D0456","Catastrophic",1,"Cat_total",0,0]
[null,null,null,null,"D0456","Payments",3,"March",0,0]
[null,null,null,null,"D0456","Teachers",1,"Regular_teachers",0,0]
[null,null,null,null,"D0456","Teachers",7,"Summer_fte",0,0]
[null,null,null,null,"D0456","Transportation",1,"Salaries",0,7800]
[null,null,null,null,"D0456","Transportation",9,"Tran_total",0,23270]
[null,null,null,null,"D0456","Transportation",14,"Transportation Payment",0,15169]
[null,null,null,null,"D0457","Catastrophic",1,"Cat_total",0,0]
[null,null,null,null,"D0457","Catastrophic",5,"Per Student",0,0]
[null,null,null,null,"D0457","Payments",5,"June",0,1276154]
[null,null,null,null,"D0457","Teachers",3,"Regular_aides",187.56,181.06]
[null,null,null,null,"D0457","Teachers",8,"Entitlement_perfte",30800,31670]
[null,null,null,null,"D0457","Transportation",4,"Expend_inLieuOfTrans",0,0]
[null,null,null,null,"D0457","Transportation",11,"Net_transportation_costs",0,706133]
[null,null,null,null,"D0458","Adjustments & Carryovers",1,"Carryover",0,0]
[null,null,null,null,"D0458","Catastrophic",3,"Cat_Netcost",0,0]
[null,null,null,null,"D0458","Medicaid",2,"Paid",0,37170]
[null,null,null,null,"D0458","Payments",7,"Supplemental",0,0]
[null,null,null,null,"D0458","Teachers",5,"Summer_teachers",1.67,1.41]
[null,null,null,null,"D0458","Teachers",10,"Summer_entitlement",80080,76325]
[null,null,null,null,"D0458","Transportation",4,"Expend_inLieuOfTrans",0,0]
[null,null,null,null,"D0458","Transportation",15,"Supplemental",0,0]
[null,null,null,null,"D0459","Adjustments & Carryovers",3,"Teacher_Adj",0,0]
[null,null,null,null,"D0459","Catastrophic",5,"Per Student",0,0]
[null,null,null,null,"D0459","Medicaid",4,"Supplemental",0,0]
[null,null,null,null,"D0459","Summary",2,"Total Payments",0,8115]
[null,null,null,null,"D0459","Teachers",7,"Summer_fte",0,0]
[null,null,null,null,"D0459","Teachers",12,"Current Entitlement",0,0]
[null,null,null,null,"D0459","Transportation",6,"Capital_outlay_fund_equip",0,0]
[null,null,null,null,"D0459","Transportation",14,"Transportation Payment",0,5755]
[null,null,null,null,"D0460","Adjustments & Carryovers",3,"Teacher_Adj",0,0]
[null,null,null,null,"D0460","Medicaid",1,"Medicaid_Students",0,0]
[null,null,null,null,"D0460","Payments",2,"December",0,0]
[null,null,null,null,"D0460","Summary",3,"Overpayment",0,0]
[null,null,null,null,"D0460","Teachers",10,"Summer_entitlement",0,0]
[null,null,null,null,"D0460","Teachers",14,"Supplemental",0,0]
[null,null,null,null,"D0460","Transportation",8,"Teacher_transportation",0,0]
[null,null,null,null,"D0461","Adjustments & Carryovers",5,"Catastrophic_Adj",0,0]
[null,null,null,null,"D0461","Adjustments & Carryovers",6,"Total_Adj",0,-1078]
[null,null,null,null,"D0461","Medicaid",2,"Paid",0,21240]
[null,null,null,null,"D0461","Teachers",1,"Regular_teachers",0,0]
[null,null,null,null,"D0461","Teachers",2,"Non_public_equiv",0,0]
[null,null,null,null,"D0461","Teachers",10,"Summer_entitlement",0,0]
[null,null,null,null,"D0461","Transportation",7,"Depreciation",0,10390]
[null,null,null,null,"D0461","Transportation",10,"Reimbursements",0,0]
[null,null,null,null,"D0462","Catastrophic",1,"Cat_total",0,0]
[null,null,null,null,"D0462","Medicaid",3,"Per Student",0,590]
[null,null,null,null,"D0462","Payments",1,"october",0,0]
[null,null,null,null,"D0462","Teachers",3,"Regular_aides",0,0]
[null,null,null,null,"D0462","Teachers",11,"Tch_total",0,0]
[null,null,null,null,"D0462","Transportation",2,"Contracted_services",0,0]
[null,null,null,null,"D0462","Transportation",10,"Reimbursements",0,0]
[null,null,null,null,"D0463","Adjustments & Carryovers",3,"Teacher_Adj",0,0]
[null,null,null,null,"D0463","Catastrophic",3,"Cat_Netcost",0,0]
[null,null,null,null,"D0463","Payments",1,"October",0,0]
[null,null,null,null,"D0463","Summary",2,"Total Payments",0,20339]
[null,null,null,null,"D0463","Teachers",2,"Non_public_equiv",0,0]
[null,null,null,null,"D0463","Teachers",13,"Current Payment",0,0]
[null,null,null,null,"D0463","Transportation",4,"Expend_inLieuOfTrans",0,0]
[null,null,null,null,"D0463","Transportation",12,"Trans_entitlement_80pcnt",0,16339]
[null,null,null,null,"D0464","Adjustments & Carryovers",5,"Catastrophic_Adj",0,0]
[null,null,null,null,"D0464","Medicaid",2,"Paid",0,33630]
[null,null,null,null,"D0464","Payments",3,"March",0,0]
[null,null,null,null,"D0464","Teachers",1,"Regular_teachers",0,0]
[null,null,null,null,"D0464","Teachers",6,"Summer_aides",0,0]
[null,null,null,null,"D0464","Teachers",13,"Current Payment",0,0]
[null,null,null,null,"D0464","Transportation",6,"Capital_outlay_fund_equip",0,0]
[null,null,null,null,"D0464","Transportation",14,"Transportation Payment",0,329962]
[null,null,null,null,"D0465","Catastrophic",1,"Cat_total",0,0]
[null,null,null,null,"D0465","Catastrophic",6,"Supplemental",0,0]
[null,null,null,null,"D0465","Payments",1,"October",1571108,1612688]
[null,null,null,null,"D0465","Summary",3,"Overpayment",0,0]
[null,null,null,null,"D0465","Teachers",8,"Entitlement_perfte",30800,31670]
[null,null,null,null,"D0465","Transportation",2,"Contracted_services",0,65]
[null,null,null,null,"D0465","Transportation",10,"Reimbursements",0,0]
[null,null,null,null,"D0466","Adjustments & Carryovers",1,"Carryover",0,0]
[null,null,null,null,"D0466","Catastrophic",3,"Cat_Netcost",0,0]
[null,null,null,null,"D0466","Medicaid",2,"Paid",0,12980]
[null,null,null,null,"D0466","Payments",6,"June Total",0,12980]
[null,null,null,null,"D0466","Teachers",2,"Non_public_equiv",0,0]
[null,null,null,null,"D0466","Teachers",10,"Summer_entitlement",0,0]
[null,null,null,null,"D0466","Transportation",4,"Expend_inLieuOfTrans",0,0]
[null,null,null,null,"D0466","Transportation",9,"Tran_total",0,0]
[null,null,null,null,"D0467","Adjustments & Carryovers",6,"Total_Adj",0,0]
[null,null,null,null,"D0467","Catastrophic",5,"Per Student",0,0]
[null,null,null,null,"D0467","Medicaid",4,"Supplemental",0,0]
[null,null,null,null,"D0467","Summary",1,"Total Entitlement",0,5310]
[null,null,null,null,"D0467","Teachers",5,"Summer_teachers",0,0]
[null,null,null,null,"D0467","Teachers",12,"Current Entitlement",0,0]
[null,null,null,null,"D0467","Transportation",6,"Capital_outlay_fund_equip",0,0]
[null,null,null,null,"D0468","Adjustments & Carryovers",3,"Teacher_Adj",0,0]
[null,null,null,null,"D0468","Adjustments & Carryovers",4,"Transportation_Adj",0,0]
[null,null,null,null,"D0468","Payments",1,"october",0,0]
[null,null,null,null,"D0468","Summary",2,"Total Payments",0,0]
[null,null,null,null,"D0468","Summary",3,"Overpayment",0,0]
[null,null,null,null,"D0468","Teachers",12,"Current Entitlement",0,0]
[null,null,null,null,"D0468","Transportation",2,"Contracted_services",0,0]
[null,null,null,null,"D0468","Transportation",8,"Teacher_transportation",0,0]
[null,null,null,null,"D0469","Adjustments & Carryovers",5,"Catastrophic_Adj",0,0]
[null,null,null,null,"D0469","Medicaid",1,"Medicaid_Students",0,54]
[null,null,null,null,"D0469","Payments",2,"December",674737,474954]
[null,null,null,null,"D0469","Teachers",2,"Non_public_equiv",0,0.23]
[null,null,null,null,"D0469","Teachers",9,"Regular_entitlement",2565948,2730587]
[null,null,null,null,"D0469","Teachers",14,"Supplemental",0,0]
[null,null,null,null,"D0469","Transportation",8,"Teacher_transportation",0,3000]
[null,null,null,null,"D0469","Transportation",13,"CarryOver Adjustment",0,0]
[null,null,null,null,"D0470","Catastrophic",1,"Cat_total",0,0]
[null,null,null,null,"D0470","Medicaid",3,"Per Student",0,590]
[null,null,null,null,"D0470","Payments",4,"April",0,0]
[null,null,null,null,"D0470","Teachers",2,"Non_public_equiv",0,0]
[null,null,null,null,"D0470","Teachers",5,"Summer_teachers",0,0]
[null,null,null,null,"D0470","Transportation",2,"Contracted_services",0,0]
[null,null,null,null,"D0470","Transportation",10,"Reimbursements",0,0]
[null,null,null,null,"D0470","Transportation",15,"Supplemental",0,0]
[null,null,null,null,"D0471","Catastrophic",3,"Cat_Netcost",0,0]
[null,null,null,null,"D0471","Payments",1,"October",0,0]
[null,null,null,null,"D0471","Payments",6,"June Total",0,32064]
[null,null,null,null,"D0471","Teachers",4,"Regular_fte",0,0]
[null,null,null,null,"D0471","Teachers",8,"Entitlement_perfte",30800,31670]
[null,null,null,null,"D0471","Transportation",4,"Expend_inLieuOfTrans",0,0]
[null,null,null,null,"D0471","Transportation",12,"Trans_entitlement_80pcnt",0,31991]
[null,null,null,null,"D0473","Adjustments & Carryovers",2,"Refund",0,0]
[null,null,null,null,"D0473","Catastrophic",4,"Cat_Stateaid",0,0]
[null,null,null,null,"D0473","Payments",4,"April",0,0]
[null,null,null,null,"D0473","Summary",1,"Total Entitlement",0,140665]
[null,null,null,null,"D0473","Teachers",6,"Summer_aides",0,0]
[null,null,null,null,"D0473","Teachers",11,"Tch_total",0,0]
[null,null,null,null,"D0473","Transportation",5,"Other_expenses",0,50568]
[null,null,null,null,"D0473","Transportation",14,"Transportation Payment",0,124735]
[null,null,null,null,"D0474","Adjustments & Carryovers",4,"Transportation_Adj",0,0]
[null,null,null,null,"D0474","Catastrophic",6,"Supplemental",0,0]
[null,null,null,null,"D0474","Payments",4,"April",0,10866]
[null,null,null,null,"D0474","Teachers",5,"Summer_teachers",0,0]
[null,null,null,null,"D0474","Teachers",8,"Entitlement_perfte",30800,31670]
[null,null,null,null,"D0474","Transportation",6,"Capital_outlay_fund_equip",0,0]
[null,null,null,null,"D0474","Transportation",7,"Depreciation",0,0]
[null,null,null,null,"D0475","Adjustments & Carryovers",1,"Carryover",0,0]
[null,null,null,null,"D0475","Medicaid",1,"Medicaid_Students",0,176]
[null,null,null,null,"D0475","Medicaid",2,"Paid",0,103840]
[null,null,null,null,"D0475","Summary",3,"Overpayment",0,0]
[null,null,null,null,"D0475","Teachers",8,"Entitlement_perfte",30800,31670]
[null,null,null,null,"D0475","Transportation",2,"Contracted_services",0,1463930]
[null,null,null,null,"D0475","Transportation",8,"Teacher_transportation",0,26940]
[null,null,null,null,"D0476","Adjustments & Carryovers",1,"Carryover",0,0]
[null,null,null,null,"D0476","Adjustments & Carryovers",2,"Refund",0,0]
[null,null,null,null,"D0476","Catastrophic",6,"Supplemental",0,0]
[null,null,null,null,"D0476","Payments",7,"Supplemental",0,0]
[null,null,null,null,"D0476","Teachers",2,"Non_public_equiv",0,0]
[null,null,null,null,"D0476","Teachers",10,"Summer_entitlement",0,0]
[null,null,null,null,"D0476","Transportation",5,"Other_expenses",0,0]
[null,null,null,null,"D0476","Transportation",10,"Reimbursements",0,0]
[null,null,null,null,"D0477","Adjustments & Carryovers",3,"Teacher_Adj",0,0]
[null,null,null,null,"D0477","Catastrophic",5,"Per Student",0,0]
[null,null,null,null,"D0477","Medicaid",4,"Supplemental",0,0]
[null,null,null,null,"D0477","Payments",7,"Supplemental",0,0]
[null,null,null,null,"D0477","Teachers",4,"Regular_fte",0,0]
[null,null,null,null,"D0477","Teachers",12,"Current Entitlement",0,0]
[null,null,null,null,"D0477","Transportation",6,"Capital_outlay_fund_equip",0,0]
[null,null,null,null,"D0477","Transportation",8,"Teacher_transportation",0,0]
[null,null,null,null,"D0479","Adjustments & Carryovers",5,"Catastrophic_Adj",0,0]
[null,null,null,null,"D0479","Catastrophic",4,"Cat_Stateaid",0,0]
[null,null,null,null,"D0479","Payments",2,"December",0,0]
[null,null,null,null,"D0479","Summary",3,"Overpayment",0,0]
[null,null,null,null,"D0479","Teachers",8,"Entitlement_perfte",30800,31670]
[null,null,null,null,"D0479","Teachers",14,"Supplemental",0,0]
[null,null,null,null,"D0479","Transportation",8,"Teacher_transportation",0,0]
[null,null,null,null,"D0479","Transportation",13,"CarryOver Adjustment",0,0]
[null,null,null,null,"D0480","Adjustments & Carryovers",4,"Transportation_Adj",0,5566]
[null,null,null,null,"D0480","Catastrophic",6,"Supplemental",0,0]
[null,null,null,null,"D0480","Payments",4,"April",453025,446021]
[null,null,null,null,"D0480","Teachers",2,"Non_public_equiv",0,0]
[null,null,null,null,"D0480","Teachers",7,"Summer_fte",1.27,0]
[null,null,null,null,"D0480","Transportation",5,"Other_expenses",0,15419]
[null,null,null,null,"D0480","Transportation",10,"Reimbursements",0,0]
[null,null,null,null,"D0480","Transportation",15,"Supplemental",0,0]
[null,null,null,null,"D0481","Catastrophic",2,"Cat_Total_students",0,0]
[null,null,null,null,"D0481","Medicaid",3,"Per Student",0,590]
[null,null,null,null,"D0481","Payments",6,"June Total",0,21006]
[null,null,null,null,"D0481","Teachers",4,"Regular_fte",0,0]
[null,null,null,null,"D0481","Teachers",9,"Regular_entitlement",0,0]
[null,null,null,null,"D0481","Transportation",3,"Insurance",0,805]
[null,null,null,null,"D0482","Adjustments & Carryovers",1,"Carryover",0,0]
[null,null,null,null,"D0482","Adjustments & Carryovers",2,"Refund",0,0]
[null,null,null,null,"D0482","Catastrophic",4,"Cat_Stateaid",0,0]
[null,null,null,null,"D0482","Payments",6,"June Total",0,2442]
[null,null,null,null,"D0482","Summary",3,"Overpayment",0,0]
[null,null,null,null,"D0482","Teachers",6,"Summer_aides",0,0]
[null,null,null,null,"D0482","Transportation",4,"Expend_inLieuOfTrans",0,0]
[null,null,null,null,"D0482","Transportation",5,"Other_expenses",0,1359]
[null,null,null,null,"D0483","Adjustments & Carryovers",4,"Transportation_Adj",174,0]
[null,null,null,null,"D0483","Catastrophic",5,"Per Student",0,0]
[null,null,null,null,"D0483","Catastrophic",6,"Supplemental",0,0]
[null,null,null,null,"D0483","Summary",1,"Total Entitlement",0,19396]
[null,null,null,null,"D0483","Teachers",6,"Summer_aides",0,0]
[null,null,null,null,"D0483","Teachers",11,"Tch_total",0,6334]
[null,null,null,null,"D0483","Transportation",6,"Capital_outlay_fund_equip",0,0]
[null,null,null,null,"D0483","Transportation",14,"Transportation Payment",0,8932]
[null,null,null,null,"D0484","Adjustments & Carryovers",4,"Transportation_Adj",0,0]
[null,null,null,null,"D0484","Catastrophic",1,"Cat_total",0,0]
[null,null,null,null,"D0484","Payments",5,"June",0,0]
[null,null,null,null,"D0484","Summary",3,"Overpayment",0,0]
[null,null,null,null,"D0484","Teachers",8,"Entitlement_perfte",30800,31670]
[null,null,null,null,"D0484","Teachers",13,"Current Payment",0,0]
[null,null,null,null,"D0484","Transportation",8,"Teacher_transportation",0,0]
[null,null,null,null,"D0487","Adjustments & Carryovers",1,"Carryover",0,0]
[null,null,null,null,"D0487","Adjustments & Carryovers",6,"Total_Adj",0,-991]
[null,null,null,null,"D0487","Medicaid",2,"Paid",0,10620]
[null,null,null,null,"D0487","Payments",2,"December",0,0]
[null,null,null,null,"D0487","Teachers",2,"Non_public_equiv",0,0]
[null,null,null,null,"D0487","Teachers",10,"Summer_entitlement",0,0]
[null,null,null,null,"D0487","Transportation",1,"Salaries",0,43674]
[null,null,null,null,"D0487","Transportation",9,"Tran_total",0,58229]
[null,null,null,null,"D0489","Adjustments & Carryovers",4,"Transportation_Adj",10941,-4847]
[null,null,null,null,"D0489","Catastrophic",2,"Cat_Total_students",0,0]
[null,null,null,null,"D0489","Medicaid",4,"Supplemental",0,0]
[null,null,null,null,"D0489","Payments",5,"June",0,803864]
[null,null,null,null,"D0489","Teachers",3,"Regular_aides",172.8,133.61000000000001]
[null,null,null,null,"D0489","Teachers",12,"Current Entitlement",4224725,4377428]
[null,null,null,null,"D0489","Transportation",3,"Insurance",0,7138]
[null,null,null,null,"D0489","Transportation",11,"Net_transportation_costs",0,354091]
[null,null,null,null,"D0490","Catastrophic",1,"Cat_total",0,0]
[null,null,null,null,"D0490","Catastrophic",4,"Cat_Stateaid",0,0]
[null,null,null,null,"D0490","Payments",2,"December",0,0]
[null,null,null,null,"D0490","Payments",7,"Supplemental",0,0]
[null,null,null,null,"D0490","Teachers",5,"Summer_teachers",0,0]
[null,null,null,null,"D0490","Teachers",14,"Supplemental",0,0]
[null,null,null,null,"D0490","Transportation",5,"Other_expenses",0,20260]
[null,null,null,null,"D0490","Transportation",13,"CarryOver Adjustment",-46020,-45701]
[null,null,null,null,"D0491","Catastrophic",4,"Cat_Stateaid",0,0]
[null,null,null,null,"D0491","Payments",2,"December",0,9240]
[null,null,null,null,"D0491","Payments",4,"April",0,0]
[null,null,null,null,"D0491","Teachers",6,"Summer_aides",0,0]
[null,null,null,null,"D0491","Teachers",7,"Summer_fte",0,0]
[null,null,null,null,"D0491","Transportation",1,"Salaries",0,161280]
[null,null,null,null,"D0491","Transportation",11,"Net_transportation_costs",0,235553]
[null,null,null,null,"D0491","Transportation",15,"Supplemental",0,0]
[null,null,null,null,"D0492","Catastrophic",6,"Supplemental",0,0]
[null,null,null,null,"D0492","Payments",4,"April",0,0]
[null,null,null,null,"D0492","Payments",5,"June",0,0]
[null,null,null,null,"D0492","Teachers",8,"Entitlement_perfte",30800,31670]
[null,null,null,null,"D0492","Transportation",2,"Contracted_services",0,0]
[null,null,null,null,"D0492","Transportation",3,"Insurance",0,0]
[null,null,null,null,"D0492","Transportation",15,"Supplemental",0,0]
[null,null,null,null,"D0493","Catastrophic",1,"Cat_total",0,0]
[null,null,null,null,"D0493","Medicaid",2,"Paid",0,36580]
[null,null,null,null,"D0493","Payments",6,"June Total",0,88719]
[null,null,null,null,"D0493","Teachers",4,"Regular_fte",0,0]
[null,null,null,null,"D0493","Teachers",6,"Summer_aides",0,0]
[null,null,null,null,"D0493","Transportation",4,"Expend_inLieuOfTrans",0,0]
[null,null,null,null,"D0493","Transportation",9,"Tran_total",0,98581]
[null,null,null,null,"D0494","Adjustments & Carryovers",2,"Refund",0,0]
[null,null,null,null,"D0494","Catastrophic",4,"Cat_Stateaid",0,0]
[null,null,null,null,"D0494","Medicaid",4,"Supplemental",0,0]
[null,null,null,null,"D0494","Summary",1,"Total Entitlement",0,1770]
[null,null,null,null,"D0494","Teachers",6,"Summer_aides",0,0]
[null,null,null,null,"D0494","Teachers",11,"Tch_total",0,0]
[null,null,null,null,"D0494","Transportation",3,"Insurance",0,0]
[null,null,null,null,"D0494","Transportation",11,"Net_transportation_costs",0,0]
[null,null,null,null,"D0495","Adjustments & Carryovers",4,"Transportation_Adj",3189,571]
[null,null,null,null,"D0495","Catastrophic",6,"Supplemental",0,0]
[null,null,null,null,"D0495","Payments",5,"June",0,210421]
[null,null,null,null,"D0495","Summary",3,"Overpayment",0,0]
[null,null,null,null,"D0495","Teachers",8,"Entitlement_perfte",30800,31670]
[null,null,null,null,"D0495","Teachers",13,"Current Payment",224138,251057]
[null,null,null,null,"D0495","Transportation",7,"Depreciation",0,29613]
[null,null,null,null,"D0495","Transportation",14,"Transportation Payment",0,115073]
[null,null,null,null,"D0496","Adjustments & Carryovers",6,"Total_Adj",0,-71]
[null,null,null,null,"D0496","Medicaid",2,"Paid",0,1180]
[null,null,null,null,"D0496","Payments",3,"March",0,0]
[null,null,null,null,"D0496","Teachers",6,"Summer_aides",0,0]
[null,null,null,null,"D0496","Teachers",7,"Summer_fte",0,0]
[null,null,null,null,"D0496","Transportation",1,"Salaries",0,2207]
[null,null,null,null,"D0496","Transportation",9,"Tran_total",0,6171]
[null,null,null,null,"D0496","Transportation",14,"Transportation Payment",0,4866]
[null,null,null,null,"D0497","Catastrophic",4,"Cat_Stateaid",0,17357]
[null,null,null,null,"D0497","Medicaid",4,"Supplemental",0,0]
[null,null,null,null,"D0497","Payments",5,"June",0,1437762]
[null,null,null,null,"D0497","Teachers",3,"Regular_aides",253.22,227.12]
[null,null,null,null,"D0497","Teachers",9,"Regular_entitlement",10167080,9858238]
[null,null,null,null,"D0497","Transportation",3,"Insurance",0,0]
[null,null,null,null,"D0497","Transportation",11,"Net_transportation_costs",0,4077950]
[null,null,null,null,"D0498","Catastrophic",2,"Cat_Total_students",0,0]
[null,null,null,null,"D0498","Catastrophic",3,"Cat_Netcost",0,0]
[null,null,null,null,"D0498","Payments",5,"June",0,0]
[null,null,null,null,"D0498","Teachers",4,"Regular_fte",0,0]
[null,null,null,null,"D0498","Teachers",5,"Summer_teachers",0,0]
[null,null,null,null,"D0498","Transportation",3,"Insurance",0,0]
[null,null,null,null,"D0498","Transportation",6,"Capital_outlay_fund_equip",0,0]
[null,null,null,null,"D0498","Transportation",13,"CarryOver Adjustment",0,0]
[null,null,null,null,"D0499","Catastrophic",4,"Cat_Stateaid",0,0]
[null,null,null,null,"D0499","Payments",2,"December",0,0]
[null,null,null,null,"D0499","Summary",1,"Total Entitlement",0,68988]
[null,null,null,null,"D0499","Teachers",6,"Summer_aides",0,0]
[null,null,null,null,"D0499","Teachers",14,"Supplemental",0,0]
[null,null,null,null,"D0499","Transportation",5,"Other_expenses",0,10500]
[null,null,null,null,"D0499","Transportation",13,"CarryOver Adjustment",0,-5777]
[null,null,null,null,"D0500","Adjustments & Carryovers",2,"Refund",0,0]
[null,null,null,null,"D0500","Catastrophic",6,"Supplemental",0,0]
[null,null,null,null,"D0500","Payments",4,"April",3655787,1923469]
[null,null,null,null,"D0500","Summary",2,"Total Payments",9032969,13450618]
[null,null,null,null,"D0500","Teachers",9,"Regular_entitlement",12170312,11431920]
[null,null,null,null,"D0500","Transportation",2,"Contracted_services",0,232645]
[null,null,null,null,"D0500","Transportation",7,"Depreciation",0,71320]
[null,null,null,null,"D0500","Transportation",15,"Supplemental",0,0]
[null,null,null,null,"D0501","Adjustments & Carryovers",5,"Catastrophic_Adj",0,0]
[null,null,null,null,"D0501","Medicaid",1,"Medicaid_Students",0,774]
[null,null,null,null,"D0501","Payments",6,"June Total",0,5093048]
[null,null,null,null,"D0501","Teachers",1,"Regular_teachers",324.19,308.83]
[null,null,null,null,"D0501","Teachers",9,"Regular_entitlement",14579796,14242949]
[null,null,null,null,"D0501","Transportation",6,"Capital_outlay_fund_equip",0,12014]
[null,null,null,null,"D0501","Transportation",9,"Tran_total",0,2433279]
[null,null,null,null,"D0502","Adjustments & Carryovers",2,"Refund",0,0]
[null,null,null,null,"D0502","Catastrophic",1,"Cat_total",0,0]
[null,null,null,null,"D0502","Medicaid",3,"Per Student",0,590]
[null,null,null,null,"D0502","Summary",1,"Total Entitlement",0,4130]
[null,null,null,null,"D0502","Teachers",3,"Regular_aides",0,0]
[null,null,null,null,"D0502","Teachers",11,"Tch_total",0,0]
[null,null,null,null,"D0502","Transportation",5,"Other_expenses",0,0]
[null,null,null,null,"D0502","Transportation",9,"Tran_total",0,0]
[null,null,null,null,"D0503","Adjustments & Carryovers",4,"Transportation_Adj",0,3343]
[null,null,null,null,"D0503","Catastrophic",3,"Cat_Netcost",0,0]
[null,null,null,null,"D0503","Payments",1,"october",0,0]
[null,null,null,null,"D0503","Teachers",1,"Regular_teachers",0,0]
[null,null,null,null,"D0503","Teachers",5,"Summer_teachers",0,0]
[null,null,null,null,"D0503","Teachers",13,"Current Payment",0,0]
[null,null,null,null,"D0503","Transportation",11,"Net_transportation_costs",0,131339]
[null,null,null,null,"D0503","Transportation",12,"Trans_entitlement_80pcnt",0,105071]
[null,null,null,null,"D0504","Adjustments & Carryovers",5,"Catastrophic_Adj",0,0]
[null,null,null,null,"D0504","Payments",2,"December",0,0]
[null,null,null,null,"D0504","Payments",3,"March",0,0]
[null,null,null,null,"D0504","Teachers",1,"Regular_teachers",0,0]
[null,null,null,null,"D0504","Teachers",12,"Current Entitlement",0,0]
[null,null,null,null,"D0504","Transportation",1,"Salaries",0,73233]
[null,null,null,null,"D0504","Transportation",13,"CarryOver Adjustment",-10815,-18026]
[null,null,null,null,"D0505","Adjustments & Carryovers",6,"Total_Adj",0,0]
[null,null,null,null,"D0505","Catastrophic",1,"Cat_total",0,0]
[null,null,null,null,"D0505","Medicaid",4,"Supplemental",0,0]
[null,null,null,null,"D0505","Teachers",2,"Non_public_equiv",0,0]
[null,null,null,null,"D0505","Teachers",7,"Summer_fte",0,0]
[null,null,null,null,"D0505","Transportation",1,"Salaries",0,63830]
[null,null,null,null,"D0505","Transportation",9,"Tran_total",0,94232]
[null,null,null,null,"D0505","Transportation",15,"Supplemental",0,0]
[null,null,null,null,"D0506","Catastrophic",2,"Cat_Total_students",0,0]
[null,null,null,null,"D0506","Medicaid",4,"Supplemental",0,0]
[null,null,null,null,"D0506","Payments",5,"June",0,0]
[null,null,null,null,"D0506","Teachers",1,"Regular_teachers",0,0]
[null,null,null,null,"D0506","Teachers",9,"Regular_entitlement",0,0]
[null,null,null,null,"D0506","Transportation",3,"Insurance",0,8012]
[null,null,null,null,"D0506","Transportation",11,"Net_transportation_costs",0,337433]
[null,null,null,null,"D0507","Adjustments & Carryovers",5,"Catastrophic_Adj",0,0]
[null,null,null,null,"D0507","Catastrophic",4,"Cat_Stateaid",0,0]
[null,null,null,null,"D0507","Payments",2,"December",0,0]
[null,null,null,null,"D0507","Payments",7,"Supplemental",0,0]
[null,null,null,null,"D0507","Teachers",4,"Regular_fte",0,0]
[null,null,null,null,"D0507","Teachers",11,"Tch_total",0,0]
[null,null,null,null,"D0507","Transportation",5,"Other_expenses",0,188]
[null,null,null,null,"D0507","Transportation",13,"CarryOver Adjustment",0,0]
[null,null,null,null,"D0508","Adjustments & Carryovers",3,"Teacher_Adj",0,0]
[null,null,null,null,"D0508","Catastrophic",2,"Cat_Total_students",0,0]
[null,null,null,null,"D0508","Payments",1,"October",0,0]
[null,null,null,null,"D0508","Summary",2,"Total Payments",0,135920]
[null,null,null,null,"D0508","Teachers",7,"Summer_fte",0,0]
[null,null,null,null,"D0508","Transportation",1,"Salaries",0,98258]
[null,null,null,null,"D0508","Transportation",7,"Depreciation",0,12008]
[null,null,null,null,"D0508","Transportation",15,"Supplemental",0,0]
[null,null,null,null,"D0509","Adjustments & Carryovers",5,"Catastrophic_Adj",0,0]
[null,null,null,null,"D0509","Medicaid",1,"Medicaid_Students",0,4]
[null,null,null,null,"D0509","Payments",3,"March",0,0]
[null,null,null,null,"D0509","Teachers",1,"Regular_teachers",0,0]
[null,null,null,null,"D0509","Teachers",9,"Regular_entitlement",0,0]
[null,null,null,null,"D0509","Teachers",14,"Supplemental",0,0]
[null,null,null,null,"D0509","Transportation",12,"Trans_entitlement_80pcnt",0,0]
[null,null,null,null,"D0511","Adjustments & Carryovers",6,"Total_Adj",0,0]
[null,null,null,null,"D0511","Catastrophic",1,"Cat_total",0,0]
[null,null,null,null,"D0511","Medicaid",3,"Per Student",0,590]
[null,null,null,null,"D0511","Teachers",1,"Regular_teachers",0,0]
[null,null,null,null,"D0511","Teachers",4,"Regular_fte",0,0]
[null,null,null,null,"D0511","Teachers",11,"Tch_total",0,0]
[null,null,null,null,"D0511","Transportation",9,"Tran_total",0,0]
[null,null,null,null,"D0511","Transportation",10,"Reimbursements",0,0]
[null,null,null,null,"D0512","Catastrophic",2,"Cat_Total_students",0,7]
[null,null,null,null,"D0512","Medicaid",4,"Supplemental",0,0]
[null,null,null,null,"D0512","Payments",1,"October",4662273,4448213]
[null,null,null,null,"D0512","Teachers",3,"Regular_aides",388.92,360.96]
[null,null,null,null,"D0512","Teachers",11,"Tch_total",18142432,18088638]
[null,null,null,null,"D0512","Transportation",1,"Salaries",0,0]
[null,null,null,null,"D0512","Transportation",11,"Net_transportation_costs",0,9033235]
[null,null,null,null,"D0602","Adjustments & Carryovers",4,"Transportation_Adj",19733,-39347]
[null,null,null,null,"D0602","Catastrophic",3,"Cat_Netcost",0,0]
[null,null,null,null,"D0602","Payments",3,"March",575771,573848]
[null,null,null,null,"D0602","Summary",3,"Overpayment",0,0]
[null,null,null,null,"D0602","Teachers",5,"Summer_teachers",1.06,1.73]
[null,null,null,null,"D0602","Teachers",13,"Current Payment",828685,611326]
[null,null,null,null,"D0602","Transportation",4,"Expend_inLieuOfTrans",0,0]
[null,null,null,null,"D0602","Transportation",13,"CarryOver Adjustment",0,0]
[null,null,null,null,"D0603","Adjustments & Carryovers",6,"Total_Adj",-85451,-207530]
[null,null,null,null,"D0603","Catastrophic",5,"Per Student",0,0]
[null,null,null,null,"D0603","Payments",3,"March",733334,811549]
[null,null,null,null,"D0603","Payments",6,"June Total",0,1268645]
[null,null,null,null,"D0603","Teachers",7,"Summer_fte",0.96,1.07]
[null,null,null,null,"D0603","Transportation",1,"Salaries",0,194699]
[null,null,null,null,"D0603","Transportation",6,"Capital_outlay_fund_equip",0,0]
[null,null,null,null,"D0603","Transportation",15,"Supplemental",0,0]
[null,null,null,null,"D0605","Catastrophic",2,"Cat_Total_students",0,0]
[null,null,null,null,"D0605","Medicaid",1,"Medicaid_Students",0,0]
[null,null,null,null,"D0605","Payments",5,"June",0,1260328]
[null,null,null,null,"D0605","Teachers",3,"Regular_aides",195.22,207.45]
[null,null,null,null,"D0605","Teachers",7,"Summer_fte",2.0499999999999998,1.81]
[null,null,null,null,"D0605","Transportation",3,"Insurance",0,72000]
[null,null,null,null,"D0605","Transportation",8,"Teacher_transportation",0,38000]
[null,null,null,null,"D0607","Adjustments & Carryovers",1,"Carryover",0,0]
[null,null,null,null,"D0607","Catastrophic",5,"Per Student",0,0]
[null,null,null,null,"D0607","Medicaid",3,"Per Student",0,0]
[null,null,null,null,"D0607","Payments",7,"Supplemental",0,0]
[null,null,null,null,"D0607","Teachers",2,"Non_public_equiv",0,0]
[null,null,null,null,"D0607","Teachers",10,"Summer_entitlement",3388,7601]
[null,null,null,null,"D0607","Transportation",4,"Expend_inLieuOfTrans",0,0]
[null,null,null,null,"D0607","Transportation",10,"Reimbursements",0,0]
[null,null,null,null,"D0608","Adjustments & Carryovers",3,"Teacher_Adj",-68090,-135957]
[null,null,null,null,"D0608","Catastrophic",5,"Per Student",0,0]
[null,null,null,null,"D0608","Payments",6,"June Total",0,1162881]
[null,null,null,null,"D0608","Summary",2,"Total Payments",4712487,5699563]
[null,null,null,null,"D0608","Teachers",11,"Tch_total",5626544,5642961]
[null,null,null,null,"D0608","Teachers",12,"Current Entitlement",4775577,5642961]
[null,null,null,null,"D0608","Transportation",7,"Depreciation",0,8008]
[null,null,null,null,"D0609","Adjustments & Carryovers",4,"Transportation_Adj",26946,-4335]
[null,null,null,null,"D0609","Adjustments & Carryovers",5,"Catastrophic_Adj",0,0]
[null,null,null,null,"D0609","Payments",1,"October",5042422,4758215]
[null,null,null,null,"D0609","Summary",2,"Total Payments",11010053,13185699]
[null,null,null,null,"D0609","Teachers",7,"Summer_fte",80.819999999999993,78.41]
[null,null,null,null,"D0609","Teachers",13,"Current Payment",1896954,1726762]
[null,null,null,null,"D0609","Transportation",7,"Depreciation",0,24243]
[null,null,null,null,"D0609","Transportation",8,"Teacher_transportation",0,1384058]
[null,null,null,null,"D0610","Adjustments & Carryovers",3,"Teacher_Adj",-12352,-13086]
[null,null,null,null,"D0610","Medicaid",2,"Paid",0,0]
[null,null,null,null,"D0610","Payments",3,"March",772378,831174]
[null,null,null,null,"D0610","Teachers",1,"Regular_teachers",102.94,103.35]
[null,null,null,null,"D0610","Teachers",9,"Regular_entitlement",4849152,4991825]
[null,null,null,null,"D0610","Teachers",10,"Summer_entitlement",80696,69041]
[null,null,null,null,"D0610","Transportation",9,"Tran_total",0,115510]
[null,null,null,null,"D0611","Adjustments & Carryovers",2,"Refund",0,0]
[null,null,null,null,"D0611","Catastrophic",1,"Cat_total",0,0]
[null,null,null,null,"D0611","Medicaid",2,"Paid",0,0]
[null,null,null,null,"D0611","Payments",5,"June",0,934290]
[null,null,null,null,"D0611","Teachers",3,"Regular_aides",174.1,145.12]
[null,null,null,null,"D0611","Teachers",11,"Tch_total",5300680,5097920]
[null,null,null,null,"D0611","Transportation",2,"Contracted_services",0,0]
[null,null,null,null,"D0611","Transportation",7,"Depreciation",0,0]
[null,null,null,null,"D0613","Adjustments & Carryovers",1,"Carryover",0,0]
[null,null,null,null,"D0613","Catastrophic",3,"Cat_Netcost",0,0]
[null,null,null,null,"D0613","Payments",1,"October",2318085,2191265]
[null,null,null,null,"D0613","Summary",2,"Total Payments",5737152,8323599]
[null,null,null,null,"D0613","Teachers",5,"Summer_teachers",13.3,7.27]
[null,null,null,null,"D0613","Teachers",13,"Current Payment",1266824,1279891]
[null,null,null,null,"D0613","Transportation",4,"Expend_inLieuOfTrans",0,0]
[null,null,null,null,"D0613","Transportation",10,"Reimbursements",0,0]
[null,null,null,null,"D0614","Adjustments & Carryovers",3,"Teacher_Adj",-44971,-43404]
[null,null,null,null,"D0614","Catastrophic",5,"Per Student",0,63830]
[null,null,null,null,"D0614","Payments",3,"March",665650,582613]
[null,null,null,null,"D0614","Summary",1,"Total Entitlement",3467723,4204927]
[null,null,null,null,"D0614","Teachers",10,"Summer_entitlement",65296,62707]
[null,null,null,null,"D0614","Teachers",12,"Current Entitlement",3467723,4149087]
[null,null,null,null,"D0614","Transportation",6,"Capital_outlay_fund_equip",0,0]
[null,null,null,null,"D0614","Transportation",14,"Transportation Payment",0,34000]
[null,null,null,null,"D0615","Adjustments & Carryovers",6,"Total_Adj",-4496,0]
[null,null,null,null,"D0615","Medicaid",1,"Medicaid_Students",0,0]
[null,null,null,null,"D0615","Payments",5,"June",0,240405]
[null,null,null,null,"D0615","Summary",3,"Overpayment",0,0]
[null,null,null,null,"D0615","Teachers",8,"Entitlement_perfte",30800,31670]
[null,null,null,null,"D0615","Transportation",7,"Depreciation",0,6796]
[null,null,null,null,"D0615","Transportation",8,"Teacher_transportation",0,11877]
[null,null,null,null,"D0616","Adjustments & Carryovers",1,"Carryover",0,0]
[null,null,null,null,"D0616","Medicaid",1,"Medicaid_Students",0,0]
[null,null,null,null,"D0616","Payments",1,"October",319858,354430]
[null,null,null,null,"D0616","Payments",7,"Supplemental",0,0]
[null,null,null,null,"D0616","Teachers",9,"Regular_entitlement",1203356,1377328]
[null,null,null,null,"D0616","Teachers",10,"Summer_entitlement",6468,4434]
[null,null,null,null,"D0616","Transportation",8,"Teacher_transportation",0,4195]
[null,null,null,null,"D0616","Transportation",10,"Reimbursements",0,0]
[null,null,null,null,"D0617","Adjustments & Carryovers",3,"Teacher_Adj",-7284,-15000]
[null,null,null,null,"D0617","Medicaid",3,"Per Student",0,0]
[null,null,null,null,"D0617","Payments",7,"Supplemental",0,0]
[null,null,null,null,"D0617","Teachers",2,"Non_public_equiv",0,0]
[null,null,null,null,"D0617","Teachers",11,"Tch_total",2370676,2638111]
[null,null,null,null,"D0617","Transportation",5,"Other_expenses",0,500]
[null,null,null,null,"D0617","Transportation",10,"Reimbursements",0,0]
[null,null,null,null,"D0617","Transportation",13,"CarryOver Adjustment",0,0]
[null,null,null,null,"D0619","Adjustments & Carryovers",6,"Total_Adj",-30967,-21756]
[null,null,null,null,"D0619","Catastrophic",1,"Cat_total",0,105589]
[null,null,null,null,"D0619","Catastrophic",2,"Cat_Total_students",0,1]
[null,null,null,null,"D0619","Catastrophic",3,"Cat_Netcost",0,41759]
[null,null,null,null,"D0619","Catastrophic",4,"Cat_Stateaid",0,31319]
[null,null,null,null,"D0619","Catastrophic",5,"Per Student",0,63830]
[null,null,null,null,"D0619","Catastrophic",6,"Supplemental",0,0]
[null,null,null,null,"D0619","Medicaid",1,"Medicaid_Students",0,0]
[null,null,null,null,"D0619","Medicaid",2,"Paid",0,0]
[null,null,null,null,"D0619","Medicaid",3,"Per Student",0,0]
[null,null,null,null,"D0619","Medicaid",4,"Supplemental",0,0]
[null,null,null,null,"D0619","Payments",1,"October",596212,580888]
[null,null,null,null,"D0619","Payments",2,"December",548765,527101]
[null,null,null,null,"D0619","Payments",3,"March",310075,337736]
[null,null,null,null,"D0619","Payments",4,"April",361723,378400]
[null,null,null,null,"D0619","Payments",5,"June",0,399521]
[null,null,null,null,"D0619","Payments",6,"June Total",0,616566]
[null,null,null,null,"D0619","Payments",7,"Supplemental",0,0]
[null,null,null,null,"D0619","Summary",1,"Total Entitlement",1847740,2462447]
[null,null,null,null,"D0619","Summary",2,"Total Payments",1816775,2440693]
[null,null,null,null,"D0619","Summary",3,"Overpayment",0,0]
[null,null,null,null,"D0619","Teachers",1,"Regular_teachers",34.89,35.75]
[null,null,null,null,"D0619","Teachers",2,"Non_public_equiv",0,0.12]
[null,null,null,null,"D0619","Teachers",3,"Regular_aides",87.75,85.1]
[null,null,null,null,"D0619","Teachers",4,"Regular_fte",69.989999999999995,69.91]
[null,null,null,null,"D0619","Teachers",5,"Summer_teachers",0.75,0.57999999999999996]
[null,null,null,null,"D0619","Teachers",6,"Summer_aides",1.1299999999999999,1.02]
[null,null,null,null,"D0619","Teachers",7,"Summer_fte",1.2,0.99]
[null,null,null,null,"D0619","Teachers",8,"Entitlement_perfte",30800,31670]
[null,null,null,null,"D0619","Teachers",9,"Regular_entitlement",2155692,2214050]
[null,null,null,null,"D0619","Teachers",10,"Summer_entitlement",36960,31353]
[null,null,null,null,"D0619","Teachers",11,"Tch_total",2192652,2245403]
[null,null,null,null,"D0619","Teachers",12,"Current Entitlement",1847741,2245403]
[null,null,null,null,"D0619","Teachers",13,"Current Payment",361723,378400]
[null,null,null,null,"D0619","Teachers",14,"Supplemental",0,0]
[null,null,null,null,"D0619","Transportation",1,"Salaries",0,99323]
[null,null,null,null,"D0619","Transportation",2,"Contracted_services",0,866]
[null,null,null,null,"D0619","Transportation",3,"Insurance",0,18863]
[null,null,null,null,"D0619","Transportation",4,"Expend_inLieuOfTrans",0,0]
[null,null,null,null,"D0619","Transportation",5,"Other_expenses",0,48449]
[null,null,null,null,"D0619","Transportation",6,"Capital_outlay_fund_equip",0,0]
[null,null,null,null,"D0619","Transportation",7,"Depreciation",0,20066]
[null,null,null,null,"D0619","Transportation",8,"Teacher_transportation",0,49195]
[null,null,null,null,"D0619","Transportation",9,"Tran_total",0,236762]
[null,null,null,null,"D0619","Transportation",10,"Reimbursements",0,4605]
[null,null,null,null,"D0619","Transportation",11,"Net_transportation_costs",0,232157]
[null,null,null,null,"D0619","Transportation",12,"Trans_entitlement_80pcnt",0,185726]
[null,null,null,null,"D0619","Transportation",13,"CarryOver Adjustment",0,0]
[null,null,null,null,"D0619","Transportation",14,"Transportation Payment",0,185726]
[null,null,null,null,"D0619","Transportation",15,"Supplemental",0,0]
[null,null,null,null,"D0620","Adjustments & Carryovers",1,"Carryover",0,0]
[null,null,null,null,"D0620","Adjustments & Carryovers",2,"Refund",0,0]
[null,null,null,null,"D0620","Adjustments & Carryovers",3,"Teacher_Adj",-37055,6063]
[null,null,null,null,"D0620","Adjustments & Carryovers",4,"Transportation_Adj",-6607,8290]
[null,null,null,null,"D0620","Adjustments & Carryovers",5,"Catastrophic_Adj",0,0]
[null,null,null,null,"D0620","Adjustments & Carryovers",6,"Total_Adj",-43662,0]
[null,null,null,null,"D0620","Catastrophic",1,"Cat_total",0,0]
[null,null,null,null,"D0620","Catastrophic",2,"Cat_Total_students",0,0]
[null,null,null,null,"D0620","Catastrophic",3,"Cat_Netcost",0,0]
[null,null,null,null,"D0620","Catastrophic",4,"Cat_Stateaid",0,0]
[null,null,null,null,"D0620","Catastrophic",5,"Per Student",0,0]
[null,null,null,null,"D0620","Catastrophic",6,"Supplemental",0,0]
[null,null,null,null,"D0620","Medicaid",1,"Medicaid_Students",0,0]
[null,null,null,null,"D0620","Medicaid",2,"Paid",0,0]
[null,null,null,null,"D0620","Medicaid",3,"Per Student",0,0]
[null,null,null,null,"D0620","Medicaid",4,"Supplemental",0,0]
[null,null,null,null,"D0620","Payments",1,"October",949564,900515]
[null,null,null,null,"D0620","Payments",2,"December",898663,890043]
[null,null,null,null,"D0620","Payments",3,"March",612246,589613]
[null,null,null,null,"D0620","Payments",4,"April",622065,609559]
[null,null,null,null,"D0620","Payments",5,"June",0,694125]
[null,null,null,null,"D0620","Payments",6,"June Total",0,808922]
[null,null,null,null,"D0620","Payments",7,"Supplemental",0,0]
[null,null,null,null,"D0620","Summary",1,"Total Entitlement",3126201,3798653]
[null,null,null,null,"D0620","Summary",2,"Total Payments",3082538,3798653]
[null,null,null,null,"D0620","Summary",3,"Overpayment",0,0]
[null,null,null,null,"D0620","Teachers",1,"Regular_teachers",74.27,71.17]
[null,null,null,null,"D0620","Teachers",2,"Non_public_equiv",0,0.05]
[null,null,null,null,"D0620","Teachers",3,"Regular_aides",115.58,111.32]
[null,null,null,null,"D0620","Teachers",4,"Regular_fte",120.5,115.75]
[null,null,null,null,"D0620","Teachers",5,"Summer_teachers",0.2,0.43]
[null,null,null,null,"D0620","Teachers",6,"Summer_aides",0.2,0.34]
[null,null,null,null,"D0620","Teachers",7,"Summer_fte",0.28000000000000003,0.56999999999999995]
[null,null,null,null,"D0620","Teachers",8,"Entitlement_perfte",30800,31670]
[null,null,null,null,"D0620","Teachers",9,"Regular_entitlement",3711400,3665803]
[null,null,null,null,"D0620","Teachers",10,"Summer_entitlement",8624,18052]
[null,null,null,null,"D0620","Teachers",11,"Tch_total",3720024,3683855]
[null,null,null,null,"D0620","Teachers",12,"Current Entitlement",3126200,3683855]
[null,null,null,null,"D0620","Teachers",13,"Current Payment",622065,609559]
[null,null,null,null,"D0620","Teachers",14,"Supplemental",0,0]
[null,null,null,null,"D0620","Transportation",1,"Salaries",0,50393]
[null,null,null,null,"D0620","Transportation",2,"Contracted_services",0,3811]
[null,null,null,null,"D0620","Transportation",3,"Insurance",0,2564]
[null,null,null,null,"D0620","Transportation",4,"Expend_inLieuOfTrans",0,0]
[null,null,null,null,"D0620","Transportation",5,"Other_expenses",0,2687]
[null,null,null,null,"D0620","Transportation",6,"Capital_outlay_fund_equip",0,0]
[null,null,null,null,"D0620","Transportation",7,"Depreciation",0,7119]
[null,null,null,null,"D0620","Transportation",8,"Teacher_transportation",0,76922]
[null,null,null,null,"D0620","Transportation",9,"Tran_total",0,143496]
[null,null,null,null,"D0620","Transportation",10,"Reimbursements",0,0]
[null,null,null,null,"D0620","Transportation",11,"Net_transportation_costs",0,143496]
[null,null,null,null,"D0620","Transportation",12,"Trans_entitlement_80pcnt",0,114797]
[null,null,null,null,"D0620","Transportation",13,"CarryOver Adjustment",0,0]
[null,null,null,null,"D0620","Transportation",14,"Transportation Payment",0,114797]
[null,null,null,null,"D0620","Transportation",15,"Supplemental",0,0]
[null,null,null,null,"D0622","Adjustments & Carryovers",1,"Carryover",0,0]
[null,null,null,null,"D0622","Adjustments & Carryovers",2,"Refund",0,0]
[null,null,null,null,"D0622","Adjustments & Carryovers",3,"Teacher_Adj",0,0]
[null,null,null,null,"D0622","Adjustments & Carryovers",4,"Transportation_Adj",0,0]
[null,null,null,null,"D0622","Adjustments & Carryovers",5,"Catastrophic_Adj",0,0]
[null,null,null,null,"D0622","Adjustments & Carryovers",6,"Total_Adj",0,0]
[null,null,null,null,"D0622","Teachers",1,"Regular_teachers",0,0]
[null,null,null,null,"D0622","Teachers",2,"Non_public_equiv",0,0]
[null,null,null,null,"D0622","Teachers",3,"Regular_aides",0,0]
[null,null,null,null,"D0622","Teachers",4,"Regular_fte",0,0]
[null,null,null,null,"D0622","Teachers",5,"Summer_teachers",0,0]
[null,null,null,null,"D0622","Teachers",6,"Summer_aides",0,0]
[null,null,null,null,"D0622","Teachers",7,"Summer_fte",0,0]
[null,null,null,null,"D0622","Teachers",8,"Entitlement_perfte",30800,31670]
[null,null,null,null,"D0622","Teachers",9,"Regular_entitlement",0,0]
[null,null,null,null,"D0622","Teachers",10,"Summer_entitlement",0,0]
[null,null,null,null,"D0622","Teachers",11,"Tch_total",0,0]
[null,null,null,null,"D0622","Teachers",12,"Current Entitlement",0,0]
[null,null,null,null,"D0625","Adjustments & Carryovers",1,"Carryover",0,0]
[null,null,null,null,"D0625","Adjustments & Carryovers",2,"Refund",0,0]
[null,null,null,null,"D0625","Adjustments & Carryovers",3,"Teacher_Adj",0,0]
[null,null,null,null,"D0625","Adjustments & Carryovers",4,"Transportation_Adj",0,0]
[null,null,null,null,"D0625","Adjustments & Carryovers",5,"Catastrophic_Adj",0,0]
[null,null,null,null,"D0625","Adjustments & Carryovers",6,"Total_Adj",0,0]
[null,null,null,null,"D0625","Teachers",1,"Regular_teachers",0,0]
[null,null,null,null,"D0625","Teachers",2,"Non_public_equiv",0,0]
[null,null,null,null,"D0625","Teachers",3,"Regular_aides",0,0]
[null,null,null,null,"D0625","Teachers",4,"Regular_fte",0,0]
[null,null,null,null,"D0625","Teachers",5,"Summer_teachers",0,0]
[null,null,null,null,"D0625","Teachers",6,"Summer_aides",0,0]
[null,null,null,null,"D0625","Teachers",7,"Summer_fte",0,0]
[null,null,null,null,"D0625","Teachers",8,"Entitlement_perfte",30800,31670]
[null,null,null,null,"D0625","Teachers",9,"Regular_entitlement",0,0]
[null,null,null,null,"D0625","Teachers",10,"Summer_entitlement",0,0]
[null,null,null,null,"D0625","Teachers",11,"Tch_total",0,0]
[null,null,null,null,"D0625","Teachers",12,"Current Entitlement",0,0]
[null,null,null,null,"D0626","Adjustments & Carryovers",1,"Carryover",0,0]
[null,null,null,null,"D0626","Adjustments & Carryovers",2,"Refund",0,0]
[null,null,null,null,"D0626","Adjustments & Carryovers",3,"Teacher_Adj",0,0]
[null,null,null,null,"D0626","Adjustments & Carryovers",4,"Transportation_Adj",0,0]
[null,null,null,null,"D0626","Adjustments & Carryovers",5,"Catastrophic_Adj",0,0]
[null,null,null,null,"D0626","Adjustments & Carryovers",6,"Total_Adj",0,0]
[null,null,null,null,"D0626","Teachers",1,"Regular_teachers",0,0]
[null,null,null,null,"D0626","Teachers",2,"Non_public_equiv",0,0]
[null,null,null,null,"D0626","Teachers",3,"Regular_aides",0,0]
[null,null,null,null,"D0626","Teachers",4,"Regular_fte",0,0]
[null,null,null,null,"D0626","Teachers",5,"Summer_teachers",0,0]
[null,null,null,null,"D0626","Teachers",6,"Summer_aides",0,0]
[null,null,null,null,"D0626","Teachers",7,"Summer_fte",0,0]
[null,null,null,null,"D0626","Teachers",8,"Entitlement_perfte",30800,31670]
[null,null,null,null,"D0626","Teachers",9,"Regular_entitlement",0,0]
[null,null,null,null,"D0626","Teachers",10,"Summer_entitlement",0,0]
[null,null,null,null,"D0626","Teachers",11,"Tch_total",0,0]
[null,null,null,null,"D0626","Teachers",12,"Current Entitlement",0,0]
[null,null,null,null,"D0628","Adjustments & Carryovers",1,"Carryover",0,0]
[null,null,null,null,"D0628","Adjustments & Carryovers",2,"Refund",0,0]
[null,null,null,null,"D0628","Adjustments & Carryovers",3,"Teacher_Adj",0,0]
[null,null,null,null,"D0628","Adjustments & Carryovers",4,"Transportation_Adj",0,0]
[null,null,null,null,"D0628","Adjustments & Carryovers",5,"Catastrophic_Adj",0,0]
[null,null,null,null,"D0628","Adjustments & Carryovers",6,"Total_Adj",0,0]
[null,null,null,null,"D0628","Catastrophic",1,"Cat_total",0,0]
[null,null,null,null,"D0628","Catastrophic",2,"Cat_Total_students",0,0]
[null,null,null,null,"D0628","Catastrophic",3,"Cat_Netcost",0,0]
[null,null,null,null,"D0628","Catastrophic",4,"Cat_Stateaid",0,0]
[null,null,null,null,"D0628","Catastrophic",5,"Per Student",0,0]
[null,null,null,null,"D0628","Catastrophic",6,"Supplemental",0,0]
[null,null,null,null,"D0628","Medicaid",1,"Medicaid_Students",0,0]
[null,null,null,null,"D0628","Medicaid",2,"Paid",0,0]
[null,null,null,null,"D0628","Medicaid",3,"Per Student",0,0]
[null,null,null,null,"D0628","Medicaid",4,"Supplemental",0,0]
[null,null,null,null,"D0628","Payments",1,"October",7700,7700]
[null,null,null,null,"D0628","Payments",2,"December",7700,7700]
[null,null,null,null,"D0628","Payments",3,"March",5236,5236]
[null,null,null,null,"D0628","Payments",4,"April",5236,5236]
[null,null,null,null,"D0628","Payments",5,"June",0,5798]
[null,null,null,null,"D0628","Payments",6,"June Total",0,5798]
[null,null,null,null,"D0628","Payments",7,"Supplemental",0,0]
[null,null,null,null,"D0628","Summary",1,"Total Entitlement",25872,31670]
[null,null,null,null,"D0628","Summary",2,"Total Payments",25872,31670]
[null,null,null,null,"D0628","Summary",3,"Overpayment",0,0]
[null,null,null,null,"D0628","Teachers",1,"Regular_teachers",1,1]
[null,null,null,null,"D0628","Teachers",2,"Non_public_equiv",0,0]
[null,null,null,null,"D0628","Teachers",3,"Regular_aides",0,0]
[null,null,null,null,"D0628","Teachers",4,"Regular_fte",1,1]
[null,null,null,null,"D0628","Teachers",5,"Summer_teachers",0,0]
[null,null,null,null,"D0628","Teachers",6,"Summer_aides",0,0]
[null,null,null,null,"D0628","Teachers",7,"Summer_fte",0,0]
[null,null,null,null,"D0628","Teachers",8,"Entitlement_perfte",30800,31670]
[null,null,null,null,"D0628","Teachers",9,"Regular_entitlement",30800,31670]
[null,null,null,null,"D0628","Teachers",10,"Summer_entitlement",0,0]
[null,null,null,null,"D0628","Teachers",11,"Tch_total",30800,31670]
[null,null,null,null,"D0628","Teachers",12,"Current Entitlement",25872,31670]
[null,null,null,null,"D0628","Teachers",13,"Current Payment",5236,5236]
[null,null,null,null,"D0628","Teachers",14,"Supplemental",0,0]
[null,null,null,null,"D0628","Transportation",1,"Salaries",0,0]
[null,null,null,null,"D0628","Transportation",2,"Contracted_services",0,0]
[null,null,null,null,"D0628","Transportation",3,"Insurance",0,0]
[null,null,null,null,"D0628","Transportation",4,"Expend_inLieuOfTrans",0,0]
[null,null,null,null,"D0628","Transportation",5,"Other_expenses",0,0]
[null,null,null,null,"D0628","Transportation",6,"Capital_outlay_fund_equip",0,0]
[null,null,null,null,"D0628","Transportation",7,"Depreciation",0,0]
[null,null,null,null,"D0628","Transportation",8,"Teacher_transportation",0,0]
[null,null,null,null,"D0628","Transportation",9,"Tran_total",0,0]
[null,null,null,null,"D0628","Transportation",10,"Reimbursements",0,0]
[null,null,null,null,"D0628","Transportation",11,"Net_transportation_costs",0,0]
[null,null,null,null,"D0628","Transportation",12,"Trans_entitlement_80pcnt",0,0]
[null,null,null,null,"D0628","Transportation",13,"CarryOver Adjustment",0,0]
[null,null,null,null,"D0628","Transportation",14,"Transportation Payment",0,0]
[null,null,null,null,"D0628","Transportation",15,"Supplemental",0,0]
[null,null,null,null,"D0629","Adjustments & Carryovers",1,"Carryover",0,0]
[null,null,null,null,"D0629","Adjustments & Carryovers",2,"Refund",0,0]
[null,null,null,null,"D0629","Adjustments & Carryovers",3,"Teacher_Adj",0,0]
[null,null,null,null,"D0629","Adjustments & Carryovers",4,"Transportation_Adj",0,0]
[null,null,null,null,"D0629","Adjustments & Carryovers",5,"Catastrophic_Adj",0,0]
[null,null,null,null,"D0629","Adjustments & Carryovers",6,"Total_Adj",0,0]
[null,null,null,null,"D0629","Teachers",1,"Regular_teachers",0,0]
[null,null,null,null,"D0629","Teachers",2,"Non_public_equiv",0,0]
[null,null,null,null,"D0629","Teachers",3,"Regular_aides",0,0]
[null,null,null,null,"D0629","Teachers",4,"Regular_fte",0,0]
[null,null,null,null,"D0629","Teachers",5,"Summer_teachers",0,0]
[null,null,null,null,"D0629","Teachers",6,"Summer_aides",0,0]
[null,null,null,null,"D0629","Teachers",7,"Summer_fte",0,0]
[null,null,null,null,"D0629","Teachers",8,"Entitlement_perfte",30800,31670]
[null,null,null,null,"D0629","Teachers",9,"Regular_entitlement",0,0]
[null,null,null,null,"D0629","Teachers",10,"Summer_entitlement",0,0]
[null,null,null,null,"D0629","Teachers",11,"Tch_total",0,0]
[null,null,null,null,"D0629","Teachers",12,"Current Entitlement",0,0]
[null,null,null,null,"D0629","Transportation",1,"Salaries",null,0]
[null,null,null,null,"D0629","Transportation",2,"Contracted_services",null,0]
[null,null,null,null,"D0629","Transportation",3,"Insurance",null,0]
[null,null,null,null,"D0629","Transportation",4,"Expend_inLieuOfTrans",null,0]
[null,null,null,null,"D0629","Transportation",5,"Other_expenses",null,0]
[null,null,null,null,"D0629","Transportation",6,"Capital_outlay_fund_equip",null,0]
[null,null,null,null,"D0629","Transportation",7,"Depreciation",null,0]
[null,null,null,null,"D0629","Transportation",8,"Teacher_transportation",null,0]
[null,null,null,null,"D0629","Transportation",9,"Tran_total",null,0]
[null,null,null,null,"D0629","Transportation",10,"Reimbursements",null,0]
[null,null,null,null,"D0629","Transportation",11,"Net_transportation_costs",null,0]
[null,null,null,null,"D0629","Transportation",12,"Trans_entitlement_80pcnt",null,0]
[null,null,null,null,"D0631","Adjustments & Carryovers",1,"Carryover",0,0]
[null,null,null,null,"D0631","Adjustments & Carryovers",2,"Refund",0,0]
[null,null,null,null,"D0631","Adjustments & Carryovers",3,"Teacher_Adj",0,0]
[null,null,null,null,"D0631","Adjustments & Carryovers",4,"Transportation_Adj",0,0]
[null,null,null,null,"D0631","Adjustments & Carryovers",5,"Catastrophic_Adj",0,0]
[null,null,null,null,"D0631","Adjustments & Carryovers",6,"Total_Adj",0,0]
[null,null,null,null,"D0631","Teachers",1,"Regular_teachers",0,0]
[null,null,null,null,"D0631","Teachers",2,"Non_public_equiv",0,0]
[null,null,null,null,"D0631","Teachers",3,"Regular_aides",0,0]
[null,null,null,null,"D0631","Teachers",4,"Regular_fte",0,0]
[null,null,null,null,"D0631","Teachers",5,"Summer_teachers",0,0]
[null,null,null,null,"D0631","Teachers",6,"Summer_aides",0,0]
[null,null,null,null,"D0631","Teachers",7,"Summer_fte",0,0]
[null,null,null,null,"D0631","Teachers",8,"Entitlement_perfte",30800,31670]
[null,null,null,null,"D0631","Teachers",9,"Regular_entitlement",0,0]
[null,null,null,null,"D0631","Teachers",10,"Summer_entitlement",0,0]
[null,null,null,null,"D0631","Teachers",11,"Tch_total",0,0]
[null,null,null,null,"D0631","Teachers",12,"Current Entitlement",0,0]
[null,null,null,null,"D0632","Adjustments & Carryovers",1,"Carryover",0,0]
[null,null,null,null,"D0632","Adjustments & Carryovers",2,"Refund",0,0]
[null,null,null,null,"D0632","Adjustments & Carryovers",3,"Teacher_Adj",0,0]
[null,null,null,null,"D0632","Adjustments & Carryovers",4,"Transportation_Adj",0,0]
[null,null,null,null,"D0632","Adjustments & Carryovers",5,"Catastrophic_Adj",0,0]
[null,null,null,null,"D0632","Adjustments & Carryovers",6,"Total_Adj",0,0]
[null,null,null,null,"D0632","Teachers",1,"Regular_teachers",0,0]
[null,null,null,null,"D0632","Teachers",2,"Non_public_equiv",0,0]
[null,null,null,null,"D0632","Teachers",3,"Regular_aides",0,0]
[null,null,null,null,"D0632","Teachers",4,"Regular_fte",0,0]
[null,null,null,null,"D0632","Teachers",5,"Summer_teachers",0,0]
[null,null,null,null,"D0632","Teachers",6,"Summer_aides",0,0]
[null,null,null,null,"D0632","Teachers",7,"Summer_fte",0,0]
[null,null,null,null,"D0632","Teachers",8,"Entitlement_perfte",30800,31670]
[null,null,null,null,"D0632","Teachers",9,"Regular_entitlement",0,0]
[null,null,null,null,"D0632","Teachers",10,"Summer_entitlement",0,0]
[null,null,null,null,"D0632","Teachers",11,"Tch_total",0,0]
[null,null,null,null,"D0632","Teachers",12,"Current Entitlement",0,0]
[null,null,null,null,"D0636","Adjustments & Carryovers",1,"Carryover",0,0]
[null,null,null,null,"D0636","Adjustments & Carryovers",2,"Refund",0,0]
[null,null,null,null,"D0636","Adjustments & Carryovers",3,"Teacher_Adj",-29454,-82341]
[null,null,null,null,"D0636","Adjustments & Carryovers",4,"Transportation_Adj",-30880,823]
[null,null,null,null,"D0636","Adjustments & Carryovers",5,"Catastrophic_Adj",0,0]
[null,null,null,null,"D0636","Adjustments & Carryovers",6,"Total_Adj",-60334,-81518]
[null,null,null,null,"D0636","Catastrophic",1,"Cat_total",0,0]
[null,null,null,null,"D0636","Catastrophic",2,"Cat_Total_students",0,0]
[null,null,null,null,"D0636","Catastrophic",3,"Cat_Netcost",0,0]
[null,null,null,null,"D0636","Catastrophic",4,"Cat_Stateaid",0,0]
[null,null,null,null,"D0636","Catastrophic",5,"Per Student",0,0]
[null,null,null,null,"D0636","Catastrophic",6,"Supplemental",0,0]
[null,null,null,null,"D0636","Medicaid",1,"Medicaid_Students",0,0]
[null,null,null,null,"D0636","Medicaid",2,"Paid",0,0]
[null,null,null,null,"D0636","Medicaid",3,"Per Student",0,0]
[null,null,null,null,"D0636","Medicaid",4,"Supplemental",0,0]
[null,null,null,null,"D0636","Payments",1,"October",1119349,998075]
[null,null,null,null,"D0636","Payments",2,"December",928423,1032824]
[null,null,null,null,"D0636","Payments",3,"March",667967,612088]
[null,null,null,null,"D0636","Payments",4,"April",688152,682960]
[null,null,null,null,"D0636","Payments",5,"June",0,700768]
[null,null,null,null,"D0636","Payments",6,"June Total",0,860810]
[null,null,null,null,"D0636","Payments",7,"Supplemental",0,0]
[null,null,null,null,"D0636","Summary",1,"Total Entitlement",3464225,4268274]
[null,null,null,null,"D0636","Summary",2,"Total Payments",3403891,4186756]
[null,null,null,null,"D0636","Summary",3,"Overpayment",0,0]
[null,null,null,null,"D0636","Teachers",1,"Regular_teachers",75.63,73.77]
[null,null,null,null,"D0636","Teachers",2,"Non_public_equiv",0,0]
[null,null,null,null,"D0636","Teachers",3,"Regular_aides",133.97,133.77000000000001]
[null,null,null,null,"D0636","Teachers",4,"Regular_fte",129.22,127.28]
[null,null,null,null,"D0636","Teachers",5,"Summer_teachers",3.22,1.88]
[null,null,null,null,"D0636","Teachers",6,"Summer_aides",1.78,1.41]
[null,null,null,null,"D0636","Teachers",7,"Summer_fte",3.93,2.44]
[null,null,null,null,"D0636","Teachers",8,"Entitlement_perfte",30800,31670]
[null,null,null,null,"D0636","Teachers",9,"Regular_entitlement",3979976,4030958]
[null,null,null,null,"D0636","Teachers",10,"Summer_entitlement",121044,77275]
[null,null,null,null,"D0636","Teachers",11,"Tch_total",4101020,4108233]
[null,null,null,null,"D0636","Teachers",12,"Current Entitlement",3464224,4108233]
[null,null,null,null,"D0636","Teachers",13,"Current Payment",688152,682960]
[null,null,null,null,"D0636","Teachers",14,"Supplemental",0,0]
[null,null,null,null,"D0636","Transportation",1,"Salaries",0,0]
[null,null,null,null,"D0636","Transportation",2,"Contracted_services",0,0]
[null,null,null,null,"D0636","Transportation",3,"Insurance",0,5052]
[null,null,null,null,"D0636","Transportation",4,"Expend_inLieuOfTrans",0,0]
[null,null,null,null,"D0636","Transportation",5,"Other_expenses",0,8000]
[null,null,null,null,"D0636","Transportation",6,"Capital_outlay_fund_equip",0,0]
[null,null,null,null,"D0636","Transportation",7,"Depreciation",0,0]
[null,null,null,null,"D0636","Transportation",8,"Teacher_transportation",0,187000]
[null,null,null,null,"D0636","Transportation",9,"Tran_total",0,200052]
[null,null,null,null,"D0636","Transportation",10,"Reimbursements",0,0]
[null,null,null,null,"D0636","Transportation",11,"Net_transportation_costs",0,200052]
[null,null,null,null,"D0636","Transportation",12,"Trans_entitlement_80pcnt",0,160042]
[null,null,null,null,"D0636","Transportation",13,"CarryOver Adjustment",0,0]
[null,null,null,null,"D0636","Transportation",14,"Transportation Payment",0,160042]
[null,null,null,null,"D0636","Transportation",15,"Supplemental",0,0]
[null,null,null,null,"D0637","Adjustments & Carryovers",1,"Carryover",0,0]
[null,null,null,null,"D0637","Adjustments & Carryovers",2,"Refund",0,0]
[null,null,null,null,"D0637","Adjustments & Carryovers",3,"Teacher_Adj",-63339,-45319]
[null,null,null,null,"D0637","Adjustments & Carryovers",4,"Transportation_Adj",740,-3551]
[null,null,null,null,"D0637","Adjustments & Carryovers",5,"Catastrophic_Adj",0,0]
[null,null,null,null,"D0637","Adjustments & Carryovers",6,"Total_Adj",-62599,-48870]
[null,null,null,null,"D0637","Catastrophic",1,"Cat_total",0,0]
[null,null,null,null,"D0637","Catastrophic",2,"Cat_Total_students",0,0]
[null,null,null,null,"D0637","Catastrophic",3,"Cat_Netcost",0,0]
[null,null,null,null,"D0637","Catastrophic",4,"Cat_Stateaid",0,0]
[null,null,null,null,"D0637","Catastrophic",5,"Per Student",0,0]
[null,null,null,null,"D0637","Catastrophic",6,"Supplemental",0,0]
[null,null,null,null,"D0637","Medicaid",1,"Medicaid_Students",0,0]
[null,null,null,null,"D0637","Medicaid",2,"Paid",0,0]
[null,null,null,null,"D0637","Medicaid",3,"Per Student",0,0]
[null,null,null,null,"D0637","Medicaid",4,"Supplemental",0,0]
[null,null,null,null,"D0637","Payments",1,"October",2797025,2736195]
[null,null,null,null,"D0637","Payments",2,"December",2671287,2717510]
[null,null,null,null,"D0637","Payments",3,"March",1792649,1837802]
[null,null,null,null,"D0637","Payments",4,"April",1860051,1852179]
[null,null,null,null,"D0637","Payments",5,"June",0,1997089]
[null,null,null,null,"D0637","Payments",6,"June Total",0,2151319]
[null,null,null,null,"D0637","Payments",7,"Supplemental",0,0]
[null,null,null,null,"D0637","Summary",1,"Total Entitlement",9183612,11343873]
[null,null,null,null,"D0637","Summary",2,"Total Payments",9121012,11295004]
[null,null,null,null,"D0637","Summary",3,"Overpayment",0,0]
[null,null,null,null,"D0637","Teachers",1,"Regular_teachers",180.58,180.26]
[null,null,null,null,"D0637","Teachers",2,"Non_public_equiv",0,0]
[null,null,null,null,"D0637","Teachers",3,"Regular_aides",427.01,424.89]
[null,null,null,null,"D0637","Teachers",4,"Regular_fte",351.38,350.22]
[null,null,null,null,"D0637","Teachers",5,"Summer_teachers",2.04,2.2000000000000002]
[null,null,null,null,"D0637","Teachers",6,"Summer_aides",2.4300000000000002,2.25]
[null,null,null,null,"D0637","Teachers",7,"Summer_fte",3.01,3.1]
[null,null,null,null,"D0637","Teachers",8,"Entitlement_perfte",30800,31670]
[null,null,null,null,"D0637","Teachers",9,"Regular_entitlement",10822504,11091467]
[null,null,null,null,"D0637","Teachers",10,"Summer_entitlement",92708,98177]
[null,null,null,null,"D0637","Teachers",11,"Tch_total",10915212,11189644]
[null,null,null,null,"D0637","Teachers",12,"Current Entitlement",9183611,11189644]
[null,null,null,null,"D0637","Teachers",13,"Current Payment",1860051,1852179]
[null,null,null,null,"D0637","Teachers",14,"Supplemental",0,0]
[null,null,null,null,"D0637","Transportation",1,"Salaries",0,0]
[null,null,null,null,"D0637","Transportation",2,"Contracted_services",0,0]
[null,null,null,null,"D0637","Transportation",3,"Insurance",0,5835]
[null,null,null,null,"D0637","Transportation",4,"Expend_inLieuOfTrans",0,0]
[null,null,null,null,"D0637","Transportation",5,"Other_expenses",0,21397]
[null,null,null,null,"D0637","Transportation",6,"Capital_outlay_fund_equip",0,0]
[null,null,null,null,"D0637","Transportation",7,"Depreciation",0,1556]
[null,null,null,null,"D0637","Transportation",8,"Teacher_transportation",0,164000]
[null,null,null,null,"D0637","Transportation",9,"Tran_total",0,192788]
[null,null,null,null,"D0637","Transportation",10,"Reimbursements",0,0]
[null,null,null,null,"D0637","Transportation",11,"Net_transportation_costs",0,192788]
[null,null,null,null,"D0637","Transportation",12,"Trans_entitlement_80pcnt",0,154230]
[null,null,null,null,"D0637","Transportation",13,"CarryOver Adjustment",0,0]
[null,null,null,null,"D0637","Transportation",14,"Transportation Payment",0,154230]
[null,null,null,null,"D0637","Transportation",15,"Supplemental",0,0]
[null,null,null,null,"D0638","Adjustments & Carryovers",1,"Carryover",0,0]
[null,null,null,null,"D0638","Adjustments & Carryovers",2,"Refund",0,0]
[null,null,null,null,"D0638","Adjustments & Carryovers",3,"Teacher_Adj",-81392,-405321]
[null,null,null,null,"D0638","Adjustments & Carryovers",4,"Transportation_Adj",-25920,-8923]
[null,null,null,null,"D0638","Adjustments & Carryovers",5,"Catastrophic_Adj",9501,-2004]
[null,null,null,null,"D0638","Adjustments & Carryovers",6,"Total_Adj",-97811,-416248]
[null,null,null,null,"D0638","Catastrophic",1,"Cat_total",0,186379]
[null,null,null,null,"D0638","Catastrophic",2,"Cat_Total_students",0,2]
[null,null,null,null,"D0638","Catastrophic",3,"Cat_Netcost",0,58719]
[null,null,null,null,"D0638","Catastrophic",4,"Cat_Stateaid",0,44039]
[null,null,null,null,"D0638","Catastrophic",5,"Per Student",0,63830]
[null,null,null,null,"D0638","Catastrophic",6,"Supplemental",0,0]
[null,null,null,null,"D0638","Medicaid",1,"Medicaid_Students",0,0]
[null,null,null,null,"D0638","Medicaid",2,"Paid",0,0]
[null,null,null,null,"D0638","Medicaid",3,"Per Student",0,0]
[null,null,null,null,"D0638","Medicaid",4,"Supplemental",0,0]
[null,null,null,null,"D0638","Payments",1,"October",2839608,2917761]
[null,null,null,null,"D0638","Payments",2,"December",2756114,2543555]
[null,null,null,null,"D0638","Payments",3,"March",1830180,1624353]
[null,null,null,null,"D0638","Payments",4,"April",1851745,1979418]
[null,null,null,null,"D0638","Payments",5,"June",0,2141871]
[null,null,null,null,"D0638","Payments",6,"June Total",0,2395691]
[null,null,null,null,"D0638","Payments",7,"Supplemental",0,0]
[null,null,null,null,"D0638","Summary",1,"Total Entitlement",9375457,11877026]
[null,null,null,null,"D0638","Summary",2,"Total Payments",9277647,11460779]
[null,null,null,null,"D0638","Summary",3,"Overpayment",0,0]
[null,null,null,null,"D0638","Teachers",1,"Regular_teachers",218.42,222.83]
[null,null,null,null,"D0638","Teachers",2,"Non_public_equiv",0,0.53]
[null,null,null,null,"D0638","Teachers",3,"Regular_aides",352.57,352.56]
[null,null,null,null,"D0638","Teachers",4,"Regular_fte",359.45,364.38]
[null,null,null,null,"D0638","Teachers",5,"Summer_teachers",1.53,1.69]
[null,null,null,null,"D0638","Teachers",6,"Summer_aides",2.3199999999999998,2.36]
[null,null,null,null,"D0638","Teachers",7,"Summer_fte",2.46,2.63]
[null,null,null,null,"D0638","Teachers",8,"Entitlement_perfte",30800,31670]
[null,null,null,null,"D0638","Teachers",9,"Regular_entitlement",11071060,11539915]
[null,null,null,null,"D0638","Teachers",10,"Summer_entitlement",75768,83292]
[null,null,null,null,"D0638","Teachers",11,"Tch_total",11146828,11623207]
[null,null,null,null,"D0638","Teachers",12,"Current Entitlement",9375458,11623207]
[null,null,null,null,"D0638","Teachers",13,"Current Payment",1851745,1979418]
[null,null,null,null,"D0638","Teachers",14,"Supplemental",0,0]
[null,null,null,null,"D0638","Transportation",1,"Salaries",0,0]
[null,null,null,null,"D0638","Transportation",2,"Contracted_services",0,0]
[null,null,null,null,"D0638","Transportation",3,"Insurance",0,24000]
[null,null,null,null,"D0638","Transportation",4,"Expend_inLieuOfTrans",0,0]
[null,null,null,null,"D0638","Transportation",5,"Other_expenses",0,11170]
[null,null,null,null,"D0638","Transportation",6,"Capital_outlay_fund_equip",0,0]
[null,null,null,null,"D0638","Transportation",7,"Depreciation",0,8155]
[null,null,null,null,"D0638","Transportation",8,"Teacher_transportation",0,218901]
[null,null,null,null,"D0638","Transportation",9,"Tran_total",0,262226]
[null,null,null,null,"D0638","Transportation",10,"Reimbursements",0,0]
[null,null,null,null,"D0638","Transportation",11,"Net_transportation_costs",0,262226]
[null,null,null,null,"D0638","Transportation",12,"Trans_entitlement_80pcnt",0,209781]
[null,null,null,null,"D0638","Transportation",13,"CarryOver Adjustment",0,0]
[null,null,null,null,"D0638","Transportation",14,"Transportation Payment",0,209781]
[null,null,null,null,"D0638","Transportation",15,"Supplemental",0,0]
[null,null,null,null,"D0999","Adjustments & Carryovers",1,"Carryover",-195080,-84143]
[null,null,null,null,"D0999","Adjustments & Carryovers",2,"Refund",0,0]
[null,null,null,null,"D0999","Adjustments & Carryovers",3,"Teacher_Adj",-6627265,-6306723]
[null,null,null,null,"D0999","Adjustments & Carryovers",4,"Transportation_Adj",-3112992,-3010709]
[null,null,null,null,"D0999","Adjustments & Carryovers",5,"Catastrophic_Adj",-24173,12616]
[null,null,null,null,"D0999","Adjustments & Carryovers",6,"Total_Adj",-9959510,-9388959]
[null,null,null,null,"D0999","Catastrophic",1,"Cat_total",0,4651261]
[null,null,null,null,"D0999","Catastrophic",2,"Cat_Total_students",0,45]
[null,null,null,null,"D0999","Catastrophic",3,"Cat_Netcost",0,1778911]
[null,null,null,null,"D0999","Catastrophic",4,"Cat_Stateaid",0,1334185]
[null,null,null,null,"D0999","Catastrophic",5,"Per Student",0,63830]
[null,null,null,null,"D0999","Catastrophic",6,"Supplemental",0,0]
[null,null,null,null,"D0999","Medicaid",1,"Medicaid_Students",0,15232]
[null,null,null,null,"D0999","Medicaid",2,"Paid",0,8986880]
[null,null,null,null,"D0999","Medicaid",3,"Per Student",0,590]
[null,null,null,null,"D0999","Medicaid",4,"Supplemental",0,0]
[null,null,null,null,"D0999","Payments",1,"October",114572499,111644944]
[null,null,null,null,"D0999","Payments",2,"December",103550807,103603376]
[null,null,null,null,"D0999","Payments",3,"March",66165852,64042383]
[null,null,null,null,"D0999","Payments",4,"April",74963315,72867329]
[null,null,null,null,"D0999","Payments",5,"June",0,80273600]
[null,null,null,null,"D0999","Payments",6,"June Total",0,175841821]
[null,null,null,null,"D0999","Payments",7,"Supplemental",0,137101]
[null,null,null,null,"D0999","Summary",1,"Total Entitlement",368525492,537330834]
[null,null,null,null,"D0999","Summary",2,"Total Payments",359252473,528136955]
[null,null,null,null,"D0999","Summary",3,"Overpayment",-686491,-195080]
[null,null,null,null,"D0999","Teachers",1,"Regular_teachers",8946.659999999998,8870.27]
[null,null,null,null,"D0999","Teachers",2,"Non_public_equiv",0,9.1]
[null,null,null,null,"D0999","Teachers",3,"Regular_aides",12450.759999999998,11979.779999999997]
[null,null,null,null,"D0999","Teachers",4,"Regular_fte",13926.979999999996,13671.3]
[null,null,null,null,"D0999","Teachers",5,"Summer_teachers",210.93,189.29000000000002]
[null,null,null,null,"D0999","Teachers",6,"Summer_aides",138.79999999999998,132.64999999999998]
[null,null,null,null,"D0999","Teachers",7,"Summer_fte",266.4500000000001,242.33]
[null,null,null,null,"D0999","Teachers",8,"Entitlement_perfte",30800,31670]
[null,null,null,null,"D0999","Teachers",9,"Regular_entitlement",428950984,432970075]
[null,null,null,null,"D0999","Teachers",10,"Summer_entitlement",8206660,7674598]
[null,null,null,null,"D0999","Teachers",11,"Tch_total",437157644,440644673]
[null,null,null,null,"D0999","Teachers",12,"Current Entitlement",368525491,440644673]
[null,null,null,null,"D0999","Teachers",13,"Current Payment",74963315,72867329]
[null,null,null,null,"D0999","Teachers",14,"Supplemental",0,137101]
[null,null,null,null,"D0999","Transportation",1,"Salaries",0,24448829]
[null,null,null,null,"D0999","Transportation",2,"Contracted_services",0,62019495]
[null,null,null,null,"D0999","Transportation",3,"Insurance",0,1370110]
[null,null,null,null,"D0999","Transportation",4,"Expend_inLieuOfTrans",0,128856]
[null,null,null,null,"D0999","Transportation",5,"Other_expenses",0,11746073]
[null,null,null,null,"D0999","Transportation",6,"Capital_outlay_fund_equip",0,184903]
[null,null,null,null,"D0999","Transportation",7,"Depreciation",0,3036800]
[null,null,null,null,"D0999","Transportation",8,"Teacher_transportation",0,5225610]
[null,null,null,null,"D0999","Transportation",9,"Tran_total",0,108160676]
[null,null,null,null,"D0999","Transportation",10,"Reimbursements",0,204302]
[null,null,null,null,"D0999","Transportation",11,"Net_transportation_costs",0,107956374]
[null,null,null,null,"D0999","Transportation",12,"Trans_entitlement_80pcnt",0,86365093]
[null,null,null,null,"D0999","Transportation",13,"CarryOver Adjustment",-686491,-1400458]
[null,null,null,null,"D0999","Transportation",14,"Transportation Payment",0,85247156]
[null,null,null,null,"D0999","Transportation",15,"Supplemental",0,0]

{"sheet":"Org_County","index":4,"n_rows":313,"n_cols":5,"rows_kept":313,"cut":false,"hidden":true,"merged":[]}
["Org_no","County_Name","Org_name","County_Name2","Org_name3"]
["D0101","Neosho","Erie-Galesburg","All Counties","All Districts"]
["D0102","Gray","Cimarron-Ensign"]
["D0103","Cheyenne","Cheylin"]
["D0105","Rawlins","Rawlins County"]
["D0106","Ness","Western Plains"]
["D0107","Jewell","Rock Hills"]
["D0108","Washington","Washington Co. Schools"]
["D0109","Republic","Republic County"]
["D0110","Phillips","Thunder Ridge Schools"]
["D0111","Doniphan","Doniphan West Schools"]
["D0112","Ellsworth","Central Plains"]
["D0113","Nemaha","Prairie Hills"]
["D0114","Doniphan","Riverside"]
["D0115","Nemaha","Nemaha Central"]
["D0200","Greeley","Greeley County Schools"]
["D0202","Wyandotte","Turner-Kansas City"]
["D0203","Wyandotte","Piper-Kansas City"]
["D0204","Wyandotte","Bonner Springs"]
["D0205","Butler","Bluestem"]
["D0206","Butler","Remington-Whitewater"]
["D0207","Leavenworth","Fort Leavenworth"]
["D0208","Trego","Trego Community Schools"]
["D0209","Stevens","Moscow Public Schools"]
["D0210","Stevens","Hugoton Public Schools"]
["D0211","Norton","Norton Community Schools"]
["D0212","Norton","Northern Valley"]
["D0214","Grant","Ulysses"]
["D0215","Kearny","Lakin"]
["D0216","Kearny","Deerfield"]
["D0217","Morton","Rolla"]
["D0218","Morton","Elkhart"]
["D0219","Clark","Minneola"]
["D0220","Clark","Ashland"]
["D0223","Washington","Barnes"]
["D0224","Washington","Clifton-Clyde"]
["D0225","Meade","Fowler"]
["D0226","Meade","Meade"]
["D0227","Hodgeman","Hodgeman County Schools"]
["D0229","Johnson","Blue Valley"]
["D0230","Johnson","Spring Hill"]
["D0231","Johnson","Gardner Edgerton"]
["D0232","Johnson","De Soto"]
["D0233","Johnson","Olathe"]
["D0234","Bourbon","Fort Scott"]
["D0235","Bourbon","Uniontown"]
["D0237","Smith","Smith Center"]
["D0239","Ottawa","North Ottawa County"]
["D0240","Ottawa","Twin Valley"]
["D0241","Wallace","Wallace County Schools"]
["D0242","Wallace","Weskan"]
["D0243","Coffey","Lebo-Waverly"]
["D0244","Coffey","Burlington"]
["D0245","Coffey","LeRoy-Gridley"]
["D0246","Crawford","Northeast"]
["D0247","Crawford","Cherokee"]
["D0248","Crawford","Girard"]
["D0249","Crawford","Frontenac Public Schools"]
["D0250","Crawford","Pittsburg"]
["D0251","Lyon","North Lyon County"]
["D0252","Lyon","Southern Lyon County"]
["D0253","Lyon","Emporia"]
["D0254","Barber","Barber County North"]
["D0255","Barber","South Barber"]
["D0256","Allen","Marmaton Valley"]
["D0257","Allen","Iola"]
["D0258","Allen","Humboldt"]
["D0259","Sedgwick","Wichita"]
["D0260","Sedgwick","Derby"]
["D0261","Sedgwick","Haysville"]
["D0262","Sedgwick","Valley Center Pub Sch"]
["D0263","Sedgwick","Mulvane"]
["D0264","Sedgwick","Clearwater"]
["D0265","Sedgwick","Goddard"]
["D0266","Sedgwick","Maize"]
["D0267","Sedgwick","Renwick"]
["D0268","Sedgwick","Cheney"]
["D0269","Rooks","Palco"]
["D0270","Rooks","Plainville"]
["D0271","Rooks","Stockton"]
["D0272","Mitchell","Waconda"]
["D0273","Mitchell","Beloit"]
["D0274","Logan","Oakley"]
["D0275","Logan","Triplains"]
["D0281","Graham","Graham County"]
["D0282","Elk","West Elk"]
["D0283","Elk","Elk Valley"]
["D0284","Chase","Chase County"]
["D0285","Chautauqua","Cedar Vale"]
["D0286","Chautauqua","Chautauqua Co Community"]
["D0287","Franklin","West Franklin"]
["D0288","Franklin","Central Heights"]
["D0289","Franklin","Wellsville"]
["D0290","Franklin","Ottawa"]
["D0291","Gove","Grinnell Public Schools"]
["D0292","Gove","Wheatland"]
["D0293","Gove","Quinter Public Schools"]
["D0294","Decatur","Oberlin"]
["D0297","Cheyenne","St Francis Comm Sch"]
["D0298","Lincoln","Lincoln"]
["D0299","Lincoln","Sylvan Grove"]
["D0300","Comanche","Comanche County"]
["D0303","Ness","Ness City"]
["D0305","Saline","Salina"]
["D0306","Saline","Southeast Of Saline"]
["D0307","Saline","Ell-Saline"]
["D0308","Reno","Hutchinson Public Schools"]
["D0309","Reno","Nickerson"]
["D0310","Reno","Fairfield"]
["D0311","Reno","Pretty Prairie"]
["D0312","Reno","Haven Public Schools"]
["D0313","Reno","Buhler"]
["D0314","Thomas","Brewster"]
["D0315","Thomas","Colby Public Schools"]
["D0316","Thomas","Golden Plains"]
["D0320","Pottawatomie","Wamego"]
["D0321","Pottawatomie","Kaw Valley"]
["D0322","Pottawatomie","Onaga-Havensville-Wheaton"]
["D0323","Pottawatomie","Rock Creek"]
["D0325","Phillips","Phillipsburg"]
["D0326","Phillips","Logan"]
["D0327","Ellsworth","Ellsworth"]
["D0329","Wabaunsee","Wabaunsee"]
["D0330","Wabaunsee","Mission Valley"]
["D0331","Kingman","Kingman - Norwich"]
["D0332","Kingman","Cunningham"]
["D0333","Cloud","Concordia"]
["D0334","Cloud","Southern Cloud"]
["D0335","Jackson","North Jackson"]
["D0336","Jackson","Holton"]
["D0337","Jackson","Royal Valley"]
["D0338","Jefferson","Valley Falls"]
["D0339","Jefferson","Jefferson County North"]
["D0340","Jefferson","Jefferson West"]
["D0341","Jefferson","Oskaloosa Public Schools"]
["D0342","Jefferson","McLouth"]
["D0343","Jefferson","Perry Public Schools"]
["D0344","Linn","Pleasanton"]
["D0345","Shawnee","Seaman"]
["D0346","Linn","Jayhawk"]
["D0347","Edwards","Kinsley-Offerle"]
["D0348","Douglas","Baldwin City"]
["D0349","Stafford","Stafford"]
["D0350","Stafford","St John-Hudson"]
["D0351","Stafford","Macksville"]
["D0352","Sherman","Goodland"]
["D0353","Sumner","Wellington"]
["D0355","Barton","Ellinwood Public Schools"]
["D0356","Sumner","Conway Springs"]
["D0357","Sumner","Belle Plaine"]
["D0358","Sumner","Oxford"]
["D0359","Sumner","Argonia Public Schools"]
["D0360","Sumner","Caldwell"]
["D0361","Harper","Chaparral Schools"]
["D0362","Linn","Prairie View"]
["D0363","Finney","Holcomb"]
["D0364","Marshall","Marysville"]
["D0365","Anderson","Garnett"]
["D0366","Woodson","Woodson"]
["D0367","Miami","Osawatomie"]
["D0368","Miami","Paola"]
["D0369","Harvey","Burrton"]
["D0371","Gray","Montezuma"]
["D0372","Shawnee","Silver Lake"]
["D0373","Harvey","Newton"]
["D0374","Haskell","Sublette"]
["D0375","Butler","Circle"]
["D0376","Rice","Sterling"]
["D0377","Atchison","Atchison Co Comm Schools"]
["D0378","Riley","Riley County"]
["D0379","Clay","Clay County"]
["D0380","Marshall","Vermillion"]
["D0381","Ford","Spearville"]
["D0382","Pratt","Pratt"]
["D0383","Riley","Manhattan-Ogden"]
["D0384","Riley","Blue Valley"]
["D0385","Butler","Andover"]
["D0386","Greenwood","Madison-Virgil"]
["D0387","Wilson","Altoona-Midway"]
["D0388","Ellis","Ellis"]
["D0389","Greenwood","Eureka"]
["D0390","Greenwood","Hamilton"]
["D0392","Osborne","Osborne County"]
["D0393","Dickinson","Solomon"]
["D0394","Butler","Rose Hill Public Schools"]
["D0395","Rush","LaCrosse"]
["D0396","Butler","Douglass Public Schools"]
["D0397","Marion","Centre"]
["D0398","Marion","Peabody-Burns"]
["D0399","Russell","Paradise"]
["D0400","McPherson","Smoky Valley"]
["D0401","Rice","Chase-Raymond"]
["D0402","Butler","Augusta"]
["D0403","Rush","Otis-Bison"]
["D0404","Cherokee","Riverton"]
["D0405","Rice","Lyons"]
["D0407","Russell","Russell County"]
["D0408","Marion","Marion-Florence"]
["D0409","Atchison","Atchison Public Schools"]
["D0410","Marion","Durham-Hillsboro-Lehigh"]
["D0411","Marion","Goessel"]
["D0412","Sheridan","Hoxie Community Schools"]
["D0413","Neosho","Chanute Public Schools"]
["D0415","Brown","Hiawatha"]
["D0416","Miami","Louisburg"]
["D0417","Morris","Morris County"]
["D0418","McPherson","McPherson"]
["D0419","McPherson","Canton-Galva"]
["D0420","Osage","Osage City"]
["D0421","Osage","Lyndon"]
["D0422","Kiowa","Kiowa County"]
["D0423","McPherson","Moundridge"]
["D0426","Republic","Pike Valley"]
["D0428","Barton","Great Bend"]
["D0429","Doniphan","Troy Public Schools"]
["D0430","Brown","South Brown County"]
["D0431","Barton","Hoisington"]
["D0432","Ellis","Victoria"]
["D0434","Osage","Santa Fe Trail"]
["D0435","Dickinson","Abilene"]
["D0436","Montgomery","Caney Valley"]
["D0437","Shawnee","Auburn Washburn"]
["D0438","Pratt","Skyline Schools"]
["D0439","Harvey","Sedgwick Public Schools"]
["D0440","Harvey","Halstead"]
["D0443","Ford","Dodge City"]
["D0444","Rice","Little River"]
["D0445","Montgomery","Coffeyville"]
["D0446","Montgomery","Independence"]
["D0447","Montgomery","Cherryvale"]
["D0448","McPherson","Inman"]
["D0449","Leavenworth","Easton"]
["D0450","Shawnee","Shawnee Heights"]
["D0452","Stanton","Stanton County"]
["D0453","Leavenworth","Leavenworth"]
["D0454","Osage","Burlingame Public School"]
["D0456","Osage","Marais Des Cygnes Valley"]
["D0457","Finney","Garden City"]
["D0458","Leavenworth","Basehor-Linwood"]
["D0459","Ford","Bucklin"]
["D0460","Harvey","Hesston"]
["D0461","Wilson","Neodesha"]
["D0462","Cowley","Central"]
["D0463","Cowley","Udall"]
["D0464","Leavenworth","Tonganoxie"]
["D0465","Cowley","Winfield"]
["D0466","Scott","Scott County"]
["D0467","Wichita","Leoti"]
["D0468","Lane","Healy Public Schools"]
["D0469","Leavenworth","Lansing"]
["D0470","Cowley","Arkansas City"]
["D0471","Cowley","Dexter"]
["D0473","Dickinson","Chapman"]
["D0474","Kiowa","Haviland"]
["D0475","Geary","Geary County Schools"]
["D0476","Gray","Copeland"]
["D0477","Gray","Ingalls"]
["D0479","Anderson","Crest"]
["D0480","Seward","Liberal"]
["D0481","Dickinson","Rural Vista"]
["D0482","Lane","Dighton"]
["D0483","Seward","Kismet-Plains"]
["D0484","Wilson","Fredonia"]
["D0487","Dickinson","Herington"]
["D0489","Ellis","Hays"]
["D0490","Butler","El Dorado"]
["D0491","Douglas","Eudora"]
["D0492","Butler","Flinthills"]
["D0493","Cherokee","Columbus"]
["D0494","Hamilton","Syracuse"]
["D0495","Pawnee","Ft Larned"]
["D0496","Pawnee","Pawnee Heights"]
["D0497","Douglas","Lawrence"]
["D0498","Marshall","Valley Heights"]
["D0499","Cherokee","Galena"]
["D0500","Wyandotte","Kansas City"]
["D0501","Shawnee","Topeka Public Schools"]
["D0502","Edwards","Lewis"]
["D0503","Labette","Parsons"]
["D0504","Labette","Oswego"]
["D0505","Labette","Chetopa-St. Paul"]
["D0506","Labette","Labette County"]
["D0507","Haskell","Satanta"]
["D0508","Cherokee","Baxter Springs"]
["D0509","Sumner","South Haven"]
["D0511","Harper","Attica"]
["D0512","Johnson","Shawnee Mission Pub Sch"]
["D0602","Logan","Northwest KS Educational Serv Cntr"]
["D0603","Allen","ANW Special Education Cooperative"]
["D0605","Pratt","South Central KS Spec Ed Coop"]
["D0607","Montgomery","Tri County Special Education Coop"]
["D0608","Jefferson","Northeast KS Education Serv Cntr"]
["D0609","Crawford","Southeast KS Education Serv Center"]
["D0610","Reno","Reno County Education Cooperative"]
["D0611","Grant","High Plains Educational Cooperative"]
["D0613","Ford","Southwest Kansas Area Cooperative"]
["D0614","Douglas","East Central KS Coop in Educ"]
["D0615","Brown","Brown Co KS Special Ed Coop"]
["D0616","Doniphan","Doniphan Co Education Coop"]
["D0617","Marion","Marion County Special Education"]
["D0619","Sumner","Sumner Co Educational Services"]
["D0620","Osage","Three Lakes Educational Cooperative"]
["D0622","Reno","Ed. Services & Staff Dev. Asn. of Central KS"]
["D0625","Meade","Southwest KS Educational Consortium"]
["D0626","Haskell","Southwest Plains Regional Svc Ctr"]
["D0628","Sumner","South Central KS Education Serv Cnt"]
["D0629","Saline","Smoky Hill/Central KS Educ Serv"]
["D0631","Harvey","Learning Consortium Educ Coop"]
["D0632","Marion","Technology Excellence Education Network"]
["D0636","Phillips","North Central Kansas Sp. Ed. Coop. Interlocal"]
["D0637","Crawford","Southeast Kansas Special Education Interlocal"]
["D0638","Butler","Butler Co Special Education Interlocal"]
["D0999","All Counties","All Districts"]